{"text_format":"1","workbook":"xlsx","n_sheets":5,"sheets":["Config","Tag Mapping","Assembly database","Revision","Conn Information"],"not_rendered":{"charts":0,"images":0,"macros":1,"external_links":0,"defined_names":2,"comments":0,"pivot_tables":0},"unopened":[],"bounds":{"document_bytes":16777216,"sheet_cells":100000,"rows_first":2000,"rows_last":500,"rows_between":2000,"halvings":0,"cell_chars":16384,"cell_head_chars":4096},"cells_cut":0,"cells_raw":0,"read":"whole","date_system":"1900"}

{"sheet":"Config","index":0,"n_rows":69,"n_cols":11,"rows_kept":69,"cut":false,"hidden":false,"merged":[[2,10,4,10]]}
["POINT I/O Rack",null,null,null,"Comm Format : ",{"$f":"VLOOKUP($B$3,'Conn Information'!$A$15:$B$18,2,FALSE)","v":"Data - SINT"},null,null,"Source: 1734-UM016"]
[null,null,null,null,null,"Instance","Size","Check"]
["Connection Type : ","Exclusive Owner",null,null,"Input : ",{"$f":"IFERROR(VLOOKUP($B$3,'Conn Information'!$A$2:$D$4,4,FALSE),\"\")","v":101},{"$f":"IF(COUNTIF($C$7:$C$69,\"OK\")=63,IFERROR(VLOOKUP($B$3,'Conn Information'!$A$8:$D$11,4,FALSE),\"\"),\"ERROR\")","v":8},{"$f":"IF(AND($B$3=\"Exclusive Owner\",G3>0),\"OK\",IF($B$3<>\"Exclusive Owner\",\"OK\",\"Output cannot be 0\"))","v":"OK"},"Chassis Size :",{"$f":"COUNTA(B6:B69)","v":1},"This chassis value is set to the XXX_C[4] & XXX_C[5] (where XXX is the Device name given) e.g value 4 is XXX_C[4]= 4 and XXX_C[5] = 0"]
[null,null,null,null,"Output :",{"$f":"IFERROR(VLOOKUP($B$3,'Conn Information'!$A$2:$D$4,3,FALSE),\"\")","v":100},{"$f":"IF(COUNTIF($C$7:$C$69,\"OK\")=63,IFERROR(VLOOKUP($B$3,'Conn Information'!$A$8:$D$11,3,FALSE),\"\"),\"ERROR\")","v":0},{"$f":"IF(AND($B$3=\"Exclusive Owner\",G4>0),\"OK\",IF($B$3<>\"Exclusive Owner\",\"OK\",\"Output cannot be 0 in Exclusive Owner\"))","v":"Output cannot be 0 in Exclusive Owner"}]
[null,"Catalog","Remarks",null,"Configuration :",{"$f":"IFERROR(VLOOKUP($B$3,'Conn Information'!$A$2:$D$4,2,FALSE),\"\")","v":102},{"$f":"IF(COUNTIF($C$7:$C$69,\"OK\")=63,IFERROR(VLOOKUP($B$3,'Conn Information'!$A$8:$D$11,2,FALSE),\"\"),\"ERROR\")","v":10},{"$f":"IF(AND($B$3=\"Exclusive Owner\",G5>0),\"OK\",IF($B$3<>\"Exclusive Owner\",\"OK\",\"Output cannot be 0\"))","v":"OK"}]
["Slot 0","1734-AENTR"]
["Slot 1",null,{"$f":"IF(AND($B$3='Conn Information'!$A$4,LEFT(Config!$B7,6)=\"1734-O\"),\"Invalid entry\",\"OK\")","v":"OK"}]
["Slot 2",null,{"$f":"IF(AND($B$3='Conn Information'!$A$4,LEFT(Config!$B8,6)=\"1734-O\"),\"Invalid entry\",\"OK\")","v":"OK"}]
["Slot 3",null,{"$f":"IF(AND($B$3='Conn Information'!$A$4,LEFT(Config!$B9,6)=\"1734-O\"),\"Invalid entry\",\"OK\")","v":"OK"}]
["Slot 4",null,{"$f":"IF(AND($B$3='Conn Information'!$A$4,LEFT(Config!$B10,6)=\"1734-O\"),\"Invalid entry\",\"OK\")","v":"OK"}]
["Slot 5",null,{"$f":"IF(AND($B$3='Conn Information'!$A$4,LEFT(Config!$B11,6)=\"1734-O\"),\"Invalid entry\",\"OK\")","v":"OK"}]
["Slot 6",null,{"$f":"IF(AND($B$3='Conn Information'!$A$4,LEFT(Config!$B12,6)=\"1734-O\"),\"Invalid entry\",\"OK\")","v":"OK"}]
["Slot 7",null,{"$f":"IF(AND($B$3='Conn Information'!$A$4,LEFT(Config!$B13,6)=\"1734-O\"),\"Invalid entry\",\"OK\")","v":"OK"}]
["Slot 8",null,{"$f":"IF(AND($B$3='Conn Information'!$A$4,LEFT(Config!$B14,6)=\"1734-O\"),\"Invalid entry\",\"OK\")","v":"OK"}]
["Slot 9",null,{"$f":"IF(AND($B$3='Conn Information'!$A$4,LEFT(Config!$B15,6)=\"1734-O\"),\"Invalid entry\",\"OK\")","v":"OK"}]
["Slot 10",null,{"$f":"IF(AND($B$3='Conn Information'!$A$4,LEFT(Config!$B16,6)=\"1734-O\"),\"Invalid entry\",\"OK\")","v":"OK"}]
["Slot 11",null,{"$f":"IF(AND($B$3='Conn Information'!$A$4,LEFT(Config!$B17,6)=\"1734-O\"),\"Invalid entry\",\"OK\")","v":"OK"}]
["Slot 12",null,{"$f":"IF(AND($B$3='Conn Information'!$A$4,LEFT(Config!$B18,6)=\"1734-O\"),\"Invalid entry\",\"OK\")","v":"OK"}]
["Slot 13",null,{"$f":"IF(AND($B$3='Conn Information'!$A$4,LEFT(Config!$B19,6)=\"1734-O\"),\"Invalid entry\",\"OK\")","v":"OK"}]
["Slot 14",null,{"$f":"IF(AND($B$3='Conn Information'!$A$4,LEFT(Config!$B20,6)=\"1734-O\"),\"Invalid entry\",\"OK\")","v":"OK"}]
["Slot 15",null,{"$f":"IF(AND($B$3='Conn Information'!$A$4,LEFT(Config!$B21,6)=\"1734-O\"),\"Invalid entry\",\"OK\")","v":"OK"}]
["Slot 16",null,{"$f":"IF(AND($B$3='Conn Information'!$A$4,LEFT(Config!$B22,6)=\"1734-O\"),\"Invalid entry\",\"OK\")","v":"OK"}]
["Slot 17",null,{"$f":"IF(AND($B$3='Conn Information'!$A$4,LEFT(Config!$B23,6)=\"1734-O\"),\"Invalid entry\",\"OK\")","v":"OK"}]
["Slot 18",null,{"$f":"IF(AND($B$3='Conn Information'!$A$4,LEFT(Config!$B24,6)=\"1734-O\"),\"Invalid entry\",\"OK\")","v":"OK"}]
["Slot 19",null,{"$f":"IF(AND($B$3='Conn Information'!$A$4,LEFT(Config!$B25,6)=\"1734-O\"),\"Invalid entry\",\"OK\")","v":"OK"}]
["Slot 20",null,{"$f":"IF(AND($B$3='Conn Information'!$A$4,LEFT(Config!$B26,6)=\"1734-O\"),\"Invalid entry\",\"OK\")","v":"OK"}]
["Slot 21",null,{"$f":"IF(AND($B$3='Conn Information'!$A$4,LEFT(Config!$B27,6)=\"1734-O\"),\"Invalid entry\",\"OK\")","v":"OK"}]
["Slot 22",null,{"$f":"IF(AND($B$3='Conn Information'!$A$4,LEFT(Config!$B28,6)=\"1734-O\"),\"Invalid entry\",\"OK\")","v":"OK"}]
["Slot 23",null,{"$f":"IF(AND($B$3='Conn Information'!$A$4,LEFT(Config!$B29,6)=\"1734-O\"),\"Invalid entry\",\"OK\")","v":"OK"}]
["Slot 24",null,{"$f":"IF(AND($B$3='Conn Information'!$A$4,LEFT(Config!$B30,6)=\"1734-O\"),\"Invalid entry\",\"OK\")","v":"OK"}]
["Slot 25",null,{"$f":"IF(AND($B$3='Conn Information'!$A$4,LEFT(Config!$B31,6)=\"1734-O\"),\"Invalid entry\",\"OK\")","v":"OK"}]
["Slot 26",null,{"$f":"IF(AND($B$3='Conn Information'!$A$4,LEFT(Config!$B32,6)=\"1734-O\"),\"Invalid entry\",\"OK\")","v":"OK"}]
["Slot 27",null,{"$f":"IF(AND($B$3='Conn Information'!$A$4,LEFT(Config!$B33,6)=\"1734-O\"),\"Invalid entry\",\"OK\")","v":"OK"}]
["Slot 28",null,{"$f":"IF(AND($B$3='Conn Information'!$A$4,LEFT(Config!$B34,6)=\"1734-O\"),\"Invalid entry\",\"OK\")","v":"OK"}]
["Slot 29",null,{"$f":"IF(AND($B$3='Conn Information'!$A$4,LEFT(Config!$B35,6)=\"1734-O\"),\"Invalid entry\",\"OK\")","v":"OK"}]
["Slot 30",null,{"$f":"IF(AND($B$3='Conn Information'!$A$4,LEFT(Config!$B36,6)=\"1734-O\"),\"Invalid entry\",\"OK\")","v":"OK"}]
["Slot 31",null,{"$f":"IF(AND($B$3='Conn Information'!$A$4,LEFT(Config!$B37,6)=\"1734-O\"),\"Invalid entry\",\"OK\")","v":"OK"}]
["Slot 32",null,{"$f":"IF(AND($B$3='Conn Information'!$A$4,LEFT(Config!$B38,6)=\"1734-O\"),\"Invalid entry\",\"OK\")","v":"OK"}]
["Slot 33",null,{"$f":"IF(AND($B$3='Conn Information'!$A$4,LEFT(Config!$B39,6)=\"1734-O\"),\"Invalid entry\",\"OK\")","v":"OK"}]
["Slot 34",null,{"$f":"IF(AND($B$3='Conn Information'!$A$4,LEFT(Config!$B40,6)=\"1734-O\"),\"Invalid entry\",\"OK\")","v":"OK"}]
["Slot 35",null,{"$f":"IF(AND($B$3='Conn Information'!$A$4,LEFT(Config!$B41,6)=\"1734-O\"),\"Invalid entry\",\"OK\")","v":"OK"}]
["Slot 36",null,{"$f":"IF(AND($B$3='Conn Information'!$A$4,LEFT(Config!$B42,6)=\"1734-O\"),\"Invalid entry\",\"OK\")","v":"OK"}]
["Slot 37",null,{"$f":"IF(AND($B$3='Conn Information'!$A$4,LEFT(Config!$B43,6)=\"1734-O\"),\"Invalid entry\",\"OK\")","v":"OK"}]
["Slot 38",null,{"$f":"IF(AND($B$3='Conn Information'!$A$4,LEFT(Config!$B44,6)=\"1734-O\"),\"Invalid entry\",\"OK\")","v":"OK"}]
["Slot 39",null,{"$f":"IF(AND($B$3='Conn Information'!$A$4,LEFT(Config!$B45,6)=\"1734-O\"),\"Invalid entry\",\"OK\")","v":"OK"}]
["Slot 40",null,{"$f":"IF(AND($B$3='Conn Information'!$A$4,LEFT(Config!$B46,6)=\"1734-O\"),\"Invalid entry\",\"OK\")","v":"OK"}]
["Slot 41",null,{"$f":"IF(AND($B$3='Conn Information'!$A$4,LEFT(Config!$B47,6)=\"1734-O\"),\"Invalid entry\",\"OK\")","v":"OK"}]
["Slot 42",null,{"$f":"IF(AND($B$3='Conn Information'!$A$4,LEFT(Config!$B48,6)=\"1734-O\"),\"Invalid entry\",\"OK\")","v":"OK"}]
["Slot 43",null,{"$f":"IF(AND($B$3='Conn Information'!$A$4,LEFT(Config!$B49,6)=\"1734-O\"),\"Invalid entry\",\"OK\")","v":"OK"}]
["Slot 44",null,{"$f":"IF(AND($B$3='Conn Information'!$A$4,LEFT(Config!$B50,6)=\"1734-O\"),\"Invalid entry\",\"OK\")","v":"OK"}]
["Slot 45",null,{"$f":"IF(AND($B$3='Conn Information'!$A$4,LEFT(Config!$B51,6)=\"1734-O\"),\"Invalid entry\",\"OK\")","v":"OK"}]
["Slot 46",null,{"$f":"IF(AND($B$3='Conn Information'!$A$4,LEFT(Config!$B52,6)=\"1734-O\"),\"Invalid entry\",\"OK\")","v":"OK"}]
["Slot 47",null,{"$f":"IF(AND($B$3='Conn Information'!$A$4,LEFT(Config!$B53,6)=\"1734-O\"),\"Invalid entry\",\"OK\")","v":"OK"}]
["Slot 48",null,{"$f":"IF(AND($B$3='Conn Information'!$A$4,LEFT(Config!$B54,6)=\"1734-O\"),\"Invalid entry\",\"OK\")","v":"OK"}]
["Slot 49",null,{"$f":"IF(AND($B$3='Conn Information'!$A$4,LEFT(Config!$B55,6)=\"1734-O\"),\"Invalid entry\",\"OK\")","v":"OK"}]
["Slot 50",null,{"$f":"IF(AND($B$3='Conn Information'!$A$4,LEFT(Config!$B56,6)=\"1734-O\"),\"Invalid entry\",\"OK\")","v":"OK"}]
["Slot 51",null,{"$f":"IF(AND($B$3='Conn Information'!$A$4,LEFT(Config!$B57,6)=\"1734-O\"),\"Invalid entry\",\"OK\")","v":"OK"}]
["Slot 52",null,{"$f":"IF(AND($B$3='Conn Information'!$A$4,LEFT(Config!$B58,6)=\"1734-O\"),\"Invalid entry\",\"OK\")","v":"OK"}]
["Slot 53",null,{"$f":"IF(AND($B$3='Conn Information'!$A$4,LEFT(Config!$B59,6)=\"1734-O\"),\"Invalid entry\",\"OK\")","v":"OK"}]
["Slot 54",null,{"$f":"IF(AND($B$3='Conn Information'!$A$4,LEFT(Config!$B60,6)=\"1734-O\"),\"Invalid entry\",\"OK\")","v":"OK"}]
["Slot 55",null,{"$f":"IF(AND($B$3='Conn Information'!$A$4,LEFT(Config!$B61,6)=\"1734-O\"),\"Invalid entry\",\"OK\")","v":"OK"}]
["Slot 56",null,{"$f":"IF(AND($B$3='Conn Information'!$A$4,LEFT(Config!$B62,6)=\"1734-O\"),\"Invalid entry\",\"OK\")","v":"OK"}]
["Slot 57",null,{"$f":"IF(AND($B$3='Conn Information'!$A$4,LEFT(Config!$B63,6)=\"1734-O\"),\"Invalid entry\",\"OK\")","v":"OK"}]
["Slot 58",null,{"$f":"IF(AND($B$3='Conn Information'!$A$4,LEFT(Config!$B64,6)=\"1734-O\"),\"Invalid entry\",\"OK\")","v":"OK"}]
["Slot 59",null,{"$f":"IF(AND($B$3='Conn Information'!$A$4,LEFT(Config!$B65,6)=\"1734-O\"),\"Invalid entry\",\"OK\")","v":"OK"}]
["Slot 60",null,{"$f":"IF(AND($B$3='Conn Information'!$A$4,LEFT(Config!$B66,6)=\"1734-O\"),\"Invalid entry\",\"OK\")","v":"OK"}]
["Slot 61",null,{"$f":"IF(AND($B$3='Conn Information'!$A$4,LEFT(Config!$B67,6)=\"1734-O\"),\"Invalid entry\",\"OK\")","v":"OK"}]
["Slot 62",null,{"$f":"IF(AND($B$3='Conn Information'!$A$4,LEFT(Config!$B68,6)=\"1734-O\"),\"Invalid entry\",\"OK\")","v":"OK"}]
["Slot 63",null,{"$f":"IF(AND($B$3='Conn Information'!$A$4,LEFT(Config!$B69,6)=\"1734-O\"),\"Invalid entry\",\"OK\")","v":"OK"}]

{"sheet":"Tag Mapping","index":1,"n_rows":328,"n_cols":34,"rows_kept":328,"cut":false,"hidden":false,"merged":[[3,11,10,11],[3,0,12,0],[13,2,13,9],[14,2,14,9],[15,2,15,9],[3,12,10,12],[11,14,11,21],[12,14,12,21],[9,2,9,9],[10,2,10,9],[11,2,11,9],[12,2,12,9],[3,2,3,9],[4,2,4,9],[5,2,5,9],[6,2,6,9],[7,2,7,9],[8,2,8,9],[13,14,13,21],[14,14,14,21],[15,14,15,21],[16,2,16,9],[17,2,17,9],[13,0,17,0],[18,0,22,0],[18,2,18,9],[19,2,19,9],[20,2,20,9],[21,2,21,9],[22,2,22,9],[28,0,32,0],[28,2,28,9],[29,2,29,9],[30,2,30,9],[31,2,31,9],[32,2,32,9],[23,0,27,0],[23,2,23,9],[24,2,24,9],[25,2,25,9],[26,2,26,9],[27,2,27,9],[38,0,42,0],[38,2,38,9],[39,2,39,9],[40,2,40,9],[41,2,41,9],[42,2,42,9],[33,0,37,0],[33,2,33,9],[34,2,34,9],[35,2,35,9],[36,2,36,9],[37,2,37,9],[48,0,52,0],[48,2,48,9],[49,2,49,9],[50,2,50,9],[51,2,51,9],[52,2,52,9],[43,0,47,0],[43,2,43,9],[44,2,44,9],[45,2,45,9],[46,2,46,9],[47,2,47,9],[58,0,62,0],[58,2,58,9],[59,2,59,9],[60,2,60,9],[61,2,61,9],[62,2,62,9],[53,0,57,0],[53,2,53,9],[54,2,54,9],[55,2,55,9],[56,2,56,9],[57,2,57,9],[68,0,72,0],[68,2,68,9],[69,2,69,9],[70,2,70,9],[71,2,71,9],[72,2,72,9],[63,0,67,0],[63,2,63,9],[64,2,64,9],[65,2,65,9],[66,2,66,9],[67,2,67,9],[78,0,82,0],[78,2,78,9],[79,2,79,9],[80,2,80,9],[81,2,81,9],[82,2,82,9],[73,0,77,0],[73,2,73,9],[74,2,74,9],[75,2,75,9],[76,2,76,9],[77,2,77,9],[88,0,92,0],[88,2,88,9],[89,2,89,9],[90,2,90,9],[91,2,91,9],[92,2,92,9],[83,0,87,0],[83,2,83,9],[84,2,84,9],[85,2,85,9],[86,2,86,9],[87,2,87,9],[98,0,102,0],[98,2,98,9],[99,2,99,9],[100,2,100,9],[101,2,101,9],[102,2,102,9],[93,0,97,0],[93,2,93,9],[94,2,94,9],[95,2,95,9],[96,2,96,9],[97,2,97,9],[108,0,112,0],[108,2,108,9],[109,2,109,9],[110,2,110,9],[111,2,111,9],[112,2,112,9],[103,0,107,0],[103,2,103,9],[104,2,104,9],[105,2,105,9],[106,2,106,9],[107,2,107,9],[118,0,122,0],[118,2,118,9],[119,2,119,9],[120,2,120,9],[121,2,121,9],[122,2,122,9],[113,0,117,0],[113,2,113,9],[114,2,114,9],[115,2,115,9],[116,2,116,9],[117,2,117,9],[128,0,132,0],[128,2,128,9],[129,2,129,9],[130,2,130,9],[131,2,131,9],[132,2,132,9],[123,0,127,0],[123,2,123,9],[124,2,124,9],[125,2,125,9],[126,2,126,9],[127,2,127,9],[138,0,142,0],[138,2,138,9],[139,2,139,9],[140,2,140,9],[141,2,141,9],[142,2,142,9],[133,0,137,0],[133,2,133,9],[134,2,134,9],[135,2,135,9],[136,2,136,9],[137,2,137,9],[148,0,152,0],[148,2,148,9],[149,2,149,9],[150,2,150,9],[151,2,151,9],[152,2,152,9],[143,0,147,0],[143,2,143,9],[144,2,144,9],[145,2,145,9],[146,2,146,9],[147,2,147,9],[158,0,162,0],[158,2,158,9],[159,2,159,9],[160,2,160,9],[161,2,161,9],[162,2,162,9],[153,0,157,0],[153,2,153,9],[154,2,154,9],[155,2,155,9],[156,2,156,9],[157,2,157,9],[168,0,172,0],[168,2,168,9],[169,2,169,9],[170,2,170,9],[171,2,171,9],[172,2,172,9],[163,0,167,0],[163,2,163,9],[164,2,164,9],[165,2,165,9],[166,2,166,9],[167,2,167,9],[178,0,182,0],[178,2,178,9],[179,2,179,9],[180,2,180,9],[181,2,181,9],[182,2,182,9],[173,0,177,0],[173,2,173,9],[174,2,174,9],[175,2,175,9],[176,2,176,9],[177,2,177,9],[188,0,192,0],[188,2,188,9],[189,2,189,9],[190,2,190,9],[191,2,191,9],[192,2,192,9],[183,0,187,0],[183,2,183,9],[184,2,184,9],[185,2,185,9],[186,2,186,9],[187,2,187,9],[198,0,202,0],[198,2,198,9],[199,2,199,9],[200,2,200,9],[201,2,201,9],[202,2,202,9],[193,0,197,0],[193,2,193,9],[194,2,194,9],[195,2,195,9],[196,2,196,9],[197,2,197,9],[208,0,212,0],[208,2,208,9],[209,2,209,9],[210,2,210,9],[211,2,211,9],[212,2,212,9],[203,0,207,0],[203,2,203,9],[204,2,204,9],[205,2,205,9],[206,2,206,9],[207,2,207,9],[218,0,222,0],[218,2,218,9],[219,2,219,9],[220,2,220,9],[221,2,221,9],[222,2,222,9],[213,0,217,0],[213,2,213,9],[214,2,214,9],[215,2,215,9],[216,2,216,9],[217,2,217,9],[228,0,232,0],[228,2,228,9],[229,2,229,9],[230,2,230,9],[231,2,231,9],[232,2,232,9],[223,0,227,0],[223,2,223,9],[224,2,224,9],[225,2,225,9],[226,2,226,9],[227,2,227,9],[238,0,242,0],[238,2,238,9],[239,2,239,9],[240,2,240,9],[241,2,241,9],[242,2,242,9],[233,0,237,0],[233,2,233,9],[234,2,234,9],[235,2,235,9],[236,2,236,9],[237,2,237,9],[248,0,252,0],[248,2,248,9],[249,2,249,9],[250,2,250,9],[251,2,251,9],[252,2,252,9],[243,0,247,0],[243,2,243,9],[244,2,244,9],[245,2,245,9],[246,2,246,9],[247,2,247,9],[258,0,262,0],[258,2,258,9],[259,2,259,9],[260,2,260,9],[261,2,261,9],[262,2,262,9],[253,0,257,0],[253,2,253,9],[254,2,254,9],[255,2,255,9],[256,2,256,9],[257,2,257,9],[268,0,272,0],[268,2,268,9],[269,2,269,9],[270,2,270,9],[271,2,271,9],[272,2,272,9],[263,0,267,0],[263,2,263,9],[264,2,264,9],[265,2,265,9],[266,2,266,9],[267,2,267,9],[278,0,282,0],[278,2,278,9],[279,2,279,9],[280,2,280,9],[281,2,281,9],[282,2,282,9],[273,0,277,0],[273,2,273,9],[274,2,274,9],[275,2,275,9],[276,2,276,9],[277,2,277,9],[288,0,292,0],[288,2,288,9],[289,2,289,9],[290,2,290,9],[291,2,291,9],[292,2,292,9],[283,0,287,0],[283,2,283,9],[284,2,284,9],[285,2,285,9],[286,2,286,9],[287,2,287,9],[298,0,302,0],[298,2,298,9],[299,2,299,9],[300,2,300,9],[301,2,301,9],[302,2,302,9],[293,0,297,0],[293,2,293,9],[294,2,294,9],[295,2,295,9],[296,2,296,9],[297,2,297,9],[308,0,312,0],[308,2,308,9],[309,2,309,9],[310,2,310,9],[311,2,311,9],[312,2,312,9],[303,0,307,0],[303,2,303,9],[304,2,304,9],[305,2,305,9],[306,2,306,9],[307,2,307,9],[16,14,16,21],[17,14,17,21],[18,14,18,21],[323,0,327,0],[323,2,323,9],[324,2,324,9],[325,2,325,9],[326,2,326,9],[327,2,327,9],[318,0,322,0],[318,2,318,9],[319,2,319,9],[320,2,320,9],[321,2,321,9],[322,2,322,9],[313,0,317,0],[313,2,313,9],[314,2,314,9],[315,2,315,9],[316,2,316,9],[317,2,317,9],[25,14,25,21],[26,14,26,21],[27,14,27,21],[28,14,28,21],[29,14,29,21],[30,14,30,21],[19,14,19,21],[20,14,20,21],[21,14,21,21],[22,14,22,21],[23,14,23,21],[24,14,24,21],[37,14,37,21],[38,14,38,21],[39,14,39,21],[40,14,40,21],[41,14,41,21],[42,14,42,21],[31,14,31,21],[32,14,32,21],[33,14,33,21],[34,14,34,21],[35,14,35,21],[36,14,36,21],[49,14,49,21],[50,14,50,21],[51,14,51,21],[52,14,52,21],[53,14,53,21],[54,14,54,21],[43,14,43,21],[44,14,44,21],[45,14,45,21],[46,14,46,21],[47,14,47,21],[48,14,48,21],[63,14,63,21],[64,14,64,21],[65,14,65,21],[66,14,66,21],[55,14,55,21],[56,14,56,21],[57,14,57,21],[58,14,58,21],[59,14,59,21],[60,14,60,21],[12,26,12,33],[13,26,13,33],[14,26,14,33],[15,26,15,33],[16,26,16,33],[17,26,17,33],[73,14,73,21],[3,26,3,33],[4,26,4,33],[5,26,5,33],[6,26,6,33],[7,26,7,33],[8,26,8,33],[9,26,9,33],[10,26,10,33],[11,26,11,33],[67,14,67,21],[68,14,68,21],[69,14,69,21],[70,14,70,21],[71,14,71,21],[72,14,72,21],[61,14,61,21],[62,14,62,21],[24,26,24,33],[25,26,25,33],[26,26,26,33],[27,26,27,33],[28,26,28,33],[29,26,29,33],[18,26,18,33],[19,26,19,33],[20,26,20,33],[21,26,21,33],[22,26,22,33],[23,26,23,33],[36,26,36,33],[37,26,37,33],[38,26,38,33],[39,26,39,33],[40,26,40,33],[41,26,41,33],[30,26,30,33],[31,26,31,33],[32,26,32,33],[33,26,33,33],[34,26,34,33],[35,26,35,33],[48,26,48,33],[49,26,49,33],[50,26,50,33],[51,26,51,33],[52,26,52,33],[53,26,53,33],[42,26,42,33],[43,26,43,33],[44,26,44,33],[45,26,45,33],[46,26,46,33],[47,26,47,33],[60,26,60,33],[61,26,61,33],[62,26,62,33],[63,26,63,33],[64,26,64,33],[65,26,65,33],[54,26,54,33],[55,26,55,33],[56,26,56,33],[57,26,57,33],[58,26,58,33],[59,26,59,33]]}
["Config Assembly",null,null,null,null,null,null,null,null,null,null,"Input Assembly",null,null,null,null,null,null,null,null,null,null,null,"Output Assembly"]
[]
[null,"Byte","Bit 7","Bit 6","Bit 5","Bit 4","Bit 3","Bit 2","Bit 1","Bit 0",null,"Slot","Catalog","Byte","Bit 7","Bit 6","Bit 5","Bit 4","Bit 3","Bit 2","Bit 1","Bit 0",null,"Slot","Catalog","Byte","Bit 7","Bit 6","Bit 5","Bit 4","Bit 3","Bit 2","Bit 1","Bit 0"]
["Adapter",0,0,null,null,null,null,null,null,null,null,0,"Adapter",0,"Slot 7 Status","Slot 6 Status","Slot 5 Status","Slot 4 Status","Slot 3 Status","Slot 2 Status","Slot 1 Status","Slot 0 Status",null,1,{"$f":"Config!B7","v":0},{"$f":"IF(Y4=0,\"\",IF('Conn Information'!S3=0,\"\",IF('Conn Information'!S3=1,'Conn Information'!W3,('Conn Information'!W2+1)&\" to \"&'Conn Information'!W3)))","v":""},"See Assembly Database for respective breakdown of mapping"]
[null,1,0,null,null,null,null,null,null,null,null,null,null,1,"Slot 15 Status","Slot 14 Status","Slot 13 Status","Slot 12 Status","Slot 11 Status","Slot 10 Status","Slot 9 Status","Slot 8 Status",null,2,{"$f":"Config!B8","v":0},{"$f":"IF(Y5=0,\"\",IF('Conn Information'!S4=0,\"\",IF('Conn Information'!S4=1,'Conn Information'!W4,('Conn Information'!W3+1)&\" to \"&'Conn Information'!W4)))","v":""},"See Assembly Database for respective breakdown of mapping"]
[null,2,0,null,null,null,null,null,null,null,null,null,null,2,"Slot 23 Status","Slot 22 Status","Slot 21 Status","Slot 20 Status","Slot 19 Status","Slot 18 Status","Slot 17 Status","Slot 16 Status",null,3,{"$f":"Config!B9","v":0},{"$f":"IF(Y6=0,\"\",IF('Conn Information'!S5=0,\"\",IF('Conn Information'!S5=1,'Conn Information'!W5,('Conn Information'!W4+1)&\" to \"&'Conn Information'!W5)))","v":""},"See Assembly Database for respective breakdown of mapping"]
[null,3,0,null,null,null,null,null,null,null,null,null,null,3,"Slot 31 Status","Slot 30 Status","Slot 29 Status","Slot 28 Status","Slot 27 Status","Slot 26 Status","Slot 25 Status","Slot 24 Status",null,4,{"$f":"Config!B10","v":0},{"$f":"IF(Y7=0,\"\",IF('Conn Information'!S6=0,\"\",IF('Conn Information'!S6=1,'Conn Information'!W6,('Conn Information'!W5+1)&\" to \"&'Conn Information'!W6)))","v":""},"See Assembly Database for respective breakdown of mapping"]
[null,4,{"$f":"RIGHT(Config!$J$3,1)","v":"1"},null,null,null,null,null,null,null,null,null,null,4,"Slot 39 Status","Slot 38 Status","Slot 37 Status","Slot 36 Status","Slot 35 Status","Slot 34 Status","Slot 33 Status","Slot 32 Status",null,5,{"$f":"Config!B11","v":0},{"$f":"IF(Y8=0,\"\",IF('Conn Information'!S7=0,\"\",IF('Conn Information'!S7=1,'Conn Information'!W7,('Conn Information'!W6+1)&\" to \"&'Conn Information'!W7)))","v":""},"See Assembly Database for respective breakdown of mapping"]
[null,5,{"$f":"IF(LEFT(Config!$J$3,1)=RIGHT(Config!$J$3,1),0,LEFT(Config!$J$3,1))","v":0},null,null,null,null,null,null,null,null,null,null,5,"Slot 47 Status","Slot 46 Status","Slot 45 Status","Slot 44 Status","Slot 43 Status","Slot 42 Status","Slot 41 Status","Slot 40 Status",null,6,{"$f":"Config!B12","v":0},{"$f":"IF(Y9=0,\"\",IF('Conn Information'!S8=0,\"\",IF('Conn Information'!S8=1,'Conn Information'!W8,('Conn Information'!W7+1)&\" to \"&'Conn Information'!W8)))","v":""},"See Assembly Database for respective breakdown of mapping"]
[null,6,0,null,null,null,null,null,null,null,null,null,null,6,"Slot 55 Status","Slot 54 Status","Slot 53 Status","Slot 52 Status","Slot 51 Status","Slot 50 Status","Slot 49 Status","Slot 48 Status",null,7,{"$f":"Config!B13","v":0},{"$f":"IF(Y10=0,\"\",IF('Conn Information'!S9=0,\"\",IF('Conn Information'!S9=1,'Conn Information'!W9,('Conn Information'!W8+1)&\" to \"&'Conn Information'!W9)))","v":""},"See Assembly Database for respective breakdown of mapping"]
[null,7,0,null,null,null,null,null,null,null,null,null,null,7,"Slot 63 Status","Slot 62 Status","Slot 61 Status","Slot 60 Status","Slot 59 Status","Slot 58 Status","Slot 57 Status","Slot 56 Status",null,8,{"$f":"Config!B14","v":0},{"$f":"IF(Y11=0,\"\",IF('Conn Information'!S10=0,\"\",IF('Conn Information'!S10=1,'Conn Information'!W10,('Conn Information'!W9+1)&\" to \"&'Conn Information'!W10)))","v":""},"See Assembly Database for respective breakdown of mapping"]
[null,8,0,null,null,null,null,null,null,null,null,1,{"$f":"Config!B7","v":0},{"$f":"IF(M12=0,\"\",IF('Conn Information'!R3=0,\"\",IF('Conn Information'!R3=1,'Conn Information'!V3,('Conn Information'!V2+1)&\" to \"&'Conn Information'!V3)))","v":""},"See Assembly Database for respective breakdown of mapping",null,null,null,null,null,null,null,null,9,{"$f":"Config!B15","v":0},{"$f":"IF(Y12=0,\"\",IF('Conn Information'!S11=0,\"\",IF('Conn Information'!S11=1,'Conn Information'!W11,('Conn Information'!W10+1)&\" to \"&'Conn Information'!W11)))","v":""},"See Assembly Database for respective breakdown of mapping"]
[null,9,0,null,null,null,null,null,null,null,null,2,{"$f":"Config!B8","v":0},{"$f":"IF(M13=0,\"\",IF('Conn Information'!R4=0,\"\",IF('Conn Information'!R4=1,'Conn Information'!V4,('Conn Information'!V3+1)&\" to \"&'Conn Information'!V4)))","v":""},"See Assembly Database for respective breakdown of mapping",null,null,null,null,null,null,null,null,10,{"$f":"Config!B16","v":0},{"$f":"IF(Y13=0,\"\",IF('Conn Information'!S12=0,\"\",IF('Conn Information'!S12=1,'Conn Information'!W12,('Conn Information'!W11+1)&\" to \"&'Conn Information'!W12)))","v":""},"See Assembly Database for respective breakdown of mapping"]
[{"$f":"Config!B7","v":0},{"$f":"IF(A14=0,\"\",B13+1)","v":""},1,null,null,null,null,null,null,null,null,3,{"$f":"Config!B9","v":0},{"$f":"IF(M14=0,\"\",IF('Conn Information'!R5=0,\"\",IF('Conn Information'!R5=1,'Conn Information'!V5,('Conn Information'!V4+1)&\" to \"&'Conn Information'!V5)))","v":""},"See Assembly Database for respective breakdown of mapping",null,null,null,null,null,null,null,null,11,{"$f":"Config!B17","v":0},{"$f":"IF(Y14=0,\"\",IF('Conn Information'!S13=0,\"\",IF('Conn Information'!S13=1,'Conn Information'!W13,('Conn Information'!W12+1)&\" to \"&'Conn Information'!W13)))","v":""},"See Assembly Database for respective breakdown of mapping"]
[null,{"$f":"IF(A14=0,\"\",B14+1)","v":""},{"$f":"IF(A14=0,\"\",VLOOKUP($A14,'Conn Information'!$P$1:$T$65,2,FALSE))","v":""},null,null,null,null,null,null,null,null,4,{"$f":"Config!B10","v":0},{"$f":"IF(M15=0,\"\",IF('Conn Information'!R6=0,\"\",IF('Conn Information'!R6=1,'Conn Information'!V6,('Conn Information'!V5+1)&\" to \"&'Conn Information'!V6)))","v":""},"See Assembly Database for respective breakdown of mapping",null,null,null,null,null,null,null,null,12,{"$f":"Config!B18","v":0},{"$f":"IF(Y15=0,\"\",IF('Conn Information'!S14=0,\"\",IF('Conn Information'!S14=1,'Conn Information'!W14,('Conn Information'!W13+1)&\" to \"&'Conn Information'!W14)))","v":""},"See Assembly Database for respective breakdown of mapping"]
[null,{"$f":"IF(A14=0,\"\",B15+1)","v":""},{"$f":"IF(A14=0,\"\",VLOOKUP($A14,'Conn Information'!$P$1:$T$65,5,FALSE))","v":""},null,null,null,null,null,null,null,null,5,{"$f":"Config!B11","v":0},{"$f":"IF(M16=0,\"\",IF('Conn Information'!R7=0,\"\",IF('Conn Information'!R7=1,'Conn Information'!V7,('Conn Information'!V6+1)&\" to \"&'Conn Information'!V7)))","v":""},"See Assembly Database for respective breakdown of mapping",null,null,null,null,null,null,null,null,13,{"$f":"Config!B19","v":0},{"$f":"IF(Y16=0,\"\",IF('Conn Information'!S15=0,\"\",IF('Conn Information'!S15=1,'Conn Information'!W15,('Conn Information'!W14+1)&\" to \"&'Conn Information'!W15)))","v":""},"See Assembly Database for respective breakdown of mapping"]
[null,{"$f":"IF(A14=0,\"\",B16+1)","v":""},0,null,null,null,null,null,null,null,null,6,{"$f":"Config!B12","v":0},{"$f":"IF(M17=0,\"\",IF('Conn Information'!R8=0,\"\",IF('Conn Information'!R8=1,'Conn Information'!V8,('Conn Information'!V7+1)&\" to \"&'Conn Information'!V8)))","v":""},"See Assembly Database for respective breakdown of mapping",null,null,null,null,null,null,null,null,14,{"$f":"Config!B20","v":0},{"$f":"IF(Y17=0,\"\",IF('Conn Information'!S16=0,\"\",IF('Conn Information'!S16=1,'Conn Information'!W16,('Conn Information'!W15+1)&\" to \"&'Conn Information'!W16)))","v":""},"See Assembly Database for respective breakdown of mapping"]
[null,{"$f":"IF(A14=0,\"\",(B17+1)&\" to \"&(VLOOKUP(A14,'Conn Information'!$P$1:$U$65,6,FALSE)-1))","v":""},"See Assembly Database for respective breakdown of mapping",null,null,null,null,null,null,null,null,7,{"$f":"Config!B13","v":0},{"$f":"IF(M18=0,\"\",IF('Conn Information'!R9=0,\"\",IF('Conn Information'!R9=1,'Conn Information'!V9,('Conn Information'!V8+1)&\" to \"&'Conn Information'!V9)))","v":""},"See Assembly Database for respective breakdown of mapping",null,null,null,null,null,null,null,null,15,{"$f":"Config!B21","v":0},{"$f":"IF(Y18=0,\"\",IF('Conn Information'!S17=0,\"\",IF('Conn Information'!S17=1,'Conn Information'!W17,('Conn Information'!W16+1)&\" to \"&'Conn Information'!W17)))","v":""},"See Assembly Database for respective breakdown of mapping"]
[{"$f":"Config!B8","v":0},{"$f":"IF(A19=0,\"\",VLOOKUP(A14,'Conn Information'!$P$3:$U$65,6,FALSE))","v":""},{"$f":"C14+1","v":2},null,null,null,null,null,null,null,null,8,{"$f":"Config!B14","v":0},{"$f":"IF(M19=0,\"\",IF('Conn Information'!R10=0,\"\",IF('Conn Information'!R10=1,'Conn Information'!V10,('Conn Information'!V9+1)&\" to \"&'Conn Information'!V10)))","v":""},"See Assembly Database for respective breakdown of mapping",null,null,null,null,null,null,null,null,16,{"$f":"Config!B22","v":0},{"$f":"IF(Y19=0,\"\",IF('Conn Information'!S18=0,\"\",IF('Conn Information'!S18=1,'Conn Information'!W18,('Conn Information'!W17+1)&\" to \"&'Conn Information'!W18)))","v":""},"See Assembly Database for respective breakdown of mapping"]
[null,{"$f":"IF(A19=0,\"\",B19+1)","v":""},{"$f":"IF(A19=0,\"\",VLOOKUP($A19,'Conn Information'!$P$1:$T$65,2,FALSE))","v":""},null,null,null,null,null,null,null,null,9,{"$f":"Config!B15","v":0},{"$f":"IF(M20=0,\"\",IF('Conn Information'!R11=0,\"\",IF('Conn Information'!R11=1,'Conn Information'!V11,('Conn Information'!V10+1)&\" to \"&'Conn Information'!V11)))","v":""},"See Assembly Database for respective breakdown of mapping",null,null,null,null,null,null,null,null,17,{"$f":"Config!B23","v":0},{"$f":"IF(Y20=0,\"\",IF('Conn Information'!S19=0,\"\",IF('Conn Information'!S19=1,'Conn Information'!W19,('Conn Information'!W18+1)&\" to \"&'Conn Information'!W19)))","v":""},"See Assembly Database for respective breakdown of mapping"]
[null,{"$f":"IF(A19=0,\"\",B20+1)","v":""},{"$f":"IF(A19=0,\"\",VLOOKUP($A19,'Conn Information'!$P$1:$T$65,5,FALSE))","v":""},null,null,null,null,null,null,null,null,10,{"$f":"Config!B16","v":0},{"$f":"IF(M21=0,\"\",IF('Conn Information'!R12=0,\"\",IF('Conn Information'!R12=1,'Conn Information'!V12,('Conn Information'!V11+1)&\" to \"&'Conn Information'!V12)))","v":""},"See Assembly Database for respective breakdown of mapping",null,null,null,null,null,null,null,null,18,{"$f":"Config!B24","v":0},{"$f":"IF(Y21=0,\"\",IF('Conn Information'!S20=0,\"\",IF('Conn Information'!S20=1,'Conn Information'!W20,('Conn Information'!W19+1)&\" to \"&'Conn Information'!W20)))","v":""},"See Assembly Database for respective breakdown of mapping"]
[null,{"$f":"IF(A19=0,\"\",B21+1)","v":""},0,null,null,null,null,null,null,null,null,11,{"$f":"Config!B17","v":0},{"$f":"IF(M22=0,\"\",IF('Conn Information'!R13=0,\"\",IF('Conn Information'!R13=1,'Conn Information'!V13,('Conn Information'!V12+1)&\" to \"&'Conn Information'!V13)))","v":""},"See Assembly Database for respective breakdown of mapping",null,null,null,null,null,null,null,null,19,{"$f":"Config!B25","v":0},{"$f":"IF(Y22=0,\"\",IF('Conn Information'!S21=0,\"\",IF('Conn Information'!S21=1,'Conn Information'!W21,('Conn Information'!W20+1)&\" to \"&'Conn Information'!W21)))","v":""},"See Assembly Database for respective breakdown of mapping"]
[null,{"$f":"IF(A19=0,\"\",(B22+1)&\" to \"&(VLOOKUP(A19,'Conn Information'!$P$4:$U$65,6,FALSE)-1))","v":""},"See Assembly Database for respective breakdown of mapping",null,null,null,null,null,null,null,null,12,{"$f":"Config!B18","v":0},{"$f":"IF(M23=0,\"\",IF('Conn Information'!R14=0,\"\",IF('Conn Information'!R14=1,'Conn Information'!V14,('Conn Information'!V13+1)&\" to \"&'Conn Information'!V14)))","v":""},"See Assembly Database for respective breakdown of mapping",null,null,null,null,null,null,null,null,20,{"$f":"Config!B26","v":0},{"$f":"IF(Y23=0,\"\",IF('Conn Information'!S22=0,\"\",IF('Conn Information'!S22=1,'Conn Information'!W22,('Conn Information'!W21+1)&\" to \"&'Conn Information'!W22)))","v":""},"See Assembly Database for respective breakdown of mapping"]
[{"$f":"Config!B9","v":0},{"$f":"IF(A24=0,\"\",VLOOKUP(A19,'Conn Information'!$P$4:$U$65,6,FALSE))","v":""},{"$f":"C19+1","v":3},null,null,null,null,null,null,null,null,13,{"$f":"Config!B19","v":0},{"$f":"IF(M24=0,\"\",IF('Conn Information'!R15=0,\"\",IF('Conn Information'!R15=1,'Conn Information'!V15,('Conn Information'!V14+1)&\" to \"&'Conn Information'!V15)))","v":""},"See Assembly Database for respective breakdown of mapping",null,null,null,null,null,null,null,null,21,{"$f":"Config!B27","v":0},{"$f":"IF(Y24=0,\"\",IF('Conn Information'!S23=0,\"\",IF('Conn Information'!S23=1,'Conn Information'!W23,('Conn Information'!W22+1)&\" to \"&'Conn Information'!W23)))","v":""},"See Assembly Database for respective breakdown of mapping"]
[null,{"$f":"IF(A24=0,\"\",B24+1)","v":""},{"$f":"IF(A24=0,\"\",VLOOKUP($A24,'Conn Information'!$P$1:$T$65,2,FALSE))","v":""},null,null,null,null,null,null,null,null,14,{"$f":"Config!B20","v":0},{"$f":"IF(M25=0,\"\",IF('Conn Information'!R16=0,\"\",IF('Conn Information'!R16=1,'Conn Information'!V16,('Conn Information'!V15+1)&\" to \"&'Conn Information'!V16)))","v":""},"See Assembly Database for respective breakdown of mapping",null,null,null,null,null,null,null,null,22,{"$f":"Config!B28","v":0},{"$f":"IF(Y25=0,\"\",IF('Conn Information'!S24=0,\"\",IF('Conn Information'!S24=1,'Conn Information'!W24,('Conn Information'!W23+1)&\" to \"&'Conn Information'!W24)))","v":""},"See Assembly Database for respective breakdown of mapping"]
[null,{"$f":"IF(A24=0,\"\",B25+1)","v":""},{"$f":"IF(A24=0,\"\",VLOOKUP($A24,'Conn Information'!$P$1:$T$65,5,FALSE))","v":""},null,null,null,null,null,null,null,null,15,{"$f":"Config!B21","v":0},{"$f":"IF(M26=0,\"\",IF('Conn Information'!R17=0,\"\",IF('Conn Information'!R17=1,'Conn Information'!V17,('Conn Information'!V16+1)&\" to \"&'Conn Information'!V17)))","v":""},"See Assembly Database for respective breakdown of mapping",null,null,null,null,null,null,null,null,23,{"$f":"Config!B29","v":0},{"$f":"IF(Y26=0,\"\",IF('Conn Information'!S25=0,\"\",IF('Conn Information'!S25=1,'Conn Information'!W25,('Conn Information'!W24+1)&\" to \"&'Conn Information'!W25)))","v":""},"See Assembly Database for respective breakdown of mapping"]
[null,{"$f":"IF(A24=0,\"\",B26+1)","v":""},0,null,null,null,null,null,null,null,null,16,{"$f":"Config!B22","v":0},{"$f":"IF(M27=0,\"\",IF('Conn Information'!R18=0,\"\",IF('Conn Information'!R18=1,'Conn Information'!V18,('Conn Information'!V17+1)&\" to \"&'Conn Information'!V18)))","v":""},"See Assembly Database for respective breakdown of mapping",null,null,null,null,null,null,null,null,24,{"$f":"Config!B30","v":0},{"$f":"IF(Y27=0,\"\",IF('Conn Information'!S26=0,\"\",IF('Conn Information'!S26=1,'Conn Information'!W26,('Conn Information'!W25+1)&\" to \"&'Conn Information'!W26)))","v":""},"See Assembly Database for respective breakdown of mapping"]
[null,{"$f":"IF(A24=0,\"\",(B27+1)&\" to \"&(VLOOKUP(A24,'Conn Information'!$P$5:$U$65,6,FALSE)-1))","v":""},"See Assembly Database for respective breakdown of mapping",null,null,null,null,null,null,null,null,17,{"$f":"Config!B23","v":0},{"$f":"IF(M28=0,\"\",IF('Conn Information'!R19=0,\"\",IF('Conn Information'!R19=1,'Conn Information'!V19,('Conn Information'!V18+1)&\" to \"&'Conn Information'!V19)))","v":""},"See Assembly Database for respective breakdown of mapping",null,null,null,null,null,null,null,null,25,{"$f":"Config!B31","v":0},{"$f":"IF(Y28=0,\"\",IF('Conn Information'!S27=0,\"\",IF('Conn Information'!S27=1,'Conn Information'!W27,('Conn Information'!W26+1)&\" to \"&'Conn Information'!W27)))","v":""},"See Assembly Database for respective breakdown of mapping"]
[{"$f":"Config!B10","v":0},{"$f":"IF(A29=0,\"\",VLOOKUP(A24,'Conn Information'!$P$5:$U$65,6,FALSE))","v":""},{"$f":"C24+1","v":4},null,null,null,null,null,null,null,null,18,{"$f":"Config!B24","v":0},{"$f":"IF(M29=0,\"\",IF('Conn Information'!R20=0,\"\",IF('Conn Information'!R20=1,'Conn Information'!V20,('Conn Information'!V19+1)&\" to \"&'Conn Information'!V20)))","v":""},"See Assembly Database for respective breakdown of mapping",null,null,null,null,null,null,null,null,26,{"$f":"Config!B32","v":0},{"$f":"IF(Y29=0,\"\",IF('Conn Information'!S28=0,\"\",IF('Conn Information'!S28=1,'Conn Information'!W28,('Conn Information'!W27+1)&\" to \"&'Conn Information'!W28)))","v":""},"See Assembly Database for respective breakdown of mapping"]
[null,{"$f":"IF(A29=0,\"\",B29+1)","v":""},{"$f":"IF(A29=0,\"\",VLOOKUP($A29,'Conn Information'!$P$1:$T$65,2,FALSE))","v":""},null,null,null,null,null,null,null,null,19,{"$f":"Config!B25","v":0},{"$f":"IF(M30=0,\"\",IF('Conn Information'!R21=0,\"\",IF('Conn Information'!R21=1,'Conn Information'!V21,('Conn Information'!V20+1)&\" to \"&'Conn Information'!V21)))","v":""},"See Assembly Database for respective breakdown of mapping",null,null,null,null,null,null,null,null,27,{"$f":"Config!B33","v":0},{"$f":"IF(Y30=0,\"\",IF('Conn Information'!S29=0,\"\",IF('Conn Information'!S29=1,'Conn Information'!W29,('Conn Information'!W28+1)&\" to \"&'Conn Information'!W29)))","v":""},"See Assembly Database for respective breakdown of mapping"]
[null,{"$f":"IF(A29=0,\"\",B30+1)","v":""},{"$f":"IF(A29=0,\"\",VLOOKUP($A29,'Conn Information'!$P$1:$T$65,5,FALSE))","v":""},null,null,null,null,null,null,null,null,20,{"$f":"Config!B26","v":0},{"$f":"IF(M31=0,\"\",IF('Conn Information'!R22=0,\"\",IF('Conn Information'!R22=1,'Conn Information'!V22,('Conn Information'!V21+1)&\" to \"&'Conn Information'!V22)))","v":""},"See Assembly Database for respective breakdown of mapping",null,null,null,null,null,null,null,null,28,{"$f":"Config!B34","v":0},{"$f":"IF(Y31=0,\"\",IF('Conn Information'!S30=0,\"\",IF('Conn Information'!S30=1,'Conn Information'!W30,('Conn Information'!W29+1)&\" to \"&'Conn Information'!W30)))","v":""},"See Assembly Database for respective breakdown of mapping"]
[null,{"$f":"IF(A29=0,\"\",B31+1)","v":""},0,null,null,null,null,null,null,null,null,21,{"$f":"Config!B27","v":0},{"$f":"IF(M32=0,\"\",IF('Conn Information'!R23=0,\"\",IF('Conn Information'!R23=1,'Conn Information'!V23,('Conn Information'!V22+1)&\" to \"&'Conn Information'!V23)))","v":""},"See Assembly Database for respective breakdown of mapping",null,null,null,null,null,null,null,null,29,{"$f":"Config!B35","v":0},{"$f":"IF(Y32=0,\"\",IF('Conn Information'!S31=0,\"\",IF('Conn Information'!S31=1,'Conn Information'!W31,('Conn Information'!W30+1)&\" to \"&'Conn Information'!W31)))","v":""},"See Assembly Database for respective breakdown of mapping"]
[null,{"$f":"IF(A29=0,\"\",(B32+1)&\" to \"&(VLOOKUP(A29,'Conn Information'!$P$6:$U$65,6,FALSE)-1))","v":""},"See Assembly Database for respective breakdown of mapping",null,null,null,null,null,null,null,null,22,{"$f":"Config!B28","v":0},{"$f":"IF(M33=0,\"\",IF('Conn Information'!R24=0,\"\",IF('Conn Information'!R24=1,'Conn Information'!V24,('Conn Information'!V23+1)&\" to \"&'Conn Information'!V24)))","v":""},"See Assembly Database for respective breakdown of mapping",null,null,null,null,null,null,null,null,30,{"$f":"Config!B36","v":0},{"$f":"IF(Y33=0,\"\",IF('Conn Information'!S32=0,\"\",IF('Conn Information'!S32=1,'Conn Information'!W32,('Conn Information'!W31+1)&\" to \"&'Conn Information'!W32)))","v":""},"See Assembly Database for respective breakdown of mapping"]
[{"$f":"Config!B11","v":0},{"$f":"IF(A34=0,\"\",VLOOKUP(A29,'Conn Information'!$P$6:$U$65,6,FALSE))","v":""},{"$f":"C29+1","v":5},null,null,null,null,null,null,null,null,23,{"$f":"Config!B29","v":0},{"$f":"IF(M34=0,\"\",IF('Conn Information'!R25=0,\"\",IF('Conn Information'!R25=1,'Conn Information'!V25,('Conn Information'!V24+1)&\" to \"&'Conn Information'!V25)))","v":""},"See Assembly Database for respective breakdown of mapping",null,null,null,null,null,null,null,null,31,{"$f":"Config!B37","v":0},{"$f":"IF(Y34=0,\"\",IF('Conn Information'!S33=0,\"\",IF('Conn Information'!S33=1,'Conn Information'!W33,('Conn Information'!W32+1)&\" to \"&'Conn Information'!W33)))","v":""},"See Assembly Database for respective breakdown of mapping"]
[null,{"$f":"IF(A34=0,\"\",B34+1)","v":""},{"$f":"IF(A34=0,\"\",VLOOKUP($A34,'Conn Information'!$P$1:$T$65,2,FALSE))","v":""},null,null,null,null,null,null,null,null,24,{"$f":"Config!B30","v":0},{"$f":"IF(M35=0,\"\",IF('Conn Information'!R26=0,\"\",IF('Conn Information'!R26=1,'Conn Information'!V26,('Conn Information'!V25+1)&\" to \"&'Conn Information'!V26)))","v":""},"See Assembly Database for respective breakdown of mapping",null,null,null,null,null,null,null,null,32,{"$f":"Config!B38","v":0},{"$f":"IF(Y35=0,\"\",IF('Conn Information'!S34=0,\"\",IF('Conn Information'!S34=1,'Conn Information'!W34,('Conn Information'!W33+1)&\" to \"&'Conn Information'!W34)))","v":""},"See Assembly Database for respective breakdown of mapping"]
[null,{"$f":"IF(A34=0,\"\",B35+1)","v":""},{"$f":"IF(A34=0,\"\",VLOOKUP($A34,'Conn Information'!$P$1:$T$65,5,FALSE))","v":""},null,null,null,null,null,null,null,null,25,{"$f":"Config!B31","v":0},{"$f":"IF(M36=0,\"\",IF('Conn Information'!R27=0,\"\",IF('Conn Information'!R27=1,'Conn Information'!V27,('Conn Information'!V26+1)&\" to \"&'Conn Information'!V27)))","v":""},"See Assembly Database for respective breakdown of mapping",null,null,null,null,null,null,null,null,33,{"$f":"Config!B39","v":0},{"$f":"IF(Y36=0,\"\",IF('Conn Information'!S35=0,\"\",IF('Conn Information'!S35=1,'Conn Information'!W35,('Conn Information'!W34+1)&\" to \"&'Conn Information'!W35)))","v":""},"See Assembly Database for respective breakdown of mapping"]
[null,{"$f":"IF(A34=0,\"\",B36+1)","v":""},0,null,null,null,null,null,null,null,null,26,{"$f":"Config!B32","v":0},{"$f":"IF(M37=0,\"\",IF('Conn Information'!R28=0,\"\",IF('Conn Information'!R28=1,'Conn Information'!V28,('Conn Information'!V27+1)&\" to \"&'Conn Information'!V28)))","v":""},"See Assembly Database for respective breakdown of mapping",null,null,null,null,null,null,null,null,34,{"$f":"Config!B40","v":0},{"$f":"IF(Y37=0,\"\",IF('Conn Information'!S36=0,\"\",IF('Conn Information'!S36=1,'Conn Information'!W36,('Conn Information'!W35+1)&\" to \"&'Conn Information'!W36)))","v":""},"See Assembly Database for respective breakdown of mapping"]
[null,{"$f":"IF(A34=0,\"\",(B37+1)&\" to \"&(VLOOKUP(A34,'Conn Information'!$P$7:$U$65,6,FALSE)-1))","v":""},"See Assembly Database for respective breakdown of mapping",null,null,null,null,null,null,null,null,27,{"$f":"Config!B33","v":0},{"$f":"IF(M38=0,\"\",IF('Conn Information'!R29=0,\"\",IF('Conn Information'!R29=1,'Conn Information'!V29,('Conn Information'!V28+1)&\" to \"&'Conn Information'!V29)))","v":""},"See Assembly Database for respective breakdown of mapping",null,null,null,null,null,null,null,null,35,{"$f":"Config!B41","v":0},{"$f":"IF(Y38=0,\"\",IF('Conn Information'!S37=0,\"\",IF('Conn Information'!S37=1,'Conn Information'!W37,('Conn Information'!W36+1)&\" to \"&'Conn Information'!W37)))","v":""},"See Assembly Database for respective breakdown of mapping"]
[{"$f":"Config!B12","v":0},{"$f":"IF(A39=0,\"\",VLOOKUP(A34,'Conn Information'!$P$7:$U$65,6,FALSE))","v":""},{"$f":"C34+1","v":6},null,null,null,null,null,null,null,null,28,{"$f":"Config!B34","v":0},{"$f":"IF(M39=0,\"\",IF('Conn Information'!R30=0,\"\",IF('Conn Information'!R30=1,'Conn Information'!V30,('Conn Information'!V29+1)&\" to \"&'Conn Information'!V30)))","v":""},"See Assembly Database for respective breakdown of mapping",null,null,null,null,null,null,null,null,36,{"$f":"Config!B42","v":0},{"$f":"IF(Y39=0,\"\",IF('Conn Information'!S38=0,\"\",IF('Conn Information'!S38=1,'Conn Information'!W38,('Conn Information'!W37+1)&\" to \"&'Conn Information'!W38)))","v":""},"See Assembly Database for respective breakdown of mapping"]
[null,{"$f":"IF(A39=0,\"\",B39+1)","v":""},{"$f":"IF(A39=0,\"\",VLOOKUP($A39,'Conn Information'!$P$1:$T$65,2,FALSE))","v":""},null,null,null,null,null,null,null,null,29,{"$f":"Config!B35","v":0},{"$f":"IF(M40=0,\"\",IF('Conn Information'!R31=0,\"\",IF('Conn Information'!R31=1,'Conn Information'!V31,('Conn Information'!V30+1)&\" to \"&'Conn Information'!V31)))","v":""},"See Assembly Database for respective breakdown of mapping",null,null,null,null,null,null,null,null,37,{"$f":"Config!B43","v":0},{"$f":"IF(Y40=0,\"\",IF('Conn Information'!S39=0,\"\",IF('Conn Information'!S39=1,'Conn Information'!W39,('Conn Information'!W38+1)&\" to \"&'Conn Information'!W39)))","v":""},"See Assembly Database for respective breakdown of mapping"]
[null,{"$f":"IF(A39=0,\"\",B40+1)","v":""},{"$f":"IF(A39=0,\"\",VLOOKUP($A39,'Conn Information'!$P$1:$T$65,5,FALSE))","v":""},null,null,null,null,null,null,null,null,30,{"$f":"Config!B36","v":0},{"$f":"IF(M41=0,\"\",IF('Conn Information'!R32=0,\"\",IF('Conn Information'!R32=1,'Conn Information'!V32,('Conn Information'!V31+1)&\" to \"&'Conn Information'!V32)))","v":""},"See Assembly Database for respective breakdown of mapping",null,null,null,null,null,null,null,null,38,{"$f":"Config!B44","v":0},{"$f":"IF(Y41=0,\"\",IF('Conn Information'!S40=0,\"\",IF('Conn Information'!S40=1,'Conn Information'!W40,('Conn Information'!W39+1)&\" to \"&'Conn Information'!W40)))","v":""},"See Assembly Database for respective breakdown of mapping"]
[null,{"$f":"IF(A39=0,\"\",B41+1)","v":""},0,null,null,null,null,null,null,null,null,31,{"$f":"Config!B37","v":0},{"$f":"IF(M42=0,\"\",IF('Conn Information'!R33=0,\"\",IF('Conn Information'!R33=1,'Conn Information'!V33,('Conn Information'!V32+1)&\" to \"&'Conn Information'!V33)))","v":""},"See Assembly Database for respective breakdown of mapping",null,null,null,null,null,null,null,null,39,{"$f":"Config!B45","v":0},{"$f":"IF(Y42=0,\"\",IF('Conn Information'!S41=0,\"\",IF('Conn Information'!S41=1,'Conn Information'!W41,('Conn Information'!W40+1)&\" to \"&'Conn Information'!W41)))","v":""},"See Assembly Database for respective breakdown of mapping"]
[null,{"$f":"IF(A39=0,\"\",(B42+1)&\" to \"&(VLOOKUP(A39,'Conn Information'!$P$8:$U$65,6,FALSE)-1))","v":""},"See Assembly Database for respective breakdown of mapping",null,null,null,null,null,null,null,null,32,{"$f":"Config!B38","v":0},{"$f":"IF(M43=0,\"\",IF('Conn Information'!R34=0,\"\",IF('Conn Information'!R34=1,'Conn Information'!V34,('Conn Information'!V33+1)&\" to \"&'Conn Information'!V34)))","v":""},"See Assembly Database for respective breakdown of mapping",null,null,null,null,null,null,null,null,40,{"$f":"Config!B46","v":0},{"$f":"IF(Y43=0,\"\",IF('Conn Information'!S42=0,\"\",IF('Conn Information'!S42=1,'Conn Information'!W42,('Conn Information'!W41+1)&\" to \"&'Conn Information'!W42)))","v":""},"See Assembly Database for respective breakdown of mapping"]
[{"$f":"Config!B13","v":0},{"$f":"IF(A44=0,\"\",VLOOKUP(A39,'Conn Information'!$P$8:$U$65,6,FALSE))","v":""},{"$f":"C39+1","v":7},null,null,null,null,null,null,null,null,33,{"$f":"Config!B39","v":0},{"$f":"IF(M44=0,\"\",IF('Conn Information'!R35=0,\"\",IF('Conn Information'!R35=1,'Conn Information'!V35,('Conn Information'!V34+1)&\" to \"&'Conn Information'!V35)))","v":""},"See Assembly Database for respective breakdown of mapping",null,null,null,null,null,null,null,null,41,{"$f":"Config!B47","v":0},{"$f":"IF(Y44=0,\"\",IF('Conn Information'!S43=0,\"\",IF('Conn Information'!S43=1,'Conn Information'!W43,('Conn Information'!W42+1)&\" to \"&'Conn Information'!W43)))","v":""},"See Assembly Database for respective breakdown of mapping"]
[null,{"$f":"IF(A44=0,\"\",B44+1)","v":""},{"$f":"IF(A44=0,\"\",VLOOKUP($A44,'Conn Information'!$P$1:$T$65,2,FALSE))","v":""},null,null,null,null,null,null,null,null,34,{"$f":"Config!B40","v":0},{"$f":"IF(M45=0,\"\",IF('Conn Information'!R36=0,\"\",IF('Conn Information'!R36=1,'Conn Information'!V36,('Conn Information'!V35+1)&\" to \"&'Conn Information'!V36)))","v":""},"See Assembly Database for respective breakdown of mapping",null,null,null,null,null,null,null,null,42,{"$f":"Config!B48","v":0},{"$f":"IF(Y45=0,\"\",IF('Conn Information'!S44=0,\"\",IF('Conn Information'!S44=1,'Conn Information'!W44,('Conn Information'!W43+1)&\" to \"&'Conn Information'!W44)))","v":""},"See Assembly Database for respective breakdown of mapping"]
[null,{"$f":"IF(A44=0,\"\",B45+1)","v":""},{"$f":"IF(A44=0,\"\",VLOOKUP($A44,'Conn Information'!$P$1:$T$65,5,FALSE))","v":""},null,null,null,null,null,null,null,null,35,{"$f":"Config!B41","v":0},{"$f":"IF(M46=0,\"\",IF('Conn Information'!R37=0,\"\",IF('Conn Information'!R37=1,'Conn Information'!V37,('Conn Information'!V36+1)&\" to \"&'Conn Information'!V37)))","v":""},"See Assembly Database for respective breakdown of mapping",null,null,null,null,null,null,null,null,43,{"$f":"Config!B49","v":0},{"$f":"IF(Y46=0,\"\",IF('Conn Information'!S45=0,\"\",IF('Conn Information'!S45=1,'Conn Information'!W45,('Conn Information'!W44+1)&\" to \"&'Conn Information'!W45)))","v":""},"See Assembly Database for respective breakdown of mapping"]
[null,{"$f":"IF(A44=0,\"\",B46+1)","v":""},0,null,null,null,null,null,null,null,null,36,{"$f":"Config!B42","v":0},{"$f":"IF(M47=0,\"\",IF('Conn Information'!R38=0,\"\",IF('Conn Information'!R38=1,'Conn Information'!V38,('Conn Information'!V37+1)&\" to \"&'Conn Information'!V38)))","v":""},"See Assembly Database for respective breakdown of mapping",null,null,null,null,null,null,null,null,44,{"$f":"Config!B50","v":0},{"$f":"IF(Y47=0,\"\",IF('Conn Information'!S46=0,\"\",IF('Conn Information'!S46=1,'Conn Information'!W46,('Conn Information'!W45+1)&\" to \"&'Conn Information'!W46)))","v":""},"See Assembly Database for respective breakdown of mapping"]
[null,{"$f":"IF(A44=0,\"\",(B47+1)&\" to \"&(VLOOKUP(A44,'Conn Information'!$P$9:$U$65,6,FALSE)-1))","v":""},"See Assembly Database for respective breakdown of mapping",null,null,null,null,null,null,null,null,37,{"$f":"Config!B43","v":0},{"$f":"IF(M48=0,\"\",IF('Conn Information'!R39=0,\"\",IF('Conn Information'!R39=1,'Conn Information'!V39,('Conn Information'!V38+1)&\" to \"&'Conn Information'!V39)))","v":""},"See Assembly Database for respective breakdown of mapping",null,null,null,null,null,null,null,null,45,{"$f":"Config!B51","v":0},{"$f":"IF(Y48=0,\"\",IF('Conn Information'!S47=0,\"\",IF('Conn Information'!S47=1,'Conn Information'!W47,('Conn Information'!W46+1)&\" to \"&'Conn Information'!W47)))","v":""},"See Assembly Database for respective breakdown of mapping"]
[{"$f":"Config!B14","v":0},{"$f":"IF(A49=0,\"\",VLOOKUP(A44,'Conn Information'!$P$9:$U$65,6,FALSE))","v":""},{"$f":"C44+1","v":8},null,null,null,null,null,null,null,null,38,{"$f":"Config!B44","v":0},{"$f":"IF(M49=0,\"\",IF('Conn Information'!R40=0,\"\",IF('Conn Information'!R40=1,'Conn Information'!V40,('Conn Information'!V39+1)&\" to \"&'Conn Information'!V40)))","v":""},"See Assembly Database for respective breakdown of mapping",null,null,null,null,null,null,null,null,46,{"$f":"Config!B52","v":0},{"$f":"IF(Y49=0,\"\",IF('Conn Information'!S48=0,\"\",IF('Conn Information'!S48=1,'Conn Information'!W48,('Conn Information'!W47+1)&\" to \"&'Conn Information'!W48)))","v":""},"See Assembly Database for respective breakdown of mapping"]
[null,{"$f":"IF(A49=0,\"\",B49+1)","v":""},{"$f":"IF(A49=0,\"\",VLOOKUP($A49,'Conn Information'!$P$1:$T$65,2,FALSE))","v":""},null,null,null,null,null,null,null,null,39,{"$f":"Config!B45","v":0},{"$f":"IF(M50=0,\"\",IF('Conn Information'!R41=0,\"\",IF('Conn Information'!R41=1,'Conn Information'!V41,('Conn Information'!V40+1)&\" to \"&'Conn Information'!V41)))","v":""},"See Assembly Database for respective breakdown of mapping",null,null,null,null,null,null,null,null,47,{"$f":"Config!B53","v":0},{"$f":"IF(Y50=0,\"\",IF('Conn Information'!S49=0,\"\",IF('Conn Information'!S49=1,'Conn Information'!W49,('Conn Information'!W48+1)&\" to \"&'Conn Information'!W49)))","v":""},"See Assembly Database for respective breakdown of mapping"]
[null,{"$f":"IF(A49=0,\"\",B50+1)","v":""},{"$f":"IF(A49=0,\"\",VLOOKUP($A49,'Conn Information'!$P$1:$T$65,5,FALSE))","v":""},null,null,null,null,null,null,null,null,40,{"$f":"Config!B46","v":0},{"$f":"IF(M51=0,\"\",IF('Conn Information'!R42=0,\"\",IF('Conn Information'!R42=1,'Conn Information'!V42,('Conn Information'!V41+1)&\" to \"&'Conn Information'!V42)))","v":""},"See Assembly Database for respective breakdown of mapping",null,null,null,null,null,null,null,null,48,{"$f":"Config!B54","v":0},{"$f":"IF(Y51=0,\"\",IF('Conn Information'!S50=0,\"\",IF('Conn Information'!S50=1,'Conn Information'!W50,('Conn Information'!W49+1)&\" to \"&'Conn Information'!W50)))","v":""},"See Assembly Database for respective breakdown of mapping"]
[null,{"$f":"IF(A49=0,\"\",B51+1)","v":""},0,null,null,null,null,null,null,null,null,41,{"$f":"Config!B47","v":0},{"$f":"IF(M52=0,\"\",IF('Conn Information'!R43=0,\"\",IF('Conn Information'!R43=1,'Conn Information'!V43,('Conn Information'!V42+1)&\" to \"&'Conn Information'!V43)))","v":""},"See Assembly Database for respective breakdown of mapping",null,null,null,null,null,null,null,null,49,{"$f":"Config!B55","v":0},{"$f":"IF(Y52=0,\"\",IF('Conn Information'!S51=0,\"\",IF('Conn Information'!S51=1,'Conn Information'!W51,('Conn Information'!W50+1)&\" to \"&'Conn Information'!W51)))","v":""},"See Assembly Database for respective breakdown of mapping"]
[null,{"$f":"IF(A49=0,\"\",(B52+1)&\" to \"&(VLOOKUP(A49,'Conn Information'!$P$10:$U$65,6,FALSE)-1))","v":""},"See Assembly Database for respective breakdown of mapping",null,null,null,null,null,null,null,null,42,{"$f":"Config!B48","v":0},{"$f":"IF(M53=0,\"\",IF('Conn Information'!R44=0,\"\",IF('Conn Information'!R44=1,'Conn Information'!V44,('Conn Information'!V43+1)&\" to \"&'Conn Information'!V44)))","v":""},"See Assembly Database for respective breakdown of mapping",null,null,null,null,null,null,null,null,50,{"$f":"Config!B56","v":0},{"$f":"IF(Y53=0,\"\",IF('Conn Information'!S52=0,\"\",IF('Conn Information'!S52=1,'Conn Information'!W52,('Conn Information'!W51+1)&\" to \"&'Conn Information'!W52)))","v":""},"See Assembly Database for respective breakdown of mapping"]
[{"$f":"Config!B15","v":0},{"$f":"IF(A54=0,\"\",VLOOKUP(A49,'Conn Information'!$P$10:$U$65,6,FALSE))","v":""},{"$f":"C49+1","v":9},null,null,null,null,null,null,null,null,43,{"$f":"Config!B49","v":0},{"$f":"IF(M54=0,\"\",IF('Conn Information'!R45=0,\"\",IF('Conn Information'!R45=1,'Conn Information'!V45,('Conn Information'!V44+1)&\" to \"&'Conn Information'!V45)))","v":""},"See Assembly Database for respective breakdown of mapping",null,null,null,null,null,null,null,null,51,{"$f":"Config!B57","v":0},{"$f":"IF(Y54=0,\"\",IF('Conn Information'!S53=0,\"\",IF('Conn Information'!S53=1,'Conn Information'!W53,('Conn Information'!W52+1)&\" to \"&'Conn Information'!W53)))","v":""},"See Assembly Database for respective breakdown of mapping"]
[null,{"$f":"IF(A54=0,\"\",B54+1)","v":""},{"$f":"IF(A54=0,\"\",VLOOKUP($A54,'Conn Information'!$P$1:$T$65,2,FALSE))","v":""},null,null,null,null,null,null,null,null,44,{"$f":"Config!B50","v":0},{"$f":"IF(M55=0,\"\",IF('Conn Information'!R46=0,\"\",IF('Conn Information'!R46=1,'Conn Information'!V46,('Conn Information'!V45+1)&\" to \"&'Conn Information'!V46)))","v":""},"See Assembly Database for respective breakdown of mapping",null,null,null,null,null,null,null,null,52,{"$f":"Config!B58","v":0},{"$f":"IF(Y55=0,\"\",IF('Conn Information'!S54=0,\"\",IF('Conn Information'!S54=1,'Conn Information'!W54,('Conn Information'!W53+1)&\" to \"&'Conn Information'!W54)))","v":""},"See Assembly Database for respective breakdown of mapping"]
[null,{"$f":"IF(A54=0,\"\",B55+1)","v":""},{"$f":"IF(A54=0,\"\",VLOOKUP($A54,'Conn Information'!$P$1:$T$65,5,FALSE))","v":""},null,null,null,null,null,null,null,null,45,{"$f":"Config!B51","v":0},{"$f":"IF(M56=0,\"\",IF('Conn Information'!R47=0,\"\",IF('Conn Information'!R47=1,'Conn Information'!V47,('Conn Information'!V46+1)&\" to \"&'Conn Information'!V47)))","v":""},"See Assembly Database for respective breakdown of mapping",null,null,null,null,null,null,null,null,53,{"$f":"Config!B59","v":0},{"$f":"IF(Y56=0,\"\",IF('Conn Information'!S55=0,\"\",IF('Conn Information'!S55=1,'Conn Information'!W55,('Conn Information'!W54+1)&\" to \"&'Conn Information'!W55)))","v":""},"See Assembly Database for respective breakdown of mapping"]
[null,{"$f":"IF(A54=0,\"\",B56+1)","v":""},0,null,null,null,null,null,null,null,null,46,{"$f":"Config!B52","v":0},{"$f":"IF(M57=0,\"\",IF('Conn Information'!R48=0,\"\",IF('Conn Information'!R48=1,'Conn Information'!V48,('Conn Information'!V47+1)&\" to \"&'Conn Information'!V48)))","v":""},"See Assembly Database for respective breakdown of mapping",null,null,null,null,null,null,null,null,54,{"$f":"Config!B60","v":0},{"$f":"IF(Y57=0,\"\",IF('Conn Information'!S56=0,\"\",IF('Conn Information'!S56=1,'Conn Information'!W56,('Conn Information'!W55+1)&\" to \"&'Conn Information'!W56)))","v":""},"See Assembly Database for respective breakdown of mapping"]
[null,{"$f":"IF(A54=0,\"\",(B57+1)&\" to \"&(VLOOKUP(A54,'Conn Information'!$P$11:$U$65,6,FALSE)-1))","v":""},"See Assembly Database for respective breakdown of mapping",null,null,null,null,null,null,null,null,47,{"$f":"Config!B53","v":0},{"$f":"IF(M58=0,\"\",IF('Conn Information'!R49=0,\"\",IF('Conn Information'!R49=1,'Conn Information'!V49,('Conn Information'!V48+1)&\" to \"&'Conn Information'!V49)))","v":""},"See Assembly Database for respective breakdown of mapping",null,null,null,null,null,null,null,null,55,{"$f":"Config!B61","v":0},{"$f":"IF(Y58=0,\"\",IF('Conn Information'!S57=0,\"\",IF('Conn Information'!S57=1,'Conn Information'!W57,('Conn Information'!W56+1)&\" to \"&'Conn Information'!W57)))","v":""},"See Assembly Database for respective breakdown of mapping"]
[{"$f":"Config!B16","v":0},{"$f":"IF(A59=0,\"\",VLOOKUP(A54,'Conn Information'!$P$11:$U$65,6,FALSE))","v":""},{"$f":"C54+1","v":10},null,null,null,null,null,null,null,null,48,{"$f":"Config!B54","v":0},{"$f":"IF(M59=0,\"\",IF('Conn Information'!R50=0,\"\",IF('Conn Information'!R50=1,'Conn Information'!V50,('Conn Information'!V49+1)&\" to \"&'Conn Information'!V50)))","v":""},"See Assembly Database for respective breakdown of mapping",null,null,null,null,null,null,null,null,56,{"$f":"Config!B62","v":0},{"$f":"IF(Y59=0,\"\",IF('Conn Information'!S58=0,\"\",IF('Conn Information'!S58=1,'Conn Information'!W58,('Conn Information'!W57+1)&\" to \"&'Conn Information'!W58)))","v":""},"See Assembly Database for respective breakdown of mapping"]
[null,{"$f":"IF(A59=0,\"\",B59+1)","v":""},{"$f":"IF(A59=0,\"\",VLOOKUP($A59,'Conn Information'!$P$1:$T$65,2,FALSE))","v":""},null,null,null,null,null,null,null,null,49,{"$f":"Config!B55","v":0},{"$f":"IF(M60=0,\"\",IF('Conn Information'!R51=0,\"\",IF('Conn Information'!R51=1,'Conn Information'!V51,('Conn Information'!V50+1)&\" to \"&'Conn Information'!V51)))","v":""},"See Assembly Database for respective breakdown of mapping",null,null,null,null,null,null,null,null,57,{"$f":"Config!B63","v":0},{"$f":"IF(Y60=0,\"\",IF('Conn Information'!S59=0,\"\",IF('Conn Information'!S59=1,'Conn Information'!W59,('Conn Information'!W58+1)&\" to \"&'Conn Information'!W59)))","v":""},"See Assembly Database for respective breakdown of mapping"]
[null,{"$f":"IF(A59=0,\"\",B60+1)","v":""},{"$f":"IF(A59=0,\"\",VLOOKUP($A59,'Conn Information'!$P$1:$T$65,5,FALSE))","v":""},null,null,null,null,null,null,null,null,50,{"$f":"Config!B56","v":0},{"$f":"IF(M61=0,\"\",IF('Conn Information'!R52=0,\"\",IF('Conn Information'!R52=1,'Conn Information'!V52,('Conn Information'!V51+1)&\" to \"&'Conn Information'!V52)))","v":""},"See Assembly Database for respective breakdown of mapping",null,null,null,null,null,null,null,null,58,{"$f":"Config!B64","v":0},{"$f":"IF(Y61=0,\"\",IF('Conn Information'!S60=0,\"\",IF('Conn Information'!S60=1,'Conn Information'!W60,('Conn Information'!W59+1)&\" to \"&'Conn Information'!W60)))","v":""},"See Assembly Database for respective breakdown of mapping"]
[null,{"$f":"IF(A59=0,\"\",B61+1)","v":""},0,null,null,null,null,null,null,null,null,51,{"$f":"Config!B57","v":0},{"$f":"IF(M62=0,\"\",IF('Conn Information'!R53=0,\"\",IF('Conn Information'!R53=1,'Conn Information'!V53,('Conn Information'!V52+1)&\" to \"&'Conn Information'!V53)))","v":""},"See Assembly Database for respective breakdown of mapping",null,null,null,null,null,null,null,null,59,{"$f":"Config!B65","v":0},{"$f":"IF(Y62=0,\"\",IF('Conn Information'!S61=0,\"\",IF('Conn Information'!S61=1,'Conn Information'!W61,('Conn Information'!W60+1)&\" to \"&'Conn Information'!W61)))","v":""},"See Assembly Database for respective breakdown of mapping"]
[null,{"$f":"IF(A59=0,\"\",(B62+1)&\" to \"&(VLOOKUP(A59,'Conn Information'!$P$12:$U$65,6,FALSE)-1))","v":""},"See Assembly Database for respective breakdown of mapping",null,null,null,null,null,null,null,null,52,{"$f":"Config!B58","v":0},{"$f":"IF(M63=0,\"\",IF('Conn Information'!R54=0,\"\",IF('Conn Information'!R54=1,'Conn Information'!V54,('Conn Information'!V53+1)&\" to \"&'Conn Information'!V54)))","v":""},"See Assembly Database for respective breakdown of mapping",null,null,null,null,null,null,null,null,60,{"$f":"Config!B66","v":0},{"$f":"IF(Y63=0,\"\",IF('Conn Information'!S62=0,\"\",IF('Conn Information'!S62=1,'Conn Information'!W62,('Conn Information'!W61+1)&\" to \"&'Conn Information'!W62)))","v":""},"See Assembly Database for respective breakdown of mapping"]
[{"$f":"Config!B17","v":0},{"$f":"IF(A64=0,\"\",VLOOKUP(A59,'Conn Information'!$P$12:$U$65,6,FALSE))","v":""},{"$f":"C59+1","v":11},null,null,null,null,null,null,null,null,53,{"$f":"Config!B59","v":0},{"$f":"IF(M64=0,\"\",IF('Conn Information'!R55=0,\"\",IF('Conn Information'!R55=1,'Conn Information'!V55,('Conn Information'!V54+1)&\" to \"&'Conn Information'!V55)))","v":""},"See Assembly Database for respective breakdown of mapping",null,null,null,null,null,null,null,null,61,{"$f":"Config!B67","v":0},{"$f":"IF(Y64=0,\"\",IF('Conn Information'!S63=0,\"\",IF('Conn Information'!S63=1,'Conn Information'!W63,('Conn Information'!W62+1)&\" to \"&'Conn Information'!W63)))","v":""},"See Assembly Database for respective breakdown of mapping"]
[null,{"$f":"IF(A64=0,\"\",B64+1)","v":""},{"$f":"IF(A64=0,\"\",VLOOKUP($A64,'Conn Information'!$P$1:$T$65,2,FALSE))","v":""},null,null,null,null,null,null,null,null,54,{"$f":"Config!B60","v":0},{"$f":"IF(M65=0,\"\",IF('Conn Information'!R56=0,\"\",IF('Conn Information'!R56=1,'Conn Information'!V56,('Conn Information'!V55+1)&\" to \"&'Conn Information'!V56)))","v":""},"See Assembly Database for respective breakdown of mapping",null,null,null,null,null,null,null,null,62,{"$f":"Config!B68","v":0},{"$f":"IF(Y65=0,\"\",IF('Conn Information'!S64=0,\"\",IF('Conn Information'!S64=1,'Conn Information'!W64,('Conn Information'!W63+1)&\" to \"&'Conn Information'!W64)))","v":""},"See Assembly Database for respective breakdown of mapping"]
[null,{"$f":"IF(A64=0,\"\",B65+1)","v":""},{"$f":"IF(A64=0,\"\",VLOOKUP($A64,'Conn Information'!$P$1:$T$65,5,FALSE))","v":""},null,null,null,null,null,null,null,null,55,{"$f":"Config!B61","v":0},{"$f":"IF(M66=0,\"\",IF('Conn Information'!R57=0,\"\",IF('Conn Information'!R57=1,'Conn Information'!V57,('Conn Information'!V56+1)&\" to \"&'Conn Information'!V57)))","v":""},"See Assembly Database for respective breakdown of mapping",null,null,null,null,null,null,null,null,63,{"$f":"Config!B69","v":0},{"$f":"IF(Y66=0,\"\",IF('Conn Information'!S65=0,\"\",IF('Conn Information'!S65=1,'Conn Information'!W65,('Conn Information'!W64+1)&\" to \"&'Conn Information'!W65)))","v":""},"See Assembly Database for respective breakdown of mapping"]
[null,{"$f":"IF(A64=0,\"\",B66+1)","v":""},0,null,null,null,null,null,null,null,null,56,{"$f":"Config!B62","v":0},{"$f":"IF(M67=0,\"\",IF('Conn Information'!R58=0,\"\",IF('Conn Information'!R58=1,'Conn Information'!V58,('Conn Information'!V57+1)&\" to \"&'Conn Information'!V58)))","v":""},"See Assembly Database for respective breakdown of mapping"]
[null,{"$f":"IF(A64=0,\"\",(B67+1)&\" to \"&(VLOOKUP(A64,'Conn Information'!$P$13:$U$65,6,FALSE)-1))","v":""},"See Assembly Database for respective breakdown of mapping",null,null,null,null,null,null,null,null,57,{"$f":"Config!B63","v":0},{"$f":"IF(M68=0,\"\",IF('Conn Information'!R59=0,\"\",IF('Conn Information'!R59=1,'Conn Information'!V59,('Conn Information'!V58+1)&\" to \"&'Conn Information'!V59)))","v":""},"See Assembly Database for respective breakdown of mapping"]
[{"$f":"Config!B18","v":0},{"$f":"IF(A69=0,\"\",VLOOKUP(A64,'Conn Information'!$P$13:$U$65,6,FALSE))","v":""},{"$f":"C64+1","v":12},null,null,null,null,null,null,null,null,58,{"$f":"Config!B64","v":0},{"$f":"IF(M69=0,\"\",IF('Conn Information'!R60=0,\"\",IF('Conn Information'!R60=1,'Conn Information'!V60,('Conn Information'!V59+1)&\" to \"&'Conn Information'!V60)))","v":""},"See Assembly Database for respective breakdown of mapping"]
[null,{"$f":"IF(A69=0,\"\",B69+1)","v":""},{"$f":"IF(A69=0,\"\",VLOOKUP($A69,'Conn Information'!$P$1:$T$65,2,FALSE))","v":""},null,null,null,null,null,null,null,null,59,{"$f":"Config!B65","v":0},{"$f":"IF(M70=0,\"\",IF('Conn Information'!R61=0,\"\",IF('Conn Information'!R61=1,'Conn Information'!V61,('Conn Information'!V60+1)&\" to \"&'Conn Information'!V61)))","v":""},"See Assembly Database for respective breakdown of mapping"]
[null,{"$f":"IF(A69=0,\"\",B70+1)","v":""},{"$f":"IF(A69=0,\"\",VLOOKUP($A69,'Conn Information'!$P$1:$T$65,5,FALSE))","v":""},null,null,null,null,null,null,null,null,60,{"$f":"Config!B66","v":0},{"$f":"IF(M71=0,\"\",IF('Conn Information'!R62=0,\"\",IF('Conn Information'!R62=1,'Conn Information'!V62,('Conn Information'!V61+1)&\" to \"&'Conn Information'!V62)))","v":""},"See Assembly Database for respective breakdown of mapping"]
[null,{"$f":"IF(A69=0,\"\",B71+1)","v":""},0,null,null,null,null,null,null,null,null,61,{"$f":"Config!B67","v":0},{"$f":"IF(M72=0,\"\",IF('Conn Information'!R63=0,\"\",IF('Conn Information'!R63=1,'Conn Information'!V63,('Conn Information'!V62+1)&\" to \"&'Conn Information'!V63)))","v":""},"See Assembly Database for respective breakdown of mapping"]
[null,{"$f":"IF(A69=0,\"\",(B72+1)&\" to \"&(VLOOKUP(A69,'Conn Information'!$P$14:$U$65,6,FALSE)-1))","v":""},"See Assembly Database for respective breakdown of mapping",null,null,null,null,null,null,null,null,62,{"$f":"Config!B68","v":0},{"$f":"IF(M73=0,\"\",IF('Conn Information'!R64=0,\"\",IF('Conn Information'!R64=1,'Conn Information'!V64,('Conn Information'!V63+1)&\" to \"&'Conn Information'!V64)))","v":""},"See Assembly Database for respective breakdown of mapping"]
[{"$f":"Config!B19","v":0},{"$f":"IF(A74=0,\"\",VLOOKUP(A69,'Conn Information'!$P$14:$U$65,6,FALSE))","v":""},{"$f":"C69+1","v":13},null,null,null,null,null,null,null,null,63,{"$f":"Config!B69","v":0},{"$f":"IF(M74=0,\"\",IF('Conn Information'!R65=0,\"\",IF('Conn Information'!R65=1,'Conn Information'!V65,('Conn Information'!V64+1)&\" to \"&'Conn Information'!V65)))","v":""},"See Assembly Database for respective breakdown of mapping"]
[null,{"$f":"IF(A74=0,\"\",B74+1)","v":""},{"$f":"IF(A74=0,\"\",VLOOKUP($A74,'Conn Information'!$P$1:$T$65,2,FALSE))","v":""}]
[null,{"$f":"IF(A74=0,\"\",B75+1)","v":""},{"$f":"IF(A74=0,\"\",VLOOKUP($A74,'Conn Information'!$P$1:$T$65,5,FALSE))","v":""}]
[null,{"$f":"IF(A74=0,\"\",B76+1)","v":""},0]
[null,{"$f":"IF(A74=0,\"\",(B77+1)&\" to \"&(VLOOKUP(A74,'Conn Information'!$P$15:$U$65,6,FALSE)-1))","v":""},"See Assembly Database for respective breakdown of mapping"]
[{"$f":"Config!B20","v":0},{"$f":"IF(A79=0,\"\",VLOOKUP(A74,'Conn Information'!$P$15:$U$65,6,FALSE))","v":""},{"$f":"C74+1","v":14}]
[null,{"$f":"IF(A79=0,\"\",B79+1)","v":""},{"$f":"IF(A79=0,\"\",VLOOKUP($A79,'Conn Information'!$P$1:$T$65,2,FALSE))","v":""}]
[null,{"$f":"IF(A79=0,\"\",B80+1)","v":""},{"$f":"IF(A79=0,\"\",VLOOKUP($A79,'Conn Information'!$P$1:$T$65,5,FALSE))","v":""}]
[null,{"$f":"IF(A79=0,\"\",B81+1)","v":""},0]
[null,{"$f":"IF(A79=0,\"\",(B82+1)&\" to \"&(VLOOKUP(A79,'Conn Information'!$P$16:$U$65,6,FALSE)-1))","v":""},"See Assembly Database for respective breakdown of mapping"]
[{"$f":"Config!B21","v":0},{"$f":"IF(A84=0,\"\",VLOOKUP(A79,'Conn Information'!$P$16:$U$65,6,FALSE))","v":""},{"$f":"C79+1","v":15}]
[null,{"$f":"IF(A84=0,\"\",B84+1)","v":""},{"$f":"IF(A84=0,\"\",VLOOKUP($A84,'Conn Information'!$P$1:$T$65,2,FALSE))","v":""}]
[null,{"$f":"IF(A84=0,\"\",B85+1)","v":""},{"$f":"IF(A84=0,\"\",VLOOKUP($A84,'Conn Information'!$P$1:$T$65,5,FALSE))","v":""}]
[null,{"$f":"IF(A84=0,\"\",B86+1)","v":""},0]
[null,{"$f":"IF(A84=0,\"\",(B87+1)&\" to \"&(VLOOKUP(A84,'Conn Information'!$P$17:$U$65,6,FALSE)-1))","v":""},"See Assembly Database for respective breakdown of mapping"]
[{"$f":"Config!B22","v":0},{"$f":"IF(A89=0,\"\",VLOOKUP(A84,'Conn Information'!$P$17:$U$65,6,FALSE))","v":""},{"$f":"C84+1","v":16}]
[null,{"$f":"IF(A89=0,\"\",B89+1)","v":""},{"$f":"IF(A89=0,\"\",VLOOKUP($A89,'Conn Information'!$P$1:$T$65,2,FALSE))","v":""}]
[null,{"$f":"IF(A89=0,\"\",B90+1)","v":""},{"$f":"IF(A89=0,\"\",VLOOKUP($A89,'Conn Information'!$P$1:$T$65,5,FALSE))","v":""}]
[null,{"$f":"IF(A89=0,\"\",B91+1)","v":""},0]
[null,{"$f":"IF(A89=0,\"\",(B92+1)&\" to \"&(VLOOKUP(A89,'Conn Information'!$P$18:$U$65,6,FALSE)-1))","v":""},"See Assembly Database for respective breakdown of mapping"]
[{"$f":"Config!B23","v":0},{"$f":"IF(A94=0,\"\",VLOOKUP(A89,'Conn Information'!$P$18:$U$65,6,FALSE))","v":""},{"$f":"C89+1","v":17}]
[null,{"$f":"IF(A94=0,\"\",B94+1)","v":""},{"$f":"IF(A94=0,\"\",VLOOKUP($A94,'Conn Information'!$P$1:$T$65,2,FALSE))","v":""}]
[null,{"$f":"IF(A94=0,\"\",B95+1)","v":""},{"$f":"IF(A94=0,\"\",VLOOKUP($A94,'Conn Information'!$P$1:$T$65,5,FALSE))","v":""}]
[null,{"$f":"IF(A94=0,\"\",B96+1)","v":""},0]
[null,{"$f":"IF(A94=0,\"\",(B97+1)&\" to \"&(VLOOKUP(A94,'Conn Information'!$P$19:$U$65,6,FALSE)-1))","v":""},"See Assembly Database for respective breakdown of mapping"]
[{"$f":"Config!B24","v":0},{"$f":"IF(A99=0,\"\",VLOOKUP(A94,'Conn Information'!$P$19:$U$65,6,FALSE))","v":""},{"$f":"C94+1","v":18}]
[null,{"$f":"IF(A99=0,\"\",B99+1)","v":""},{"$f":"IF(A99=0,\"\",VLOOKUP($A99,'Conn Information'!$P$1:$T$65,2,FALSE))","v":""}]
[null,{"$f":"IF(A99=0,\"\",B100+1)","v":""},{"$f":"IF(A99=0,\"\",VLOOKUP($A99,'Conn Information'!$P$1:$T$65,5,FALSE))","v":""}]
[null,{"$f":"IF(A99=0,\"\",B101+1)","v":""},0]
[null,{"$f":"IF(A99=0,\"\",(B102+1)&\" to \"&(VLOOKUP(A99,'Conn Information'!$P$20:$U$65,6,FALSE)-1))","v":""},"See Assembly Database for respective breakdown of mapping"]
[{"$f":"Config!B25","v":0},{"$f":"IF(A104=0,\"\",VLOOKUP(A99,'Conn Information'!$P$20:$U$65,6,FALSE))","v":""},{"$f":"C99+1","v":19}]
[null,{"$f":"IF(A104=0,\"\",B104+1)","v":""},{"$f":"IF(A104=0,\"\",VLOOKUP($A104,'Conn Information'!$P$1:$T$65,2,FALSE))","v":""}]
[null,{"$f":"IF(A104=0,\"\",B105+1)","v":""},{"$f":"IF(A104=0,\"\",VLOOKUP($A104,'Conn Information'!$P$1:$T$65,5,FALSE))","v":""}]
[null,{"$f":"IF(A104=0,\"\",B106+1)","v":""},0]
[null,{"$f":"IF(A104=0,\"\",(B107+1)&\" to \"&(VLOOKUP(A104,'Conn Information'!$P$21:$U$65,6,FALSE)-1))","v":""},"See Assembly Database for respective breakdown of mapping"]
[{"$f":"Config!B26","v":0},{"$f":"IF(A109=0,\"\",VLOOKUP(A104,'Conn Information'!$P$21:$U$65,6,FALSE))","v":""},{"$f":"C104+1","v":20}]
[null,{"$f":"IF(A109=0,\"\",B109+1)","v":""},{"$f":"IF(A109=0,\"\",VLOOKUP($A109,'Conn Information'!$P$1:$T$65,2,FALSE))","v":""}]
[null,{"$f":"IF(A109=0,\"\",B110+1)","v":""},{"$f":"IF(A109=0,\"\",VLOOKUP($A109,'Conn Information'!$P$1:$T$65,5,FALSE))","v":""}]
[null,{"$f":"IF(A109=0,\"\",B111+1)","v":""},0]
[null,{"$f":"IF(A109=0,\"\",(B112+1)&\" to \"&(VLOOKUP(A109,'Conn Information'!$P$22:$U$65,6,FALSE)-1))","v":""},"See Assembly Database for respective breakdown of mapping"]
[{"$f":"Config!B27","v":0},{"$f":"IF(A114=0,\"\",VLOOKUP(A109,'Conn Information'!$P$22:$U$65,6,FALSE))","v":""},{"$f":"C109+1","v":21}]
[null,{"$f":"IF(A114=0,\"\",B114+1)","v":""},{"$f":"IF(A114=0,\"\",VLOOKUP($A114,'Conn Information'!$P$1:$T$65,2,FALSE))","v":""}]
[null,{"$f":"IF(A114=0,\"\",B115+1)","v":""},{"$f":"IF(A114=0,\"\",VLOOKUP($A114,'Conn Information'!$P$1:$T$65,5,FALSE))","v":""}]
[null,{"$f":"IF(A114=0,\"\",B116+1)","v":""},0]
[null,{"$f":"IF(A114=0,\"\",(B117+1)&\" to \"&(VLOOKUP(A114,'Conn Information'!$P$23:$U$65,6,FALSE)-1))","v":""},"See Assembly Database for respective breakdown of mapping"]
[{"$f":"Config!B28","v":0},{"$f":"IF(A119=0,\"\",VLOOKUP(A114,'Conn Information'!$P$23:$U$65,6,FALSE))","v":""},{"$f":"C114+1","v":22}]
[null,{"$f":"IF(A119=0,\"\",B119+1)","v":""},{"$f":"IF(A119=0,\"\",VLOOKUP($A119,'Conn Information'!$P$1:$T$65,2,FALSE))","v":""}]
[null,{"$f":"IF(A119=0,\"\",B120+1)","v":""},{"$f":"IF(A119=0,\"\",VLOOKUP($A119,'Conn Information'!$P$1:$T$65,5,FALSE))","v":""}]
[null,{"$f":"IF(A119=0,\"\",B121+1)","v":""},0]
[null,{"$f":"IF(A119=0,\"\",(B122+1)&\" to \"&(VLOOKUP(A119,'Conn Information'!$P$24:$U$65,6,FALSE)-1))","v":""},"See Assembly Database for respective breakdown of mapping"]
[{"$f":"Config!B29","v":0},{"$f":"IF(A124=0,\"\",VLOOKUP(A119,'Conn Information'!$P$24:$U$65,6,FALSE))","v":""},{"$f":"C119+1","v":23}]
[null,{"$f":"IF(A124=0,\"\",B124+1)","v":""},{"$f":"IF(A124=0,\"\",VLOOKUP($A124,'Conn Information'!$P$1:$T$65,2,FALSE))","v":""}]
[null,{"$f":"IF(A124=0,\"\",B125+1)","v":""},{"$f":"IF(A124=0,\"\",VLOOKUP($A124,'Conn Information'!$P$1:$T$65,5,FALSE))","v":""}]
[null,{"$f":"IF(A124=0,\"\",B126+1)","v":""},0]
[null,{"$f":"IF(A124=0,\"\",(B127+1)&\" to \"&(VLOOKUP(A124,'Conn Information'!$P$25:$U$65,6,FALSE)-1))","v":""},"See Assembly Database for respective breakdown of mapping"]
[{"$f":"Config!B30","v":0},{"$f":"IF(A129=0,\"\",VLOOKUP(A124,'Conn Information'!$P$25:$U$65,6,FALSE))","v":""},{"$f":"C124+1","v":24}]
[null,{"$f":"IF(A129=0,\"\",B129+1)","v":""},{"$f":"IF(A129=0,\"\",VLOOKUP($A129,'Conn Information'!$P$1:$T$65,2,FALSE))","v":""}]
[null,{"$f":"IF(A129=0,\"\",B130+1)","v":""},{"$f":"IF(A129=0,\"\",VLOOKUP($A129,'Conn Information'!$P$1:$T$65,5,FALSE))","v":""}]
[null,{"$f":"IF(A129=0,\"\",B131+1)","v":""},0]
[null,{"$f":"IF(A129=0,\"\",(B132+1)&\" to \"&(VLOOKUP(A129,'Conn Information'!$P$26:$U$65,6,FALSE)-1))","v":""},"See Assembly Database for respective breakdown of mapping"]
[{"$f":"Config!B31","v":0},{"$f":"IF(A134=0,\"\",VLOOKUP(A129,'Conn Information'!$P$26:$U$65,6,FALSE))","v":""},{"$f":"C129+1","v":25}]
[null,{"$f":"IF(A134=0,\"\",B134+1)","v":""},{"$f":"IF(A134=0,\"\",VLOOKUP($A134,'Conn Information'!$P$1:$T$65,2,FALSE))","v":""}]
[null,{"$f":"IF(A134=0,\"\",B135+1)","v":""},{"$f":"IF(A134=0,\"\",VLOOKUP($A134,'Conn Information'!$P$1:$T$65,5,FALSE))","v":""}]
[null,{"$f":"IF(A134=0,\"\",B136+1)","v":""},0]
[null,{"$f":"IF(A134=0,\"\",(B137+1)&\" to \"&(VLOOKUP(A134,'Conn Information'!$P$27:$U$65,6,FALSE)-1))","v":""},"See Assembly Database for respective breakdown of mapping"]
[{"$f":"Config!B32","v":0},{"$f":"IF(A139=0,\"\",VLOOKUP(A134,'Conn Information'!$P$27:$U$65,6,FALSE))","v":""},{"$f":"C134+1","v":26}]
[null,{"$f":"IF(A139=0,\"\",B139+1)","v":""},{"$f":"IF(A139=0,\"\",VLOOKUP($A139,'Conn Information'!$P$1:$T$65,2,FALSE))","v":""}]
[null,{"$f":"IF(A139=0,\"\",B140+1)","v":""},{"$f":"IF(A139=0,\"\",VLOOKUP($A139,'Conn Information'!$P$1:$T$65,5,FALSE))","v":""}]
[null,{"$f":"IF(A139=0,\"\",B141+1)","v":""},0]
[null,{"$f":"IF(A139=0,\"\",(B142+1)&\" to \"&(VLOOKUP(A139,'Conn Information'!$P$28:$U$65,6,FALSE)-1))","v":""},"See Assembly Database for respective breakdown of mapping"]
[{"$f":"Config!B33","v":0},{"$f":"IF(A144=0,\"\",VLOOKUP(A139,'Conn Information'!$P$28:$U$65,6,FALSE))","v":""},{"$f":"C139+1","v":27}]
[null,{"$f":"IF(A144=0,\"\",B144+1)","v":""},{"$f":"IF(A144=0,\"\",VLOOKUP($A144,'Conn Information'!$P$1:$T$65,2,FALSE))","v":""}]
[null,{"$f":"IF(A144=0,\"\",B145+1)","v":""},{"$f":"IF(A144=0,\"\",VLOOKUP($A144,'Conn Information'!$P$1:$T$65,5,FALSE))","v":""}]
[null,{"$f":"IF(A144=0,\"\",B146+1)","v":""},0]
[null,{"$f":"IF(A144=0,\"\",(B147+1)&\" to \"&(VLOOKUP(A144,'Conn Information'!$P$29:$U$65,6,FALSE)-1))","v":""},"See Assembly Database for respective breakdown of mapping"]
[{"$f":"Config!B34","v":0},{"$f":"IF(A149=0,\"\",VLOOKUP(A144,'Conn Information'!$P$29:$U$65,6,FALSE))","v":""},{"$f":"C144+1","v":28}]
[null,{"$f":"IF(A149=0,\"\",B149+1)","v":""},{"$f":"IF(A149=0,\"\",VLOOKUP($A149,'Conn Information'!$P$1:$T$65,2,FALSE))","v":""}]
[null,{"$f":"IF(A149=0,\"\",B150+1)","v":""},{"$f":"IF(A149=0,\"\",VLOOKUP($A149,'Conn Information'!$P$1:$T$65,5,FALSE))","v":""}]
[null,{"$f":"IF(A149=0,\"\",B151+1)","v":""},0]
[null,{"$f":"IF(A149=0,\"\",(B152+1)&\" to \"&(VLOOKUP(A149,'Conn Information'!$P$30:$U$65,6,FALSE)-1))","v":""},"See Assembly Database for respective breakdown of mapping"]
[{"$f":"Config!B35","v":0},{"$f":"IF(A154=0,\"\",VLOOKUP(A149,'Conn Information'!$P$30:$U$65,6,FALSE))","v":""},{"$f":"C149+1","v":29}]
[null,{"$f":"IF(A154=0,\"\",B154+1)","v":""},{"$f":"IF(A154=0,\"\",VLOOKUP($A154,'Conn Information'!$P$1:$T$65,2,FALSE))","v":""}]
[null,{"$f":"IF(A154=0,\"\",B155+1)","v":""},{"$f":"IF(A154=0,\"\",VLOOKUP($A154,'Conn Information'!$P$1:$T$65,5,FALSE))","v":""}]
[null,{"$f":"IF(A154=0,\"\",B156+1)","v":""},0]
[null,{"$f":"IF(A154=0,\"\",(B157+1)&\" to \"&(VLOOKUP(A154,'Conn Information'!$P$31:$U$65,6,FALSE)-1))","v":""},"See Assembly Database for respective breakdown of mapping"]
[{"$f":"Config!B36","v":0},{"$f":"IF(A159=0,\"\",VLOOKUP(A154,'Conn Information'!$P$31:$U$65,6,FALSE))","v":""},{"$f":"C154+1","v":30}]
[null,{"$f":"IF(A159=0,\"\",B159+1)","v":""},{"$f":"IF(A159=0,\"\",VLOOKUP($A159,'Conn Information'!$P$1:$T$65,2,FALSE))","v":""}]
[null,{"$f":"IF(A159=0,\"\",B160+1)","v":""},{"$f":"IF(A159=0,\"\",VLOOKUP($A159,'Conn Information'!$P$1:$T$65,5,FALSE))","v":""}]
[null,{"$f":"IF(A159=0,\"\",B161+1)","v":""},0]
[null,{"$f":"IF(A159=0,\"\",(B162+1)&\" to \"&(VLOOKUP(A159,'Conn Information'!$P$32:$U$65,6,FALSE)-1))","v":""},"See Assembly Database for respective breakdown of mapping"]
[{"$f":"Config!B37","v":0},{"$f":"IF(A164=0,\"\",VLOOKUP(A159,'Conn Information'!$P$32:$U$65,6,FALSE))","v":""},{"$f":"C159+1","v":31}]
[null,{"$f":"IF(A164=0,\"\",B164+1)","v":""},{"$f":"IF(A164=0,\"\",VLOOKUP($A164,'Conn Information'!$P$1:$T$65,2,FALSE))","v":""}]
[null,{"$f":"IF(A164=0,\"\",B165+1)","v":""},{"$f":"IF(A164=0,\"\",VLOOKUP($A164,'Conn Information'!$P$1:$T$65,5,FALSE))","v":""}]
[null,{"$f":"IF(A164=0,\"\",B166+1)","v":""},0]
[null,{"$f":"IF(A164=0,\"\",(B167+1)&\" to \"&(VLOOKUP(A164,'Conn Information'!$P$33:$U$65,6,FALSE)-1))","v":""},"See Assembly Database for respective breakdown of mapping"]
[{"$f":"Config!B38","v":0},{"$f":"IF(A169=0,\"\",VLOOKUP(A164,'Conn Information'!$P$33:$U$65,6,FALSE))","v":""},{"$f":"C164+1","v":32}]
[null,{"$f":"IF(A169=0,\"\",B169+1)","v":""},{"$f":"IF(A169=0,\"\",VLOOKUP($A169,'Conn Information'!$P$1:$T$65,2,FALSE))","v":""}]
[null,{"$f":"IF(A169=0,\"\",B170+1)","v":""},{"$f":"IF(A169=0,\"\",VLOOKUP($A169,'Conn Information'!$P$1:$T$65,5,FALSE))","v":""}]
[null,{"$f":"IF(A169=0,\"\",B171+1)","v":""},0]
[null,{"$f":"IF(A169=0,\"\",(B172+1)&\" to \"&(VLOOKUP(A169,'Conn Information'!$P$34:$U$65,6,FALSE)-1))","v":""},"See Assembly Database for respective breakdown of mapping"]
[{"$f":"Config!B39","v":0},{"$f":"IF(A174=0,\"\",VLOOKUP(A169,'Conn Information'!$P$34:$U$65,6,FALSE))","v":""},{"$f":"C169+1","v":33}]
[null,{"$f":"IF(A174=0,\"\",B174+1)","v":""},{"$f":"IF(A174=0,\"\",VLOOKUP($A174,'Conn Information'!$P$1:$T$65,2,FALSE))","v":""}]
[null,{"$f":"IF(A174=0,\"\",B175+1)","v":""},{"$f":"IF(A174=0,\"\",VLOOKUP($A174,'Conn Information'!$P$1:$T$65,5,FALSE))","v":""}]
[null,{"$f":"IF(A174=0,\"\",B176+1)","v":""},0]
[null,{"$f":"IF(A174=0,\"\",(B177+1)&\" to \"&(VLOOKUP(A174,'Conn Information'!$P$35:$U$65,6,FALSE)-1))","v":""},"See Assembly Database for respective breakdown of mapping"]
[{"$f":"Config!B40","v":0},{"$f":"IF(A179=0,\"\",VLOOKUP(A174,'Conn Information'!$P$35:$U$65,6,FALSE))","v":""},{"$f":"C174+1","v":34}]
[null,{"$f":"IF(A179=0,\"\",B179+1)","v":""},{"$f":"IF(A179=0,\"\",VLOOKUP($A179,'Conn Information'!$P$1:$T$65,2,FALSE))","v":""}]
[null,{"$f":"IF(A179=0,\"\",B180+1)","v":""},{"$f":"IF(A179=0,\"\",VLOOKUP($A179,'Conn Information'!$P$1:$T$65,5,FALSE))","v":""}]
[null,{"$f":"IF(A179=0,\"\",B181+1)","v":""},0]
[null,{"$f":"IF(A179=0,\"\",(B182+1)&\" to \"&(VLOOKUP(A179,'Conn Information'!$P$36:$U$65,6,FALSE)-1))","v":""},"See Assembly Database for respective breakdown of mapping"]
[{"$f":"Config!B41","v":0},{"$f":"IF(A184=0,\"\",VLOOKUP(A179,'Conn Information'!$P$36:$U$65,6,FALSE))","v":""},{"$f":"C179+1","v":35}]
[null,{"$f":"IF(A184=0,\"\",B184+1)","v":""},{"$f":"IF(A184=0,\"\",VLOOKUP($A184,'Conn Information'!$P$1:$T$65,2,FALSE))","v":""}]
[null,{"$f":"IF(A184=0,\"\",B185+1)","v":""},{"$f":"IF(A184=0,\"\",VLOOKUP($A184,'Conn Information'!$P$1:$T$65,5,FALSE))","v":""}]
[null,{"$f":"IF(A184=0,\"\",B186+1)","v":""},0]
[null,{"$f":"IF(A184=0,\"\",(B187+1)&\" to \"&(VLOOKUP(A184,'Conn Information'!$P$37:$U$65,6,FALSE)-1))","v":""},"See Assembly Database for respective breakdown of mapping"]
[{"$f":"Config!B42","v":0},{"$f":"IF(A189=0,\"\",VLOOKUP(A184,'Conn Information'!$P$37:$U$65,6,FALSE))","v":""},{"$f":"C184+1","v":36}]
[null,{"$f":"IF(A189=0,\"\",B189+1)","v":""},{"$f":"IF(A189=0,\"\",VLOOKUP($A189,'Conn Information'!$P$1:$T$65,2,FALSE))","v":""}]
[null,{"$f":"IF(A189=0,\"\",B190+1)","v":""},{"$f":"IF(A189=0,\"\",VLOOKUP($A189,'Conn Information'!$P$1:$T$65,5,FALSE))","v":""}]
[null,{"$f":"IF(A189=0,\"\",B191+1)","v":""},0]
[null,{"$f":"IF(A189=0,\"\",(B192+1)&\" to \"&(VLOOKUP(A189,'Conn Information'!$P$38:$U$65,6,FALSE)-1))","v":""},"See Assembly Database for respective breakdown of mapping"]
[{"$f":"Config!B43","v":0},{"$f":"IF(A194=0,\"\",VLOOKUP(A189,'Conn Information'!$P$38:$U$65,6,FALSE))","v":""},{"$f":"C189+1","v":37}]
[null,{"$f":"IF(A194=0,\"\",B194+1)","v":""},{"$f":"IF(A194=0,\"\",VLOOKUP($A194,'Conn Information'!$P$1:$T$65,2,FALSE))","v":""}]
[null,{"$f":"IF(A194=0,\"\",B195+1)","v":""},{"$f":"IF(A194=0,\"\",VLOOKUP($A194,'Conn Information'!$P$1:$T$65,5,FALSE))","v":""}]
[null,{"$f":"IF(A194=0,\"\",B196+1)","v":""},0]
[null,{"$f":"IF(A194=0,\"\",(B197+1)&\" to \"&(VLOOKUP(A194,'Conn Information'!$P$39:$U$65,6,FALSE)-1))","v":""},"See Assembly Database for respective breakdown of mapping"]
[{"$f":"Config!B44","v":0},{"$f":"IF(A199=0,\"\",VLOOKUP(A194,'Conn Information'!$P$39:$U$65,6,FALSE))","v":""},{"$f":"C194+1","v":38}]
[null,{"$f":"IF(A199=0,\"\",B199+1)","v":""},{"$f":"IF(A199=0,\"\",VLOOKUP($A199,'Conn Information'!$P$1:$T$65,2,FALSE))","v":""}]
[null,{"$f":"IF(A199=0,\"\",B200+1)","v":""},{"$f":"IF(A199=0,\"\",VLOOKUP($A199,'Conn Information'!$P$1:$T$65,5,FALSE))","v":""}]
[null,{"$f":"IF(A199=0,\"\",B201+1)","v":""},0]
[null,{"$f":"IF(A199=0,\"\",(B202+1)&\" to \"&(VLOOKUP(A199,'Conn Information'!$P$40:$U$65,6,FALSE)-1))","v":""},"See Assembly Database for respective breakdown of mapping"]
[{"$f":"Config!B45","v":0},{"$f":"IF(A204=0,\"\",VLOOKUP(A199,'Conn Information'!$P$40:$U$65,6,FALSE))","v":""},{"$f":"C199+1","v":39}]
[null,{"$f":"IF(A204=0,\"\",B204+1)","v":""},{"$f":"IF(A204=0,\"\",VLOOKUP($A204,'Conn Information'!$P$1:$T$65,2,FALSE))","v":""}]
[null,{"$f":"IF(A204=0,\"\",B205+1)","v":""},{"$f":"IF(A204=0,\"\",VLOOKUP($A204,'Conn Information'!$P$1:$T$65,5,FALSE))","v":""}]
[null,{"$f":"IF(A204=0,\"\",B206+1)","v":""},0]
[null,{"$f":"IF(A204=0,\"\",(B207+1)&\" to \"&(VLOOKUP(A204,'Conn Information'!$P$41:$U$65,6,FALSE)-1))","v":""},"See Assembly Database for respective breakdown of mapping"]
[{"$f":"Config!B46","v":0},{"$f":"IF(A209=0,\"\",VLOOKUP(A204,'Conn Information'!$P$41:$U$65,6,FALSE))","v":""},{"$f":"C204+1","v":40}]
[null,{"$f":"IF(A209=0,\"\",B209+1)","v":""},{"$f":"IF(A209=0,\"\",VLOOKUP($A209,'Conn Information'!$P$1:$T$65,2,FALSE))","v":""}]
[null,{"$f":"IF(A209=0,\"\",B210+1)","v":""},{"$f":"IF(A209=0,\"\",VLOOKUP($A209,'Conn Information'!$P$1:$T$65,5,FALSE))","v":""}]
[null,{"$f":"IF(A209=0,\"\",B211+1)","v":""},0]
[null,{"$f":"IF(A209=0,\"\",(B212+1)&\" to \"&(VLOOKUP(A209,'Conn Information'!$P$42:$U$65,6,FALSE)-1))","v":""},"See Assembly Database for respective breakdown of mapping"]
[{"$f":"Config!B47","v":0},{"$f":"IF(A214=0,\"\",VLOOKUP(A209,'Conn Information'!$P$42:$U$65,6,FALSE))","v":""},{"$f":"C209+1","v":41}]
[null,{"$f":"IF(A214=0,\"\",B214+1)","v":""},{"$f":"IF(A214=0,\"\",VLOOKUP($A214,'Conn Information'!$P$1:$T$65,2,FALSE))","v":""}]
[null,{"$f":"IF(A214=0,\"\",B215+1)","v":""},{"$f":"IF(A214=0,\"\",VLOOKUP($A214,'Conn Information'!$P$1:$T$65,5,FALSE))","v":""}]
[null,{"$f":"IF(A214=0,\"\",B216+1)","v":""},0]
[null,{"$f":"IF(A214=0,\"\",(B217+1)&\" to \"&(VLOOKUP(A214,'Conn Information'!$P$43:$U$65,6,FALSE)-1))","v":""},"See Assembly Database for respective breakdown of mapping"]
[{"$f":"Config!B48","v":0},{"$f":"IF(A219=0,\"\",VLOOKUP(A214,'Conn Information'!$P$43:$U$65,6,FALSE))","v":""},{"$f":"C214+1","v":42}]
[null,{"$f":"IF(A219=0,\"\",B219+1)","v":""},{"$f":"IF(A219=0,\"\",VLOOKUP($A219,'Conn Information'!$P$1:$T$65,2,FALSE))","v":""}]
[null,{"$f":"IF(A219=0,\"\",B220+1)","v":""},{"$f":"IF(A219=0,\"\",VLOOKUP($A219,'Conn Information'!$P$1:$T$65,5,FALSE))","v":""}]
[null,{"$f":"IF(A219=0,\"\",B221+1)","v":""},0]
[null,{"$f":"IF(A219=0,\"\",(B222+1)&\" to \"&(VLOOKUP(A219,'Conn Information'!$P$44:$U$65,6,FALSE)-1))","v":""},"See Assembly Database for respective breakdown of mapping"]
[{"$f":"Config!B49","v":0},{"$f":"IF(A224=0,\"\",VLOOKUP(A219,'Conn Information'!$P$44:$U$65,6,FALSE))","v":""},{"$f":"C219+1","v":43}]
[null,{"$f":"IF(A224=0,\"\",B224+1)","v":""},{"$f":"IF(A224=0,\"\",VLOOKUP($A224,'Conn Information'!$P$1:$T$65,2,FALSE))","v":""}]
[null,{"$f":"IF(A224=0,\"\",B225+1)","v":""},{"$f":"IF(A224=0,\"\",VLOOKUP($A224,'Conn Information'!$P$1:$T$65,5,FALSE))","v":""}]
[null,{"$f":"IF(A224=0,\"\",B226+1)","v":""},0]
[null,{"$f":"IF(A224=0,\"\",(B227+1)&\" to \"&(VLOOKUP(A224,'Conn Information'!$P$45:$U$65,6,FALSE)-1))","v":""},"See Assembly Database for respective breakdown of mapping"]
[{"$f":"Config!B50","v":0},{"$f":"IF(A229=0,\"\",VLOOKUP(A224,'Conn Information'!$P$45:$U$65,6,FALSE))","v":""},{"$f":"C224+1","v":44}]
[null,{"$f":"IF(A229=0,\"\",B229+1)","v":""},{"$f":"IF(A229=0,\"\",VLOOKUP($A229,'Conn Information'!$P$1:$T$65,2,FALSE))","v":""}]
[null,{"$f":"IF(A229=0,\"\",B230+1)","v":""},{"$f":"IF(A229=0,\"\",VLOOKUP($A229,'Conn Information'!$P$1:$T$65,5,FALSE))","v":""}]
[null,{"$f":"IF(A229=0,\"\",B231+1)","v":""},0]
[null,{"$f":"IF(A229=0,\"\",(B232+1)&\" to \"&(VLOOKUP(A229,'Conn Information'!$P$46:$U$65,6,FALSE)-1))","v":""},"See Assembly Database for respective breakdown of mapping"]
[{"$f":"Config!B51","v":0},{"$f":"IF(A234=0,\"\",VLOOKUP(A229,'Conn Information'!$P$46:$U$65,6,FALSE))","v":""},{"$f":"C229+1","v":45}]
[null,{"$f":"IF(A234=0,\"\",B234+1)","v":""},{"$f":"IF(A234=0,\"\",VLOOKUP($A234,'Conn Information'!$P$1:$T$65,2,FALSE))","v":""}]
[null,{"$f":"IF(A234=0,\"\",B235+1)","v":""},{"$f":"IF(A234=0,\"\",VLOOKUP($A234,'Conn Information'!$P$1:$T$65,5,FALSE))","v":""}]
[null,{"$f":"IF(A234=0,\"\",B236+1)","v":""},0]
[null,{"$f":"IF(A234=0,\"\",(B237+1)&\" to \"&(VLOOKUP(A234,'Conn Information'!$P$47:$U$65,6,FALSE)-1))","v":""},"See Assembly Database for respective breakdown of mapping"]
[{"$f":"Config!B52","v":0},{"$f":"IF(A239=0,\"\",VLOOKUP(A234,'Conn Information'!$P$47:$U$65,6,FALSE))","v":""},{"$f":"C234+1","v":46}]
[null,{"$f":"IF(A239=0,\"\",B239+1)","v":""},{"$f":"IF(A239=0,\"\",VLOOKUP($A239,'Conn Information'!$P$1:$T$65,2,FALSE))","v":""}]
[null,{"$f":"IF(A239=0,\"\",B240+1)","v":""},{"$f":"IF(A239=0,\"\",VLOOKUP($A239,'Conn Information'!$P$1:$T$65,5,FALSE))","v":""}]
[null,{"$f":"IF(A239=0,\"\",B241+1)","v":""},0]
[null,{"$f":"IF(A239=0,\"\",(B242+1)&\" to \"&(VLOOKUP(A239,'Conn Information'!$P$48:$U$65,6,FALSE)-1))","v":""},"See Assembly Database for respective breakdown of mapping"]
[{"$f":"Config!B53","v":0},{"$f":"IF(A244=0,\"\",VLOOKUP(A239,'Conn Information'!$P$48:$U$65,6,FALSE))","v":""},{"$f":"C239+1","v":47}]
[null,{"$f":"IF(A244=0,\"\",B244+1)","v":""},{"$f":"IF(A244=0,\"\",VLOOKUP($A244,'Conn Information'!$P$1:$T$65,2,FALSE))","v":""}]
[null,{"$f":"IF(A244=0,\"\",B245+1)","v":""},{"$f":"IF(A244=0,\"\",VLOOKUP($A244,'Conn Information'!$P$1:$T$65,5,FALSE))","v":""}]
[null,{"$f":"IF(A244=0,\"\",B246+1)","v":""},0]
[null,{"$f":"IF(A244=0,\"\",(B247+1)&\" to \"&(VLOOKUP(A244,'Conn Information'!$P$49:$U$65,6,FALSE)-1))","v":""},"See Assembly Database for respective breakdown of mapping"]
[{"$f":"Config!B54","v":0},{"$f":"IF(A249=0,\"\",VLOOKUP(A244,'Conn Information'!$P$49:$U$65,6,FALSE))","v":""},{"$f":"C244+1","v":48}]
[null,{"$f":"IF(A249=0,\"\",B249+1)","v":""},{"$f":"IF(A249=0,\"\",VLOOKUP($A249,'Conn Information'!$P$1:$T$65,2,FALSE))","v":""}]
[null,{"$f":"IF(A249=0,\"\",B250+1)","v":""},{"$f":"IF(A249=0,\"\",VLOOKUP($A249,'Conn Information'!$P$1:$T$65,5,FALSE))","v":""}]
[null,{"$f":"IF(A249=0,\"\",B251+1)","v":""},0]
[null,{"$f":"IF(A249=0,\"\",(B252+1)&\" to \"&(VLOOKUP(A249,'Conn Information'!$P$50:$U$65,6,FALSE)-1))","v":""},"See Assembly Database for respective breakdown of mapping"]
[{"$f":"Config!B55","v":0},{"$f":"IF(A254=0,\"\",VLOOKUP(A249,'Conn Information'!$P$50:$U$65,6,FALSE))","v":""},{"$f":"C249+1","v":49}]
[null,{"$f":"IF(A254=0,\"\",B254+1)","v":""},{"$f":"IF(A254=0,\"\",VLOOKUP($A254,'Conn Information'!$P$1:$T$65,2,FALSE))","v":""}]
[null,{"$f":"IF(A254=0,\"\",B255+1)","v":""},{"$f":"IF(A254=0,\"\",VLOOKUP($A254,'Conn Information'!$P$1:$T$65,5,FALSE))","v":""}]
[null,{"$f":"IF(A254=0,\"\",B256+1)","v":""},0]
[null,{"$f":"IF(A254=0,\"\",(B257+1)&\" to \"&(VLOOKUP(A254,'Conn Information'!$P$51:$U$65,6,FALSE)-1))","v":""},"See Assembly Database for respective breakdown of mapping"]
[{"$f":"Config!B56","v":0},{"$f":"IF(A259=0,\"\",VLOOKUP(A254,'Conn Information'!$P$51:$U$65,6,FALSE))","v":""},{"$f":"C254+1","v":50}]
[null,{"$f":"IF(A259=0,\"\",B259+1)","v":""},{"$f":"IF(A259=0,\"\",VLOOKUP($A259,'Conn Information'!$P$1:$T$65,2,FALSE))","v":""}]
[null,{"$f":"IF(A259=0,\"\",B260+1)","v":""},{"$f":"IF(A259=0,\"\",VLOOKUP($A259,'Conn Information'!$P$1:$T$65,5,FALSE))","v":""}]
[null,{"$f":"IF(A259=0,\"\",B261+1)","v":""},0]
[null,{"$f":"IF(A259=0,\"\",(B262+1)&\" to \"&(VLOOKUP(A259,'Conn Information'!$P$52:$U$65,6,FALSE)-1))","v":""},"See Assembly Database for respective breakdown of mapping"]
[{"$f":"Config!B57","v":0},{"$f":"IF(A264=0,\"\",VLOOKUP(A259,'Conn Information'!$P$52:$U$65,6,FALSE))","v":""},{"$f":"C259+1","v":51}]
[null,{"$f":"IF(A264=0,\"\",B264+1)","v":""},{"$f":"IF(A264=0,\"\",VLOOKUP($A264,'Conn Information'!$P$1:$T$65,2,FALSE))","v":""}]
[null,{"$f":"IF(A264=0,\"\",B265+1)","v":""},{"$f":"IF(A264=0,\"\",VLOOKUP($A264,'Conn Information'!$P$1:$T$65,5,FALSE))","v":""}]
[null,{"$f":"IF(A264=0,\"\",B266+1)","v":""},0]
[null,{"$f":"IF(A264=0,\"\",(B267+1)&\" to \"&(VLOOKUP(A264,'Conn Information'!$P$53:$U$65,6,FALSE)-1))","v":""},"See Assembly Database for respective breakdown of mapping"]
[{"$f":"Config!B58","v":0},{"$f":"IF(A269=0,\"\",VLOOKUP(A264,'Conn Information'!$P$53:$U$65,6,FALSE))","v":""},{"$f":"C264+1","v":52}]
[null,{"$f":"IF(A269=0,\"\",B269+1)","v":""},{"$f":"IF(A269=0,\"\",VLOOKUP($A269,'Conn Information'!$P$1:$T$65,2,FALSE))","v":""}]
[null,{"$f":"IF(A269=0,\"\",B270+1)","v":""},{"$f":"IF(A269=0,\"\",VLOOKUP($A269,'Conn Information'!$P$1:$T$65,5,FALSE))","v":""}]
[null,{"$f":"IF(A269=0,\"\",B271+1)","v":""},0]
[null,{"$f":"IF(A269=0,\"\",(B272+1)&\" to \"&(VLOOKUP(A269,'Conn Information'!$P$54:$U$65,6,FALSE)-1))","v":""},"See Assembly Database for respective breakdown of mapping"]
[{"$f":"Config!B59","v":0},{"$f":"IF(A274=0,\"\",VLOOKUP(A269,'Conn Information'!$P$54:$U$65,6,FALSE))","v":""},{"$f":"C269+1","v":53}]
[null,{"$f":"IF(A274=0,\"\",B274+1)","v":""},{"$f":"IF(A274=0,\"\",VLOOKUP($A274,'Conn Information'!$P$1:$T$65,2,FALSE))","v":""}]
[null,{"$f":"IF(A274=0,\"\",B275+1)","v":""},{"$f":"IF(A274=0,\"\",VLOOKUP($A274,'Conn Information'!$P$1:$T$65,5,FALSE))","v":""}]
[null,{"$f":"IF(A274=0,\"\",B276+1)","v":""},0]
[null,{"$f":"IF(A274=0,\"\",(B277+1)&\" to \"&(VLOOKUP(A274,'Conn Information'!$P$55:$U$65,6,FALSE)-1))","v":""},"See Assembly Database for respective breakdown of mapping"]
[{"$f":"Config!B60","v":0},{"$f":"IF(A279=0,\"\",VLOOKUP(A274,'Conn Information'!$P$55:$U$65,6,FALSE))","v":""},{"$f":"C274+1","v":54}]
[null,{"$f":"IF(A279=0,\"\",B279+1)","v":""},{"$f":"IF(A279=0,\"\",VLOOKUP($A279,'Conn Information'!$P$1:$T$65,2,FALSE))","v":""}]
[null,{"$f":"IF(A279=0,\"\",B280+1)","v":""},{"$f":"IF(A279=0,\"\",VLOOKUP($A279,'Conn Information'!$P$1:$T$65,5,FALSE))","v":""}]
[null,{"$f":"IF(A279=0,\"\",B281+1)","v":""},0]
[null,{"$f":"IF(A279=0,\"\",(B282+1)&\" to \"&(VLOOKUP(A279,'Conn Information'!$P$56:$U$65,6,FALSE)-1))","v":""},"See Assembly Database for respective breakdown of mapping"]
[{"$f":"Config!B61","v":0},{"$f":"IF(A284=0,\"\",VLOOKUP(A279,'Conn Information'!$P$56:$U$65,6,FALSE))","v":""},{"$f":"C279+1","v":55}]
[null,{"$f":"IF(A284=0,\"\",B284+1)","v":""},{"$f":"IF(A284=0,\"\",VLOOKUP($A284,'Conn Information'!$P$1:$T$65,2,FALSE))","v":""}]
[null,{"$f":"IF(A284=0,\"\",B285+1)","v":""},{"$f":"IF(A284=0,\"\",VLOOKUP($A284,'Conn Information'!$P$1:$T$65,5,FALSE))","v":""}]
[null,{"$f":"IF(A284=0,\"\",B286+1)","v":""},0]
[null,{"$f":"IF(A284=0,\"\",(B287+1)&\" to \"&(VLOOKUP(A284,'Conn Information'!$P$57:$U$65,6,FALSE)-1))","v":""},"See Assembly Database for respective breakdown of mapping"]
[{"$f":"Config!B62","v":0},{"$f":"IF(A289=0,\"\",VLOOKUP(A284,'Conn Information'!$P$57:$U$65,6,FALSE))","v":""},{"$f":"C284+1","v":56}]
[null,{"$f":"IF(A289=0,\"\",B289+1)","v":""},{"$f":"IF(A289=0,\"\",VLOOKUP($A289,'Conn Information'!$P$1:$T$65,2,FALSE))","v":""}]
[null,{"$f":"IF(A289=0,\"\",B290+1)","v":""},{"$f":"IF(A289=0,\"\",VLOOKUP($A289,'Conn Information'!$P$1:$T$65,5,FALSE))","v":""}]
[null,{"$f":"IF(A289=0,\"\",B291+1)","v":""},0]
[null,{"$f":"IF(A289=0,\"\",(B292+1)&\" to \"&(VLOOKUP(A289,'Conn Information'!$P$58:$U$65,6,FALSE)-1))","v":""},"See Assembly Database for respective breakdown of mapping"]
[{"$f":"Config!B63","v":0},{"$f":"IF(A294=0,\"\",VLOOKUP(A289,'Conn Information'!$P$58:$U$65,6,FALSE))","v":""},{"$f":"C289+1","v":57}]
[null,{"$f":"IF(A294=0,\"\",B294+1)","v":""},{"$f":"IF(A294=0,\"\",VLOOKUP($A294,'Conn Information'!$P$1:$T$65,2,FALSE))","v":""}]
[null,{"$f":"IF(A294=0,\"\",B295+1)","v":""},{"$f":"IF(A294=0,\"\",VLOOKUP($A294,'Conn Information'!$P$1:$T$65,5,FALSE))","v":""}]
[null,{"$f":"IF(A294=0,\"\",B296+1)","v":""},0]
[null,{"$f":"IF(A294=0,\"\",(B297+1)&\" to \"&(VLOOKUP(A294,'Conn Information'!$P$59:$U$65,6,FALSE)-1))","v":""},"See Assembly Database for respective breakdown of mapping"]
[{"$f":"Config!B64","v":0},{"$f":"IF(A299=0,\"\",VLOOKUP(A294,'Conn Information'!$P$59:$U$65,6,FALSE))","v":""},{"$f":"C294+1","v":58}]
[null,{"$f":"IF(A299=0,\"\",B299+1)","v":""},{"$f":"IF(A299=0,\"\",VLOOKUP($A299,'Conn Information'!$P$1:$T$65,2,FALSE))","v":""}]
[null,{"$f":"IF(A299=0,\"\",B300+1)","v":""},{"$f":"IF(A299=0,\"\",VLOOKUP($A299,'Conn Information'!$P$1:$T$65,5,FALSE))","v":""}]
[null,{"$f":"IF(A299=0,\"\",B301+1)","v":""},0]
[null,{"$f":"IF(A299=0,\"\",(B302+1)&\" to \"&(VLOOKUP(A299,'Conn Information'!$P$60:$U$65,6,FALSE)-1))","v":""},"See Assembly Database for respective breakdown of mapping"]
[{"$f":"Config!B65","v":0},{"$f":"IF(A304=0,\"\",VLOOKUP(A299,'Conn Information'!$P$60:$U$65,6,FALSE))","v":""},{"$f":"C299+1","v":59}]
[null,{"$f":"IF(A304=0,\"\",B304+1)","v":""},{"$f":"IF(A304=0,\"\",VLOOKUP($A304,'Conn Information'!$P$1:$T$65,2,FALSE))","v":""}]
[null,{"$f":"IF(A304=0,\"\",B305+1)","v":""},{"$f":"IF(A304=0,\"\",VLOOKUP($A304,'Conn Information'!$P$1:$T$65,5,FALSE))","v":""}]
[null,{"$f":"IF(A304=0,\"\",B306+1)","v":""},0]
[null,{"$f":"IF(A304=0,\"\",(B307+1)&\" to \"&(VLOOKUP(A304,'Conn Information'!$P$61:$U$65,6,FALSE)-1))","v":""},"See Assembly Database for respective breakdown of mapping"]
[{"$f":"Config!B66","v":0},{"$f":"IF(A309=0,\"\",VLOOKUP(A304,'Conn Information'!$P$61:$U$65,6,FALSE))","v":""},{"$f":"C304+1","v":60}]
[null,{"$f":"IF(A309=0,\"\",B309+1)","v":""},{"$f":"IF(A309=0,\"\",VLOOKUP($A309,'Conn Information'!$P$1:$T$65,2,FALSE))","v":""}]
[null,{"$f":"IF(A309=0,\"\",B310+1)","v":""},{"$f":"IF(A309=0,\"\",VLOOKUP($A309,'Conn Information'!$P$1:$T$65,5,FALSE))","v":""}]
[null,{"$f":"IF(A309=0,\"\",B311+1)","v":""},0]
[null,{"$f":"IF(A309=0,\"\",(B312+1)&\" to \"&(VLOOKUP(A309,'Conn Information'!$P$62:$U$65,6,FALSE)-1))","v":""},"See Assembly Database for respective breakdown of mapping"]
[{"$f":"Config!B67","v":0},{"$f":"IF(A314=0,\"\",VLOOKUP(A309,'Conn Information'!$P$62:$U$65,6,FALSE))","v":""},{"$f":"C309+1","v":61}]
[null,{"$f":"IF(A314=0,\"\",B314+1)","v":""},{"$f":"IF(A314=0,\"\",VLOOKUP($A314,'Conn Information'!$P$1:$T$65,2,FALSE))","v":""}]
[null,{"$f":"IF(A314=0,\"\",B315+1)","v":""},{"$f":"IF(A314=0,\"\",VLOOKUP($A314,'Conn Information'!$P$1:$T$65,5,FALSE))","v":""}]
[null,{"$f":"IF(A314=0,\"\",B316+1)","v":""},0]
[null,{"$f":"IF(A314=0,\"\",(B317+1)&\" to \"&(VLOOKUP(A314,'Conn Information'!$P$63:$U$65,6,FALSE)-1))","v":""},"See Assembly Database for respective breakdown of mapping"]
[{"$f":"Config!B68","v":0},{"$f":"IF(A319=0,\"\",VLOOKUP(A314,'Conn Information'!$P$63:$U$65,6,FALSE))","v":""},{"$f":"C314+1","v":62}]
[null,{"$f":"IF(A319=0,\"\",B319+1)","v":""},{"$f":"IF(A319=0,\"\",VLOOKUP($A319,'Conn Information'!$P$1:$T$65,2,FALSE))","v":""}]
[null,{"$f":"IF(A319=0,\"\",B320+1)","v":""},{"$f":"IF(A319=0,\"\",VLOOKUP($A319,'Conn Information'!$P$1:$T$65,5,FALSE))","v":""}]
[null,{"$f":"IF(A319=0,\"\",B321+1)","v":""},0]
[null,{"$f":"IF(A319=0,\"\",(B322+1)&\" to \"&(VLOOKUP(A319,'Conn Information'!$P$64:$U$65,6,FALSE)-1))","v":""},"See Assembly Database for respective breakdown of mapping"]
[{"$f":"Config!B69","v":0},{"$f":"IF(A324=0,\"\",VLOOKUP(A319,'Conn Information'!$P$64:$U$65,6,FALSE))","v":""},{"$f":"C319+1","v":63}]
[null,{"$f":"IF(A324=0,\"\",B324+1)","v":""},{"$f":"IF(A324=0,\"\",VLOOKUP($A324,'Conn Information'!$P$1:$T$65,2,FALSE))","v":""}]
[null,{"$f":"IF(A324=0,\"\",B325+1)","v":""},{"$f":"IF(A324=0,\"\",VLOOKUP($A324,'Conn Information'!$P$1:$T$65,5,FALSE))","v":""}]
[null,{"$f":"IF(A324=0,\"\",B326+1)","v":""},0]
[null,{"$f":"IF(A324=0,\"\",(B327+1)&\" to \"&(VLOOKUP(A324,'Conn Information'!$P$65:$U$65,6,FALSE)-1))","v":""},"See Assembly Database for respective breakdown of mapping"]

{"sheet":"Assembly database","index":2,"n_rows":925,"n_cols":38,"rows_kept":925,"cut":false,"hidden":false,"merged":[]}
[]
[]
[]
[null,"Config",null,null,null,null,null,null,null,null,null,null,null,null,null,null,null,"Input",null,null,null,null,null,null,null,null,null,null,"Output"]
[]
["Filter","Catalog","Instance","Byte","Bit 7","Bit 6","Bit 5","Bit 4","Bit 3","Bit 2","Bit 1","Bit 0","Default values","Datatype","Default","Valid Data Values",null,"Catalog","Byte","Bit 7","Bit 6","Bit 5","Bit 4","Bit 3","Bit 2","Bit 1","Bit 0",null,"Catalog","Byte","Bit 7","Bit 6","Bit 5","Bit 4","Bit 3","Bit 2","Bit 1","Bit 0"]
[{"$f":"OR(IFERROR(MATCH(\"IB2\",'Conn Information'!$N$3:$N$65,0),0),IFERROR(MATCH(\"IV2\",'Conn Information'!$N$3:$N$65,0),0),IFERROR(MATCH(\"IA2\",'Conn Information'!$N$3:$N$65,0),0),IFERROR(MATCH(\"IM2\",'Conn Information'!$N$3:$N$65,0),0))","v":false},"IB2, IV2, IA2 or IM2",103,0,"Input 0 Off to On Filter Low Byte",null,null,null,null,null,null,null,"-24","INT",1000,"-32,768…32,767 µs (0…65,535)",null,"IB2, IV2, IA2 or IM2",0,"Reserved",null,null,null,null,null,"CH 1","CH 0"]
[{"$f":"OR(IFERROR(MATCH(\"IB2\",'Conn Information'!$N$3:$N$65,0),0),IFERROR(MATCH(\"IV2\",'Conn Information'!$N$3:$N$65,0),0),IFERROR(MATCH(\"IA2\",'Conn Information'!$N$3:$N$65,0),0),IFERROR(MATCH(\"IM2\",'Conn Information'!$N$3:$N$65,0),0))","v":false},"IB2, IV2, IA2 or IM2",null,1,"Input 0 Off to On Filter High Byte",null,null,null,null,null,null,null,3]
[{"$f":"OR(IFERROR(MATCH(\"IB2\",'Conn Information'!$N$3:$N$65,0),0),IFERROR(MATCH(\"IV2\",'Conn Information'!$N$3:$N$65,0),0),IFERROR(MATCH(\"IA2\",'Conn Information'!$N$3:$N$65,0),0),IFERROR(MATCH(\"IM2\",'Conn Information'!$N$3:$N$65,0),0))","v":false},"IB2, IV2, IA2 or IM2",null,2,"Input 0 On to Off Filter Low Byte",null,null,null,null,null,null,null,"-24","INT",1000,"-32,768…32,767 µs (0…65,535)"]
[{"$f":"OR(IFERROR(MATCH(\"IB2\",'Conn Information'!$N$3:$N$65,0),0),IFERROR(MATCH(\"IV2\",'Conn Information'!$N$3:$N$65,0),0),IFERROR(MATCH(\"IA2\",'Conn Information'!$N$3:$N$65,0),0),IFERROR(MATCH(\"IM2\",'Conn Information'!$N$3:$N$65,0),0))","v":false},"IB2, IV2, IA2 or IM2",null,3,"Input 0 On to Off Filter High Byte",null,null,null,null,null,null,null,3]
[{"$f":"OR(IFERROR(MATCH(\"IB2\",'Conn Information'!$N$3:$N$65,0),0),IFERROR(MATCH(\"IV2\",'Conn Information'!$N$3:$N$65,0),0),IFERROR(MATCH(\"IA2\",'Conn Information'!$N$3:$N$65,0),0),IFERROR(MATCH(\"IM2\",'Conn Information'!$N$3:$N$65,0),0))","v":false},"IB2, IV2, IA2 or IM2",null,4,"Input 1 Off to On Filter Low Byte",null,null,null,null,null,null,null,"-24","INT",1000,"-32,768…32,767 µs (0…65,535)"]
[{"$f":"OR(IFERROR(MATCH(\"IB2\",'Conn Information'!$N$3:$N$65,0),0),IFERROR(MATCH(\"IV2\",'Conn Information'!$N$3:$N$65,0),0),IFERROR(MATCH(\"IA2\",'Conn Information'!$N$3:$N$65,0),0),IFERROR(MATCH(\"IM2\",'Conn Information'!$N$3:$N$65,0),0))","v":false},"IB2, IV2, IA2 or IM2",null,5,"Input 1 Off to On Filter High Byte",null,null,null,null,null,null,null,3]
[{"$f":"OR(IFERROR(MATCH(\"IB2\",'Conn Information'!$N$3:$N$65,0),0),IFERROR(MATCH(\"IV2\",'Conn Information'!$N$3:$N$65,0),0),IFERROR(MATCH(\"IA2\",'Conn Information'!$N$3:$N$65,0),0),IFERROR(MATCH(\"IM2\",'Conn Information'!$N$3:$N$65,0),0))","v":false},"IB2, IV2, IA2 or IM2",null,6,"Input 1 On to Off Filter Low Byte",null,null,null,null,null,null,null,"-24","INT",1000,"-32,768…32,767 µs (0…65,535)"]
[{"$f":"OR(IFERROR(MATCH(\"IB2\",'Conn Information'!$N$3:$N$65,0),0),IFERROR(MATCH(\"IV2\",'Conn Information'!$N$3:$N$65,0),0),IFERROR(MATCH(\"IA2\",'Conn Information'!$N$3:$N$65,0),0),IFERROR(MATCH(\"IM2\",'Conn Information'!$N$3:$N$65,0),0))","v":false},"IB2, IV2, IA2 or IM2",null,7,"Input 1 On to Off Filter High Byte",null,null,null,null,null,null,null,3]
[{"$f":"OR(IFERROR(MATCH(\"IB4\",'Conn Information'!$N$3:$N$65,0),0),IFERROR(MATCH(\"IV4\",'Conn Information'!$N$3:$N$65,0),0),IFERROR(MATCH(\"IA4\",'Conn Information'!$N$3:$N$65,0),0),IFERROR(MATCH(\"IM4\",'Conn Information'!$N$3:$N$65,0),0))","v":false},"IB4, IV4, IA4 or IM4",103,0,"Input 0 Off to On Filter Low Byte",null,null,null,null,null,null,null,"-24","INT",1000,"-32,768…32,767 µs (0…65,535)",null,"IB4, IV4, IA4 or IM4",0,"Reserved",null,null,null,"CH 3","CH 2","CH 1","CH 0"]
[{"$f":"OR(IFERROR(MATCH(\"IB4\",'Conn Information'!$N$3:$N$65,0),0),IFERROR(MATCH(\"IV4\",'Conn Information'!$N$3:$N$65,0),0),IFERROR(MATCH(\"IA4\",'Conn Information'!$N$3:$N$65,0),0),IFERROR(MATCH(\"IM4\",'Conn Information'!$N$3:$N$65,0),0))","v":false},"IB4, IV4, IA4 or IM4",null,1,"Input 0 Off to On Filter High Byte",null,null,null,null,null,null,null,3]
[{"$f":"OR(IFERROR(MATCH(\"IB4\",'Conn Information'!$N$3:$N$65,0),0),IFERROR(MATCH(\"IV4\",'Conn Information'!$N$3:$N$65,0),0),IFERROR(MATCH(\"IA4\",'Conn Information'!$N$3:$N$65,0),0),IFERROR(MATCH(\"IM4\",'Conn Information'!$N$3:$N$65,0),0))","v":false},"IB4, IV4, IA4 or IM4",null,2,"Input 0 On to Off Filter Low Byte",null,null,null,null,null,null,null,"-24","INT",1000,"-32,768…32,767 µs (0…65,535)"]
[{"$f":"OR(IFERROR(MATCH(\"IB4\",'Conn Information'!$N$3:$N$65,0),0),IFERROR(MATCH(\"IV4\",'Conn Information'!$N$3:$N$65,0),0),IFERROR(MATCH(\"IA4\",'Conn Information'!$N$3:$N$65,0),0),IFERROR(MATCH(\"IM4\",'Conn Information'!$N$3:$N$65,0),0))","v":false},"IB4, IV4, IA4 or IM4",null,3,"Input 0 On to Off Filter High Byte",null,null,null,null,null,null,null,3]
[{"$f":"OR(IFERROR(MATCH(\"IB4\",'Conn Information'!$N$3:$N$65,0),0),IFERROR(MATCH(\"IV4\",'Conn Information'!$N$3:$N$65,0),0),IFERROR(MATCH(\"IA4\",'Conn Information'!$N$3:$N$65,0),0),IFERROR(MATCH(\"IM4\",'Conn Information'!$N$3:$N$65,0),0))","v":false},"IB4, IV4, IA4 or IM4",null,4,"Input 1 Off to On Filter Low Byte",null,null,null,null,null,null,null,"-24","INT",1000,"-32,768…32,767 µs (0…65,535)"]
[{"$f":"OR(IFERROR(MATCH(\"IB4\",'Conn Information'!$N$3:$N$65,0),0),IFERROR(MATCH(\"IV4\",'Conn Information'!$N$3:$N$65,0),0),IFERROR(MATCH(\"IA4\",'Conn Information'!$N$3:$N$65,0),0),IFERROR(MATCH(\"IM4\",'Conn Information'!$N$3:$N$65,0),0))","v":false},"IB4, IV4, IA4 or IM4",null,5,"Input 1 Off to On Filter High Byte",null,null,null,null,null,null,null,3]
[{"$f":"OR(IFERROR(MATCH(\"IB4\",'Conn Information'!$N$3:$N$65,0),0),IFERROR(MATCH(\"IV4\",'Conn Information'!$N$3:$N$65,0),0),IFERROR(MATCH(\"IA4\",'Conn Information'!$N$3:$N$65,0),0),IFERROR(MATCH(\"IM4\",'Conn Information'!$N$3:$N$65,0),0))","v":false},"IB4, IV4, IA4 or IM4",null,6,"Input 1 On to Off Filter Low Byte",null,null,null,null,null,null,null,"-24","INT",1000,"-32,768…32,767 µs (0…65,535)"]
[{"$f":"OR(IFERROR(MATCH(\"IB4\",'Conn Information'!$N$3:$N$65,0),0),IFERROR(MATCH(\"IV4\",'Conn Information'!$N$3:$N$65,0),0),IFERROR(MATCH(\"IA4\",'Conn Information'!$N$3:$N$65,0),0),IFERROR(MATCH(\"IM4\",'Conn Information'!$N$3:$N$65,0),0))","v":false},"IB4, IV4, IA4 or IM4",null,7,"Input 1 On to Off Filter High Byte",null,null,null,null,null,null,null,3]
[{"$f":"OR(IFERROR(MATCH(\"IB4\",'Conn Information'!$N$3:$N$65,0),0),IFERROR(MATCH(\"IV4\",'Conn Information'!$N$3:$N$65,0),0),IFERROR(MATCH(\"IA4\",'Conn Information'!$N$3:$N$65,0),0),IFERROR(MATCH(\"IM4\",'Conn Information'!$N$3:$N$65,0),0))","v":false},"IB4, IV4, IA4 or IM4",null,8,"Input 2 Off to On Filter Low Byte",null,null,null,null,null,null,null,"-24","INT",1000,"-32,768…32,767 µs (0…65,535)"]
[{"$f":"OR(IFERROR(MATCH(\"IB4\",'Conn Information'!$N$3:$N$65,0),0),IFERROR(MATCH(\"IV4\",'Conn Information'!$N$3:$N$65,0),0),IFERROR(MATCH(\"IA4\",'Conn Information'!$N$3:$N$65,0),0),IFERROR(MATCH(\"IM4\",'Conn Information'!$N$3:$N$65,0),0))","v":false},"IB4, IV4, IA4 or IM4",null,9,"Input 2 Off to On Filter High Byte",null,null,null,null,null,null,null,3]
[{"$f":"OR(IFERROR(MATCH(\"IB4\",'Conn Information'!$N$3:$N$65,0),0),IFERROR(MATCH(\"IV4\",'Conn Information'!$N$3:$N$65,0),0),IFERROR(MATCH(\"IA4\",'Conn Information'!$N$3:$N$65,0),0),IFERROR(MATCH(\"IM4\",'Conn Information'!$N$3:$N$65,0),0))","v":false},"IB4, IV4, IA4 or IM4",null,10,"Input 2 On to Off Filter Low Byte",null,null,null,null,null,null,null,"-24","INT",1000,"-32,768…32,767 µs (0…65,535)"]
[{"$f":"OR(IFERROR(MATCH(\"IB4\",'Conn Information'!$N$3:$N$65,0),0),IFERROR(MATCH(\"IV4\",'Conn Information'!$N$3:$N$65,0),0),IFERROR(MATCH(\"IA4\",'Conn Information'!$N$3:$N$65,0),0),IFERROR(MATCH(\"IM4\",'Conn Information'!$N$3:$N$65,0),0))","v":false},"IB4, IV4, IA4 or IM4",null,11,"Input 2 On to Off Filter High Byte",null,null,null,null,null,null,null,3]
[{"$f":"OR(IFERROR(MATCH(\"IB4\",'Conn Information'!$N$3:$N$65,0),0),IFERROR(MATCH(\"IV4\",'Conn Information'!$N$3:$N$65,0),0),IFERROR(MATCH(\"IA4\",'Conn Information'!$N$3:$N$65,0),0),IFERROR(MATCH(\"IM4\",'Conn Information'!$N$3:$N$65,0),0))","v":false},"IB4, IV4, IA4 or IM4",null,12,"Input 3 Off to On Filter Low Byte",null,null,null,null,null,null,null,"-24","INT",1000,"-32,768…32,767 µs (0…65,535)"]
[{"$f":"OR(IFERROR(MATCH(\"IB4\",'Conn Information'!$N$3:$N$65,0),0),IFERROR(MATCH(\"IV4\",'Conn Information'!$N$3:$N$65,0),0),IFERROR(MATCH(\"IA4\",'Conn Information'!$N$3:$N$65,0),0),IFERROR(MATCH(\"IM4\",'Conn Information'!$N$3:$N$65,0),0))","v":false},"IB4, IV4, IA4 or IM4",null,13,"Input 3 Off to On Filter High Byte",null,null,null,null,null,null,null,3]
[{"$f":"OR(IFERROR(MATCH(\"IB4\",'Conn Information'!$N$3:$N$65,0),0),IFERROR(MATCH(\"IV4\",'Conn Information'!$N$3:$N$65,0),0),IFERROR(MATCH(\"IA4\",'Conn Information'!$N$3:$N$65,0),0),IFERROR(MATCH(\"IM4\",'Conn Information'!$N$3:$N$65,0),0))","v":false},"IB4, IV4, IA4 or IM4",null,14,"Input 3 On to Off Filter Low Byte",null,null,null,null,null,null,null,"-24","INT",1000,"-32,768…32,767 µs (0…65,535)"]
[{"$f":"OR(IFERROR(MATCH(\"IB4\",'Conn Information'!$N$3:$N$65,0),0),IFERROR(MATCH(\"IV4\",'Conn Information'!$N$3:$N$65,0),0),IFERROR(MATCH(\"IA4\",'Conn Information'!$N$3:$N$65,0),0),IFERROR(MATCH(\"IM4\",'Conn Information'!$N$3:$N$65,0),0))","v":false},"IB4, IV4, IA4 or IM4",null,15,"Input 3 On to Off Filter High Byte",null,null,null,null,null,null,null,3]
[{"$f":"OR(IFERROR(MATCH(\"IB8\",'Conn Information'!$N$3:$N$65,0),0),IFERROR(MATCH(\"IV8\",'Conn Information'!$N$3:$N$65,0),0))","v":false},"IB8, IV8",103,0,"Input 0 Off to On Filter Low Byte",null,null,null,null,null,null,null,"-24","INT",1000,"-32,768…32,767 µs (0…65,535)",null,"IB8, IV8",0,"CH 7","CH 6","CH 5","CH 4","CH 3","CH 2","CH 1","CH 0"]
[{"$f":"OR(IFERROR(MATCH(\"IB8\",'Conn Information'!$N$3:$N$65,0),0),IFERROR(MATCH(\"IV8\",'Conn Information'!$N$3:$N$65,0),0))","v":false},"IB8, IV8",null,1,"Input 0 Off to On Filter High Byte",null,null,null,null,null,null,null,3]
[{"$f":"OR(IFERROR(MATCH(\"IB8\",'Conn Information'!$N$3:$N$65,0),0),IFERROR(MATCH(\"IV8\",'Conn Information'!$N$3:$N$65,0),0))","v":false},"IB8, IV8",null,2,"Input 0 On to Off Filter Low Byte",null,null,null,null,null,null,null,"-24","INT",1000,"-32,768…32,767 µs (0…65,535)"]
[{"$f":"OR(IFERROR(MATCH(\"IB8\",'Conn Information'!$N$3:$N$65,0),0),IFERROR(MATCH(\"IV8\",'Conn Information'!$N$3:$N$65,0),0))","v":false},"IB8, IV8",null,3,"Input 0 On to Off Filter High Byte",null,null,null,null,null,null,null,3]
[{"$f":"OR(IFERROR(MATCH(\"IB8\",'Conn Information'!$N$3:$N$65,0),0),IFERROR(MATCH(\"IV8\",'Conn Information'!$N$3:$N$65,0),0))","v":false},"IB8, IV8",null,4,"Input 1 Off to On Filter Low Byte",null,null,null,null,null,null,null,"-24","INT",1000,"-32,768…32,767 µs (0…65,535)"]
[{"$f":"OR(IFERROR(MATCH(\"IB8\",'Conn Information'!$N$3:$N$65,0),0),IFERROR(MATCH(\"IV8\",'Conn Information'!$N$3:$N$65,0),0))","v":false},"IB8, IV8",null,5,"Input 1 Off to On Filter High Byte",null,null,null,null,null,null,null,3]
[{"$f":"OR(IFERROR(MATCH(\"IB8\",'Conn Information'!$N$3:$N$65,0),0),IFERROR(MATCH(\"IV8\",'Conn Information'!$N$3:$N$65,0),0))","v":false},"IB8, IV8",null,6,"Input 1 On to Off Filter Low Byte",null,null,null,null,null,null,null,"-24","INT",1000,"-32,768…32,767 µs (0…65,535)"]
[{"$f":"OR(IFERROR(MATCH(\"IB8\",'Conn Information'!$N$3:$N$65,0),0),IFERROR(MATCH(\"IV8\",'Conn Information'!$N$3:$N$65,0),0))","v":false},"IB8, IV8",null,7,"Input 1 On to Off Filter High Byte",null,null,null,null,null,null,null,3]
[{"$f":"OR(IFERROR(MATCH(\"IB8\",'Conn Information'!$N$3:$N$65,0),0),IFERROR(MATCH(\"IV8\",'Conn Information'!$N$3:$N$65,0),0))","v":false},"IB8, IV8",null,8,"Input 2 Off to On Filter Low Byte",null,null,null,null,null,null,null,"-24","INT",1000,"-32,768…32,767 µs (0…65,535)"]
[{"$f":"OR(IFERROR(MATCH(\"IB8\",'Conn Information'!$N$3:$N$65,0),0),IFERROR(MATCH(\"IV8\",'Conn Information'!$N$3:$N$65,0),0))","v":false},"IB8, IV8",null,9,"Input 2 Off to On Filter High Byte",null,null,null,null,null,null,null,3]
[{"$f":"OR(IFERROR(MATCH(\"IB8\",'Conn Information'!$N$3:$N$65,0),0),IFERROR(MATCH(\"IV8\",'Conn Information'!$N$3:$N$65,0),0))","v":false},"IB8, IV8",null,10,"Input 2 On to Off Filter Low Byte",null,null,null,null,null,null,null,"-24","INT",1000,"-32,768…32,767 µs (0…65,535)"]
[{"$f":"OR(IFERROR(MATCH(\"IB8\",'Conn Information'!$N$3:$N$65,0),0),IFERROR(MATCH(\"IV8\",'Conn Information'!$N$3:$N$65,0),0))","v":false},"IB8, IV8",null,11,"Input 2 On to Off Filter High Byte",null,null,null,null,null,null,null,3]
[{"$f":"OR(IFERROR(MATCH(\"IB8\",'Conn Information'!$N$3:$N$65,0),0),IFERROR(MATCH(\"IV8\",'Conn Information'!$N$3:$N$65,0),0))","v":false},"IB8, IV8",null,12,"Input 3 Off to On Filter Low Byte",null,null,null,null,null,null,null,"-24","INT",1000,"-32,768…32,767 µs (0…65,535)"]
[{"$f":"OR(IFERROR(MATCH(\"IB8\",'Conn Information'!$N$3:$N$65,0),0),IFERROR(MATCH(\"IV8\",'Conn Information'!$N$3:$N$65,0),0))","v":false},"IB8, IV8",null,13,"Input 3 Off to On Filter High Byte",null,null,null,null,null,null,null,3]
[{"$f":"OR(IFERROR(MATCH(\"IB8\",'Conn Information'!$N$3:$N$65,0),0),IFERROR(MATCH(\"IV8\",'Conn Information'!$N$3:$N$65,0),0))","v":false},"IB8, IV8",null,14,"Input 3 On to Off Filter Low Byte",null,null,null,null,null,null,null,"-24","INT",1000,"-32,768…32,767 µs (0…65,535)"]
[{"$f":"OR(IFERROR(MATCH(\"IB8\",'Conn Information'!$N$3:$N$65,0),0),IFERROR(MATCH(\"IV8\",'Conn Information'!$N$3:$N$65,0),0))","v":false},"IB8, IV8",null,15,"Input 3 On to Off Filter High Byte",null,null,null,null,null,null,null,3]
[{"$f":"OR(IFERROR(MATCH(\"IB8\",'Conn Information'!$N$3:$N$65,0),0),IFERROR(MATCH(\"IV8\",'Conn Information'!$N$3:$N$65,0),0))","v":false},"IB8, IV8",null,16,"Input 4 Off to On Filter Low Byte",null,null,null,null,null,null,null,"-24","INT",1000,"-32,768…32,767 µs (0…65,535)"]
[{"$f":"OR(IFERROR(MATCH(\"IB8\",'Conn Information'!$N$3:$N$65,0),0),IFERROR(MATCH(\"IV8\",'Conn Information'!$N$3:$N$65,0),0))","v":false},"IB8, IV8",null,17,"Input 4 Off to On Filter High Byte",null,null,null,null,null,null,null,3]
[{"$f":"OR(IFERROR(MATCH(\"IB8\",'Conn Information'!$N$3:$N$65,0),0),IFERROR(MATCH(\"IV8\",'Conn Information'!$N$3:$N$65,0),0))","v":false},"IB8, IV8",null,18,"Input 4 On to Off Filter Low Byte",null,null,null,null,null,null,null,"-24","INT",1000,"-32,768…32,767 µs (0…65,535)"]
[{"$f":"OR(IFERROR(MATCH(\"IB8\",'Conn Information'!$N$3:$N$65,0),0),IFERROR(MATCH(\"IV8\",'Conn Information'!$N$3:$N$65,0),0))","v":false},"IB8, IV8",null,19,"Input 4 On to Off Filter High Byte",null,null,null,null,null,null,null,3]
[{"$f":"OR(IFERROR(MATCH(\"IB8\",'Conn Information'!$N$3:$N$65,0),0),IFERROR(MATCH(\"IV8\",'Conn Information'!$N$3:$N$65,0),0))","v":false},"IB8, IV8",null,20,"Input 5 Off to On Filter Low Byte",null,null,null,null,null,null,null,"-24","INT",1000,"-32,768…32,767 µs (0…65,535)"]
[{"$f":"OR(IFERROR(MATCH(\"IB8\",'Conn Information'!$N$3:$N$65,0),0),IFERROR(MATCH(\"IV8\",'Conn Information'!$N$3:$N$65,0),0))","v":false},"IB8, IV8",null,21,"Input 5 Off to On Filter High Byte",null,null,null,null,null,null,null,3]
[{"$f":"OR(IFERROR(MATCH(\"IB8\",'Conn Information'!$N$3:$N$65,0),0),IFERROR(MATCH(\"IV8\",'Conn Information'!$N$3:$N$65,0),0))","v":false},"IB8, IV8",null,22,"Input 5 On to Off Filter Low Byte",null,null,null,null,null,null,null,"-24","INT",1000,"-32,768…32,767 µs (0…65,535)"]
[{"$f":"OR(IFERROR(MATCH(\"IB8\",'Conn Information'!$N$3:$N$65,0),0),IFERROR(MATCH(\"IV8\",'Conn Information'!$N$3:$N$65,0),0))","v":false},"IB8, IV8",null,23,"Input 5 On to Off Filter High Byte",null,null,null,null,null,null,null,3]
[{"$f":"OR(IFERROR(MATCH(\"IB8\",'Conn Information'!$N$3:$N$65,0),0),IFERROR(MATCH(\"IV8\",'Conn Information'!$N$3:$N$65,0),0))","v":false},"IB8, IV8",null,24,"Input 6 Off to On Filter Low Byte",null,null,null,null,null,null,null,"-24","INT",1000,"-32,768…32,767 µs (0…65,535)"]
[{"$f":"OR(IFERROR(MATCH(\"IB8\",'Conn Information'!$N$3:$N$65,0),0),IFERROR(MATCH(\"IV8\",'Conn Information'!$N$3:$N$65,0),0))","v":false},"IB8, IV8",null,25,"Input 6 Off to On Filter High Byte",null,null,null,null,null,null,null,3]
[{"$f":"OR(IFERROR(MATCH(\"IB8\",'Conn Information'!$N$3:$N$65,0),0),IFERROR(MATCH(\"IV8\",'Conn Information'!$N$3:$N$65,0),0))","v":false},"IB8, IV8",null,26,"Input 6 On to Off Filter Low Byte",null,null,null,null,null,null,null,"-24","INT",1000,"-32,768…32,767 µs (0…65,535)"]
[{"$f":"OR(IFERROR(MATCH(\"IB8\",'Conn Information'!$N$3:$N$65,0),0),IFERROR(MATCH(\"IV8\",'Conn Information'!$N$3:$N$65,0),0))","v":false},"IB8, IV8",null,27,"Input 6 On to Off Filter High Byte",null,null,null,null,null,null,null,3]
[{"$f":"OR(IFERROR(MATCH(\"IB8\",'Conn Information'!$N$3:$N$65,0),0),IFERROR(MATCH(\"IV8\",'Conn Information'!$N$3:$N$65,0),0))","v":false},"IB8, IV8",null,28,"Input 7 Off to On Filter Low Byte",null,null,null,null,null,null,null,"-24","INT",1000,"-32,768…32,767 µs (0…65,535)"]
[{"$f":"OR(IFERROR(MATCH(\"IB8\",'Conn Information'!$N$3:$N$65,0),0),IFERROR(MATCH(\"IV8\",'Conn Information'!$N$3:$N$65,0),0))","v":false},"IB8, IV8",null,29,"Input 7 Off to On Filter High Byte",null,null,null,null,null,null,null,3]
[{"$f":"OR(IFERROR(MATCH(\"IB8\",'Conn Information'!$N$3:$N$65,0),0),IFERROR(MATCH(\"IV8\",'Conn Information'!$N$3:$N$65,0),0))","v":false},"IB8, IV8",null,30,"Input 7 On to Off Filter Low Byte",null,null,null,null,null,null,null,"-24","INT",1000,"-32,768…32,767 µs (0…65,535)"]
[{"$f":"OR(IFERROR(MATCH(\"IB8\",'Conn Information'!$N$3:$N$65,0),0),IFERROR(MATCH(\"IV8\",'Conn Information'!$N$3:$N$65,0),0))","v":false},"IB8, IV8",null,31,"Input 7 On to Off Filter High Byte",null,null,null,null,null,null,null,3]
[{"$f":"OR(IFERROR(MATCH(\"OB2E\",'Conn Information'!$N$3:$N$65,0),0),IFERROR(MATCH(\"OV2E,'Conn Information'!$N$3:$N$65,0),0),IFERROR(MATCH(\"\"OB2EP\",'Conn Information'!$N$3:$N$65,0),0))","v":false},"OB2E, OV2E, OB2EP",123,0,"Reserved",null,null,null,null,null,"Fault State 1","Fault State 0",0,"SINT, Bit",0,"0 = Fault Value\n1 = Hold Last State",null,"OB2E, OV2E, OB2EP",0,"Reserved",null,null,null,null,null,"CH 1","CH 0",null,"OB2E, OV2E, OB2EP",0,"Reserved",null,null,null,null,null,"CH 1","CH 0"]
[{"$f":"OR(IFERROR(MATCH(\"OB2E\",'Conn Information'!$N$3:$N$65,0),0),IFERROR(MATCH(\"OV2E,'Conn Information'!$N$3:$N$65,0),0),IFERROR(MATCH(\"\"OB2EP\",'Conn Information'!$N$3:$N$65,0),0))","v":false},"OB2E, OV2E, OB2EP",null,1,"Reserved",null,null,null,null,null,"Fault Value 1","Fault Value 0",0,"SINT, Bit",0,"0 = OFF\n1 = ON"]
[{"$f":"OR(IFERROR(MATCH(\"OB2E\",'Conn Information'!$N$3:$N$65,0),0),IFERROR(MATCH(\"OV2E,'Conn Information'!$N$3:$N$65,0),0),IFERROR(MATCH(\"\"OB2EP\",'Conn Information'!$N$3:$N$65,0),0))","v":false},"OB2E, OV2E, OB2EP",null,2,"Reserved",null,null,null,null,null,"Idle State 1","Idle State 0",0,"SINT, Bit",0,"0 = Program Mode\n1 = Hold Last State"]
[{"$f":"OR(IFERROR(MATCH(\"OB2E\",'Conn Information'!$N$3:$N$65,0),0),IFERROR(MATCH(\"OV2E,'Conn Information'!$N$3:$N$65,0),0),IFERROR(MATCH(\"\"OB2EP\",'Conn Information'!$N$3:$N$65,0),0))","v":false},"OB2E, OV2E, OB2EP",null,3,"Reserved",null,null,null,null,null,"Idle Value 1","Idle Value 0",0,"SINT, Bit",0,"0 = OFF\n1 = ON"]
[{"$f":"OR(IFERROR(MATCH(\"OB2E\",'Conn Information'!$N$3:$N$65,0),0),IFERROR(MATCH(\"OV2E,'Conn Information'!$N$3:$N$65,0),0),IFERROR(MATCH(\"\"OB2EP\",'Conn Information'!$N$3:$N$65,0),0))","v":false},"OB2E, OV2E, OB2EP",null,4,"Reserved",null,null,null,null,null,"Enable No Load 1","Enable No Load 0",1,"SINT, Bit",1,"0 = Disabled\n1 = Enabled"]
[{"$f":"OR(IFERROR(MATCH(\"OB2E\",'Conn Information'!$N$3:$N$65,0),0),IFERROR(MATCH(\"OV2E,'Conn Information'!$N$3:$N$65,0),0),IFERROR(MATCH(\"\"OB2EP\",'Conn Information'!$N$3:$N$65,0),0))","v":false},"OB2E, OV2E, OB2EP",null,5,"Reserved",null,null,null,null,null,"Reset mode 1","Reset mode 0",0,"SINT, Bit",0,"0 = Latch Off\n1 = Auto Retry"]
[{"$f":"OR(IFERROR(MATCH(\"OB2E\",'Conn Information'!$N$3:$N$65,0),0),IFERROR(MATCH(\"OV2E,'Conn Information'!$N$3:$N$65,0),0),IFERROR(MATCH(\"\"OB2EP\",'Conn Information'!$N$3:$N$65,0),0))","v":false},"OB2E, OV2E, OB2EP",null,6,"Reserved",null,null,null,null,null,"Enable Latched Alarms 1","Enable Latched Alarms 0",0,"SINT, Bit",0,"0 = No Latching\n1 = Alarms Latch"]
[{"$f":"OR(IFERROR(MATCH(\"OB2E\",'Conn Information'!$N$3:$N$65,0),0),IFERROR(MATCH(\"OV2E,'Conn Information'!$N$3:$N$65,0),0),IFERROR(MATCH(\"\"OB2EP\",'Conn Information'!$N$3:$N$65,0),0))","v":false},"OB2E, OV2E, OB2EP",null,7,"Pad",null,null,null,null,null,null,null,0,"SINT, Bit",0]
[{"$f":"OR(IFERROR(MATCH(\"OB2\",'Conn Information'!$N$3:$N$65,0),0),0)","v":false},"OB2",123,0,"Reserved",null,null,null,null,null,"Fault State 1","Fault State 0",0,"SINT, Bit",0,"0 = Fault Value\n1 = Hold Last State",null,"OB2",0,"Reserved",null,null,null,null,null,null,null,null,"OB2",0,"Reserved",null,null,null,null,null,"CH 1","CH 0"]
[{"$f":"OR(IFERROR(MATCH(\"OB2\",'Conn Information'!$N$3:$N$65,0),0),0)","v":false},"OB2",null,1,"Reserved",null,null,null,null,null,"Fault Value 1","Fault Value 0",0,"SINT, Bit",0,"0 = OFF\n1 = ON"]
[{"$f":"OR(IFERROR(MATCH(\"OB2\",'Conn Information'!$N$3:$N$65,0),0),0)","v":false},"OB2",null,2,"Reserved",null,null,null,null,null,"Idle State 1","Idle State 0",0,"SINT, Bit",0,"0 = Program Mode\n1 = Hold Last State"]
[{"$f":"OR(IFERROR(MATCH(\"OB2\",'Conn Information'!$N$3:$N$65,0),0),0)","v":false},"OB2",null,3,"Reserved",null,null,null,null,null,"Idle Value 1","Idle Value 0",0,"SINT, Bit",0,"0 = OFF\n1 = ON"]
[{"$f":"OR(IFERROR(MATCH(\"OB2\",'Conn Information'!$N$3:$N$65,0),0),0)","v":false},"OB2",null,4,"Reserved (Set to 0)",null,null,null,null,null,null,null,0,"SINT, Bit",0]
[{"$f":"OR(IFERROR(MATCH(\"OB2\",'Conn Information'!$N$3:$N$65,0),0),0)","v":false},"OB2",null,5,"Reserved (Set to 0)",null,null,null,null,null,null,null,0,"SINT, Bit",0]
[{"$f":"OR(IFERROR(MATCH(\"OB2\",'Conn Information'!$N$3:$N$65,0),0),0)","v":false},"OB2",null,6,"Reserved (Set to 0)",null,null,null,null,null,null,null,0,"SINT, Bit",0]
[{"$f":"OR(IFERROR(MATCH(\"OB2\",'Conn Information'!$N$3:$N$65,0),0),0)","v":false},"OB2",null,7,"Pad",null,null,null,null,null,null,null,0,"SINT, Bit",0]
[{"$f":"OR(IFERROR(MATCH(\"OB4E\",'Conn Information'!$N$3:$N$65,0),0),IFERROR(MATCH(\"OV4E\",'Conn Information'!$N$3:$N$65,0),0))","v":false},"OB4E, OV4E",123,0,"Reserved",null,null,null,"Fault State 3","Fault State 2","Fault State 1","Fault State 0",0,"SINT, Bit",0,"0 = Fault Value\n1 = Hold Last State",null,"OB4E, OV4E",0,"Reserved",null,null,null,null,null,null,null,null,"OB4E, OV4E",0,"Reserved",null,null,null,"CH 3","CH 2","CH 1","CH 0"]
[{"$f":"OR(IFERROR(MATCH(\"OB4E\",'Conn Information'!$N$3:$N$65,0),0),IFERROR(MATCH(\"OV4E\",'Conn Information'!$N$3:$N$65,0),0))","v":false},"OB4E, OV4E",null,1,"Reserved",null,null,null,"Fault Value 3","Fault Value 2","Fault Value 1","Fault Value 0",0,"SINT, Bit",0,"0 = OFF\n1 = ON"]
[{"$f":"OR(IFERROR(MATCH(\"OB4E\",'Conn Information'!$N$3:$N$65,0),0),IFERROR(MATCH(\"OV4E\",'Conn Information'!$N$3:$N$65,0),0))","v":false},"OB4E, OV4E",null,2,"Reserved",null,null,null,"Idle State 3","Idle State 2","Idle State 1","Idle State 0",0,"SINT, Bit",0,"0 = Program Mode\n1 = Hold Last State"]
[{"$f":"OR(IFERROR(MATCH(\"OB4E\",'Conn Information'!$N$3:$N$65,0),0),IFERROR(MATCH(\"OV4E\",'Conn Information'!$N$3:$N$65,0),0))","v":false},"OB4E, OV4E",null,3,"Reserved",null,null,null,"Idle Value 3","Idle Value 2","Idle Value 1","Idle Value 0",0,"SINT, Bit",0,"0 = OFF\n1 = ON"]
[{"$f":"OR(IFERROR(MATCH(\"OB4E\",'Conn Information'!$N$3:$N$65,0),0),IFERROR(MATCH(\"OV4E\",'Conn Information'!$N$3:$N$65,0),0))","v":false},"OB4E, OV4E",null,4,"Reserved",null,null,null,"Enable No Load 3","Enable No Load 2","Enable No Load 1","Enable No Load 0",1,"SINT, Bit",1,"0 = Disabled\n1 = Enabled"]
[{"$f":"OR(IFERROR(MATCH(\"OB4E\",'Conn Information'!$N$3:$N$65,0),0),IFERROR(MATCH(\"OV4E\",'Conn Information'!$N$3:$N$65,0),0))","v":false},"OB4E, OV4E",null,5,"Reserved",null,null,null,"Reset mode 3","Reset mode 2","Reset mode 1","Reset mode 0",0,"SINT, Bit",0,"0 = Latch Off\n1 = Auto Retry"]
[{"$f":"OR(IFERROR(MATCH(\"OB4E\",'Conn Information'!$N$3:$N$65,0),0),IFERROR(MATCH(\"OV4E\",'Conn Information'!$N$3:$N$65,0),0))","v":false},"OB4E, OV4E",null,6,"Reserved",null,null,null,"Enable Latched Alarms 3","Enable Latched Alarms 2","Enable Latched Alarms 1","Enable Latched Alarms 0",0,"SINT, Bit",0,"0 = No Latching\n1 = Alarms Latch"]
[{"$f":"OR(IFERROR(MATCH(\"OB4E\",'Conn Information'!$N$3:$N$65,0),0),IFERROR(MATCH(\"OV4E\",'Conn Information'!$N$3:$N$65,0),0))","v":false},"OB4E, OV4E",null,7,"Pad",null,null,null,null,null,null,null,0,"SINT, Bit",0]
[{"$f":"OR(IFERROR(MATCH(\"OB4\",'Conn Information'!$N$3:$N$65,0),0),0)","v":false},"OB4",123,0,"Reserved",null,null,null,"Fault State 3","Fault State 2","Fault State 1","Fault State 0",0,"SINT, Bit",0,"0 = Fault Value\n1 = Hold Last State",null,"OB4",0,"Reserved",null,null,null,null,null,null,null,null,"OB4",0,"Reserved",null,null,null,"CH 3","CH 2","CH 1","CH 0"]
[{"$f":"OR(IFERROR(MATCH(\"OB4\",'Conn Information'!$N$3:$N$65,0),0),0)","v":false},"OB4",null,1,"Reserved",null,null,null,"Fault Value 3","Fault Value 2","Fault Value 1","Fault Value 0",0,"SINT, Bit",0,"0 = OFF\n1 = ON"]
[{"$f":"OR(IFERROR(MATCH(\"OB4\",'Conn Information'!$N$3:$N$65,0),0),0)","v":false},"OB4",null,2,"Reserved",null,null,null,"Idle State 3","Idle State 2","Idle State 1","Idle State 0",0,"SINT, Bit",0,"0 = Program Mode\n1 = Hold Last State"]
[{"$f":"OR(IFERROR(MATCH(\"OB4\",'Conn Information'!$N$3:$N$65,0),0),0)","v":false},"OB4",null,3,"Reserved",null,null,null,"Idle Value 3","Idle Value 2","Idle Value 1","Idle Value 0",0,"SINT, Bit",0,"0 = OFF\n1 = ON"]
[{"$f":"OR(IFERROR(MATCH(\"OB4\",'Conn Information'!$N$3:$N$65,0),0),0)","v":false},"OB4",null,4,"Reserved (Set to 0)",null,null,null,null,null,null,null,0,"SINT, Bit",0]
[{"$f":"OR(IFERROR(MATCH(\"OB4\",'Conn Information'!$N$3:$N$65,0),0),0)","v":false},"OB4",null,5,"Reserved (Set to 0)",null,null,null,null,null,null,null,0,"SINT, Bit",0]
[{"$f":"OR(IFERROR(MATCH(\"OB4\",'Conn Information'!$N$3:$N$65,0),0),0)","v":false},"OB4",null,6,"Reserved (Set to 0)",null,null,null,null,null,null,null,0,"SINT, Bit",0]
[{"$f":"OR(IFERROR(MATCH(\"OB4\",'Conn Information'!$N$3:$N$65,0),0),0)","v":false},"OB4",null,7,"Pad",null,null,null,null,null,null,null,0,"SINT, Bit",0]
[{"$f":"OR(IFERROR(MATCH(\"OB8E\",'Conn Information'!$N$3:$N$65,0),0),IFERROR(MATCH(\"OV8E\",'Conn Information'!$N$3:$N$65,0),0))","v":false},"OB8E, OV8E",123,0,"Fault State 7","Fault State 6","Fault State 5","Fault State 4","Fault State 3","Fault State 2","Fault State 1","Fault State 0",0,"SINT, Bit",0,"0 = Fault Value\n1 = Hold Last State",null,"OB8E, OV8E",0,"CH 7","CH 6","CH 5","CH 4","CH 3","CH 2","CH 1","CH 0",null,"OB8E, OV8E",0,"CH 7","CH 6","CH 5","CH 4","CH 3","CH 2","CH 1","CH 0"]
[{"$f":"OR(IFERROR(MATCH(\"OB8E\",'Conn Information'!$N$3:$N$65,0),0),IFERROR(MATCH(\"OV8E\",'Conn Information'!$N$3:$N$65,0),0))","v":false},"OB8E, OV8E",null,1,"Fault Value 7","Fault Value 6","Fault Value 5","Fault Value 4","Fault Value 3","Fault Value 2","Fault Value 1","Fault Value 0",0,"SINT, Bit",0,"0 = OFF\n1 = ON"]
[{"$f":"OR(IFERROR(MATCH(\"OB8E\",'Conn Information'!$N$3:$N$65,0),0),IFERROR(MATCH(\"OV8E\",'Conn Information'!$N$3:$N$65,0),0))","v":false},"OB8E, OV8E",null,2,"Idle State 7","Idle State 6","Idle State 5","Idle State 4","Idle State 3","Idle State 2","Idle State 1","Idle State 0",0,"SINT, Bit",0,"0 = Program Mode\n1 = Hold Last State"]
[{"$f":"OR(IFERROR(MATCH(\"OB8E\",'Conn Information'!$N$3:$N$65,0),0),IFERROR(MATCH(\"OV8E\",'Conn Information'!$N$3:$N$65,0),0))","v":false},"OB8E, OV8E",null,3,"Idle Value 7","Idle Value 6","Idle Value 5","Idle Value 4","Idle Value 3","Idle Value 2","Idle Value 1","Idle Value 0",0,"SINT, Bit",0,"0 = OFF\n1 = ON"]
[{"$f":"OR(IFERROR(MATCH(\"OB8E\",'Conn Information'!$N$3:$N$65,0),0),IFERROR(MATCH(\"OV8E\",'Conn Information'!$N$3:$N$65,0),0))","v":false},"OB8E, OV8E",null,4,"Enable No Load 7","Enable No Load 6","Enable No Load 5","Enable No Load 4","Enable No Load 3","Enable No Load 2","Enable No Load 1","Enable No Load 0",1,"SINT, Bit",1,"0 = Disabled\n1 = Enabled"]
[{"$f":"OR(IFERROR(MATCH(\"OB8E\",'Conn Information'!$N$3:$N$65,0),0),IFERROR(MATCH(\"OV8E\",'Conn Information'!$N$3:$N$65,0),0))","v":false},"OB8E, OV8E",null,5,"Reset mode 7","Reset mode 6","Reset mode 5","Reset mode 4","Reset mode 3","Reset mode 2","Reset mode 1","Reset mode 0",0,"SINT, Bit",0,"0 = Latch Off\n1 = Auto Retry"]
[{"$f":"OR(IFERROR(MATCH(\"OB8E\",'Conn Information'!$N$3:$N$65,0),0),IFERROR(MATCH(\"OV8E\",'Conn Information'!$N$3:$N$65,0),0))","v":false},"OB8E, OV8E",null,6,"Enable Latched Alarms 7","Enable Latched Alarms 6","Enable Latched Alarms 5","Enable Latched Alarms 4","Enable Latched Alarms 3","Enable Latched Alarms 2","Enable Latched Alarms 1","Enable Latched Alarms 0",0,"SINT, Bit",0,"0 = No Latching\n1 = Alarms Latch"]
[{"$f":"OR(IFERROR(MATCH(\"OB8E\",'Conn Information'!$N$3:$N$65,0),0),IFERROR(MATCH(\"OV8E\",'Conn Information'!$N$3:$N$65,0),0))","v":false},"OB8E, OV8E",null,7,"Pad",null,null,null,null,null,null,null,0,"SINT, Bit",0,null,null,"OB8",0,"Reserved"]
[{"$f":"OR(IFERROR(MATCH(\"OB8\",'Conn Information'!$N$3:$N$65,0),0),0)","v":false},"OB8",123,0,"Fault State 7","Fault State 6","Fault State 5","Fault State 4","Fault State 3","Fault State 2","Fault State 1","Fault State 0",0,"SINT, Bit",0,"0 = Fault Value\n1 = Hold Last State",null,null,null,null,null,null,null,null,null,null,null,null,"OB8",0,"CH 7","CH 6","CH 5","CH 4","CH 3","CH 2","CH 1","CH 0"]
[{"$f":"OR(IFERROR(MATCH(\"OB8\",'Conn Information'!$N$3:$N$65,0),0),0)","v":false},"OB8",null,1,"Fault Value 7","Fault Value 6","Fault Value 5","Fault Value 4","Fault Value 3","Fault Value 2","Fault Value 1","Fault Value 0",0,"SINT, Bit",0,"0 = OFF\n1 = ON"]
[{"$f":"OR(IFERROR(MATCH(\"OB8\",'Conn Information'!$N$3:$N$65,0),0),0)","v":false},"OB8",null,2,"Idle State 7","Idle State 6","Idle State 5","Idle State 4","Idle State 3","Idle State 2","Idle State 1","Idle State 0",0,"SINT, Bit",0,"0 = Program Mode\n1 = Hold Last State"]
[{"$f":"OR(IFERROR(MATCH(\"OB8\",'Conn Information'!$N$3:$N$65,0),0),0)","v":false},"OB8",null,3,"Idle Value 7","Idle Value 6","Idle Value 5","Idle Value 4","Idle Value 3","Idle Value 2","Idle Value 1","Idle Value 0",0,"SINT, Bit",0,"0 = OFF\n1 = ON"]
[{"$f":"OR(IFERROR(MATCH(\"OB8\",'Conn Information'!$N$3:$N$65,0),0),0)","v":false},"OB8",null,4,"Reserved (Set to 0)",null,null,null,null,null,null,null,0,"SINT, Bit",0]
[{"$f":"OR(IFERROR(MATCH(\"OB8\",'Conn Information'!$N$3:$N$65,0),0),0)","v":false},"OB8",null,5,"Reserved (Set to 0)",null,null,null,null,null,null,null,0,"SINT, Bit",0]
[{"$f":"OR(IFERROR(MATCH(\"OB8\",'Conn Information'!$N$3:$N$65,0),0),0)","v":false},"OB8",null,6,"Reserved (Set to 0)",null,null,null,null,null,null,null,0,"SINT, Bit",0]
[{"$f":"OR(IFERROR(MATCH(\"OB8\",'Conn Information'!$N$3:$N$65,0),0),0)","v":false},"OB8",null,7,"Pad",null,null,null,null,null,null,null,0,"SINT, Bit",0]
[{"$f":"OR(IFERROR(MATCH(\"IB4D\",'Conn Information'!$N$3:$N$65,0),0),0)","v":false},"IB4D",103,0,"Input 0 Off to On Filter Low Byte",null,null,null,null,null,null,null,"-24","INT",1000,"-32,768…32,767 µs (0…65,535)",null,"IB4D",0,"Fault 3","Fault 2","Fault 1","Fault 0","CH 3","CH 2","CH 1","CH 0"]
[{"$f":"OR(IFERROR(MATCH(\"IB4D\",'Conn Information'!$N$3:$N$65,0),0),0)","v":false},"IB4D",null,1,"Input 0 Off to On Filter High Byte",null,null,null,null,null,null,null,3,null,null,null,null,"IB4D",1,"Short Circuit 3","Short Circuit 2","Short Circuit 1","Short Circuit 0","Off Wire 3","Off Wire 2","Off Wire 1","Off Wire 0"]
[{"$f":"OR(IFERROR(MATCH(\"IB4D\",'Conn Information'!$N$3:$N$65,0),0),0)","v":false},"IB4D",null,2,"Input 0 On to Off Filter Low Byte",null,null,null,null,null,null,null,"-24","INT",1000,"-32,768…32,767 µs (0…65,535)"]
[{"$f":"OR(IFERROR(MATCH(\"IB4D\",'Conn Information'!$N$3:$N$65,0),0),0)","v":false},"IB4D",null,3,"Input 0 On to Off Filter High Byte",null,null,null,null,null,null,null,3]
[{"$f":"OR(IFERROR(MATCH(\"IB4D\",'Conn Information'!$N$3:$N$65,0),0),0)","v":false},"IB4D",null,4,"Input 1 Off to On Filter Low Byte",null,null,null,null,null,null,null,"-24","INT",1000,"-32,768…32,767 µs (0…65,535)"]
[{"$f":"OR(IFERROR(MATCH(\"IB4D\",'Conn Information'!$N$3:$N$65,0),0),0)","v":false},"IB4D",null,5,"Input 1 Off to On Filter High Byte",null,null,null,null,null,null,null,3]
[{"$f":"OR(IFERROR(MATCH(\"IB4D\",'Conn Information'!$N$3:$N$65,0),0),0)","v":false},"IB4D",null,6,"Input 1 On to Off Filter Low Byte",null,null,null,null,null,null,null,"-24","INT",1000,"-32,768…32,767 µs (0…65,535)"]
[{"$f":"OR(IFERROR(MATCH(\"IB4D\",'Conn Information'!$N$3:$N$65,0),0),0)","v":false},"IB4D",null,7,"Input 1 On to Off Filter High Byte",null,null,null,null,null,null,null,3]
[{"$f":"OR(IFERROR(MATCH(\"IB4D\",'Conn Information'!$N$3:$N$65,0),0),0)","v":false},"IB4D",null,8,"Input 2 Off to On Filter Low Byte",null,null,null,null,null,null,null,"-24","INT",1000,"-32,768…32,767 µs (0…65,535)"]
[{"$f":"OR(IFERROR(MATCH(\"IB4D\",'Conn Information'!$N$3:$N$65,0),0),0)","v":false},"IB4D",null,9,"Input 2 Off to On Filter High Byte",null,null,null,null,null,null,null,3]
[{"$f":"OR(IFERROR(MATCH(\"IB4D\",'Conn Information'!$N$3:$N$65,0),0),0)","v":false},"IB4D",null,10,"Input 2 On to Off Filter Low Byte",null,null,null,null,null,null,null,"-24","INT",1000,"-32,768…32,767 µs (0…65,535)"]
[{"$f":"OR(IFERROR(MATCH(\"IB4D\",'Conn Information'!$N$3:$N$65,0),0),0)","v":false},"IB4D",null,11,"Input 2 On to Off Filter High Byte",null,null,null,null,null,null,null,3]
[{"$f":"OR(IFERROR(MATCH(\"IB4D\",'Conn Information'!$N$3:$N$65,0),0),0)","v":false},"IB4D",null,12,"Input 3 Off to On Filter Low Byte",null,null,null,null,null,null,null,"-24","INT",1000,"-32,768…32,767 µs (0…65,535)"]
[{"$f":"OR(IFERROR(MATCH(\"IB4D\",'Conn Information'!$N$3:$N$65,0),0),0)","v":false},"IB4D",null,13,"Input 3 Off to On Filter High Byte",null,null,null,null,null,null,null,3]
[{"$f":"OR(IFERROR(MATCH(\"IB4D\",'Conn Information'!$N$3:$N$65,0),0),0)","v":false},"IB4D",null,14,"Input 3 On to Off Filter Low Byte",null,null,null,null,null,null,null,"-24","INT",1000,"-32,768…32,767 µs (0…65,535)"]
[{"$f":"OR(IFERROR(MATCH(\"IB4D\",'Conn Information'!$N$3:$N$65,0),0),0)","v":false},"IB4D",null,15,"Input 3 On to Off Filter High Byte",null,null,null,null,null,null,null,3]
[{"$f":"OR(IFERROR(MATCH(\"IB4D\",'Conn Information'!$N$3:$N$65,0),0),0)","v":false},"IB4D",null,16,"Autobaud Disable",null,null,null,"Enable Open Wire Detect 3","Enable Open Wire Detect 2","Enable Open Wire Detect 1","Enable Open Wire Detect 0",1,"SINT, Bit",1,"0 = Disabled\n1 = Enabled"]
[{"$f":"OR(IFERROR(MATCH(\"IB4D\",'Conn Information'!$N$3:$N$65,0),0),0)","v":false},"IB4D",null,17,"Produced Assembly Instance",null,null,null,null,null,null,null,1,"SINT",0]
[{"$f":"OR(IFERROR(MATCH(\"OW2\",'Conn Information'!$N$3:$N$65,0),0),IFERROR(MATCH(\"OX2,'Conn Information'!$N$3:$N$65,0),0),IFERROR(MATCH(\"\"OA2\",'Conn Information'!$N$3:$N$65,0),0))","v":false},"OW2, OX2, OA2",103,"No configuration",null,null,null,null,null,null,null,null,null,null,null,null,null,null,null,null,null,null,null,null,null,null,null,null,"OW2,OX2, OA2",0,"Reserved",null,null,null,null,null,"CH 1","CH 0"]
[{"$f":"OR(IFERROR(MATCH(\"OW4\",'Conn Information'!$N$3:$N$65,0),0),IFERROR(MATCH(\"OA4\",'Conn Information'!$N$3:$N$65,0),0))","v":false},"OW4, OA4",103,"No configuration",null,null,null,null,null,null,null,null,null,null,null,null,null,null,null,null,null,null,null,null,null,null,null,null,"OW4, OA4",0,"Reserved",null,null,null,"CH 3","CH 2","CH 1","CH 0"]
[{"$f":"OR(IFERROR(MATCH(\"8CFG\",'Conn Information'!$N$3:$N$65,0),0),0)","v":false},"8CFG",103,0,"Input Off to On Filter Low Byte",null,null,null,null,null,null,null,"-24","INT",1000,"-32,768…32,767 µs (0…65,535)",null,"8CFG",0,"Stored Channel Data [Low Byte]",null,null,null,null,null,null,null,null,"8CFG",0,"CH 7","CH 6","CH 5","CH 4","CH 3","CH 2","CH 1","CH 0"]
[{"$f":"OR(IFERROR(MATCH(\"8CFG\",'Conn Information'!$N$3:$N$65,0),0),0)","v":false},"8CFG",null,1,"Input Off to On Filter High Byte",null,null,null,null,null,null,null,3,null,null,null,null,"8CFG",1,"Stored Channel [1]"]
[{"$f":"OR(IFERROR(MATCH(\"8CFG\",'Conn Information'!$N$3:$N$65,0),0),0)","v":false},"8CFG",null,2,"Input On to Off Filter Low Byte",null,null,null,null,null,null,null,"-24","INT",1000,"-32,768…32,767 µs (0…65,535)",null,"8CFG",2,"Stored Channel [2]"]
[{"$f":"OR(IFERROR(MATCH(\"8CFG\",'Conn Information'!$N$3:$N$65,0),0),0)","v":false},"8CFG",null,3,"Input On to Off Filter High Byte",null,null,null,null,null,null,null,3,null,null,null,null,"8CFG",3,"Stored Channel [High Byte]"]
[{"$f":"OR(IFERROR(MATCH(\"8CFG\",'Conn Information'!$N$3:$N$65,0),0),0)","v":false},"8CFG",null,4,"Fault Action 7","Fault Action 6","Fault Action 5","Fault Action 4","Fault Action 3","Fault Action 2","Fault Action 1","Fault Action 0",0,"SINT, Bit",0,"0 = Fault Value\n1 = Hold Last State",null,"8CFG",4,"Status (Low Byte)"]
[{"$f":"OR(IFERROR(MATCH(\"8CFG\",'Conn Information'!$N$3:$N$65,0),0),0)","v":false},"8CFG",null,5,"Fault Value 7","Fault Value 6","Fault Value 5","Fault Value 4","Fault Value 3","Fault Value 2","Fault Value 1","Fault Value 0",0,"SINT, Bit",0,"0 = OFF\n1 = ON",null,"8CFG",5,"Status (High Byte)"]
[{"$f":"OR(IFERROR(MATCH(\"8CFG\",'Conn Information'!$N$3:$N$65,0),0),0)","v":false},"8CFG",null,6,"Idle Action 7","Idle Action 6","Idle Action 5","Idle Action 4","Idle Action 3","Idle Action 2","Idle Action 1","Idle Action 0",0,"SINT, Bit",0,"0 = Program Mode\n1 = Hold Last State"]
[{"$f":"OR(IFERROR(MATCH(\"8CFG\",'Conn Information'!$N$3:$N$65,0),0),0)","v":false},"8CFG",null,7,"Idle Value 7","Idle Value 6","Idle Value 5","Idle Value 4","Idle Value 3","Idle Value 2","Idle Value 1","Idle Value 0",0,"SINT, Bit",0,"0 = OFF\n1 = ON"]
[{"$f":"OR(IFERROR(MATCH(\"VHSC5\",'Conn Information'!$N$3:$N$65,0),0),IFERROR(MATCH(\"VHSC24\",'Conn Information'!$N$3:$N$65,0),0))","v":false},"VHSC5,VHSC24",108,0,"Counter Configuration",null,null,null,null,null,null,null,0,"SINT",0,"Bit0 to 3 (Config0 to 3)\n0000 = 0 = Counter \n0001 = 1 = Encoder X1 \n0010 = 2 = Encoder X2 \n0011 = 3 = PWM \n0100 = 4 = Encoder X4 \n0101 = 5 = Period/Rate \n0110 = 6 = Continuous/Rate\n0111 = 7 = Rate Measurement \n1000 = 8 = Pulse Generator \n\nBit 4-6 (Mode_4 to Mode_6)\n000 = Store Count Disable \n001 = Store/Continue \n010 = Store/Wait/Resume \n011 = Store,Reset/Wait/Start \n100 = Store,Reset/Start \n\nBit 7 (Z Input)\n0 = Z Input Not Inverted \n1 = Z Input Is Inverted",null,"VHSC5, VHSC24",0,"Stored Channel Data (Low Byte)",null,null,null,null,null,null,null,null,"VHSC5, VHSC24",0,"Counter Control"]
[{"$f":"OR(IFERROR(MATCH(\"VHSC5\",'Conn Information'!$N$3:$N$65,0),0),IFERROR(MATCH(\"VHSC24\",'Conn Information'!$N$3:$N$65,0),0))","v":false},"VHSC5,VHSC24",null,1,"Filter Selection",null,null,null,null,null,null,null,120,"SINT",120,"Bit 0 to 3 (Filter_0 to 3)\n0000 = No Filter \n0001 = 50 kHz \n0010 = 5 kHz \n0100 = 500 Hz \n1000 = 50 Hz \n\nBit 4 to 6(Filter A, B and Z)\n0 = Input A/B/Z Not Filtered \n1 = Input A/B/Z Is Filtered",null,"VHSC5, VHSC24",1,"Stored Channel Data [1]",null,null,null,null,null,null,null,null,"VHSC5, VHSC24",1,"Ouput Control"]
[{"$f":"OR(IFERROR(MATCH(\"VHSC5\",'Conn Information'!$N$3:$N$65,0),0),IFERROR(MATCH(\"VHSC24\",'Conn Information'!$N$3:$N$65,0),0))","v":false},"VHSC5,VHSC24",null,2,"Decimal Position",null,null,null,null,null,null,null,0,"SINT",0,"Counter Config 0, 1, 2, 3, 4:-\n128…+127  (0…255) \n\nCounter Config 5, 6, & 7:\n-4…+2",null,"VHSC5, VHSC24",2,"Stored Channel Data [2]"]
[{"$f":"OR(IFERROR(MATCH(\"VHSC5\",'Conn Information'!$N$3:$N$65,0),0),IFERROR(MATCH(\"VHSC24\",'Conn Information'!$N$3:$N$65,0),0))","v":false},"VHSC5,VHSC24",null,3,"Active Output Assembly",null,null,null,null,null,null,null,0,"SINT",0,null,null,"VHSC5, VHSC24",3,"Stored Channel Data (High Byte)"]
[{"$f":"OR(IFERROR(MATCH(\"VHSC5\",'Conn Information'!$N$3:$N$65,0),0),IFERROR(MATCH(\"VHSC24\",'Conn Information'!$N$3:$N$65,0),0))","v":false},"VHSC5,VHSC24",null,4,"Time Base or PWM Period (low byte)",null,null,null,null,null,null,null,0,"INT",0,"Counter Config 3 & 7 only:  0…3000 ms (10 ms…3 sec)",null,"VHSC5, VHSC24",4,"Status (Low Byte)"]
[{"$f":"OR(IFERROR(MATCH(\"VHSC5\",'Conn Information'!$N$3:$N$65,0),0),IFERROR(MATCH(\"VHSC24\",'Conn Information'!$N$3:$N$65,0),0))","v":false},"VHSC5,VHSC24",null,5,"Time Base or PWM Period (high byte)",null,null,null,null,null,null,null,null,null,null,null,null,"VHSC5, VHSC24",5,"Status (High Byte)"]
[{"$f":"OR(IFERROR(MATCH(\"VHSC5\",'Conn Information'!$N$3:$N$65,0),0),IFERROR(MATCH(\"VHSC24\",'Conn Information'!$N$3:$N$65,0),0))","v":false},"VHSC5,VHSC24",null,6,"Gate Interval",null,null,null,null,null,null,null,0,"SINT",0,"Counter Config 3 & 7 only:-128…+127  (0…200)"]
[{"$f":"OR(IFERROR(MATCH(\"VHSC5\",'Conn Information'!$N$3:$N$65,0),0),IFERROR(MATCH(\"VHSC24\",'Conn Information'!$N$3:$N$65,0),0))","v":false},"VHSC5,VHSC24",null,7,"Scalar",null,null,null,null,null,null,null,0,"SINT",0,"Counter Config 5, 6, 8 only:-128…+127  (0…255) \nSingle Bit only: 0, 1, 2, 4, 8, 16, 32, 64, -128"]
[{"$f":"OR(IFERROR(MATCH(\"VHSC5\",'Conn Information'!$N$3:$N$65,0),0),IFERROR(MATCH(\"VHSC24\",'Conn Information'!$N$3:$N$65,0),0))","v":false},"VHSC5,VHSC24",null,8,"Output 0 Ties",null,null,null,null,null,null,null,0,"SINT",0,"Bit 0 to 3 (Window 1 to 3)\n0 = Output 0 Not Tied \n1 = Output 0 Tied to Window \nCounter Config 3 (PWM): Output 0 Window 1 PWM In"]
[{"$f":"OR(IFERROR(MATCH(\"VHSC5\",'Conn Information'!$N$3:$N$65,0),0),IFERROR(MATCH(\"VHSC24\",'Conn Information'!$N$3:$N$65,0),0))","v":false},"VHSC5,VHSC24",null,9,"Output 1 Ties",null,null,null,null,null,null,null,0,"SINT",0,"Bit 0 to 3 (Window 1 to 3)\n0 = Output 0 Not Tied \n1 = Output 0 Tied to Window \nCounter Config 3 (PWM): Output 1 Window 1 PWM In"]
[{"$f":"OR(IFERROR(MATCH(\"VHSC5\",'Conn Information'!$N$3:$N$65,0),0),IFERROR(MATCH(\"VHSC24\",'Conn Information'!$N$3:$N$65,0),0))","v":false},"VHSC5,VHSC24",null,10,"Rollover Value [Low Byte]",null,null,null,null,null,null,null,-1,"DINT",16777215,"1…16,777,216"]
[{"$f":"OR(IFERROR(MATCH(\"VHSC5\",'Conn Information'!$N$3:$N$65,0),0),IFERROR(MATCH(\"VHSC24\",'Conn Information'!$N$3:$N$65,0),0))","v":false},"VHSC5,VHSC24",null,11,"Rollover Value [1]",null,null,null,null,null,null,null,-1]
[{"$f":"OR(IFERROR(MATCH(\"VHSC5\",'Conn Information'!$N$3:$N$65,0),0),IFERROR(MATCH(\"VHSC24\",'Conn Information'!$N$3:$N$65,0),0))","v":false},"VHSC5,VHSC24",null,12,"Rollover Value [2]",null,null,null,null,null,null,null,-1]
[{"$f":"OR(IFERROR(MATCH(\"VHSC5\",'Conn Information'!$N$3:$N$65,0),0),IFERROR(MATCH(\"VHSC24\",'Conn Information'!$N$3:$N$65,0),0))","v":false},"VHSC5,VHSC24",null,13,"Rollover Value [High Byte]",null,null,null,null,null,null,null,0]
[{"$f":"OR(IFERROR(MATCH(\"VHSC5\",'Conn Information'!$N$3:$N$65,0),0),IFERROR(MATCH(\"VHSC24\",'Conn Information'!$N$3:$N$65,0),0))","v":false},"VHSC5,VHSC24",null,14,"Preset Value [Low Byte]",null,null,null,null,null,null,null,0,"DINT",0,"0…16,777,215"]
[{"$f":"OR(IFERROR(MATCH(\"VHSC5\",'Conn Information'!$N$3:$N$65,0),0),IFERROR(MATCH(\"VHSC24\",'Conn Information'!$N$3:$N$65,0),0))","v":false},"VHSC5,VHSC24",null,15,"Preset Value [1]",null,null,null,null,null,null,null,0]
[{"$f":"OR(IFERROR(MATCH(\"VHSC5\",'Conn Information'!$N$3:$N$65,0),0),IFERROR(MATCH(\"VHSC24\",'Conn Information'!$N$3:$N$65,0),0))","v":false},"VHSC5,VHSC24",null,16,"Preset Value [2]",null,null,null,null,null,null,null,0]
[{"$f":"OR(IFERROR(MATCH(\"VHSC5\",'Conn Information'!$N$3:$N$65,0),0),IFERROR(MATCH(\"VHSC24\",'Conn Information'!$N$3:$N$65,0),0))","v":false},"VHSC5,VHSC24",null,17,"Preset Value [High Byte]",null,null,null,null,null,null,null,0]
[{"$f":"OR(IFERROR(MATCH(\"VHSC5\",'Conn Information'!$N$3:$N$65,0),0),IFERROR(MATCH(\"VHSC24\",'Conn Information'!$N$3:$N$65,0),0))","v":false},"VHSC5,VHSC24",null,18,"ON Value #1 [Low Byte]",null,null,null,null,null,null,null,0,"DINT",0,"Counter Config 3, 5, 6, 7: 0…16,777,215\nCounter Config 0, 1, 2, 4: 0 to Rollover Value"]
[{"$f":"OR(IFERROR(MATCH(\"VHSC5\",'Conn Information'!$N$3:$N$65,0),0),IFERROR(MATCH(\"VHSC24\",'Conn Information'!$N$3:$N$65,0),0))","v":false},"VHSC5,VHSC24",null,19,"ON Value #1 [1]",null,null,null,null,null,null,null,0]
[{"$f":"OR(IFERROR(MATCH(\"VHSC5\",'Conn Information'!$N$3:$N$65,0),0),IFERROR(MATCH(\"VHSC24\",'Conn Information'!$N$3:$N$65,0),0))","v":false},"VHSC5,VHSC24",null,20,"ON Value #1 [2]",null,null,null,null,null,null,null,0]
[{"$f":"OR(IFERROR(MATCH(\"VHSC5\",'Conn Information'!$N$3:$N$65,0),0),IFERROR(MATCH(\"VHSC24\",'Conn Information'!$N$3:$N$65,0),0))","v":false},"VHSC5,VHSC24",null,21,"ON Value #1 [High Byte]",null,null,null,null,null,null,null,0]
[{"$f":"OR(IFERROR(MATCH(\"VHSC5\",'Conn Information'!$N$3:$N$65,0),0),IFERROR(MATCH(\"VHSC24\",'Conn Information'!$N$3:$N$65,0),0))","v":false},"VHSC5,VHSC24",null,22,"OFF Value #1 [Low Byte]",null,null,null,null,null,null,null,0,"DINT",0,"Counter Config 3, 5, 6, 7: 0…16,777,215\nCounter Config 0, 1, 2, 4: 0 to Rollover Value"]
[{"$f":"OR(IFERROR(MATCH(\"VHSC5\",'Conn Information'!$N$3:$N$65,0),0),IFERROR(MATCH(\"VHSC24\",'Conn Information'!$N$3:$N$65,0),0))","v":false},"VHSC5,VHSC24",null,23,"OFF Value #1 [1]",null,null,null,null,null,null,null,0]
[{"$f":"OR(IFERROR(MATCH(\"VHSC5\",'Conn Information'!$N$3:$N$65,0),0),IFERROR(MATCH(\"VHSC24\",'Conn Information'!$N$3:$N$65,0),0))","v":false},"VHSC5,VHSC24",null,24,"OFF Value #1 [2]",null,null,null,null,null,null,null,0]
[{"$f":"OR(IFERROR(MATCH(\"VHSC5\",'Conn Information'!$N$3:$N$65,0),0),IFERROR(MATCH(\"VHSC24\",'Conn Information'!$N$3:$N$65,0),0))","v":false},"VHSC5,VHSC24",null,25,"OFF Value #1 [High Byte]",null,null,null,null,null,null,null,0]
[{"$f":"OR(IFERROR(MATCH(\"VHSC5\",'Conn Information'!$N$3:$N$65,0),0),IFERROR(MATCH(\"VHSC24\",'Conn Information'!$N$3:$N$65,0),0))","v":false},"VHSC5,VHSC24",null,26,"ON Value #2 [Low Byte]",null,null,null,null,null,null,null,0,"DINT",0,"Counter Config 3, 5, 6, 7: 0…16,777,215\nCounter Config 0, 1, 2, 4: 0 to Rollover Value"]
[{"$f":"OR(IFERROR(MATCH(\"VHSC5\",'Conn Information'!$N$3:$N$65,0),0),IFERROR(MATCH(\"VHSC24\",'Conn Information'!$N$3:$N$65,0),0))","v":false},"VHSC5,VHSC24",null,27,"ON Value #2 [1]",null,null,null,null,null,null,null,0]
[{"$f":"OR(IFERROR(MATCH(\"VHSC5\",'Conn Information'!$N$3:$N$65,0),0),IFERROR(MATCH(\"VHSC24\",'Conn Information'!$N$3:$N$65,0),0))","v":false},"VHSC5,VHSC24",null,28,"ON Value #2 [2]",null,null,null,null,null,null,null,0]
[{"$f":"OR(IFERROR(MATCH(\"VHSC5\",'Conn Information'!$N$3:$N$65,0),0),IFERROR(MATCH(\"VHSC24\",'Conn Information'!$N$3:$N$65,0),0))","v":false},"VHSC5,VHSC24",null,29,"ON Value #2 [High Byte]",null,null,null,null,null,null,null,0]
[{"$f":"OR(IFERROR(MATCH(\"VHSC5\",'Conn Information'!$N$3:$N$65,0),0),IFERROR(MATCH(\"VHSC24\",'Conn Information'!$N$3:$N$65,0),0))","v":false},"VHSC5,VHSC24",null,30,"OFF Value #2 [Low Byte]",null,null,null,null,null,null,null,0,"DINT",0,"Counter Config 3, 5, 6, 7: 0…16,777,215\nCounter Config 0, 1, 2, 4: 0 to Rollover Value"]
[{"$f":"OR(IFERROR(MATCH(\"VHSC5\",'Conn Information'!$N$3:$N$65,0),0),IFERROR(MATCH(\"VHSC24\",'Conn Information'!$N$3:$N$65,0),0))","v":false},"VHSC5,VHSC24",null,31,"OFF Value #2 [1]",null,null,null,null,null,null,null,0]
[{"$f":"OR(IFERROR(MATCH(\"VHSC5\",'Conn Information'!$N$3:$N$65,0),0),IFERROR(MATCH(\"VHSC24\",'Conn Information'!$N$3:$N$65,0),0))","v":false},"VHSC5,VHSC24",null,32,"OFF Value #2 [2]",null,null,null,null,null,null,null,0]
[{"$f":"OR(IFERROR(MATCH(\"VHSC5\",'Conn Information'!$N$3:$N$65,0),0),IFERROR(MATCH(\"VHSC24\",'Conn Information'!$N$3:$N$65,0),0))","v":false},"VHSC5,VHSC24",null,33,"OFF Value #2 [High Byte]",null,null,null,null,null,null,null,0]
[{"$f":"OR(IFERROR(MATCH(\"VHSC5\",'Conn Information'!$N$3:$N$65,0),0),IFERROR(MATCH(\"VHSC24\",'Conn Information'!$N$3:$N$65,0),0))","v":false},"VHSC5,VHSC24",null,34,"ON Value #3 [Low Byte]",null,null,null,null,null,null,null,0,"DINT",0,"Counter Config 3, 5, 6, 7: 0…16,777,215\nCounter Config 0, 1, 2, 4: 0 to Rollover Value"]
[{"$f":"OR(IFERROR(MATCH(\"VHSC5\",'Conn Information'!$N$3:$N$65,0),0),IFERROR(MATCH(\"VHSC24\",'Conn Information'!$N$3:$N$65,0),0))","v":false},"VHSC5,VHSC24",null,35,"ON Value #3 [1]",null,null,null,null,null,null,null,0]
[{"$f":"OR(IFERROR(MATCH(\"VHSC5\",'Conn Information'!$N$3:$N$65,0),0),IFERROR(MATCH(\"VHSC24\",'Conn Information'!$N$3:$N$65,0),0))","v":false},"VHSC5,VHSC24",null,36,"ON Value #3 [2]",null,null,null,null,null,null,null,0]
[{"$f":"OR(IFERROR(MATCH(\"VHSC5\",'Conn Information'!$N$3:$N$65,0),0),IFERROR(MATCH(\"VHSC24\",'Conn Information'!$N$3:$N$65,0),0))","v":false},"VHSC5,VHSC24",null,37,"ON Value #3 [High Byte]",null,null,null,null,null,null,null,0]
[{"$f":"OR(IFERROR(MATCH(\"VHSC5\",'Conn Information'!$N$3:$N$65,0),0),IFERROR(MATCH(\"VHSC24\",'Conn Information'!$N$3:$N$65,0),0))","v":false},"VHSC5,VHSC24",null,38,"OFF Value #3 [Low Byte]",null,null,null,null,null,null,null,0,"DINT",0,"Counter Config 3, 5, 6, 7: 0…16,777,215\nCounter Config 0, 1, 2, 4: 0 to Rollover Value"]
[{"$f":"OR(IFERROR(MATCH(\"VHSC5\",'Conn Information'!$N$3:$N$65,0),0),IFERROR(MATCH(\"VHSC24\",'Conn Information'!$N$3:$N$65,0),0))","v":false},"VHSC5,VHSC24",null,39,"OFF Value #3 [1]",null,null,null,null,null,null,null,0]
[{"$f":"OR(IFERROR(MATCH(\"VHSC5\",'Conn Information'!$N$3:$N$65,0),0),IFERROR(MATCH(\"VHSC24\",'Conn Information'!$N$3:$N$65,0),0))","v":false},"VHSC5,VHSC24",null,40,"OFF Value #3 [2]",null,null,null,null,null,null,null,0]
[{"$f":"OR(IFERROR(MATCH(\"VHSC5\",'Conn Information'!$N$3:$N$65,0),0),IFERROR(MATCH(\"VHSC24\",'Conn Information'!$N$3:$N$65,0),0))","v":false},"VHSC5,VHSC24",null,41,"OFF Value #3 [High Byte]",null,null,null,null,null,null,null,0]
[{"$f":"OR(IFERROR(MATCH(\"VHSC5\",'Conn Information'!$N$3:$N$65,0),0),IFERROR(MATCH(\"VHSC24\",'Conn Information'!$N$3:$N$65,0),0))","v":false},"VHSC5,VHSC24",null,42,"ON Value #4 [Low Byte]",null,null,null,null,null,null,null,0,"DINT",0,"Counter Config 3, 5, 6, 7: 0…16,777,215\nCounter Config 0, 1, 2, 4: 0 to Rollover Value"]
[{"$f":"OR(IFERROR(MATCH(\"VHSC5\",'Conn Information'!$N$3:$N$65,0),0),IFERROR(MATCH(\"VHSC24\",'Conn Information'!$N$3:$N$65,0),0))","v":false},"VHSC5,VHSC24",null,43,"ON Value #4 [1]",null,null,null,null,null,null,null,0]
[{"$f":"OR(IFERROR(MATCH(\"VHSC5\",'Conn Information'!$N$3:$N$65,0),0),IFERROR(MATCH(\"VHSC24\",'Conn Information'!$N$3:$N$65,0),0))","v":false},"VHSC5,VHSC24",null,44,"ON Value #4 [2]",null,null,null,null,null,null,null,0]
[{"$f":"OR(IFERROR(MATCH(\"VHSC5\",'Conn Information'!$N$3:$N$65,0),0),IFERROR(MATCH(\"VHSC24\",'Conn Information'!$N$3:$N$65,0),0))","v":false},"VHSC5,VHSC24",null,45,"ON Value #4 [High Byte]",null,null,null,null,null,null,null,0]
[{"$f":"OR(IFERROR(MATCH(\"VHSC5\",'Conn Information'!$N$3:$N$65,0),0),IFERROR(MATCH(\"VHSC24\",'Conn Information'!$N$3:$N$65,0),0))","v":false},"VHSC5,VHSC24",null,46,"OFF Value #4 [Low Byte]",null,null,null,null,null,null,null,0,"DINT",0,"Counter Config 3, 5, 6, 7: 0…16,777,215\nCounter Config 0, 1, 2, 4: 0 to Rollover Value"]
[{"$f":"OR(IFERROR(MATCH(\"VHSC5\",'Conn Information'!$N$3:$N$65,0),0),IFERROR(MATCH(\"VHSC24\",'Conn Information'!$N$3:$N$65,0),0))","v":false},"VHSC5,VHSC24",null,47,"OFF Value #4 [1]",null,null,null,null,null,null,null,0]
[{"$f":"OR(IFERROR(MATCH(\"VHSC5\",'Conn Information'!$N$3:$N$65,0),0),IFERROR(MATCH(\"VHSC24\",'Conn Information'!$N$3:$N$65,0),0))","v":false},"VHSC5,VHSC24",null,48,"OFF Value #4 [2]",null,null,null,null,null,null,null,0]
[{"$f":"OR(IFERROR(MATCH(\"VHSC5\",'Conn Information'!$N$3:$N$65,0),0),IFERROR(MATCH(\"VHSC24\",'Conn Information'!$N$3:$N$65,0),0))","v":false},"VHSC5,VHSC24",null,49,"OFF Value #4 [High Byte]",null,null,null,null,null,null,null,0]
[{"$f":"OR(IFERROR(MATCH(\"VHSC5\",'Conn Information'!$N$3:$N$65,0),0),IFERROR(MATCH(\"VHSC24\",'Conn Information'!$N$3:$N$65,0),0))","v":false},"VHSC5,VHSC24",null,50,"PWM Safe State Value (low byte)",null,null,null,null,null,null,null,0,"INT",0,"0…9500 (0.00…95.00%)\n(<0 or >9500 =Hold Last State)"]
[{"$f":"OR(IFERROR(MATCH(\"VHSC5\",'Conn Information'!$N$3:$N$65,0),0),IFERROR(MATCH(\"VHSC24\",'Conn Information'!$N$3:$N$65,0),0))","v":false},"VHSC5,VHSC24",null,51,"PWM Safe State Value (high byte)",null,null,null,null,null,null,null,0]
[{"$f":"OR(IFERROR(MATCH(\"VHSC5\",'Conn Information'!$N$3:$N$65,0),0),IFERROR(MATCH(\"VHSC24\",'Conn Information'!$N$3:$N$65,0),0))","v":false},"VHSC5,VHSC24",null,52,"Counter Control SSV",null,null,null,null,null,null,null,0,"SINT",0,"Counter Reset (Bit 0)\n0 = Count Unchanged \n1 = Count Cleared \n\nCounter Preset (Bit 1)\n0 = Count Unchanged \n1 = Count Set to Preset \n\nStored/Accum Count Value Reset (Bit 2)\n0 = Count Unchanged \n1 = Count Cleared"]
[{"$f":"OR(IFERROR(MATCH(\"VHSC5\",'Conn Information'!$N$3:$N$65,0),0),IFERROR(MATCH(\"VHSC24\",'Conn Information'!$N$3:$N$65,0),0))","v":false},"VHSC5,VHSC24",null,53,"Output Control SSV",null,null,null,null,null,null,null,0,"SINT",0,"Out0 Force (Bit 0)\n0 = Output Off \n1 = Output Forced On \n\nOut0 En (Bit 1)\n0 = Output Disabled \n1 = Output Enabled \n\nOut0 Electronic Fuse (Bit 2)\n0 = Auto Retry \n1 = Latch Off \n\nOut0 Diagnostic Speed (Bit 3)\n0 < 8 ms  Response \n1 = 50 ms  Response \n\nOut1 Force (Bit 4)\n0 = Output Off \n1 = Output Forced On \n\nOut1 En (Bit 5)\n0 = Output Disabled \n1 = Output Enabled \n\nOut1 Electronic Fuse (Bit 6)\n0 = Auto Retry \n1 = Latch Off \n\nOut1 Diagnostic Speed (Bit 7)\n0 < 8 ms  Response \n1 = 50 ms  Response\n"]
[{"$f":"OR(IFERROR(MATCH(\"IJ\",'Conn Information'!$N$3:$N$65,0),0),IFERROR(MATCH(\"IK\",'Conn Information'!$N$3:$N$65,0),0))","v":false},"IJ,IK",123,0,"Counter Configuration",null,null,null,null,null,null,null,0,"SINT",0,"Bit0 to 3 (Config0 to 3)\n0000 = 0 = Counter \n0001 = 1 = Encoder X1 \n0010 = 2 = Encoder X2 \n0100 = 4 = Encoder X4 \n0101 = 5 = Period/Rate \n0111 = 7 = Rate Measurement \n\nBit 4-6 (Mode_4 to Mode_6)\n000 = Store Count Disable \n001 = Store/Continue \n010 = Store/Wait/Resume \n011 = Store,Reset/Wait/Start \n100 = Store,Reset/Start \n\nBit 7 (Z Input)\n0 = Z Input Not Inverted \n1 = Z Input Is Inverted",null,"IJ, IK",0,"Stored Channel Data [Low Byte]",null,null,null,null,null,null,null,null,"IJ, IK",0,"Counter Control"]
[{"$f":"OR(IFERROR(MATCH(\"IJ\",'Conn Information'!$N$3:$N$65,0),0),IFERROR(MATCH(\"IK\",'Conn Information'!$N$3:$N$65,0),0))","v":false},"IJ,IK",null,1,"Filter Selection",null,null,null,null,null,null,null,120,"SINT",120,"Bit 0 to 3 (Filter_0 to 3)\n0000 = No Filter \n0001 = 50 kHz \n0010 = 5 kHz \n0100 = 500 Hz \n1000 = 50 Hz \n\nBit 4 to 6(Filter A, B and Z)\n0 = Input A/B/Z Not Filtered \n1 = Input A/B/Z Is Filtered",null,"IJ, IK",1,"Stored Channel [1]"]
[{"$f":"OR(IFERROR(MATCH(\"IJ\",'Conn Information'!$N$3:$N$65,0),0),IFERROR(MATCH(\"IK\",'Conn Information'!$N$3:$N$65,0),0))","v":false},"IJ,IK",null,2,"Decimal Position",null,null,null,null,null,null,null,0,"SINT",0,"Counter Config 0, 1, 2, 4:-\n128…+127  (0…255) \n\nCounter Config 5 & 7:\n-4…+2",null,"IJ, IK",2,"Stored Channel [2]"]
[{"$f":"OR(IFERROR(MATCH(\"IJ\",'Conn Information'!$N$3:$N$65,0),0),IFERROR(MATCH(\"IK\",'Conn Information'!$N$3:$N$65,0),0))","v":false},"IJ,IK",null,3,"Reserved",null,null,null,null,null,null,null,0,"SINT",0,null,null,"IJ, IK",3,"Stored Channel [High Byte]"]
[{"$f":"OR(IFERROR(MATCH(\"IJ\",'Conn Information'!$N$3:$N$65,0),0),IFERROR(MATCH(\"IK\",'Conn Information'!$N$3:$N$65,0),0))","v":false},"IJ,IK",null,4,"Time Base (low byte)",null,null,null,null,null,null,null,0,"INT",0,"Counter Config 7 only:  0…3000 ms (10 ms…3 sec)",null,"IJ, IK",4,"Status (Low Byte)"]
[{"$f":"OR(IFERROR(MATCH(\"IJ\",'Conn Information'!$N$3:$N$65,0),0),IFERROR(MATCH(\"IK\",'Conn Information'!$N$3:$N$65,0),0))","v":false},"IJ,IK",null,5,"Time Base (high byte)",null,null,null,null,null,null,null,null,null,null,null,null,"IJ, IK",5,"Status (High Byte)"]
[{"$f":"OR(IFERROR(MATCH(\"IJ\",'Conn Information'!$N$3:$N$65,0),0),IFERROR(MATCH(\"IK\",'Conn Information'!$N$3:$N$65,0),0))","v":false},"IJ,IK",null,6,"Gate Interval",null,null,null,null,null,null,null,0,"SINT",0,"Counter Config 7 only:-128…+127  (0…200)"]
[{"$f":"OR(IFERROR(MATCH(\"IJ\",'Conn Information'!$N$3:$N$65,0),0),IFERROR(MATCH(\"IK\",'Conn Information'!$N$3:$N$65,0),0))","v":false},"IJ,IK",null,7,"Scalar",null,null,null,null,null,null,null,0,"SINT",0,"Counter Config 5 only:-128…+127  (0…255) \n0, 1, 2, 4, 8, 16, 32, 64, -128"]
[{"$f":"OR(IFERROR(MATCH(\"IJ\",'Conn Information'!$N$3:$N$65,0),0),IFERROR(MATCH(\"IK\",'Conn Information'!$N$3:$N$65,0),0))","v":false},"IJ,IK",null,8,"Rollover Value [Low Byte]",null,null,null,null,null,null,null,-1,"DINT",16777215,"1…16,777,216"]
[{"$f":"OR(IFERROR(MATCH(\"IJ\",'Conn Information'!$N$3:$N$65,0),0),IFERROR(MATCH(\"IK\",'Conn Information'!$N$3:$N$65,0),0))","v":false},"IJ,IK",null,9,"Rollover Value [1]",null,null,null,null,null,null,null,-1]
[{"$f":"OR(IFERROR(MATCH(\"IJ\",'Conn Information'!$N$3:$N$65,0),0),IFERROR(MATCH(\"IK\",'Conn Information'!$N$3:$N$65,0),0))","v":false},"IJ,IK",null,10,"Rollover Value [2]",null,null,null,null,null,null,null,-1]
[{"$f":"OR(IFERROR(MATCH(\"IJ\",'Conn Information'!$N$3:$N$65,0),0),IFERROR(MATCH(\"IK\",'Conn Information'!$N$3:$N$65,0),0))","v":false},"IJ,IK",null,11,"Rollover Value [High Byte]",null,null,null,null,null,null,null,0]
[{"$f":"OR(IFERROR(MATCH(\"IJ\",'Conn Information'!$N$3:$N$65,0),0),IFERROR(MATCH(\"IK\",'Conn Information'!$N$3:$N$65,0),0))","v":false},"IJ,IK",null,12,"Preset Value [Low Byte]",null,null,null,null,null,null,null,0,"DINT",0,"0…16,777,215"]
[{"$f":"OR(IFERROR(MATCH(\"IJ\",'Conn Information'!$N$3:$N$65,0),0),IFERROR(MATCH(\"IK\",'Conn Information'!$N$3:$N$65,0),0))","v":false},"IJ,IK",null,13,"Preset Value [1]",null,null,null,null,null,null,null,0]
[{"$f":"OR(IFERROR(MATCH(\"IJ\",'Conn Information'!$N$3:$N$65,0),0),IFERROR(MATCH(\"IK\",'Conn Information'!$N$3:$N$65,0),0))","v":false},"IJ,IK",null,14,"Preset Value [2]",null,null,null,null,null,null,null,0]
[{"$f":"OR(IFERROR(MATCH(\"IJ\",'Conn Information'!$N$3:$N$65,0),0),IFERROR(MATCH(\"IK\",'Conn Information'!$N$3:$N$65,0),0))","v":false},"IJ,IK",null,15,"Preset Value [High Byte]",null,null,null,null,null,null,null,0]
[{"$f":"OR(IFERROR(MATCH(\"IJ\",'Conn Information'!$N$3:$N$65,0),0),IFERROR(MATCH(\"IK\",'Conn Information'!$N$3:$N$65,0),0))","v":false},"IJ,IK",null,16,"Counter Control SSV",null,null,null,null,null,null,null,0,"SINT",0,"Counter Reset (Bit 0)\n0 = Count Unchanged \n1 = Count Cleared \n\nCounter Preset (Bit 1)\n0 = Count Unchanged \n1 = Count Set to Preset \n\nValue Reset (Bit 2)\n0 = Count Unchanged \n1 = Count Cleared"]
[{"$f":"OR(IFERROR(MATCH(\"IJ\",'Conn Information'!$N$3:$N$65,0),0),IFERROR(MATCH(\"IK\",'Conn Information'!$N$3:$N$65,0),0))","v":false},"IJ,IK",null,17,"Reserved (Set to 0)",null,null,null,null,null,null,null,0,"SINT",0]
[{"$f":"OR(IFERROR(MATCH(\"IE2C\",'Conn Information'!$N$3:$N$65,0),0),0)","v":false},"IE2C",123,0,"Low Engineering Channel 0 (Low Byte)",null,null,null,null,null,null,null,-51,"INT",3277,"-32,768…32,767",null,"IE2C",0,"Channel 0 Data (Low Byte)"]
[{"$f":"OR(IFERROR(MATCH(\"IE2C\",'Conn Information'!$N$3:$N$65,0),0),0)","v":false},"IE2C",null,1,"Low Engineering Channel 0 (High Byte)",null,null,null,null,null,null,null,12,null,null,null,null,"IE2C",1,"Channel 0 Data (High Byte)"]
[{"$f":"OR(IFERROR(MATCH(\"IE2C\",'Conn Information'!$N$3:$N$65,0),0),0)","v":false},"IE2C",null,2,"High Engineering Channel 0 (Low Byte)",null,null,null,null,null,null,null,-1,"INT",16383,"-32,768…32,767",null,"IE2C",2,"Channel 1 Data (Low Byte)"]
[{"$f":"OR(IFERROR(MATCH(\"IE2C\",'Conn Information'!$N$3:$N$65,0),0),0)","v":false},"IE2C",null,3,"High Engineering Channel 0 (High Byte)",null,null,null,null,null,null,null,63,null,null,null,null,"IE2C",3,"Channel 1 Data (High Byte)"]
[{"$f":"OR(IFERROR(MATCH(\"IE2C\",'Conn Information'!$N$3:$N$65,0),0),0)","v":false},"IE2C",null,4,"Digital Filter Channel 0 (Low Byte)",null,null,null,null,null,null,null,0,"INT",0,"0…10,000ms",null,"IE2C",4,"Channel 0 Status"]
[{"$f":"OR(IFERROR(MATCH(\"IE2C\",'Conn Information'!$N$3:$N$65,0),0),0)","v":false},"IE2C",null,5,"Digital Filter Channel 0 (High Byte)",null,null,null,null,null,null,null,0,null,null,null,null,"IE2C",5,"Channel 1 Status"]
[{"$f":"OR(IFERROR(MATCH(\"IE2C\",'Conn Information'!$N$3:$N$65,0),0),0)","v":false},"IE2C",null,6,"Low Alarm Channel 0 (Low Byte)",null,null,null,null,null,null,null,41,"INT",3113,"-32,768…32,767"]
[{"$f":"OR(IFERROR(MATCH(\"IE2C\",'Conn Information'!$N$3:$N$65,0),0),0)","v":false},"IE2C",null,7,"Low Alarm Channel 0 (High Byte)",null,null,null,null,null,null,null,12]
[{"$f":"OR(IFERROR(MATCH(\"IE2C\",'Conn Information'!$N$3:$N$65,0),0),0)","v":false},"IE2C",null,8,"High Alarm Channel 0 (Low Byte)",null,null,null,null,null,null,null,-93,"INT",16547,"-32,768…32,767"]
[{"$f":"OR(IFERROR(MATCH(\"IE2C\",'Conn Information'!$N$3:$N$65,0),0),0)","v":false},"IE2C",null,9,"High Alarm Channel 0 (High Byte)",null,null,null,null,null,null,null,64]
[{"$f":"OR(IFERROR(MATCH(\"IE2C\",'Conn Information'!$N$3:$N$65,0),0),0)","v":false},"IE2C",null,10,"Low Low Alarm Channel 0 (Low Byte)",null,null,null,null,null,null,null,51,"INT",2867,"-32,768…32,767"]
[{"$f":"OR(IFERROR(MATCH(\"IE2C\",'Conn Information'!$N$3:$N$65,0),0),0)","v":false},"IE2C",null,11,"Low Low Alarm Channel 0 (High Byte)",null,null,null,null,null,null,null,11]
[{"$f":"OR(IFERROR(MATCH(\"IE2C\",'Conn Information'!$N$3:$N$65,0),0),0)","v":false},"IE2C",null,12,"High High Alarm Channel 0 (Low Byte)",null,null,null,null,null,null,null,-103,"INT",16793,"-32,768…32,767"]
[{"$f":"OR(IFERROR(MATCH(\"IE2C\",'Conn Information'!$N$3:$N$65,0),0),0)","v":false},"IE2C",null,13,"High High Alarm Channel 0 (High Byte)",null,null,null,null,null,null,null,65]
[{"$f":"OR(IFERROR(MATCH(\"IE2C\",'Conn Information'!$N$3:$N$65,0),0),0)","v":false},"IE2C",null,14,"Range Channel 0",null,null,null,null,null,null,null,3,"SINT",3,"3 = 4-20mA\n8 = 0-20mA"]
[{"$f":"OR(IFERROR(MATCH(\"IE2C\",'Conn Information'!$N$3:$N$65,0),0),0)","v":false},"IE2C",null,15,"Alarm Latch Channel 0",null,null,null,null,null,null,null,0,"SINT",0,"0 = No Latching\n1 = Alarms Latch"]
[{"$f":"OR(IFERROR(MATCH(\"IE2C\",'Conn Information'!$N$3:$N$65,0),0),0)","v":false},"IE2C",null,16,"Alarm Disable Channel 0",null,null,null,null,null,null,null,0,"SINT",0,"0 = Alarms Enabled\n1 = Alarms Disabled"]
[{"$f":"OR(IFERROR(MATCH(\"IE2C\",'Conn Information'!$N$3:$N$65,0),0),0)","v":false},"IE2C",null,17,"Alignment (reserved =0)",null,null,null,null,null,null,null,0,"SINT",0]
[{"$f":"OR(IFERROR(MATCH(\"IE2C\",'Conn Information'!$N$3:$N$65,0),0),0)","v":false},"IE2C",null,18,"Low Engineering Channel 1 (Low Byte)",null,null,null,null,null,null,null,-51,"INT",3277,"-32,768…32,767"]
[{"$f":"OR(IFERROR(MATCH(\"IE2C\",'Conn Information'!$N$3:$N$65,0),0),0)","v":false},"IE2C",null,19,"Low Engineering Channel 1 (High Byte)",null,null,null,null,null,null,null,12]
[{"$f":"OR(IFERROR(MATCH(\"IE2C\",'Conn Information'!$N$3:$N$65,0),0),0)","v":false},"IE2C",null,20,"High Engineering Channel 1 (Low Byte)",null,null,null,null,null,null,null,-1,"INT",16383,"-32,768…32,767"]
[{"$f":"OR(IFERROR(MATCH(\"IE2C\",'Conn Information'!$N$3:$N$65,0),0),0)","v":false},"IE2C",null,21,"High Engineering Channel 1 (High Byte)",null,null,null,null,null,null,null,63]
[{"$f":"OR(IFERROR(MATCH(\"IE2C\",'Conn Information'!$N$3:$N$65,0),0),0)","v":false},"IE2C",null,22,"Digital Filter Channel 1 (Low Byte)",null,null,null,null,null,null,null,0,"INT",0,"0…10,000ms"]
[{"$f":"OR(IFERROR(MATCH(\"IE2C\",'Conn Information'!$N$3:$N$65,0),0),0)","v":false},"IE2C",null,23,"Digital Filter Channel 1 (High Byte)",null,null,null,null,null,null,null,0]
[{"$f":"OR(IFERROR(MATCH(\"IE2C\",'Conn Information'!$N$3:$N$65,0),0),0)","v":false},"IE2C",null,24,"Low Alarm Channel 1 (Low Byte)",null,null,null,null,null,null,null,41,"INT",3113,"-32,768…32,767"]
[{"$f":"OR(IFERROR(MATCH(\"IE2C\",'Conn Information'!$N$3:$N$65,0),0),0)","v":false},"IE2C",null,25,"Low Alarm Channel 1 (High Byte)",null,null,null,null,null,null,null,12]
[{"$f":"OR(IFERROR(MATCH(\"IE2C\",'Conn Information'!$N$3:$N$65,0),0),0)","v":false},"IE2C",null,26,"High Alarm Channel 1 (Low Byte)",null,null,null,null,null,null,null,-93,"INT",16547,"-32,768…32,767"]
[{"$f":"OR(IFERROR(MATCH(\"IE2C\",'Conn Information'!$N$3:$N$65,0),0),0)","v":false},"IE2C",null,27,"High Alarm Channel 1 (High Byte)",null,null,null,null,null,null,null,64]
[{"$f":"OR(IFERROR(MATCH(\"IE2C\",'Conn Information'!$N$3:$N$65,0),0),0)","v":false},"IE2C",null,28,"Low Low Alarm Channel 1 (Low Byte)",null,null,null,null,null,null,null,51,"INT",2867,"-32,768…32,767"]
[{"$f":"OR(IFERROR(MATCH(\"IE2C\",'Conn Information'!$N$3:$N$65,0),0),0)","v":false},"IE2C",null,29,"Low Low Alarm Channel 1 (High Byte)",null,null,null,null,null,null,null,11]
[{"$f":"OR(IFERROR(MATCH(\"IE2C\",'Conn Information'!$N$3:$N$65,0),0),0)","v":false},"IE2C",null,30,"High High Alarm Channel 1 (Low Byte)",null,null,null,null,null,null,null,-103,"INT",16793,"-32,768…32,767"]
[{"$f":"OR(IFERROR(MATCH(\"IE2C\",'Conn Information'!$N$3:$N$65,0),0),0)","v":false},"IE2C",null,31,"High High Alarm Channel 1 (High Byte)",null,null,null,null,null,null,null,65]
[{"$f":"OR(IFERROR(MATCH(\"IE2C\",'Conn Information'!$N$3:$N$65,0),0),0)","v":false},"IE2C",null,32,"Range Channel 1",null,null,null,null,null,null,null,3,"SINT",3,"3 = 4-20mA\n8 = 0-20mA"]
[{"$f":"OR(IFERROR(MATCH(\"IE2C\",'Conn Information'!$N$3:$N$65,0),0),0)","v":false},"IE2C",null,33,"Alarm Latch Channel 1",null,null,null,null,null,null,null,0,"SINT",0,"0 = No Latching\n1 = Alarms Latch"]
[{"$f":"OR(IFERROR(MATCH(\"IE2C\",'Conn Information'!$N$3:$N$65,0),0),0)","v":false},"IE2C",null,34,"Alarm Disable Channel 1",null,null,null,null,null,null,null,0,"SINT",0,"0 = Alarms Enabled\n1 = Alarms Disabled"]
[{"$f":"OR(IFERROR(MATCH(\"IE2C\",'Conn Information'!$N$3:$N$65,0),0),0)","v":false},"IE2C",null,35,"Notch Filter",null,null,null,null,null,null,null,2,"SINT",2,"1 = 50Hz\n2 = 60Hz\n4 = 250Hz\n6 = 500Hz"]
[{"$f":"OR(IFERROR(MATCH(\"IE2C\",'Conn Information'!$N$3:$N$65,0),0),0)","v":false},"IE2C",null,36,"Update Rate (Low Byte)",null,null,null,null,null,null,null,100,"INT",100,"0….10,000ms"]
[{"$f":"OR(IFERROR(MATCH(\"IE2C\",'Conn Information'!$N$3:$N$65,0),0),0)","v":false},"IE2C",null,37,"Update Rate (High Byte)",null,null,null,null,null,null,null,0]
[{"$f":"OR(IFERROR(MATCH(\"IE2V\",'Conn Information'!$N$3:$N$65,0),0),0)","v":false},"IE2V",123,0,"Low Engineering Channel 0 (Low Byte)",null,null,null,null,null,null,null,0,"INT",0,"-32,768…32,767",null,"IE2V",0,"Channel 0 Data (Low Byte)"]
[{"$f":"OR(IFERROR(MATCH(\"IE2V\",'Conn Information'!$N$3:$N$65,0),0),0)","v":false},"IE2V",null,1,"Low Engineering Channel 0 (High Byte)",null,null,null,null,null,null,null,0,null,null,null,null,"IE2V",1,"Channel 0 Data (High Byte)"]
[{"$f":"OR(IFERROR(MATCH(\"IE2V\",'Conn Information'!$N$3:$N$65,0),0),0)","v":false},"IE2V",null,2,"High Engineering Channel 0 (Low Byte)",null,null,null,null,null,null,null,-1,"INT",10000,"-32,768…32,767",null,"IE2V",2,"Channel 1 Data (Low Byte)"]
[{"$f":"OR(IFERROR(MATCH(\"IE2V\",'Conn Information'!$N$3:$N$65,0),0),0)","v":false},"IE2V",null,3,"High Engineering Channel 0 (High Byte)",null,null,null,null,null,null,null,63,null,null,null,null,"IE2V",3,"Channel 1 Data (High Byte)"]
[{"$f":"OR(IFERROR(MATCH(\"IE2V\",'Conn Information'!$N$3:$N$65,0),0),0)","v":false},"IE2V",null,4,"Digital Filter Channel 0 (Low Byte)",null,null,null,null,null,null,null,0,"INT",0,"0…10,000ms",null,"IE2V",4,"Channel 0 Status"]
[{"$f":"OR(IFERROR(MATCH(\"IE2V\",'Conn Information'!$N$3:$N$65,0),0),0)","v":false},"IE2V",null,5,"Digital Filter Channel 0 (High Byte)",null,null,null,null,null,null,null,0,null,null,null,null,"IE2V",5,"Channel 1 Status"]
[{"$f":"OR(IFERROR(MATCH(\"IE2V\",'Conn Information'!$N$3:$N$65,0),0),0)","v":false},"IE2V",null,6,"Low Alarm Channel 0 (Low Byte)",null,null,null,null,null,null,null,41,"INT",500,"-32,768…32,767"]
[{"$f":"OR(IFERROR(MATCH(\"IE2V\",'Conn Information'!$N$3:$N$65,0),0),0)","v":false},"IE2V",null,7,"Low Alarm Channel 0 (High Byte)",null,null,null,null,null,null,null,12]
[{"$f":"OR(IFERROR(MATCH(\"IE2V\",'Conn Information'!$N$3:$N$65,0),0),0)","v":false},"IE2V",null,8,"High Alarm Channel 0 (Low Byte)",null,null,null,null,null,null,null,-93,"INT",9500,"-32,768…32,767"]
[{"$f":"OR(IFERROR(MATCH(\"IE2V\",'Conn Information'!$N$3:$N$65,0),0),0)","v":false},"IE2V",null,9,"High Alarm Channel 0 (High Byte)",null,null,null,null,null,null,null,64]
[{"$f":"OR(IFERROR(MATCH(\"IE2V\",'Conn Information'!$N$3:$N$65,0),0),0)","v":false},"IE2V",null,10,"Low Low Alarm Channel 0 (Low Byte)",null,null,null,null,null,null,null,51,"INT",200,"-32,768…32,767"]
[{"$f":"OR(IFERROR(MATCH(\"IE2V\",'Conn Information'!$N$3:$N$65,0),0),0)","v":false},"IE2V",null,11,"Low Low Alarm Channel 0 (High Byte)",null,null,null,null,null,null,null,11]
[{"$f":"OR(IFERROR(MATCH(\"IE2V\",'Conn Information'!$N$3:$N$65,0),0),0)","v":false},"IE2V",null,12,"High High Alarm Channel 0 (Low Byte)",null,null,null,null,null,null,null,-103,"INT",9800,"-32,768…32,767"]
[{"$f":"OR(IFERROR(MATCH(\"IE2V\",'Conn Information'!$N$3:$N$65,0),0),0)","v":false},"IE2V",null,13,"High High Alarm Channel 0 (High Byte)",null,null,null,null,null,null,null,65]
[{"$f":"OR(IFERROR(MATCH(\"IE2V\",'Conn Information'!$N$3:$N$65,0),0),0)","v":false},"IE2V",null,14,"Range Channel 0",null,null,null,null,null,null,null,3,"SINT",2,"0 = -10 - +10V\n2 = 0--10VA"]
[{"$f":"OR(IFERROR(MATCH(\"IE2V\",'Conn Information'!$N$3:$N$65,0),0),0)","v":false},"IE2V",null,15,"Alarm Latch Channel 0",null,null,null,null,null,null,null,0,"SINT",0,"0 = No Latching\n1 = Alarms Latch"]
[{"$f":"OR(IFERROR(MATCH(\"IE2V\",'Conn Information'!$N$3:$N$65,0),0),0)","v":false},"IE2V",null,16,"Alarm Disable Channel 0",null,null,null,null,null,null,null,0,"SINT",0,"0 = Alarms Enabled\n1 = Alarms Disabled"]
[{"$f":"OR(IFERROR(MATCH(\"IE2V\",'Conn Information'!$N$3:$N$65,0),0),0)","v":false},"IE2V",null,17,"Alignment (reserved =0)",null,null,null,null,null,null,null,0,"SINT",0]
[{"$f":"OR(IFERROR(MATCH(\"IE2V\",'Conn Information'!$N$3:$N$65,0),0),0)","v":false},"IE2V",null,18,"Low Engineering Channel 1 (Low Byte)",null,null,null,null,null,null,null,0,"INT",0,"-32,768…32,767"]
[{"$f":"OR(IFERROR(MATCH(\"IE2V\",'Conn Information'!$N$3:$N$65,0),0),0)","v":false},"IE2V",null,19,"Low Engineering Channel 1 (High Byte)",null,null,null,null,null,null,null,0]
[{"$f":"OR(IFERROR(MATCH(\"IE2V\",'Conn Information'!$N$3:$N$65,0),0),0)","v":false},"IE2V",null,20,"High Engineering Channel 1 (Low Byte)",null,null,null,null,null,null,null,16,"INT",10000,"-32,768…32,767"]
[{"$f":"OR(IFERROR(MATCH(\"IE2V\",'Conn Information'!$N$3:$N$65,0),0),0)","v":false},"IE2V",null,21,"High Engineering Channel 1 (High Byte)",null,null,null,null,null,null,null,39]
[{"$f":"OR(IFERROR(MATCH(\"IE2V\",'Conn Information'!$N$3:$N$65,0),0),0)","v":false},"IE2V",null,22,"Digital Filter Channel 1 (Low Byte)",null,null,null,null,null,null,null,0,"INT",0,"0…10,000ms"]
[{"$f":"OR(IFERROR(MATCH(\"IE2V\",'Conn Information'!$N$3:$N$65,0),0),0)","v":false},"IE2V",null,23,"Digital Filter Channel 1 (High Byte)",null,null,null,null,null,null,null,0]
[{"$f":"OR(IFERROR(MATCH(\"IE2V\",'Conn Information'!$N$3:$N$65,0),0),0)","v":false},"IE2V",null,24,"Low Alarm Channel 1 (Low Byte)",null,null,null,null,null,null,null,-12,"INT",500,"-32,768…32,767"]
[{"$f":"OR(IFERROR(MATCH(\"IE2V\",'Conn Information'!$N$3:$N$65,0),0),0)","v":false},"IE2V",null,25,"Low Alarm Channel 1 (High Byte)",null,null,null,null,null,null,null,1]
[{"$f":"OR(IFERROR(MATCH(\"IE2V\",'Conn Information'!$N$3:$N$65,0),0),0)","v":false},"IE2V",null,26,"High Alarm Channel 1 (Low Byte)",null,null,null,null,null,null,null,28,"INT",9500,"-32,768…32,767"]
[{"$f":"OR(IFERROR(MATCH(\"IE2V\",'Conn Information'!$N$3:$N$65,0),0),0)","v":false},"IE2V",null,27,"High Alarm Channel 1 (High Byte)",null,null,null,null,null,null,null,37]
[{"$f":"OR(IFERROR(MATCH(\"IE2V\",'Conn Information'!$N$3:$N$65,0),0),0)","v":false},"IE2V",null,28,"Low Low Alarm Channel 1 (Low Byte)",null,null,null,null,null,null,null,-56,"INT",200,"-32,768…32,767"]
[{"$f":"OR(IFERROR(MATCH(\"IE2V\",'Conn Information'!$N$3:$N$65,0),0),0)","v":false},"IE2V",null,29,"Low Low Alarm Channel 1 (High Byte)",null,null,null,null,null,null,null,0]
[{"$f":"OR(IFERROR(MATCH(\"IE2V\",'Conn Information'!$N$3:$N$65,0),0),0)","v":false},"IE2V",null,30,"High High Alarm Channel 1 (Low Byte)",null,null,null,null,null,null,null,72,"INT",9800,"-32,768…32,767"]
[{"$f":"OR(IFERROR(MATCH(\"IE2V\",'Conn Information'!$N$3:$N$65,0),0),0)","v":false},"IE2V",null,31,"High High Alarm Channel 1 (High Byte)",null,null,null,null,null,null,null,38]
[{"$f":"OR(IFERROR(MATCH(\"IE2V\",'Conn Information'!$N$3:$N$65,0),0),0)","v":false},"IE2V",null,32,"Range Channel 1",null,null,null,null,null,null,null,2,"SINT",2,"0 = -10 - +10V\n2 = 0--10VA"]
[{"$f":"OR(IFERROR(MATCH(\"IE2V\",'Conn Information'!$N$3:$N$65,0),0),0)","v":false},"IE2V",null,33,"Alarm Latch Channel 1",null,null,null,null,null,null,null,0,"SINT",0,"0 = No Latching\n1 = Alarms Latch"]
[{"$f":"OR(IFERROR(MATCH(\"IE2V\",'Conn Information'!$N$3:$N$65,0),0),0)","v":false},"IE2V",null,34,"Alarm Disable Channel 1",null,null,null,null,null,null,null,0,"SINT",0,"0 = Alarms Enabled\n1 = Alarms Disabled"]
[{"$f":"OR(IFERROR(MATCH(\"IE2V\",'Conn Information'!$N$3:$N$65,0),0),0)","v":false},"IE2V",null,35,"Notch Filter",null,null,null,null,null,null,null,2,"SINT",2,"1 = 50Hz\n2 = 60Hz\n4 = 250Hz\n6 = 500Hz"]
[{"$f":"OR(IFERROR(MATCH(\"IE2V\",'Conn Information'!$N$3:$N$65,0),0),0)","v":false},"IE2V",null,36,"Update Rate (Low Byte)",null,null,null,null,null,null,null,100,"INT",100,"0….10,000ms"]
[{"$f":"OR(IFERROR(MATCH(\"IE2V\",'Conn Information'!$N$3:$N$65,0),0),0)","v":false},"IE2V",null,37,"Update Rate (High Byte)",null,null,null,null,null,null,null,0]
[{"$f":"OR(IFERROR(MATCH(\"IE4C\",'Conn Information'!$N$3:$N$65,0),0),0)","v":false},"IE4C",123,0,"Low Engineering Channel 0 (Low Byte)",null,null,null,null,null,null,null,-51,"INT",3277,"-32,768…32,767",null,"IE4C",0,"Channel 0 Data (Low Byte)"]
[{"$f":"OR(IFERROR(MATCH(\"IE4C\",'Conn Information'!$N$3:$N$65,0),0),0)","v":false},"IE4C",null,1,"Low Engineering Channel 0 (High Byte)",null,null,null,null,null,null,null,12,null,null,null,null,"IE4C",1,"Channel 0 Data (High Byte)"]
[{"$f":"OR(IFERROR(MATCH(\"IE4C\",'Conn Information'!$N$3:$N$65,0),0),0)","v":false},"IE4C",null,2,"High Engineering Channel 0 (Low Byte)",null,null,null,null,null,null,null,-1,"INT",16383,"-32,768…32,767",null,"IE4C",2,"Channel 1 Data (Low Byte)"]
[{"$f":"OR(IFERROR(MATCH(\"IE4C\",'Conn Information'!$N$3:$N$65,0),0),0)","v":false},"IE4C",null,3,"High Engineering Channel 0 (High Byte)",null,null,null,null,null,null,null,63,null,null,null,null,"IE4C",3,"Channel 1 Data (High Byte)"]
[{"$f":"OR(IFERROR(MATCH(\"IE4C\",'Conn Information'!$N$3:$N$65,0),0),0)","v":false},"IE4C",null,4,"Digital Filter Channel 0 (Low Byte)",null,null,null,null,null,null,null,0,"INT",0,"0…10,000ms",null,"IE4C",4,"Channel 2 Data (Low Byte)"]
[{"$f":"OR(IFERROR(MATCH(\"IE4C\",'Conn Information'!$N$3:$N$65,0),0),0)","v":false},"IE4C",null,5,"Digital Filter Channel 0 (High Byte)",null,null,null,null,null,null,null,0,null,null,null,null,"IE4C",5,"Channel 2 Data (High Byte)"]
[{"$f":"OR(IFERROR(MATCH(\"IE4C\",'Conn Information'!$N$3:$N$65,0),0),0)","v":false},"IE4C",null,6,"Low Alarm Channel 0 (Low Byte)",null,null,null,null,null,null,null,41,"INT",3113,"-32,768…32,767",null,"IE4C",6,"Channel 3 Data (Low Byte)"]
[{"$f":"OR(IFERROR(MATCH(\"IE4C\",'Conn Information'!$N$3:$N$65,0),0),0)","v":false},"IE4C",null,7,"Low Alarm Channel 0 (High Byte)",null,null,null,null,null,null,null,12,null,null,null,null,"IE4C",7,"Channel 3 Data (High Byte)"]
[{"$f":"OR(IFERROR(MATCH(\"IE4C\",'Conn Information'!$N$3:$N$65,0),0),0)","v":false},"IE4C",null,8,"High Alarm Channel 0 (Low Byte)",null,null,null,null,null,null,null,-93,"INT",16547,"-32,768…32,767",null,"IE4C",8,"Channel 0 Status"]
[{"$f":"OR(IFERROR(MATCH(\"IE4C\",'Conn Information'!$N$3:$N$65,0),0),0)","v":false},"IE4C",null,9,"High Alarm Channel 0 (High Byte)",null,null,null,null,null,null,null,64,null,null,null,null,"IE4C",9,"Channel 1 Status"]
[{"$f":"OR(IFERROR(MATCH(\"IE4C\",'Conn Information'!$N$3:$N$65,0),0),0)","v":false},"IE4C",null,10,"Low Low Alarm Channel 0 (Low Byte)",null,null,null,null,null,null,null,51,"INT",2867,"-32,768…32,767",null,"IE4C",10,"Channel 2 Status"]
[{"$f":"OR(IFERROR(MATCH(\"IE4C\",'Conn Information'!$N$3:$N$65,0),0),0)","v":false},"IE4C",null,11,"Low Low Alarm Channel 0 (High Byte)",null,null,null,null,null,null,null,11,null,null,null,null,"IE4C",11,"Channel 3 Status"]
[{"$f":"OR(IFERROR(MATCH(\"IE4C\",'Conn Information'!$N$3:$N$65,0),0),0)","v":false},"IE4C",null,12,"High High Alarm Channel 0 (Low Byte)",null,null,null,null,null,null,null,-103,"INT",16793,"-32,768…32,767"]
[{"$f":"OR(IFERROR(MATCH(\"IE4C\",'Conn Information'!$N$3:$N$65,0),0),0)","v":false},"IE4C",null,13,"High High Alarm Channel 0 (High Byte)",null,null,null,null,null,null,null,65]
[{"$f":"OR(IFERROR(MATCH(\"IE4C\",'Conn Information'!$N$3:$N$65,0),0),0)","v":false},"IE4C",null,14,"Range Channel 0",null,null,null,null,null,null,null,3,"SINT",3,"3 = 4-20mA\n8 = 0-20mA"]
[{"$f":"OR(IFERROR(MATCH(\"IE4C\",'Conn Information'!$N$3:$N$65,0),0),0)","v":false},"IE4C",null,15,"Alarm Latch Channel 0",null,null,null,null,null,null,null,0,"SINT",0,"0 = No Latching\n1 = Alarms Latch"]
[{"$f":"OR(IFERROR(MATCH(\"IE4C\",'Conn Information'!$N$3:$N$65,0),0),0)","v":false},"IE4C",null,16,"Alarm Disable Channel 0",null,null,null,null,null,null,null,0,"SINT",0,"0 = Alarms Enabled\n1 = Alarms Disabled"]
[{"$f":"OR(IFERROR(MATCH(\"IE4C\",'Conn Information'!$N$3:$N$65,0),0),0)","v":false},"IE4C",null,17,"Alignment (reserved =0)",null,null,null,null,null,null,null,0,"SINT",0]
[{"$f":"OR(IFERROR(MATCH(\"IE4C\",'Conn Information'!$N$3:$N$65,0),0),0)","v":false},"IE4C",null,18,"Low Engineering Channel 1 (Low Byte)",null,null,null,null,null,null,null,-51,"INT",3277,"-32,768…32,767"]
[{"$f":"OR(IFERROR(MATCH(\"IE4C\",'Conn Information'!$N$3:$N$65,0),0),0)","v":false},"IE4C",null,19,"Low Engineering Channel 1 (High Byte)",null,null,null,null,null,null,null,12]
[{"$f":"OR(IFERROR(MATCH(\"IE4C\",'Conn Information'!$N$3:$N$65,0),0),0)","v":false},"IE4C",null,20,"High Engineering Channel 1 (Low Byte)",null,null,null,null,null,null,null,-1,"INT",16383,"-32,768…32,767"]
[{"$f":"OR(IFERROR(MATCH(\"IE4C\",'Conn Information'!$N$3:$N$65,0),0),0)","v":false},"IE4C",null,21,"High Engineering Channel 1 (High Byte)",null,null,null,null,null,null,null,63]
[{"$f":"OR(IFERROR(MATCH(\"IE4C\",'Conn Information'!$N$3:$N$65,0),0),0)","v":false},"IE4C",null,22,"Digital Filter Channel 1 (Low Byte)",null,null,null,null,null,null,null,0,"INT",0,"0…10,000ms"]
[{"$f":"OR(IFERROR(MATCH(\"IE4C\",'Conn Information'!$N$3:$N$65,0),0),0)","v":false},"IE4C",null,23,"Digital Filter Channel 1 (High Byte)",null,null,null,null,null,null,null,0]
[{"$f":"OR(IFERROR(MATCH(\"IE4C\",'Conn Information'!$N$3:$N$65,0),0),0)","v":false},"IE4C",null,24,"Low Alarm Channel 1 (Low Byte)",null,null,null,null,null,null,null,41,"INT",3113,"-32,768…32,767"]
[{"$f":"OR(IFERROR(MATCH(\"IE4C\",'Conn Information'!$N$3:$N$65,0),0),0)","v":false},"IE4C",null,25,"Low Alarm Channel 1 (High Byte)",null,null,null,null,null,null,null,12]
[{"$f":"OR(IFERROR(MATCH(\"IE4C\",'Conn Information'!$N$3:$N$65,0),0),0)","v":false},"IE4C",null,26,"High Alarm Channel 1 (Low Byte)",null,null,null,null,null,null,null,-93,"INT",16547,"-32,768…32,767"]
[{"$f":"OR(IFERROR(MATCH(\"IE4C\",'Conn Information'!$N$3:$N$65,0),0),0)","v":false},"IE4C",null,27,"High Alarm Channel 1 (High Byte)",null,null,null,null,null,null,null,64]
[{"$f":"OR(IFERROR(MATCH(\"IE4C\",'Conn Information'!$N$3:$N$65,0),0),0)","v":false},"IE4C",null,28,"Low Low Alarm Channel 1 (Low Byte)",null,null,null,null,null,null,null,51,"INT",2867,"-32,768…32,767"]
[{"$f":"OR(IFERROR(MATCH(\"IE4C\",'Conn Information'!$N$3:$N$65,0),0),0)","v":false},"IE4C",null,29,"Low Low Alarm Channel 1 (High Byte)",null,null,null,null,null,null,null,11]
[{"$f":"OR(IFERROR(MATCH(\"IE4C\",'Conn Information'!$N$3:$N$65,0),0),0)","v":false},"IE4C",null,30,"High High Alarm Channel 1 (Low Byte)",null,null,null,null,null,null,null,-103,"INT",16793,"-32,768…32,767"]
[{"$f":"OR(IFERROR(MATCH(\"IE4C\",'Conn Information'!$N$3:$N$65,0),0),0)","v":false},"IE4C",null,31,"High High Alarm Channel 1 (High Byte)",null,null,null,null,null,null,null,65]
[{"$f":"OR(IFERROR(MATCH(\"IE4C\",'Conn Information'!$N$3:$N$65,0),0),0)","v":false},"IE4C",null,32,"Range Channel 1",null,null,null,null,null,null,null,3,"SINT",3,"3 = 4-20mA\n8 = 0-20mA"]
[{"$f":"OR(IFERROR(MATCH(\"IE4C\",'Conn Information'!$N$3:$N$65,0),0),0)","v":false},"IE4C",null,33,"Alarm Latch Channel 1",null,null,null,null,null,null,null,0,"SINT",0,"0 = No Latching\n1 = Alarms Latch"]
[{"$f":"OR(IFERROR(MATCH(\"IE4C\",'Conn Information'!$N$3:$N$65,0),0),0)","v":false},"IE4C",null,34,"Alarm Disable Channel 1",null,null,null,null,null,null,null,0,"SINT",0,"0 = Alarms Enabled\n1 = Alarms Disabled"]
[{"$f":"OR(IFERROR(MATCH(\"IE4C\",'Conn Information'!$N$3:$N$65,0),0),0)","v":false},"IE4C",null,35,"Alignment (reserved =0)",null,null,null,null,null,null,null,0,"SINT",0]
[{"$f":"OR(IFERROR(MATCH(\"IE4C\",'Conn Information'!$N$3:$N$65,0),0),0)","v":false},"IE4C",null,36,"Low Engineering Channel 2 (Low Byte)",null,null,null,null,null,null,null,-51,"INT",3277,"-32,768…32,767"]
[{"$f":"OR(IFERROR(MATCH(\"IE4C\",'Conn Information'!$N$3:$N$65,0),0),0)","v":false},"IE4C",null,37,"Low Engineering Channel 2 (High Byte)",null,null,null,null,null,null,null,12]
[{"$f":"OR(IFERROR(MATCH(\"IE4C\",'Conn Information'!$N$3:$N$65,0),0),0)","v":false},"IE4C",null,38,"High Engineering Channel 2 (Low Byte)",null,null,null,null,null,null,null,-1,"INT",16383,"-32,768…32,767"]
[{"$f":"OR(IFERROR(MATCH(\"IE4C\",'Conn Information'!$N$3:$N$65,0),0),0)","v":false},"IE4C",null,39,"High Engineering Channel 2 (High Byte)",null,null,null,null,null,null,null,63]
[{"$f":"OR(IFERROR(MATCH(\"IE4C\",'Conn Information'!$N$3:$N$65,0),0),0)","v":false},"IE4C",null,40,"Digital Filter Channel 2 (Low Byte)",null,null,null,null,null,null,null,0,"INT",0,"0…10,000ms"]
[{"$f":"OR(IFERROR(MATCH(\"IE4C\",'Conn Information'!$N$3:$N$65,0),0),0)","v":false},"IE4C",null,41,"Digital Filter Channel 2 (High Byte)",null,null,null,null,null,null,null,0]
[{"$f":"OR(IFERROR(MATCH(\"IE4C\",'Conn Information'!$N$3:$N$65,0),0),0)","v":false},"IE4C",null,42,"Low Alarm Channel 2 (Low Byte)",null,null,null,null,null,null,null,41,"INT",3113,"-32,768…32,767"]
[{"$f":"OR(IFERROR(MATCH(\"IE4C\",'Conn Information'!$N$3:$N$65,0),0),0)","v":false},"IE4C",null,43,"Low Alarm Channel 2 (High Byte)",null,null,null,null,null,null,null,12]
[{"$f":"OR(IFERROR(MATCH(\"IE4C\",'Conn Information'!$N$3:$N$65,0),0),0)","v":false},"IE4C",null,44,"High Alarm Channel 2 (Low Byte)",null,null,null,null,null,null,null,-93,"INT",16547,"-32,768…32,767"]
[{"$f":"OR(IFERROR(MATCH(\"IE4C\",'Conn Information'!$N$3:$N$65,0),0),0)","v":false},"IE4C",null,45,"High Alarm Channel 2 (High Byte)",null,null,null,null,null,null,null,64]
[{"$f":"OR(IFERROR(MATCH(\"IE4C\",'Conn Information'!$N$3:$N$65,0),0),0)","v":false},"IE4C",null,46,"Low Low Alarm Channel 2 (Low Byte)",null,null,null,null,null,null,null,51,"INT",2867,"-32,768…32,767"]
[{"$f":"OR(IFERROR(MATCH(\"IE4C\",'Conn Information'!$N$3:$N$65,0),0),0)","v":false},"IE4C",null,47,"Low Low Alarm Channel 2 (High Byte)",null,null,null,null,null,null,null,11]
[{"$f":"OR(IFERROR(MATCH(\"IE4C\",'Conn Information'!$N$3:$N$65,0),0),0)","v":false},"IE4C",null,48,"High High Alarm Channel 2 (Low Byte)",null,null,null,null,null,null,null,-103,"INT",16793,"-32,768…32,767"]
[{"$f":"OR(IFERROR(MATCH(\"IE4C\",'Conn Information'!$N$3:$N$65,0),0),0)","v":false},"IE4C",null,49,"High High Alarm Channel 2 (High Byte)",null,null,null,null,null,null,null,65]
[{"$f":"OR(IFERROR(MATCH(\"IE4C\",'Conn Information'!$N$3:$N$65,0),0),0)","v":false},"IE4C",null,50,"Range Channel 2",null,null,null,null,null,null,null,3,"SINT",3,"3 = 4-20mA\n8 = 0-20mA"]
[{"$f":"OR(IFERROR(MATCH(\"IE4C\",'Conn Information'!$N$3:$N$65,0),0),0)","v":false},"IE4C",null,51,"Alarm Latch Channel 2",null,null,null,null,null,null,null,0,"SINT",0,"0 = No Latching\n1 = Alarms Latch"]
[{"$f":"OR(IFERROR(MATCH(\"IE4C\",'Conn Information'!$N$3:$N$65,0),0),0)","v":false},"IE4C",null,52,"Alarm Disable Channel 2",null,null,null,null,null,null,null,0,"SINT",0,"0 = Alarms Enabled\n1 = Alarms Disabled"]
[{"$f":"OR(IFERROR(MATCH(\"IE4C\",'Conn Information'!$N$3:$N$65,0),0),0)","v":false},"IE4C",null,53,"Alignment (reserved =0)",null,null,null,null,null,null,null,0,"SINT",0]
[{"$f":"OR(IFERROR(MATCH(\"IE4C\",'Conn Information'!$N$3:$N$65,0),0),0)","v":false},"IE4C",null,54,"Low Engineering Channel 3 (Low Byte)",null,null,null,null,null,null,null,-51,"INT",3277,"-32,768…32,767"]
[{"$f":"OR(IFERROR(MATCH(\"IE4C\",'Conn Information'!$N$3:$N$65,0),0),0)","v":false},"IE4C",null,55,"Low Engineering Channel 3 (High Byte)",null,null,null,null,null,null,null,12]
[{"$f":"OR(IFERROR(MATCH(\"IE4C\",'Conn Information'!$N$3:$N$65,0),0),0)","v":false},"IE4C",null,56,"High Engineering Channel 3 (Low Byte)",null,null,null,null,null,null,null,-1,"INT",16383,"-32,768…32,767"]
[{"$f":"OR(IFERROR(MATCH(\"IE4C\",'Conn Information'!$N$3:$N$65,0),0),0)","v":false},"IE4C",null,57,"High Engineering Channel 3 (High Byte)",null,null,null,null,null,null,null,63]
[{"$f":"OR(IFERROR(MATCH(\"IE4C\",'Conn Information'!$N$3:$N$65,0),0),0)","v":false},"IE4C",null,58,"Digital Filter Channel 3 (Low Byte)",null,null,null,null,null,null,null,0,"INT",0,"0…10,000ms"]
[{"$f":"OR(IFERROR(MATCH(\"IE4C\",'Conn Information'!$N$3:$N$65,0),0),0)","v":false},"IE4C",null,59,"Digital Filter Channel 3 (High Byte)",null,null,null,null,null,null,null,0]
[{"$f":"OR(IFERROR(MATCH(\"IE4C\",'Conn Information'!$N$3:$N$65,0),0),0)","v":false},"IE4C",null,60,"Low Alarm Channel 3 (Low Byte)",null,null,null,null,null,null,null,41,"INT",3113,"-32,768…32,767"]
[{"$f":"OR(IFERROR(MATCH(\"IE4C\",'Conn Information'!$N$3:$N$65,0),0),0)","v":false},"IE4C",null,61,"Low Alarm Channel 3 (High Byte)",null,null,null,null,null,null,null,12]
[{"$f":"OR(IFERROR(MATCH(\"IE4C\",'Conn Information'!$N$3:$N$65,0),0),0)","v":false},"IE4C",null,62,"High Alarm Channel 3 (Low Byte)",null,null,null,null,null,null,null,-93,"INT",16547,"-32,768…32,767"]
[{"$f":"OR(IFERROR(MATCH(\"IE4C\",'Conn Information'!$N$3:$N$65,0),0),0)","v":false},"IE4C",null,63,"High Alarm Channel 3 (High Byte)",null,null,null,null,null,null,null,64]
[{"$f":"OR(IFERROR(MATCH(\"IE4C\",'Conn Information'!$N$3:$N$65,0),0),0)","v":false},"IE4C",null,64,"Low Low Alarm Channel 3 (Low Byte)",null,null,null,null,null,null,null,51,"INT",2867,"-32,768…32,767"]
[{"$f":"OR(IFERROR(MATCH(\"IE4C\",'Conn Information'!$N$3:$N$65,0),0),0)","v":false},"IE4C",null,65,"Low Low Alarm Channel 3 (High Byte)",null,null,null,null,null,null,null,11]
[{"$f":"OR(IFERROR(MATCH(\"IE4C\",'Conn Information'!$N$3:$N$65,0),0),0)","v":false},"IE4C",null,66,"High High Alarm Channel 3 (Low Byte)",null,null,null,null,null,null,null,-103,"INT",16793,"-32,768…32,767"]
[{"$f":"OR(IFERROR(MATCH(\"IE4C\",'Conn Information'!$N$3:$N$65,0),0),0)","v":false},"IE4C",null,67,"High High Alarm Channel 3 (High Byte)",null,null,null,null,null,null,null,65]
[{"$f":"OR(IFERROR(MATCH(\"IE4C\",'Conn Information'!$N$3:$N$65,0),0),0)","v":false},"IE4C",null,68,"Range Channel 3",null,null,null,null,null,null,null,3,"SINT",3,"3 = 4-20mA\n8 = 0-20mA"]
[{"$f":"OR(IFERROR(MATCH(\"IE4C\",'Conn Information'!$N$3:$N$65,0),0),0)","v":false},"IE4C",null,69,"Alarm Latch Channel 3",null,null,null,null,null,null,null,0,"SINT",0,"0 = No Latching\n1 = Alarms Latch"]
[{"$f":"OR(IFERROR(MATCH(\"IE4C\",'Conn Information'!$N$3:$N$65,0),0),0)","v":false},"IE4C",null,70,"Alarm Disable Channel 3",null,null,null,null,null,null,null,0,"SINT",0,"0 = Alarms Enabled\n1 = Alarms Disabled"]
[{"$f":"OR(IFERROR(MATCH(\"IE4C\",'Conn Information'!$N$3:$N$65,0),0),0)","v":false},"IE4C",null,71,"Notch Filter",null,null,null,null,null,null,null,2,"SINT",2,"1 = 50Hz\n2 = 60Hz\n4 = 250Hz\n6 = 500Hz"]
[{"$f":"OR(IFERROR(MATCH(\"IE4C\",'Conn Information'!$N$3:$N$65,0),0),0)","v":false},"IE4C",null,72,"Update Rate (Low Byte)",null,null,null,null,null,null,null,100,"INT",100,"0….10,000ms"]
[{"$f":"OR(IFERROR(MATCH(\"IE4C\",'Conn Information'!$N$3:$N$65,0),0),0)","v":false},"IE4C",null,73,"Update Rate (High Byte)",null,null,null,null,null,null,null,0]
[{"$f":"OR(IFERROR(MATCH(\"IE8C\",'Conn Information'!$N$3:$N$65,0),0),0)","v":false},"IE8C",123,0,"Low Engineering Channel 0 (Low Byte)",null,null,null,null,null,null,null,-51,"INT",3277,"-32,768…32,767",null,"IE8C",0,"Channel 0 Data (Low Byte)"]
[{"$f":"OR(IFERROR(MATCH(\"IE8C\",'Conn Information'!$N$3:$N$65,0),0),0)","v":false},"IE8C",null,1,"Low Engineering Channel 0 (High Byte)",null,null,null,null,null,null,null,12,null,null,null,null,"IE8C",1,"Channel 0 Data (High Byte)"]
[{"$f":"OR(IFERROR(MATCH(\"IE8C\",'Conn Information'!$N$3:$N$65,0),0),0)","v":false},"IE8C",null,2,"High Engineering Channel 0 (Low Byte)",null,null,null,null,null,null,null,-1,"INT",16383,"-32,768…32,767",null,"IE8C",2,"Channel 1 Data (Low Byte)"]
[{"$f":"OR(IFERROR(MATCH(\"IE8C\",'Conn Information'!$N$3:$N$65,0),0),0)","v":false},"IE8C",null,3,"High Engineering Channel 0 (High Byte)",null,null,null,null,null,null,null,63,null,null,null,null,"IE8C",3,"Channel 1 Data (High Byte)"]
[{"$f":"OR(IFERROR(MATCH(\"IE8C\",'Conn Information'!$N$3:$N$65,0),0),0)","v":false},"IE8C",null,4,"Digital Filter Channel 0 (Low Byte)",null,null,null,null,null,null,null,0,"INT",0,"0…10,000ms",null,"IE8C",4,"Channel 2 Data (Low Byte)"]
[{"$f":"OR(IFERROR(MATCH(\"IE8C\",'Conn Information'!$N$3:$N$65,0),0),0)","v":false},"IE8C",null,5,"Digital Filter Channel 0 (High Byte)",null,null,null,null,null,null,null,0,null,null,null,null,"IE8C",5,"Channel 2 Data (High Byte)"]
[{"$f":"OR(IFERROR(MATCH(\"IE8C\",'Conn Information'!$N$3:$N$65,0),0),0)","v":false},"IE8C",null,6,"Low Alarm Channel 0 (Low Byte)",null,null,null,null,null,null,null,41,"INT",3113,"-32,768…32,767",null,"IE8C",6,"Channel 3 Data (Low Byte)"]
[{"$f":"OR(IFERROR(MATCH(\"IE8C\",'Conn Information'!$N$3:$N$65,0),0),0)","v":false},"IE8C",null,7,"Low Alarm Channel 0 (High Byte)",null,null,null,null,null,null,null,12,null,null,null,null,"IE8C",7,"Channel 3 Data (High Byte)"]
[{"$f":"OR(IFERROR(MATCH(\"IE8C\",'Conn Information'!$N$3:$N$65,0),0),0)","v":false},"IE8C",null,8,"High Alarm Channel 0 (Low Byte)",null,null,null,null,null,null,null,-93,"INT",16547,"-32,768…32,767",null,"IE8C",8,"Channel 4 Data (Low Byte)"]
[{"$f":"OR(IFERROR(MATCH(\"IE8C\",'Conn Information'!$N$3:$N$65,0),0),0)","v":false},"IE8C",null,9,"High Alarm Channel 0 (High Byte)",null,null,null,null,null,null,null,64,null,null,null,null,"IE8C",9,"Channel 4 Data (High Byte)"]
[{"$f":"OR(IFERROR(MATCH(\"IE8C\",'Conn Information'!$N$3:$N$65,0),0),0)","v":false},"IE8C",null,10,"Low Low Alarm Channel 0 (Low Byte)",null,null,null,null,null,null,null,51,"INT",2867,"-32,768…32,767",null,"IE8C",10,"Channel 5 Data (Low Byte)"]
[{"$f":"OR(IFERROR(MATCH(\"IE8C\",'Conn Information'!$N$3:$N$65,0),0),0)","v":false},"IE8C",null,11,"Low Low Alarm Channel 0 (High Byte)",null,null,null,null,null,null,null,11,null,null,null,null,"IE8C",11,"Channel 5 Data (High Byte)"]
[{"$f":"OR(IFERROR(MATCH(\"IE8C\",'Conn Information'!$N$3:$N$65,0),0),0)","v":false},"IE8C",null,12,"High High Alarm Channel 0 (Low Byte)",null,null,null,null,null,null,null,-103,"INT",16793,"-32,768…32,767",null,"IE8C",12,"Channel 6 Data (Low Byte)"]
[{"$f":"OR(IFERROR(MATCH(\"IE8C\",'Conn Information'!$N$3:$N$65,0),0),0)","v":false},"IE8C",null,13,"High High Alarm Channel 0 (High Byte)",null,null,null,null,null,null,null,65,null,null,null,null,"IE8C",13,"Channel 6 Data (High Byte)"]
[{"$f":"OR(IFERROR(MATCH(\"IE8C\",'Conn Information'!$N$3:$N$65,0),0),0)","v":false},"IE8C",null,14,"Range Channel 0",null,null,null,null,null,null,null,3,"SINT",3,"3 = 4-20mA\n8 = 0-20mA",null,"IE8C",14,"Channel 7 Data (Low Byte)"]
[{"$f":"OR(IFERROR(MATCH(\"IE8C\",'Conn Information'!$N$3:$N$65,0),0),0)","v":false},"IE8C",null,15,"Alarm Latch Channel 0",null,null,null,null,null,null,null,0,"SINT",0,"0 = No Latching\n1 = Alarms Latch",null,"IE8C",15,"Channel 7 Data (High Byte)"]
[{"$f":"OR(IFERROR(MATCH(\"IE8C\",'Conn Information'!$N$3:$N$65,0),0),0)","v":false},"IE8C",null,16,"Alarm Disable Channel 0",null,null,null,null,null,null,null,0,"SINT",0,"0 = Alarms Enabled\n1 = Alarms Disabled",null,"IE8C",16,"Channel 0 Status"]
[{"$f":"OR(IFERROR(MATCH(\"IE8C\",'Conn Information'!$N$3:$N$65,0),0),0)","v":false},"IE8C",null,17,"Alignment (reserved =0)",null,null,null,null,null,null,null,0,"SINT",0,null,null,"IE8C",17,"Channel 1 Status"]
[{"$f":"OR(IFERROR(MATCH(\"IE8C\",'Conn Information'!$N$3:$N$65,0),0),0)","v":false},"IE8C",null,18,"Low Engineering Channel 1 (Low Byte)",null,null,null,null,null,null,null,-51,"INT",3277,"-32,768…32,767",null,"IE8C",18,"Channel 2 Status"]
[{"$f":"OR(IFERROR(MATCH(\"IE8C\",'Conn Information'!$N$3:$N$65,0),0),0)","v":false},"IE8C",null,19,"Low Engineering Channel 1 (High Byte)",null,null,null,null,null,null,null,12,null,null,null,null,"IE8C",19,"Channel 3 Status"]
[{"$f":"OR(IFERROR(MATCH(\"IE8C\",'Conn Information'!$N$3:$N$65,0),0),0)","v":false},"IE8C",null,20,"High Engineering Channel 1 (Low Byte)",null,null,null,null,null,null,null,-1,"INT",16383,"-32,768…32,767",null,"IE8C",20,"Channel 4 Status"]
[{"$f":"OR(IFERROR(MATCH(\"IE8C\",'Conn Information'!$N$3:$N$65,0),0),0)","v":false},"IE8C",null,21,"High Engineering Channel 1 (High Byte)",null,null,null,null,null,null,null,63,null,null,null,null,"IE8C",21,"Channel 5 Status"]
[{"$f":"OR(IFERROR(MATCH(\"IE8C\",'Conn Information'!$N$3:$N$65,0),0),0)","v":false},"IE8C",null,22,"Digital Filter Channel 1 (Low Byte)",null,null,null,null,null,null,null,0,"INT",0,"0…10,000ms",null,"IE8C",22,"Channel 6 Status"]
[{"$f":"OR(IFERROR(MATCH(\"IE8C\",'Conn Information'!$N$3:$N$65,0),0),0)","v":false},"IE8C",null,23,"Digital Filter Channel 1 (High Byte)",null,null,null,null,null,null,null,0,null,null,null,null,"IE8C",23,"Channel 7 Status"]
[{"$f":"OR(IFERROR(MATCH(\"IE8C\",'Conn Information'!$N$3:$N$65,0),0),0)","v":false},"IE8C",null,24,"Low Alarm Channel 1 (Low Byte)",null,null,null,null,null,null,null,41,"INT",3113,"-32,768…32,767"]
[{"$f":"OR(IFERROR(MATCH(\"IE8C\",'Conn Information'!$N$3:$N$65,0),0),0)","v":false},"IE8C",null,25,"Low Alarm Channel 1 (High Byte)",null,null,null,null,null,null,null,12]
[{"$f":"OR(IFERROR(MATCH(\"IE8C\",'Conn Information'!$N$3:$N$65,0),0),0)","v":false},"IE8C",null,26,"High Alarm Channel 1 (Low Byte)",null,null,null,null,null,null,null,-93,"INT",16547,"-32,768…32,767"]
[{"$f":"OR(IFERROR(MATCH(\"IE8C\",'Conn Information'!$N$3:$N$65,0),0),0)","v":false},"IE8C",null,27,"High Alarm Channel 1 (High Byte)",null,null,null,null,null,null,null,64]
[{"$f":"OR(IFERROR(MATCH(\"IE8C\",'Conn Information'!$N$3:$N$65,0),0),0)","v":false},"IE8C",null,28,"Low Low Alarm Channel 1 (Low Byte)",null,null,null,null,null,null,null,51,"INT",2867,"-32,768…32,767"]
[{"$f":"OR(IFERROR(MATCH(\"IE8C\",'Conn Information'!$N$3:$N$65,0),0),0)","v":false},"IE8C",null,29,"Low Low Alarm Channel 1 (High Byte)",null,null,null,null,null,null,null,11]
[{"$f":"OR(IFERROR(MATCH(\"IE8C\",'Conn Information'!$N$3:$N$65,0),0),0)","v":false},"IE8C",null,30,"High High Alarm Channel 1 (Low Byte)",null,null,null,null,null,null,null,-103,"INT",16793,"-32,768…32,767"]
[{"$f":"OR(IFERROR(MATCH(\"IE8C\",'Conn Information'!$N$3:$N$65,0),0),0)","v":false},"IE8C",null,31,"High High Alarm Channel 1 (High Byte)",null,null,null,null,null,null,null,65]
[{"$f":"OR(IFERROR(MATCH(\"IE8C\",'Conn Information'!$N$3:$N$65,0),0),0)","v":false},"IE8C",null,32,"Range Channel 1",null,null,null,null,null,null,null,3,"SINT",3,"3 = 4-20mA\n8 = 0-20mA"]
[{"$f":"OR(IFERROR(MATCH(\"IE8C\",'Conn Information'!$N$3:$N$65,0),0),0)","v":false},"IE8C",null,33,"Alarm Latch Channel 1",null,null,null,null,null,null,null,0,"SINT",0,"0 = No Latching\n1 = Alarms Latch"]
[{"$f":"OR(IFERROR(MATCH(\"IE8C\",'Conn Information'!$N$3:$N$65,0),0),0)","v":false},"IE8C",null,34,"Alarm Disable Channel 1",null,null,null,null,null,null,null,0,"SINT",0,"0 = Alarms Enabled\n1 = Alarms Disabled"]
[{"$f":"OR(IFERROR(MATCH(\"IE8C\",'Conn Information'!$N$3:$N$65,0),0),0)","v":false},"IE8C",null,35,"Alignment (reserved =0)",null,null,null,null,null,null,null,0,"SINT",0]
[{"$f":"OR(IFERROR(MATCH(\"IE8C\",'Conn Information'!$N$3:$N$65,0),0),0)","v":false},"IE8C",null,36,"Low Engineering Channel 2 (Low Byte)",null,null,null,null,null,null,null,-51,"INT",3277,"-32,768…32,767"]
[{"$f":"OR(IFERROR(MATCH(\"IE8C\",'Conn Information'!$N$3:$N$65,0),0),0)","v":false},"IE8C",null,37,"Low Engineering Channel 2 (High Byte)",null,null,null,null,null,null,null,12]
[{"$f":"OR(IFERROR(MATCH(\"IE8C\",'Conn Information'!$N$3:$N$65,0),0),0)","v":false},"IE8C",null,38,"High Engineering Channel 2 (Low Byte)",null,null,null,null,null,null,null,-1,"INT",16383,"-32,768…32,767"]
[{"$f":"OR(IFERROR(MATCH(\"IE8C\",'Conn Information'!$N$3:$N$65,0),0),0)","v":false},"IE8C",null,39,"High Engineering Channel 2 (High Byte)",null,null,null,null,null,null,null,63]
[{"$f":"OR(IFERROR(MATCH(\"IE8C\",'Conn Information'!$N$3:$N$65,0),0),0)","v":false},"IE8C",null,40,"Digital Filter Channel 2 (Low Byte)",null,null,null,null,null,null,null,0,"INT",0,"0…10,000ms"]
[{"$f":"OR(IFERROR(MATCH(\"IE8C\",'Conn Information'!$N$3:$N$65,0),0),0)","v":false},"IE8C",null,41,"Digital Filter Channel 2 (High Byte)",null,null,null,null,null,null,null,0]
[{"$f":"OR(IFERROR(MATCH(\"IE8C\",'Conn Information'!$N$3:$N$65,0),0),0)","v":false},"IE8C",null,42,"Low Alarm Channel 2 (Low Byte)",null,null,null,null,null,null,null,41,"INT",3113,"-32,768…32,767"]
[{"$f":"OR(IFERROR(MATCH(\"IE8C\",'Conn Information'!$N$3:$N$65,0),0),0)","v":false},"IE8C",null,43,"Low Alarm Channel 2 (High Byte)",null,null,null,null,null,null,null,12]
[{"$f":"OR(IFERROR(MATCH(\"IE8C\",'Conn Information'!$N$3:$N$65,0),0),0)","v":false},"IE8C",null,44,"High Alarm Channel 2 (Low Byte)",null,null,null,null,null,null,null,-93,"INT",16547,"-32,768…32,767"]
[{"$f":"OR(IFERROR(MATCH(\"IE8C\",'Conn Information'!$N$3:$N$65,0),0),0)","v":false},"IE8C",null,45,"High Alarm Channel 2 (High Byte)",null,null,null,null,null,null,null,64]
[{"$f":"OR(IFERROR(MATCH(\"IE8C\",'Conn Information'!$N$3:$N$65,0),0),0)","v":false},"IE8C",null,46,"Low Low Alarm Channel 2 (Low Byte)",null,null,null,null,null,null,null,51,"INT",2867,"-32,768…32,767"]
[{"$f":"OR(IFERROR(MATCH(\"IE8C\",'Conn Information'!$N$3:$N$65,0),0),0)","v":false},"IE8C",null,47,"Low Low Alarm Channel 2 (High Byte)",null,null,null,null,null,null,null,11]
[{"$f":"OR(IFERROR(MATCH(\"IE8C\",'Conn Information'!$N$3:$N$65,0),0),0)","v":false},"IE8C",null,48,"High High Alarm Channel 2 (Low Byte)",null,null,null,null,null,null,null,-103,"INT",16793,"-32,768…32,767"]
[{"$f":"OR(IFERROR(MATCH(\"IE8C\",'Conn Information'!$N$3:$N$65,0),0),0)","v":false},"IE8C",null,49,"High High Alarm Channel 2 (High Byte)",null,null,null,null,null,null,null,65]
[{"$f":"OR(IFERROR(MATCH(\"IE8C\",'Conn Information'!$N$3:$N$65,0),0),0)","v":false},"IE8C",null,50,"Range Channel 2",null,null,null,null,null,null,null,3,"SINT",3,"3 = 4-20mA\n8 = 0-20mA"]
[{"$f":"OR(IFERROR(MATCH(\"IE8C\",'Conn Information'!$N$3:$N$65,0),0),0)","v":false},"IE8C",null,51,"Alarm Latch Channel 2",null,null,null,null,null,null,null,0,"SINT",0,"0 = No Latching\n1 = Alarms Latch"]
[{"$f":"OR(IFERROR(MATCH(\"IE8C\",'Conn Information'!$N$3:$N$65,0),0),0)","v":false},"IE8C",null,52,"Alarm Disable Channel 2",null,null,null,null,null,null,null,0,"SINT",0,"0 = Alarms Enabled\n1 = Alarms Disabled"]
[{"$f":"OR(IFERROR(MATCH(\"IE8C\",'Conn Information'!$N$3:$N$65,0),0),0)","v":false},"IE8C",null,53,"Alignment (reserved =0)",null,null,null,null,null,null,null,0,"SINT",0]
[{"$f":"OR(IFERROR(MATCH(\"IE8C\",'Conn Information'!$N$3:$N$65,0),0),0)","v":false},"IE8C",null,54,"Low Engineering Channel 3 (Low Byte)",null,null,null,null,null,null,null,-51,"INT",3277,"-32,768…32,767"]
[{"$f":"OR(IFERROR(MATCH(\"IE8C\",'Conn Information'!$N$3:$N$65,0),0),0)","v":false},"IE8C",null,55,"Low Engineering Channel 3 (High Byte)",null,null,null,null,null,null,null,12]
[{"$f":"OR(IFERROR(MATCH(\"IE8C\",'Conn Information'!$N$3:$N$65,0),0),0)","v":false},"IE8C",null,56,"High Engineering Channel 3 (Low Byte)",null,null,null,null,null,null,null,-1,"INT",16383,"-32,768…32,767"]
[{"$f":"OR(IFERROR(MATCH(\"IE8C\",'Conn Information'!$N$3:$N$65,0),0),0)","v":false},"IE8C",null,57,"High Engineering Channel 3 (High Byte)",null,null,null,null,null,null,null,63]
[{"$f":"OR(IFERROR(MATCH(\"IE8C\",'Conn Information'!$N$3:$N$65,0),0),0)","v":false},"IE8C",null,58,"Digital Filter Channel 3 (Low Byte)",null,null,null,null,null,null,null,0,"INT",0,"0…10,000ms"]
[{"$f":"OR(IFERROR(MATCH(\"IE8C\",'Conn Information'!$N$3:$N$65,0),0),0)","v":false},"IE8C",null,59,"Digital Filter Channel 3 (High Byte)",null,null,null,null,null,null,null,0]
[{"$f":"OR(IFERROR(MATCH(\"IE8C\",'Conn Information'!$N$3:$N$65,0),0),0)","v":false},"IE8C",null,60,"Low Alarm Channel 3 (Low Byte)",null,null,null,null,null,null,null,41,"INT",3113,"-32,768…32,767"]
[{"$f":"OR(IFERROR(MATCH(\"IE8C\",'Conn Information'!$N$3:$N$65,0),0),0)","v":false},"IE8C",null,61,"Low Alarm Channel 3 (High Byte)",null,null,null,null,null,null,null,12]
[{"$f":"OR(IFERROR(MATCH(\"IE8C\",'Conn Information'!$N$3:$N$65,0),0),0)","v":false},"IE8C",null,62,"High Alarm Channel 3 (Low Byte)",null,null,null,null,null,null,null,-93,"INT",16547,"-32,768…32,767"]
[{"$f":"OR(IFERROR(MATCH(\"IE8C\",'Conn Information'!$N$3:$N$65,0),0),0)","v":false},"IE8C",null,63,"High Alarm Channel 3 (High Byte)",null,null,null,null,null,null,null,64]
[{"$f":"OR(IFERROR(MATCH(\"IE8C\",'Conn Information'!$N$3:$N$65,0),0),0)","v":false},"IE8C",null,64,"Low Low Alarm Channel 3 (Low Byte)",null,null,null,null,null,null,null,51,"INT",2867,"-32,768…32,767"]
[{"$f":"OR(IFERROR(MATCH(\"IE8C\",'Conn Information'!$N$3:$N$65,0),0),0)","v":false},"IE8C",null,65,"Low Low Alarm Channel 3 (High Byte)",null,null,null,null,null,null,null,11]
[{"$f":"OR(IFERROR(MATCH(\"IE8C\",'Conn Information'!$N$3:$N$65,0),0),0)","v":false},"IE8C",null,66,"High High Alarm Channel 3 (Low Byte)",null,null,null,null,null,null,null,-103,"INT",16793,"-32,768…32,767"]
[{"$f":"OR(IFERROR(MATCH(\"IE8C\",'Conn Information'!$N$3:$N$65,0),0),0)","v":false},"IE8C",null,67,"High High Alarm Channel 3 (High Byte)",null,null,null,null,null,null,null,65]
[{"$f":"OR(IFERROR(MATCH(\"IE8C\",'Conn Information'!$N$3:$N$65,0),0),0)","v":false},"IE8C",null,68,"Range Channel 3",null,null,null,null,null,null,null,3,"SINT",3,"3 = 4-20mA\n8 = 0-20mA"]
[{"$f":"OR(IFERROR(MATCH(\"IE8C\",'Conn Information'!$N$3:$N$65,0),0),0)","v":false},"IE8C",null,69,"Alarm Latch Channel 3",null,null,null,null,null,null,null,0,"SINT",0,"0 = No Latching\n1 = Alarms Latch"]
[{"$f":"OR(IFERROR(MATCH(\"IE8C\",'Conn Information'!$N$3:$N$65,0),0),0)","v":false},"IE8C",null,70,"Alarm Disable Channel 3",null,null,null,null,null,null,null,0,"SINT",0,"0 = Alarms Enabled\n1 = Alarms Disabled"]
[{"$f":"OR(IFERROR(MATCH(\"IE8C\",'Conn Information'!$N$3:$N$65,0),0),0)","v":false},"IE8C",null,71,"Alignment (reserved =0)",null,null,null,null,null,null,null,0,"SINT",0]
[{"$f":"OR(IFERROR(MATCH(\"IE8C\",'Conn Information'!$N$3:$N$65,0),0),0)","v":false},"IE8C",null,72,"Low Engineering Channel 4 (Low Byte)",null,null,null,null,null,null,null,-51,"INT",3277,"-32,768…32,767"]
[{"$f":"OR(IFERROR(MATCH(\"IE8C\",'Conn Information'!$N$3:$N$65,0),0),0)","v":false},"IE8C",null,73,"Low Engineering Channel 4 (High Byte)",null,null,null,null,null,null,null,12]
[{"$f":"OR(IFERROR(MATCH(\"IE8C\",'Conn Information'!$N$3:$N$65,0),0),0)","v":false},"IE8C",null,74,"High Engineering Channel 4 (Low Byte)",null,null,null,null,null,null,null,-1,"INT",16383,"-32,768…32,767"]
[{"$f":"OR(IFERROR(MATCH(\"IE8C\",'Conn Information'!$N$3:$N$65,0),0),0)","v":false},"IE8C",null,75,"High Engineering Channel 4 (High Byte)",null,null,null,null,null,null,null,63]
[{"$f":"OR(IFERROR(MATCH(\"IE8C\",'Conn Information'!$N$3:$N$65,0),0),0)","v":false},"IE8C",null,76,"Digital Filter Channel 4 (Low Byte)",null,null,null,null,null,null,null,0,"INT",0,"0…10,000ms"]
[{"$f":"OR(IFERROR(MATCH(\"IE8C\",'Conn Information'!$N$3:$N$65,0),0),0)","v":false},"IE8C",null,77,"Digital Filter Channel 4 (High Byte)",null,null,null,null,null,null,null,0]
[{"$f":"OR(IFERROR(MATCH(\"IE8C\",'Conn Information'!$N$3:$N$65,0),0),0)","v":false},"IE8C",null,78,"Low Alarm Channel 4 (Low Byte)",null,null,null,null,null,null,null,41,"INT",3113,"-32,768…32,767"]
[{"$f":"OR(IFERROR(MATCH(\"IE8C\",'Conn Information'!$N$3:$N$65,0),0),0)","v":false},"IE8C",null,79,"Low Alarm Channel 4 (High Byte)",null,null,null,null,null,null,null,12]
[{"$f":"OR(IFERROR(MATCH(\"IE8C\",'Conn Information'!$N$3:$N$65,0),0),0)","v":false},"IE8C",null,80,"High Alarm Channel 4 (Low Byte)",null,null,null,null,null,null,null,-93,"INT",16547,"-32,768…32,767"]
[{"$f":"OR(IFERROR(MATCH(\"IE8C\",'Conn Information'!$N$3:$N$65,0),0),0)","v":false},"IE8C",null,81,"High Alarm Channel 4 (High Byte)",null,null,null,null,null,null,null,64]
[{"$f":"OR(IFERROR(MATCH(\"IE8C\",'Conn Information'!$N$3:$N$65,0),0),0)","v":false},"IE8C",null,82,"Low Low Alarm Channel 4 (Low Byte)",null,null,null,null,null,null,null,51,"INT",2867,"-32,768…32,767"]
[{"$f":"OR(IFERROR(MATCH(\"IE8C\",'Conn Information'!$N$3:$N$65,0),0),0)","v":false},"IE8C",null,83,"Low Low Alarm Channel 4 (High Byte)",null,null,null,null,null,null,null,11]
[{"$f":"OR(IFERROR(MATCH(\"IE8C\",'Conn Information'!$N$3:$N$65,0),0),0)","v":false},"IE8C",null,84,"High High Alarm Channel 4 (Low Byte)",null,null,null,null,null,null,null,-103,"INT",16793,"-32,768…32,767"]
[{"$f":"OR(IFERROR(MATCH(\"IE8C\",'Conn Information'!$N$3:$N$65,0),0),0)","v":false},"IE8C",null,85,"High High Alarm Channel 4 (High Byte)",null,null,null,null,null,null,null,65]
[{"$f":"OR(IFERROR(MATCH(\"IE8C\",'Conn Information'!$N$3:$N$65,0),0),0)","v":false},"IE8C",null,86,"Range Channel 4",null,null,null,null,null,null,null,3,"SINT",3,"3 = 4-20mA\n8 = 0-20mA"]
[{"$f":"OR(IFERROR(MATCH(\"IE8C\",'Conn Information'!$N$3:$N$65,0),0),0)","v":false},"IE8C",null,87,"Alarm Latch Channel 4",null,null,null,null,null,null,null,0,"SINT",0,"0 = No Latching\n1 = Alarms Latch"]
[{"$f":"OR(IFERROR(MATCH(\"IE8C\",'Conn Information'!$N$3:$N$65,0),0),0)","v":false},"IE8C",null,88,"Alarm Disable Channel 4",null,null,null,null,null,null,null,0,"SINT",0,"0 = Alarms Enabled\n1 = Alarms Disabled"]
[{"$f":"OR(IFERROR(MATCH(\"IE8C\",'Conn Information'!$N$3:$N$65,0),0),0)","v":false},"IE8C",null,89,"Alignment (reserved =0)",null,null,null,null,null,null,null,0,"SINT",0]
[{"$f":"OR(IFERROR(MATCH(\"IE8C\",'Conn Information'!$N$3:$N$65,0),0),0)","v":false},"IE8C",null,90,"Low Engineering Channel 5 (Low Byte)",null,null,null,null,null,null,null,-51,"INT",3277,"-32,768…32,767"]
[{"$f":"OR(IFERROR(MATCH(\"IE8C\",'Conn Information'!$N$3:$N$65,0),0),0)","v":false},"IE8C",null,91,"Low Engineering Channel 5 (High Byte)",null,null,null,null,null,null,null,12]
[{"$f":"OR(IFERROR(MATCH(\"IE8C\",'Conn Information'!$N$3:$N$65,0),0),0)","v":false},"IE8C",null,92,"High Engineering Channel 5 (Low Byte)",null,null,null,null,null,null,null,-1,"INT",16383,"-32,768…32,767"]
[{"$f":"OR(IFERROR(MATCH(\"IE8C\",'Conn Information'!$N$3:$N$65,0),0),0)","v":false},"IE8C",null,93,"High Engineering Channel 5 (High Byte)",null,null,null,null,null,null,null,63]
[{"$f":"OR(IFERROR(MATCH(\"IE8C\",'Conn Information'!$N$3:$N$65,0),0),0)","v":false},"IE8C",null,94,"Digital Filter Channel 5 (Low Byte)",null,null,null,null,null,null,null,0,"INT",0,"0…10,000ms"]
[{"$f":"OR(IFERROR(MATCH(\"IE8C\",'Conn Information'!$N$3:$N$65,0),0),0)","v":false},"IE8C",null,95,"Digital Filter Channel 5 (High Byte)",null,null,null,null,null,null,null,0]
[{"$f":"OR(IFERROR(MATCH(\"IE8C\",'Conn Information'!$N$3:$N$65,0),0),0)","v":false},"IE8C",null,96,"Low Alarm Channel 5 (Low Byte)",null,null,null,null,null,null,null,41,"INT",3113,"-32,768…32,767"]
[{"$f":"OR(IFERROR(MATCH(\"IE8C\",'Conn Information'!$N$3:$N$65,0),0),0)","v":false},"IE8C",null,97,"Low Alarm Channel 5 (High Byte)",null,null,null,null,null,null,null,12]
[{"$f":"OR(IFERROR(MATCH(\"IE8C\",'Conn Information'!$N$3:$N$65,0),0),0)","v":false},"IE8C",null,98,"High Alarm Channel 5 (Low Byte)",null,null,null,null,null,null,null,-93,"INT",16547,"-32,768…32,767"]
[{"$f":"OR(IFERROR(MATCH(\"IE8C\",'Conn Information'!$N$3:$N$65,0),0),0)","v":false},"IE8C",null,99,"High Alarm Channel 5 (High Byte)",null,null,null,null,null,null,null,64]
[{"$f":"OR(IFERROR(MATCH(\"IE8C\",'Conn Information'!$N$3:$N$65,0),0),0)","v":false},"IE8C",null,100,"Low Low Alarm Channel 5 (Low Byte)",null,null,null,null,null,null,null,51,"INT",2867,"-32,768…32,767"]
[{"$f":"OR(IFERROR(MATCH(\"IE8C\",'Conn Information'!$N$3:$N$65,0),0),0)","v":false},"IE8C",null,101,"Low Low Alarm Channel 5 (High Byte)",null,null,null,null,null,null,null,11]
[{"$f":"OR(IFERROR(MATCH(\"IE8C\",'Conn Information'!$N$3:$N$65,0),0),0)","v":false},"IE8C",null,102,"High High Alarm Channel 5 (Low Byte)",null,null,null,null,null,null,null,-103,"INT",16793,"-32,768…32,767"]
[{"$f":"OR(IFERROR(MATCH(\"IE8C\",'Conn Information'!$N$3:$N$65,0),0),0)","v":false},"IE8C",null,103,"High High Alarm Channel 5 (High Byte)",null,null,null,null,null,null,null,65]
[{"$f":"OR(IFERROR(MATCH(\"IE8C\",'Conn Information'!$N$3:$N$65,0),0),0)","v":false},"IE8C",null,104,"Range Channel 5",null,null,null,null,null,null,null,3,"SINT",3,"3 = 4-20mA\n8 = 0-20mA"]
[{"$f":"OR(IFERROR(MATCH(\"IE8C\",'Conn Information'!$N$3:$N$65,0),0),0)","v":false},"IE8C",null,105,"Alarm Latch Channel 5",null,null,null,null,null,null,null,0,"SINT",0,"0 = No Latching\n1 = Alarms Latch"]
[{"$f":"OR(IFERROR(MATCH(\"IE8C\",'Conn Information'!$N$3:$N$65,0),0),0)","v":false},"IE8C",null,106,"Alarm Disable Channel 5",null,null,null,null,null,null,null,0,"SINT",0,"0 = Alarms Enabled\n1 = Alarms Disabled"]
[{"$f":"OR(IFERROR(MATCH(\"IE8C\",'Conn Information'!$N$3:$N$65,0),0),0)","v":false},"IE8C",null,107,"Alignment (reserved =0)",null,null,null,null,null,null,null,0,"SINT",0]
[{"$f":"OR(IFERROR(MATCH(\"IE8C\",'Conn Information'!$N$3:$N$65,0),0),0)","v":false},"IE8C",null,108,"Low Engineering Channel 6 (Low Byte)",null,null,null,null,null,null,null,-51,"INT",3277,"-32,768…32,767"]
[{"$f":"OR(IFERROR(MATCH(\"IE8C\",'Conn Information'!$N$3:$N$65,0),0),0)","v":false},"IE8C",null,109,"Low Engineering Channel 6 (High Byte)",null,null,null,null,null,null,null,12]
[{"$f":"OR(IFERROR(MATCH(\"IE8C\",'Conn Information'!$N$3:$N$65,0),0),0)","v":false},"IE8C",null,110,"High Engineering Channel 6 (Low Byte)",null,null,null,null,null,null,null,-1,"INT",16383,"-32,768…32,767"]
[{"$f":"OR(IFERROR(MATCH(\"IE8C\",'Conn Information'!$N$3:$N$65,0),0),0)","v":false},"IE8C",null,111,"High Engineering Channel 6 (High Byte)",null,null,null,null,null,null,null,63]
[{"$f":"OR(IFERROR(MATCH(\"IE8C\",'Conn Information'!$N$3:$N$65,0),0),0)","v":false},"IE8C",null,112,"Digital Filter Channel 6 (Low Byte)",null,null,null,null,null,null,null,0,"INT",0,"0…10,000ms"]
[{"$f":"OR(IFERROR(MATCH(\"IE8C\",'Conn Information'!$N$3:$N$65,0),0),0)","v":false},"IE8C",null,113,"Digital Filter Channel 6 (High Byte)",null,null,null,null,null,null,null,0]
[{"$f":"OR(IFERROR(MATCH(\"IE8C\",'Conn Information'!$N$3:$N$65,0),0),0)","v":false},"IE8C",null,114,"Low Alarm Channel 6 (Low Byte)",null,null,null,null,null,null,null,41,"INT",3113,"-32,768…32,767"]
[{"$f":"OR(IFERROR(MATCH(\"IE8C\",'Conn Information'!$N$3:$N$65,0),0),0)","v":false},"IE8C",null,115,"Low Alarm Channel 6 (High Byte)",null,null,null,null,null,null,null,12]
[{"$f":"OR(IFERROR(MATCH(\"IE8C\",'Conn Information'!$N$3:$N$65,0),0),0)","v":false},"IE8C",null,116,"High Alarm Channel 6 (Low Byte)",null,null,null,null,null,null,null,-93,"INT",16547,"-32,768…32,767"]
[{"$f":"OR(IFERROR(MATCH(\"IE8C\",'Conn Information'!$N$3:$N$65,0),0),0)","v":false},"IE8C",null,117,"High Alarm Channel 6 (High Byte)",null,null,null,null,null,null,null,64]
[{"$f":"OR(IFERROR(MATCH(\"IE8C\",'Conn Information'!$N$3:$N$65,0),0),0)","v":false},"IE8C",null,118,"Low Low Alarm Channel 6 (Low Byte)",null,null,null,null,null,null,null,51,"INT",2867,"-32,768…32,767"]
[{"$f":"OR(IFERROR(MATCH(\"IE8C\",'Conn Information'!$N$3:$N$65,0),0),0)","v":false},"IE8C",null,119,"Low Low Alarm Channel 6 (High Byte)",null,null,null,null,null,null,null,11]
[{"$f":"OR(IFERROR(MATCH(\"IE8C\",'Conn Information'!$N$3:$N$65,0),0),0)","v":false},"IE8C",null,120,"High High Alarm Channel 6 (Low Byte)",null,null,null,null,null,null,null,-103,"INT",16793,"-32,768…32,767"]
[{"$f":"OR(IFERROR(MATCH(\"IE8C\",'Conn Information'!$N$3:$N$65,0),0),0)","v":false},"IE8C",null,121,"High High Alarm Channel 6 (High Byte)",null,null,null,null,null,null,null,65]
[{"$f":"OR(IFERROR(MATCH(\"IE8C\",'Conn Information'!$N$3:$N$65,0),0),0)","v":false},"IE8C",null,122,"Range Channel 6",null,null,null,null,null,null,null,3,"SINT",3,"3 = 4-20mA\n8 = 0-20mA"]
[{"$f":"OR(IFERROR(MATCH(\"IE8C\",'Conn Information'!$N$3:$N$65,0),0),0)","v":false},"IE8C",null,123,"Alarm Latch Channel 6",null,null,null,null,null,null,null,0,"SINT",0,"0 = No Latching\n1 = Alarms Latch"]
[{"$f":"OR(IFERROR(MATCH(\"IE8C\",'Conn Information'!$N$3:$N$65,0),0),0)","v":false},"IE8C",null,124,"Alarm Disable Channel 6",null,null,null,null,null,null,null,0,"SINT",0,"0 = Alarms Enabled\n1 = Alarms Disabled"]
[{"$f":"OR(IFERROR(MATCH(\"IE8C\",'Conn Information'!$N$3:$N$65,0),0),0)","v":false},"IE8C",null,125,"Alignment (reserved =0)",null,null,null,null,null,null,null,0,"SINT",0]
[{"$f":"OR(IFERROR(MATCH(\"IE8C\",'Conn Information'!$N$3:$N$65,0),0),0)","v":false},"IE8C",null,126,"Low Engineering Channel 7 (Low Byte)",null,null,null,null,null,null,null,-51,"INT",3277,"-32,768…32,767"]
[{"$f":"OR(IFERROR(MATCH(\"IE8C\",'Conn Information'!$N$3:$N$65,0),0),0)","v":false},"IE8C",null,127,"Low Engineering Channel 7 (High Byte)",null,null,null,null,null,null,null,12]
[{"$f":"OR(IFERROR(MATCH(\"IE8C\",'Conn Information'!$N$3:$N$65,0),0),0)","v":false},"IE8C",null,128,"High Engineering Channel 7 (Low Byte)",null,null,null,null,null,null,null,-1,"INT",16383,"-32,768…32,767"]
[{"$f":"OR(IFERROR(MATCH(\"IE8C\",'Conn Information'!$N$3:$N$65,0),0),0)","v":false},"IE8C",null,129,"High Engineering Channel 7 (High Byte)",null,null,null,null,null,null,null,63]
[{"$f":"OR(IFERROR(MATCH(\"IE8C\",'Conn Information'!$N$3:$N$65,0),0),0)","v":false},"IE8C",null,130,"Digital Filter Channel 7 (Low Byte)",null,null,null,null,null,null,null,0,"INT",0,"0…10,000ms"]
[{"$f":"OR(IFERROR(MATCH(\"IE8C\",'Conn Information'!$N$3:$N$65,0),0),0)","v":false},"IE8C",null,131,"Digital Filter Channel 7 (High Byte)",null,null,null,null,null,null,null,0]
[{"$f":"OR(IFERROR(MATCH(\"IE8C\",'Conn Information'!$N$3:$N$65,0),0),0)","v":false},"IE8C",null,132,"Low Alarm Channel 7 (Low Byte)",null,null,null,null,null,null,null,41,"INT",3113,"-32,768…32,767"]
[{"$f":"OR(IFERROR(MATCH(\"IE8C\",'Conn Information'!$N$3:$N$65,0),0),0)","v":false},"IE8C",null,133,"Low Alarm Channel 7 (High Byte)",null,null,null,null,null,null,null,12]
[{"$f":"OR(IFERROR(MATCH(\"IE8C\",'Conn Information'!$N$3:$N$65,0),0),0)","v":false},"IE8C",null,134,"High Alarm Channel 7 (Low Byte)",null,null,null,null,null,null,null,-93,"INT",16547,"-32,768…32,767"]
[{"$f":"OR(IFERROR(MATCH(\"IE8C\",'Conn Information'!$N$3:$N$65,0),0),0)","v":false},"IE8C",null,135,"High Alarm Channel 7 (High Byte)",null,null,null,null,null,null,null,64]
[{"$f":"OR(IFERROR(MATCH(\"IE8C\",'Conn Information'!$N$3:$N$65,0),0),0)","v":false},"IE8C",null,136,"Low Low Alarm Channel 7 (Low Byte)",null,null,null,null,null,null,null,51,"INT",2867,"-32,768…32,767"]
[{"$f":"OR(IFERROR(MATCH(\"IE8C\",'Conn Information'!$N$3:$N$65,0),0),0)","v":false},"IE8C",null,137,"Low Low Alarm Channel 7 (High Byte)",null,null,null,null,null,null,null,11]
[{"$f":"OR(IFERROR(MATCH(\"IE8C\",'Conn Information'!$N$3:$N$65,0),0),0)","v":false},"IE8C",null,138,"High High Alarm Channel 7 (Low Byte)",null,null,null,null,null,null,null,-103,"INT",16793,"-32,768…32,767"]
[{"$f":"OR(IFERROR(MATCH(\"IE8C\",'Conn Information'!$N$3:$N$65,0),0),0)","v":false},"IE8C",null,139,"High High Alarm Channel 7 (High Byte)",null,null,null,null,null,null,null,65]
[{"$f":"OR(IFERROR(MATCH(\"IE8C\",'Conn Information'!$N$3:$N$65,0),0),0)","v":false},"IE8C",null,140,"Range Channel 7",null,null,null,null,null,null,null,3,"SINT",3,"3 = 4-20mA\n8 = 0-20mA"]
[{"$f":"OR(IFERROR(MATCH(\"IE8C\",'Conn Information'!$N$3:$N$65,0),0),0)","v":false},"IE8C",null,141,"Alarm Latch Channel 7",null,null,null,null,null,null,null,0,"SINT",0,"0 = No Latching\n1 = Alarms Latch"]
[{"$f":"OR(IFERROR(MATCH(\"IE8C\",'Conn Information'!$N$3:$N$65,0),0),0)","v":false},"IE8C",null,142,"Alarm Disable Channel 7",null,null,null,null,null,null,null,0,"SINT",0,"0 = Alarms Enabled\n1 = Alarms Disabled"]
[{"$f":"OR(IFERROR(MATCH(\"IE8C\",'Conn Information'!$N$3:$N$65,0),0),0)","v":false},"IE8C",null,143,"Notch Filter",null,null,null,null,null,null,null,2,"SINT",2,"1 = 50Hz\n2 = 60Hz\n4 = 250Hz\n6 = 500Hz"]
[{"$f":"OR(IFERROR(MATCH(\"IE8C\",'Conn Information'!$N$3:$N$65,0),0),0)","v":false},"IE8C",null,144,"Update Rate (Low Byte)",null,null,null,null,null,null,null,100,"INT",100,"0….10,000ms"]
[{"$f":"OR(IFERROR(MATCH(\"IE8C\",'Conn Information'!$N$3:$N$65,0),0),0)","v":false},"IE8C",null,145,"Update Rate (High Byte)",null,null,null,null,null,null,null,0]
[{"$f":"OR(IFERROR(MATCH(\"IE8V\",'Conn Information'!$N$3:$N$65,0),0),0)","v":false},"IE8V",123,0,"Low Engineering Channel 0 (Low Byte)",null,null,null,null,null,null,null,0,"INT",0,"-32,768…32,767",null,"IE8V",0,"Channel 0 Data (Low Byte)"]
[{"$f":"OR(IFERROR(MATCH(\"IE8V\",'Conn Information'!$N$3:$N$65,0),0),0)","v":false},"IE8V",null,1,"Low Engineering Channel 0 (High Byte)",null,null,null,null,null,null,null,0,null,null,null,null,"IE8V",1,"Channel 0 Data (High Byte)"]
[{"$f":"OR(IFERROR(MATCH(\"IE8V\",'Conn Information'!$N$3:$N$65,0),0),0)","v":false},"IE8V",null,2,"High Engineering Channel 0 (Low Byte)",null,null,null,null,null,null,null,-1,"INT",10000,"-32,768…32,767",null,"IE8V",2,"Channel 1 Data (Low Byte)"]
[{"$f":"OR(IFERROR(MATCH(\"IE8V\",'Conn Information'!$N$3:$N$65,0),0),0)","v":false},"IE8V",null,3,"High Engineering Channel 0 (High Byte)",null,null,null,null,null,null,null,63,null,null,null,null,"IE8V",3,"Channel 1 Data (High Byte)"]
[{"$f":"OR(IFERROR(MATCH(\"IE8V\",'Conn Information'!$N$3:$N$65,0),0),0)","v":false},"IE8V",null,4,"Digital Filter Channel 0 (Low Byte)",null,null,null,null,null,null,null,0,"INT",0,"0…10,000ms",null,"IE8V",4,"Channel 2 Data (Low Byte)"]
[{"$f":"OR(IFERROR(MATCH(\"IE8V\",'Conn Information'!$N$3:$N$65,0),0),0)","v":false},"IE8V",null,5,"Digital Filter Channel 0 (High Byte)",null,null,null,null,null,null,null,0,null,null,null,null,"IE8V",5,"Channel 2 Data (High Byte)"]
[{"$f":"OR(IFERROR(MATCH(\"IE8V\",'Conn Information'!$N$3:$N$65,0),0),0)","v":false},"IE8V",null,6,"Low Alarm Channel 0 (Low Byte)",null,null,null,null,null,null,null,41,"INT",500,"-32,768…32,767",null,"IE8V",6,"Channel 3 Data (Low Byte)"]
[{"$f":"OR(IFERROR(MATCH(\"IE8V\",'Conn Information'!$N$3:$N$65,0),0),0)","v":false},"IE8V",null,7,"Low Alarm Channel 0 (High Byte)",null,null,null,null,null,null,null,12,null,null,null,null,"IE8V",7,"Channel 3 Data (High Byte)"]
[{"$f":"OR(IFERROR(MATCH(\"IE8V\",'Conn Information'!$N$3:$N$65,0),0),0)","v":false},"IE8V",null,8,"High Alarm Channel 0 (Low Byte)",null,null,null,null,null,null,null,-93,"INT",9500,"-32,768…32,767",null,"IE8V",8,"Channel 4 Data (Low Byte)"]
[{"$f":"OR(IFERROR(MATCH(\"IE8V\",'Conn Information'!$N$3:$N$65,0),0),0)","v":false},"IE8V",null,9,"High Alarm Channel 0 (High Byte)",null,null,null,null,null,null,null,64,null,null,null,null,"IE8V",9,"Channel 4 Data (High Byte)"]
[{"$f":"OR(IFERROR(MATCH(\"IE8V\",'Conn Information'!$N$3:$N$65,0),0),0)","v":false},"IE8V",null,10,"Low Low Alarm Channel 0 (Low Byte)",null,null,null,null,null,null,null,51,"INT",200,"-32,768…32,767",null,"IE8V",10,"Channel 5 Data (Low Byte)"]
[{"$f":"OR(IFERROR(MATCH(\"IE8V\",'Conn Information'!$N$3:$N$65,0),0),0)","v":false},"IE8V",null,11,"Low Low Alarm Channel 0 (High Byte)",null,null,null,null,null,null,null,11,null,null,null,null,"IE8V",11,"Channel 5 Data (High Byte)"]
[{"$f":"OR(IFERROR(MATCH(\"IE8V\",'Conn Information'!$N$3:$N$65,0),0),0)","v":false},"IE8V",null,12,"High High Alarm Channel 0 (Low Byte)",null,null,null,null,null,null,null,-103,"INT",9800,"-32,768…32,767",null,"IE8V",12,"Channel 6 Data (Low Byte)"]
[{"$f":"OR(IFERROR(MATCH(\"IE8V\",'Conn Information'!$N$3:$N$65,0),0),0)","v":false},"IE8V",null,13,"High High Alarm Channel 0 (High Byte)",null,null,null,null,null,null,null,65,null,null,null,null,"IE8V",13,"Channel 6 Data (High Byte)"]
[{"$f":"OR(IFERROR(MATCH(\"IE8V\",'Conn Information'!$N$3:$N$65,0),0),0)","v":false},"IE8V",null,14,"Range Channel 0",null,null,null,null,null,null,null,3,"SINT",2,"0 = -10 - +10V\n2 = 0--10VA",null,"IE8V",14,"Channel 7 Data (Low Byte)"]
[{"$f":"OR(IFERROR(MATCH(\"IE8V\",'Conn Information'!$N$3:$N$65,0),0),0)","v":false},"IE8V",null,15,"Alarm Latch Channel 0",null,null,null,null,null,null,null,0,"SINT",0,"0 = No Latching\n1 = Alarms Latch",null,"IE8V",15,"Channel 7 Data (High Byte)"]
[{"$f":"OR(IFERROR(MATCH(\"IE8V\",'Conn Information'!$N$3:$N$65,0),0),0)","v":false},"IE8V",null,16,"Alarm Disable Channel 0",null,null,null,null,null,null,null,0,"SINT",0,"0 = Alarms Enabled\n1 = Alarms Disabled",null,"IE8V",16,"Channel 0 Status"]
[{"$f":"OR(IFERROR(MATCH(\"IE8V\",'Conn Information'!$N$3:$N$65,0),0),0)","v":false},"IE8V",null,17,"Alignment (reserved =0)",null,null,null,null,null,null,null,0,"SINT",0,null,null,"IE8V",17,"Channel 1 Status"]
[{"$f":"OR(IFERROR(MATCH(\"IE8V\",'Conn Information'!$N$3:$N$65,0),0),0)","v":false},"IE8V",null,18,"Low Engineering Channel 1 (Low Byte)",null,null,null,null,null,null,null,0,"INT",0,"-32,768…32,767",null,"IE8V",18,"Channel 2 Status"]
[{"$f":"OR(IFERROR(MATCH(\"IE8V\",'Conn Information'!$N$3:$N$65,0),0),0)","v":false},"IE8V",null,19,"Low Engineering Channel 1 (High Byte)",null,null,null,null,null,null,null,0,null,null,null,null,"IE8V",19,"Channel 3 Status"]
[{"$f":"OR(IFERROR(MATCH(\"IE8V\",'Conn Information'!$N$3:$N$65,0),0),0)","v":false},"IE8V",null,20,"High Engineering Channel 1 (Low Byte)",null,null,null,null,null,null,null,16,"INT",10000,"-32,768…32,767",null,"IE8V",20,"Channel 4 Status"]
[{"$f":"OR(IFERROR(MATCH(\"IE8V\",'Conn Information'!$N$3:$N$65,0),0),0)","v":false},"IE8V",null,21,"High Engineering Channel 1 (High Byte)",null,null,null,null,null,null,null,39,null,null,null,null,"IE8V",21,"Channel 5 Status"]
[{"$f":"OR(IFERROR(MATCH(\"IE8V\",'Conn Information'!$N$3:$N$65,0),0),0)","v":false},"IE8V",null,22,"Digital Filter Channel 1 (Low Byte)",null,null,null,null,null,null,null,0,"INT",0,"0…10,000ms",null,"IE8V",22,"Channel 6 Status"]
[{"$f":"OR(IFERROR(MATCH(\"IE8V\",'Conn Information'!$N$3:$N$65,0),0),0)","v":false},"IE8V",null,23,"Digital Filter Channel 1 (High Byte)",null,null,null,null,null,null,null,0,null,null,null,null,"IE8V",23,"Channel 7 Status"]
[{"$f":"OR(IFERROR(MATCH(\"IE8V\",'Conn Information'!$N$3:$N$65,0),0),0)","v":false},"IE8V",null,24,"Low Alarm Channel 1 (Low Byte)",null,null,null,null,null,null,null,-12,"INT",500,"-32,768…32,767"]
[{"$f":"OR(IFERROR(MATCH(\"IE8V\",'Conn Information'!$N$3:$N$65,0),0),0)","v":false},"IE8V",null,25,"Low Alarm Channel 1 (High Byte)",null,null,null,null,null,null,null,1]
[{"$f":"OR(IFERROR(MATCH(\"IE8V\",'Conn Information'!$N$3:$N$65,0),0),0)","v":false},"IE8V",null,26,"High Alarm Channel 1 (Low Byte)",null,null,null,null,null,null,null,28,"INT",9500,"-32,768…32,767"]
[{"$f":"OR(IFERROR(MATCH(\"IE8V\",'Conn Information'!$N$3:$N$65,0),0),0)","v":false},"IE8V",null,27,"High Alarm Channel 1 (High Byte)",null,null,null,null,null,null,null,37]
[{"$f":"OR(IFERROR(MATCH(\"IE8V\",'Conn Information'!$N$3:$N$65,0),0),0)","v":false},"IE8V",null,28,"Low Low Alarm Channel 1 (Low Byte)",null,null,null,null,null,null,null,-56,"INT",200,"-32,768…32,767"]
[{"$f":"OR(IFERROR(MATCH(\"IE8V\",'Conn Information'!$N$3:$N$65,0),0),0)","v":false},"IE8V",null,29,"Low Low Alarm Channel 1 (High Byte)",null,null,null,null,null,null,null,0]
[{"$f":"OR(IFERROR(MATCH(\"IE8V\",'Conn Information'!$N$3:$N$65,0),0),0)","v":false},"IE8V",null,30,"High High Alarm Channel 1 (Low Byte)",null,null,null,null,null,null,null,72,"INT",9800,"-32,768…32,767"]
[{"$f":"OR(IFERROR(MATCH(\"IE8V\",'Conn Information'!$N$3:$N$65,0),0),0)","v":false},"IE8V",null,31,"High High Alarm Channel 1 (High Byte)",null,null,null,null,null,null,null,38]
[{"$f":"OR(IFERROR(MATCH(\"IE8V\",'Conn Information'!$N$3:$N$65,0),0),0)","v":false},"IE8V",null,32,"Range Channel 1",null,null,null,null,null,null,null,2,"SINT",2,"0 = -10 - +10V\n2 = 0--10VA"]
[{"$f":"OR(IFERROR(MATCH(\"IE8V\",'Conn Information'!$N$3:$N$65,0),0),0)","v":false},"IE8V",null,33,"Alarm Latch Channel 1",null,null,null,null,null,null,null,0,"SINT",0,"0 = No Latching\n1 = Alarms Latch"]
[{"$f":"OR(IFERROR(MATCH(\"IE8V\",'Conn Information'!$N$3:$N$65,0),0),0)","v":false},"IE8V",null,34,"Alarm Disable Channel 1",null,null,null,null,null,null,null,0,"SINT",0,"0 = Alarms Enabled\n1 = Alarms Disabled"]
[{"$f":"OR(IFERROR(MATCH(\"IE8V\",'Conn Information'!$N$3:$N$65,0),0),0)","v":false},"IE8V",null,35,"Alignment (reserved =0)",null,null,null,null,null,null,null,0,"SINT",0]
[{"$f":"OR(IFERROR(MATCH(\"IE8V\",'Conn Information'!$N$3:$N$65,0),0),0)","v":false},"IE8V",null,36,"Low Engineering Channel 2 (Low Byte)",null,null,null,null,null,null,null,0,"INT",0,"-32,768…32,767"]
[{"$f":"OR(IFERROR(MATCH(\"IE8V\",'Conn Information'!$N$3:$N$65,0),0),0)","v":false},"IE8V",null,37,"Low Engineering Channel 2 (High Byte)",null,null,null,null,null,null,null,0]
[{"$f":"OR(IFERROR(MATCH(\"IE8V\",'Conn Information'!$N$3:$N$65,0),0),0)","v":false},"IE8V",null,38,"High Engineering Channel 2 (Low Byte)",null,null,null,null,null,null,null,-1,"INT",10000,"-32,768…32,767"]
[{"$f":"OR(IFERROR(MATCH(\"IE8V\",'Conn Information'!$N$3:$N$65,0),0),0)","v":false},"IE8V",null,39,"High Engineering Channel 2 (High Byte)",null,null,null,null,null,null,null,63]
[{"$f":"OR(IFERROR(MATCH(\"IE8V\",'Conn Information'!$N$3:$N$65,0),0),0)","v":false},"IE8V",null,40,"Digital Filter Channel 2 (Low Byte)",null,null,null,null,null,null,null,0,"INT",0,"0…10,000ms"]
[{"$f":"OR(IFERROR(MATCH(\"IE8V\",'Conn Information'!$N$3:$N$65,0),0),0)","v":false},"IE8V",null,41,"Digital Filter Channel 2 (High Byte)",null,null,null,null,null,null,null,0]
[{"$f":"OR(IFERROR(MATCH(\"IE8V\",'Conn Information'!$N$3:$N$65,0),0),0)","v":false},"IE8V",null,42,"Low Alarm Channel 2 (Low Byte)",null,null,null,null,null,null,null,41,"INT",500,"-32,768…32,767"]
[{"$f":"OR(IFERROR(MATCH(\"IE8V\",'Conn Information'!$N$3:$N$65,0),0),0)","v":false},"IE8V",null,43,"Low Alarm Channel 2 (High Byte)",null,null,null,null,null,null,null,12]
[{"$f":"OR(IFERROR(MATCH(\"IE8V\",'Conn Information'!$N$3:$N$65,0),0),0)","v":false},"IE8V",null,44,"High Alarm Channel 2 (Low Byte)",null,null,null,null,null,null,null,-93,"INT",9500,"-32,768…32,767"]
[{"$f":"OR(IFERROR(MATCH(\"IE8V\",'Conn Information'!$N$3:$N$65,0),0),0)","v":false},"IE8V",null,45,"High Alarm Channel 2 (High Byte)",null,null,null,null,null,null,null,64]
[{"$f":"OR(IFERROR(MATCH(\"IE8V\",'Conn Information'!$N$3:$N$65,0),0),0)","v":false},"IE8V",null,46,"Low Low Alarm Channel 2 (Low Byte)",null,null,null,null,null,null,null,51,"INT",200,"-32,768…32,767"]
[{"$f":"OR(IFERROR(MATCH(\"IE8V\",'Conn Information'!$N$3:$N$65,0),0),0)","v":false},"IE8V",null,47,"Low Low Alarm Channel 2 (High Byte)",null,null,null,null,null,null,null,11]
[{"$f":"OR(IFERROR(MATCH(\"IE8V\",'Conn Information'!$N$3:$N$65,0),0),0)","v":false},"IE8V",null,48,"High High Alarm Channel 2 (Low Byte)",null,null,null,null,null,null,null,-103,"INT",9800,"-32,768…32,767"]
[{"$f":"OR(IFERROR(MATCH(\"IE8V\",'Conn Information'!$N$3:$N$65,0),0),0)","v":false},"IE8V",null,49,"High High Alarm Channel 2 (High Byte)",null,null,null,null,null,null,null,65]
[{"$f":"OR(IFERROR(MATCH(\"IE8V\",'Conn Information'!$N$3:$N$65,0),0),0)","v":false},"IE8V",null,50,"Range Channel 2",null,null,null,null,null,null,null,3,"SINT",2,"0 = -10 - +10V\n2 = 0--10VA"]
[{"$f":"OR(IFERROR(MATCH(\"IE8V\",'Conn Information'!$N$3:$N$65,0),0),0)","v":false},"IE8V",null,51,"Alarm Latch Channel 2",null,null,null,null,null,null,null,0,"SINT",0,"0 = No Latching\n1 = Alarms Latch"]
[{"$f":"OR(IFERROR(MATCH(\"IE8V\",'Conn Information'!$N$3:$N$65,0),0),0)","v":false},"IE8V",null,52,"Alarm Disable Channel 2",null,null,null,null,null,null,null,0,"SINT",0,"0 = Alarms Enabled\n1 = Alarms Disabled"]
[{"$f":"OR(IFERROR(MATCH(\"IE8V\",'Conn Information'!$N$3:$N$65,0),0),0)","v":false},"IE8V",null,53,"Alignment (reserved =0)",null,null,null,null,null,null,null,0,"SINT",0]
[{"$f":"OR(IFERROR(MATCH(\"IE8V\",'Conn Information'!$N$3:$N$65,0),0),0)","v":false},"IE8V",null,54,"Low Engineering Channel 3 (Low Byte)",null,null,null,null,null,null,null,0,"INT",0,"-32,768…32,767"]
[{"$f":"OR(IFERROR(MATCH(\"IE8V\",'Conn Information'!$N$3:$N$65,0),0),0)","v":false},"IE8V",null,55,"Low Engineering Channel 3 (High Byte)",null,null,null,null,null,null,null,0]
[{"$f":"OR(IFERROR(MATCH(\"IE8V\",'Conn Information'!$N$3:$N$65,0),0),0)","v":false},"IE8V",null,56,"High Engineering Channel 3 (Low Byte)",null,null,null,null,null,null,null,16,"INT",10000,"-32,768…32,767"]
[{"$f":"OR(IFERROR(MATCH(\"IE8V\",'Conn Information'!$N$3:$N$65,0),0),0)","v":false},"IE8V",null,57,"High Engineering Channel 3 (High Byte)",null,null,null,null,null,null,null,39]
[{"$f":"OR(IFERROR(MATCH(\"IE8V\",'Conn Information'!$N$3:$N$65,0),0),0)","v":false},"IE8V",null,58,"Digital Filter Channel 3 (Low Byte)",null,null,null,null,null,null,null,0,"INT",0,"0…10,000ms"]
[{"$f":"OR(IFERROR(MATCH(\"IE8V\",'Conn Information'!$N$3:$N$65,0),0),0)","v":false},"IE8V",null,59,"Digital Filter Channel 3 (High Byte)",null,null,null,null,null,null,null,0]
[{"$f":"OR(IFERROR(MATCH(\"IE8V\",'Conn Information'!$N$3:$N$65,0),0),0)","v":false},"IE8V",null,60,"Low Alarm Channel 3 (Low Byte)",null,null,null,null,null,null,null,-12,"INT",500,"-32,768…32,767"]
[{"$f":"OR(IFERROR(MATCH(\"IE8V\",'Conn Information'!$N$3:$N$65,0),0),0)","v":false},"IE8V",null,61,"Low Alarm Channel 3 (High Byte)",null,null,null,null,null,null,null,1]
[{"$f":"OR(IFERROR(MATCH(\"IE8V\",'Conn Information'!$N$3:$N$65,0),0),0)","v":false},"IE8V",null,62,"High Alarm Channel 3 (Low Byte)",null,null,null,null,null,null,null,28,"INT",9500,"-32,768…32,767"]
[{"$f":"OR(IFERROR(MATCH(\"IE8V\",'Conn Information'!$N$3:$N$65,0),0),0)","v":false},"IE8V",null,63,"High Alarm Channel 3 (High Byte)",null,null,null,null,null,null,null,37]
[{"$f":"OR(IFERROR(MATCH(\"IE8V\",'Conn Information'!$N$3:$N$65,0),0),0)","v":false},"IE8V",null,64,"Low Low Alarm Channel 3 (Low Byte)",null,null,null,null,null,null,null,-56,"INT",200,"-32,768…32,767"]
[{"$f":"OR(IFERROR(MATCH(\"IE8V\",'Conn Information'!$N$3:$N$65,0),0),0)","v":false},"IE8V",null,65,"Low Low Alarm Channel 3 (High Byte)",null,null,null,null,null,null,null,0]
[{"$f":"OR(IFERROR(MATCH(\"IE8V\",'Conn Information'!$N$3:$N$65,0),0),0)","v":false},"IE8V",null,66,"High High Alarm Channel 3 (Low Byte)",null,null,null,null,null,null,null,72,"INT",9800,"-32,768…32,767"]
[{"$f":"OR(IFERROR(MATCH(\"IE8V\",'Conn Information'!$N$3:$N$65,0),0),0)","v":false},"IE8V",null,67,"High High Alarm Channel 3 (High Byte)",null,null,null,null,null,null,null,38]
[{"$f":"OR(IFERROR(MATCH(\"IE8V\",'Conn Information'!$N$3:$N$65,0),0),0)","v":false},"IE8V",null,68,"Range Channel 3",null,null,null,null,null,null,null,2,"SINT",2,"0 = -10 - +10V\n2 = 0--10VA"]
[{"$f":"OR(IFERROR(MATCH(\"IE8V\",'Conn Information'!$N$3:$N$65,0),0),0)","v":false},"IE8V",null,69,"Alarm Latch Channel 3",null,null,null,null,null,null,null,0,"SINT",0,"0 = No Latching\n1 = Alarms Latch"]
[{"$f":"OR(IFERROR(MATCH(\"IE8V\",'Conn Information'!$N$3:$N$65,0),0),0)","v":false},"IE8V",null,70,"Alarm Disable Channel 3",null,null,null,null,null,null,null,0,"SINT",0,"0 = Alarms Enabled\n1 = Alarms Disabled"]
[{"$f":"OR(IFERROR(MATCH(\"IE8V\",'Conn Information'!$N$3:$N$65,0),0),0)","v":false},"IE8V",null,71,"Alignment (reserved =0)",null,null,null,null,null,null,null,0,"SINT",0]
[{"$f":"OR(IFERROR(MATCH(\"IE8V\",'Conn Information'!$N$3:$N$65,0),0),0)","v":false},"IE8V",null,72,"Low Engineering Channel 4 (Low Byte)",null,null,null,null,null,null,null,0,"INT",0,"-32,768…32,767"]
[{"$f":"OR(IFERROR(MATCH(\"IE8V\",'Conn Information'!$N$3:$N$65,0),0),0)","v":false},"IE8V",null,73,"Low Engineering Channel 4 (High Byte)",null,null,null,null,null,null,null,0]
[{"$f":"OR(IFERROR(MATCH(\"IE8V\",'Conn Information'!$N$3:$N$65,0),0),0)","v":false},"IE8V",null,74,"High Engineering Channel 4 (Low Byte)",null,null,null,null,null,null,null,-1,"INT",10000,"-32,768…32,767"]
[{"$f":"OR(IFERROR(MATCH(\"IE8V\",'Conn Information'!$N$3:$N$65,0),0),0)","v":false},"IE8V",null,75,"High Engineering Channel 4 (High Byte)",null,null,null,null,null,null,null,63]
[{"$f":"OR(IFERROR(MATCH(\"IE8V\",'Conn Information'!$N$3:$N$65,0),0),0)","v":false},"IE8V",null,76,"Digital Filter Channel 4 (Low Byte)",null,null,null,null,null,null,null,0,"INT",0,"0…10,000ms"]
[{"$f":"OR(IFERROR(MATCH(\"IE8V\",'Conn Information'!$N$3:$N$65,0),0),0)","v":false},"IE8V",null,77,"Digital Filter Channel 4 (High Byte)",null,null,null,null,null,null,null,0]
[{"$f":"OR(IFERROR(MATCH(\"IE8V\",'Conn Information'!$N$3:$N$65,0),0),0)","v":false},"IE8V",null,78,"Low Alarm Channel 4 (Low Byte)",null,null,null,null,null,null,null,41,"INT",500,"-32,768…32,767"]
[{"$f":"OR(IFERROR(MATCH(\"IE8V\",'Conn Information'!$N$3:$N$65,0),0),0)","v":false},"IE8V",null,79,"Low Alarm Channel 4 (High Byte)",null,null,null,null,null,null,null,12]
[{"$f":"OR(IFERROR(MATCH(\"IE8V\",'Conn Information'!$N$3:$N$65,0),0),0)","v":false},"IE8V",null,80,"High Alarm Channel 4 (Low Byte)",null,null,null,null,null,null,null,-93,"INT",9500,"-32,768…32,767"]
[{"$f":"OR(IFERROR(MATCH(\"IE8V\",'Conn Information'!$N$3:$N$65,0),0),0)","v":false},"IE8V",null,81,"High Alarm Channel 4 (High Byte)",null,null,null,null,null,null,null,64]
[{"$f":"OR(IFERROR(MATCH(\"IE8V\",'Conn Information'!$N$3:$N$65,0),0),0)","v":false},"IE8V",null,82,"Low Low Alarm Channel 4 (Low Byte)",null,null,null,null,null,null,null,51,"INT",200,"-32,768…32,767"]
[{"$f":"OR(IFERROR(MATCH(\"IE8V\",'Conn Information'!$N$3:$N$65,0),0),0)","v":false},"IE8V",null,83,"Low Low Alarm Channel 4 (High Byte)",null,null,null,null,null,null,null,11]
[{"$f":"OR(IFERROR(MATCH(\"IE8V\",'Conn Information'!$N$3:$N$65,0),0),0)","v":false},"IE8V",null,84,"High High Alarm Channel 4 (Low Byte)",null,null,null,null,null,null,null,-103,"INT",9800,"-32,768…32,767"]
[{"$f":"OR(IFERROR(MATCH(\"IE8V\",'Conn Information'!$N$3:$N$65,0),0),0)","v":false},"IE8V",null,85,"High High Alarm Channel 4 (High Byte)",null,null,null,null,null,null,null,65]
[{"$f":"OR(IFERROR(MATCH(\"IE8V\",'Conn Information'!$N$3:$N$65,0),0),0)","v":false},"IE8V",null,86,"Range Channel 4",null,null,null,null,null,null,null,3,"SINT",2,"0 = -10 - +10V\n2 = 0--10VA"]
[{"$f":"OR(IFERROR(MATCH(\"IE8V\",'Conn Information'!$N$3:$N$65,0),0),0)","v":false},"IE8V",null,87,"Alarm Latch Channel 4",null,null,null,null,null,null,null,0,"SINT",0,"0 = No Latching\n1 = Alarms Latch"]
[{"$f":"OR(IFERROR(MATCH(\"IE8V\",'Conn Information'!$N$3:$N$65,0),0),0)","v":false},"IE8V",null,88,"Alarm Disable Channel 4",null,null,null,null,null,null,null,0,"SINT",0,"0 = Alarms Enabled\n1 = Alarms Disabled"]
[{"$f":"OR(IFERROR(MATCH(\"IE8V\",'Conn Information'!$N$3:$N$65,0),0),0)","v":false},"IE8V",null,89,"Alignment (reserved =0)",null,null,null,null,null,null,null,0,"SINT",0]
[{"$f":"OR(IFERROR(MATCH(\"IE8V\",'Conn Information'!$N$3:$N$65,0),0),0)","v":false},"IE8V",null,90,"Low Engineering Channel 5 (Low Byte)",null,null,null,null,null,null,null,0,"INT",0,"-32,768…32,767"]
[{"$f":"OR(IFERROR(MATCH(\"IE8V\",'Conn Information'!$N$3:$N$65,0),0),0)","v":false},"IE8V",null,91,"Low Engineering Channel 5 (High Byte)",null,null,null,null,null,null,null,0]
[{"$f":"OR(IFERROR(MATCH(\"IE8V\",'Conn Information'!$N$3:$N$65,0),0),0)","v":false},"IE8V",null,92,"High Engineering Channel 5 (Low Byte)",null,null,null,null,null,null,null,16,"INT",10000,"-32,768…32,767"]
[{"$f":"OR(IFERROR(MATCH(\"IE8V\",'Conn Information'!$N$3:$N$65,0),0),0)","v":false},"IE8V",null,93,"High Engineering Channel 5 (High Byte)",null,null,null,null,null,null,null,39]
[{"$f":"OR(IFERROR(MATCH(\"IE8V\",'Conn Information'!$N$3:$N$65,0),0),0)","v":false},"IE8V",null,94,"Digital Filter Channel 5 (Low Byte)",null,null,null,null,null,null,null,0,"INT",0,"0…10,000ms"]
[{"$f":"OR(IFERROR(MATCH(\"IE8V\",'Conn Information'!$N$3:$N$65,0),0),0)","v":false},"IE8V",null,95,"Digital Filter Channel 5 (High Byte)",null,null,null,null,null,null,null,0]
[{"$f":"OR(IFERROR(MATCH(\"IE8V\",'Conn Information'!$N$3:$N$65,0),0),0)","v":false},"IE8V",null,96,"Low Alarm Channel 5 (Low Byte)",null,null,null,null,null,null,null,-12,"INT",500,"-32,768…32,767"]
[{"$f":"OR(IFERROR(MATCH(\"IE8V\",'Conn Information'!$N$3:$N$65,0),0),0)","v":false},"IE8V",null,97,"Low Alarm Channel 5 (High Byte)",null,null,null,null,null,null,null,1]
[{"$f":"OR(IFERROR(MATCH(\"IE8V\",'Conn Information'!$N$3:$N$65,0),0),0)","v":false},"IE8V",null,98,"High Alarm Channel 5 (Low Byte)",null,null,null,null,null,null,null,28,"INT",9500,"-32,768…32,767"]
[{"$f":"OR(IFERROR(MATCH(\"IE8V\",'Conn Information'!$N$3:$N$65,0),0),0)","v":false},"IE8V",null,99,"High Alarm Channel 5 (High Byte)",null,null,null,null,null,null,null,37]
[{"$f":"OR(IFERROR(MATCH(\"IE8V\",'Conn Information'!$N$3:$N$65,0),0),0)","v":false},"IE8V",null,100,"Low Low Alarm Channel 5 (Low Byte)",null,null,null,null,null,null,null,-56,"INT",200,"-32,768…32,767"]
[{"$f":"OR(IFERROR(MATCH(\"IE8V\",'Conn Information'!$N$3:$N$65,0),0),0)","v":false},"IE8V",null,101,"Low Low Alarm Channel 5 (High Byte)",null,null,null,null,null,null,null,0]
[{"$f":"OR(IFERROR(MATCH(\"IE8V\",'Conn Information'!$N$3:$N$65,0),0),0)","v":false},"IE8V",null,102,"High High Alarm Channel 5 (Low Byte)",null,null,null,null,null,null,null,72,"INT",9800,"-32,768…32,767"]
[{"$f":"OR(IFERROR(MATCH(\"IE8V\",'Conn Information'!$N$3:$N$65,0),0),0)","v":false},"IE8V",null,103,"High High Alarm Channel 5 (High Byte)",null,null,null,null,null,null,null,38]
[{"$f":"OR(IFERROR(MATCH(\"IE8V\",'Conn Information'!$N$3:$N$65,0),0),0)","v":false},"IE8V",null,104,"Range Channel 5",null,null,null,null,null,null,null,2,"SINT",2,"0 = -10 - +10V\n2 = 0--10VA"]
[{"$f":"OR(IFERROR(MATCH(\"IE8V\",'Conn Information'!$N$3:$N$65,0),0),0)","v":false},"IE8V",null,105,"Alarm Latch Channel 5",null,null,null,null,null,null,null,0,"SINT",0,"0 = No Latching\n1 = Alarms Latch"]
[{"$f":"OR(IFERROR(MATCH(\"IE8V\",'Conn Information'!$N$3:$N$65,0),0),0)","v":false},"IE8V",null,106,"Alarm Disable Channel 5",null,null,null,null,null,null,null,0,"SINT",0,"0 = Alarms Enabled\n1 = Alarms Disabled"]
[{"$f":"OR(IFERROR(MATCH(\"IE8V\",'Conn Information'!$N$3:$N$65,0),0),0)","v":false},"IE8V",null,107,"Alignment (reserved =0)",null,null,null,null,null,null,null,0,"SINT",0]
[{"$f":"OR(IFERROR(MATCH(\"IE8V\",'Conn Information'!$N$3:$N$65,0),0),0)","v":false},"IE8V",null,108,"Low Engineering Channel 6 (Low Byte)",null,null,null,null,null,null,null,0,"INT",0,"-32,768…32,767"]
[{"$f":"OR(IFERROR(MATCH(\"IE8V\",'Conn Information'!$N$3:$N$65,0),0),0)","v":false},"IE8V",null,109,"Low Engineering Channel 6 (High Byte)",null,null,null,null,null,null,null,0]
[{"$f":"OR(IFERROR(MATCH(\"IE8V\",'Conn Information'!$N$3:$N$65,0),0),0)","v":false},"IE8V",null,110,"High Engineering Channel 6 (Low Byte)",null,null,null,null,null,null,null,-1,"INT",10000,"-32,768…32,767"]
[{"$f":"OR(IFERROR(MATCH(\"IE8V\",'Conn Information'!$N$3:$N$65,0),0),0)","v":false},"IE8V",null,111,"High Engineering Channel 6 (High Byte)",null,null,null,null,null,null,null,63]
[{"$f":"OR(IFERROR(MATCH(\"IE8V\",'Conn Information'!$N$3:$N$65,0),0),0)","v":false},"IE8V",null,112,"Digital Filter Channel 6 (Low Byte)",null,null,null,null,null,null,null,0,"INT",0,"0…10,000ms"]
[{"$f":"OR(IFERROR(MATCH(\"IE8V\",'Conn Information'!$N$3:$N$65,0),0),0)","v":false},"IE8V",null,113,"Digital Filter Channel 6 (High Byte)",null,null,null,null,null,null,null,0]
[{"$f":"OR(IFERROR(MATCH(\"IE8V\",'Conn Information'!$N$3:$N$65,0),0),0)","v":false},"IE8V",null,114,"Low Alarm Channel 6 (Low Byte)",null,null,null,null,null,null,null,41,"INT",500,"-32,768…32,767"]
[{"$f":"OR(IFERROR(MATCH(\"IE8V\",'Conn Information'!$N$3:$N$65,0),0),0)","v":false},"IE8V",null,115,"Low Alarm Channel 6 (High Byte)",null,null,null,null,null,null,null,12]
[{"$f":"OR(IFERROR(MATCH(\"IE8V\",'Conn Information'!$N$3:$N$65,0),0),0)","v":false},"IE8V",null,116,"High Alarm Channel 6 (Low Byte)",null,null,null,null,null,null,null,-93,"INT",9500,"-32,768…32,767"]
[{"$f":"OR(IFERROR(MATCH(\"IE8V\",'Conn Information'!$N$3:$N$65,0),0),0)","v":false},"IE8V",null,117,"High Alarm Channel 6 (High Byte)",null,null,null,null,null,null,null,64]
[{"$f":"OR(IFERROR(MATCH(\"IE8V\",'Conn Information'!$N$3:$N$65,0),0),0)","v":false},"IE8V",null,118,"Low Low Alarm Channel 6 (Low Byte)",null,null,null,null,null,null,null,51,"INT",200,"-32,768…32,767"]
[{"$f":"OR(IFERROR(MATCH(\"IE8V\",'Conn Information'!$N$3:$N$65,0),0),0)","v":false},"IE8V",null,119,"Low Low Alarm Channel 6 (High Byte)",null,null,null,null,null,null,null,11]
[{"$f":"OR(IFERROR(MATCH(\"IE8V\",'Conn Information'!$N$3:$N$65,0),0),0)","v":false},"IE8V",null,120,"High High Alarm Channel 6 (Low Byte)",null,null,null,null,null,null,null,-103,"INT",9800,"-32,768…32,767"]
[{"$f":"OR(IFERROR(MATCH(\"IE8V\",'Conn Information'!$N$3:$N$65,0),0),0)","v":false},"IE8V",null,121,"High High Alarm Channel 6 (High Byte)",null,null,null,null,null,null,null,65]
[{"$f":"OR(IFERROR(MATCH(\"IE8V\",'Conn Information'!$N$3:$N$65,0),0),0)","v":false},"IE8V",null,122,"Range Channel 6",null,null,null,null,null,null,null,3,"SINT",2,"0 = -10 - +10V\n2 = 0--10VA"]
[{"$f":"OR(IFERROR(MATCH(\"IE8V\",'Conn Information'!$N$3:$N$65,0),0),0)","v":false},"IE8V",null,123,"Alarm Latch Channel 6",null,null,null,null,null,null,null,0,"SINT",0,"0 = No Latching\n1 = Alarms Latch"]
[{"$f":"OR(IFERROR(MATCH(\"IE8V\",'Conn Information'!$N$3:$N$65,0),0),0)","v":false},"IE8V",null,124,"Alarm Disable Channel 6",null,null,null,null,null,null,null,0,"SINT",0,"0 = Alarms Enabled\n1 = Alarms Disabled"]
[{"$f":"OR(IFERROR(MATCH(\"IE8V\",'Conn Information'!$N$3:$N$65,0),0),0)","v":false},"IE8V",null,125,"Alignment (reserved =0)",null,null,null,null,null,null,null,0,"SINT",0]
[{"$f":"OR(IFERROR(MATCH(\"IE8V\",'Conn Information'!$N$3:$N$65,0),0),0)","v":false},"IE8V",null,126,"Low Engineering Channel 7 (Low Byte)",null,null,null,null,null,null,null,0,"INT",0,"-32,768…32,767"]
[{"$f":"OR(IFERROR(MATCH(\"IE8V\",'Conn Information'!$N$3:$N$65,0),0),0)","v":false},"IE8V",null,127,"Low Engineering Channel 7 (High Byte)",null,null,null,null,null,null,null,0]
[{"$f":"OR(IFERROR(MATCH(\"IE8V\",'Conn Information'!$N$3:$N$65,0),0),0)","v":false},"IE8V",null,128,"High Engineering Channel 7 (Low Byte)",null,null,null,null,null,null,null,16,"INT",10000,"-32,768…32,767"]
[{"$f":"OR(IFERROR(MATCH(\"IE8V\",'Conn Information'!$N$3:$N$65,0),0),0)","v":false},"IE8V",null,129,"High Engineering Channel 7 (High Byte)",null,null,null,null,null,null,null,39]
[{"$f":"OR(IFERROR(MATCH(\"IE8V\",'Conn Information'!$N$3:$N$65,0),0),0)","v":false},"IE8V",null,130,"Digital Filter Channel 7 (Low Byte)",null,null,null,null,null,null,null,0,"INT",0,"0…10,000ms"]
[{"$f":"OR(IFERROR(MATCH(\"IE8V\",'Conn Information'!$N$3:$N$65,0),0),0)","v":false},"IE8V",null,131,"Digital Filter Channel 7 (High Byte)",null,null,null,null,null,null,null,0]
[{"$f":"OR(IFERROR(MATCH(\"IE8V\",'Conn Information'!$N$3:$N$65,0),0),0)","v":false},"IE8V",null,132,"Low Alarm Channel 7 (Low Byte)",null,null,null,null,null,null,null,-12,"INT",500,"-32,768…32,767"]
[{"$f":"OR(IFERROR(MATCH(\"IE8V\",'Conn Information'!$N$3:$N$65,0),0),0)","v":false},"IE8V",null,133,"Low Alarm Channel 7 (High Byte)",null,null,null,null,null,null,null,1]
[{"$f":"OR(IFERROR(MATCH(\"IE8V\",'Conn Information'!$N$3:$N$65,0),0),0)","v":false},"IE8V",null,134,"High Alarm Channel 7 (Low Byte)",null,null,null,null,null,null,null,28,"INT",9500,"-32,768…32,767"]
[{"$f":"OR(IFERROR(MATCH(\"IE8V\",'Conn Information'!$N$3:$N$65,0),0),0)","v":false},"IE8V",null,135,"High Alarm Channel 7 (High Byte)",null,null,null,null,null,null,null,37]
[{"$f":"OR(IFERROR(MATCH(\"IE8V\",'Conn Information'!$N$3:$N$65,0),0),0)","v":false},"IE8V",null,136,"Low Low Alarm Channel 7 (Low Byte)",null,null,null,null,null,null,null,-56,"INT",200,"-32,768…32,767"]
[{"$f":"OR(IFERROR(MATCH(\"IE8V\",'Conn Information'!$N$3:$N$65,0),0),0)","v":false},"IE8V",null,137,"Low Low Alarm Channel 7 (High Byte)",null,null,null,null,null,null,null,0]
[{"$f":"OR(IFERROR(MATCH(\"IE8V\",'Conn Information'!$N$3:$N$65,0),0),0)","v":false},"IE8V",null,138,"High High Alarm Channel 7 (Low Byte)",null,null,null,null,null,null,null,72,"INT",9800,"-32,768…32,767"]
[{"$f":"OR(IFERROR(MATCH(\"IE8V\",'Conn Information'!$N$3:$N$65,0),0),0)","v":false},"IE8V",null,139,"High High Alarm Channel 7 (High Byte)",null,null,null,null,null,null,null,38]
[{"$f":"OR(IFERROR(MATCH(\"IE8V\",'Conn Information'!$N$3:$N$65,0),0),0)","v":false},"IE8V",null,140,"Range Channel 7",null,null,null,null,null,null,null,2,"SINT",2,"0 = -10 - +10V\n2 = 0--10VA"]
[{"$f":"OR(IFERROR(MATCH(\"IE8V\",'Conn Information'!$N$3:$N$65,0),0),0)","v":false},"IE8V",null,141,"Alarm Latch Channel 7",null,null,null,null,null,null,null,0,"SINT",0,"0 = No Latching\n1 = Alarms Latch"]
[{"$f":"OR(IFERROR(MATCH(\"IE8V\",'Conn Information'!$N$3:$N$65,0),0),0)","v":false},"IE8V",null,142,"Alarm Disable Channel 7",null,null,null,null,null,null,null,0,"SINT",0,"0 = Alarms Enabled\n1 = Alarms Disabled"]
[{"$f":"OR(IFERROR(MATCH(\"IE8V\",'Conn Information'!$N$3:$N$65,0),0),0)","v":false},"IE8V",null,143,"Notch Filter",null,null,null,null,null,null,null,2,"SINT",2,"1 = 50Hz\n2 = 60Hz\n4 = 250Hz\n6 = 500Hz"]
[{"$f":"OR(IFERROR(MATCH(\"IE8V\",'Conn Information'!$N$3:$N$65,0),0),0)","v":false},"IE8V",null,144,"Update Rate (Low Byte)",null,null,null,null,null,null,null,100,"INT",100,"0….10,000ms"]
[{"$f":"OR(IFERROR(MATCH(\"IE8V\",'Conn Information'!$N$3:$N$65,0),0),0)","v":false},"IE8V",null,145,"Update Rate (High Byte)",null,null,null,null,null,null,null,0]
[{"$f":"OR(IFERROR(MATCH(\"OE2C\",'Conn Information'!$N$3:$N$65,0),0),0)","v":false},"OE2C",123,0,"Fault Data Channel 0 (Low Byte)",null,null,null,null,null,null,null,0,"INT",0,"-32,768…32,767",null,"OE2C",0,"Channel 0 Status",null,null,null,null,null,null,null,null,"OE2C",0,"Channel 0 (Low Byte)"]
[{"$f":"OR(IFERROR(MATCH(\"OE2C\",'Conn Information'!$N$3:$N$65,0),0),0)","v":false},"OE2C",null,1,"Fault Data Channel 0 (High Byte)",null,null,null,null,null,null,null,0,null,null,null,null,"OE2C",1,"Channel 1 Status",null,null,null,null,null,null,null,null,"OE2C",1,"Channel 0 (High Byte)"]
[{"$f":"OR(IFERROR(MATCH(\"OE2C\",'Conn Information'!$N$3:$N$65,0),0),0)","v":false},"OE2C",null,2,"Idle Data Channel 0 (Low Byte)",null,null,null,null,null,null,null,0,"INT",0,"-32,768…32,767",null,null,null,null,null,null,null,null,null,null,null,null,"OE2C",2,"Channel 1 (Low Byte)"]
[{"$f":"OR(IFERROR(MATCH(\"OE2C\",'Conn Information'!$N$3:$N$65,0),0),0)","v":false},"OE2C",null,3,"Idle Data Channel 0 (High Byte)",null,null,null,null,null,null,null,0,null,null,null,null,null,null,null,null,null,null,null,null,null,null,null,"OE2C",3,"Channel 1 (High Byte)"]
[{"$f":"OR(IFERROR(MATCH(\"OE2C\",'Conn Information'!$N$3:$N$65,0),0),0)","v":false},"OE2C",null,4,"Low Engineering Channel 0 (Low Byte)",null,null,null,null,null,null,null,102,"INT",1638,"-32,768…32,767"]
[{"$f":"OR(IFERROR(MATCH(\"OE2C\",'Conn Information'!$N$3:$N$65,0),0),0)","v":false},"OE2C",null,5,"Low Engineering Channel 0 (High Byte)",null,null,null,null,null,null,null,6]
[{"$f":"OR(IFERROR(MATCH(\"OE2C\",'Conn Information'!$N$3:$N$65,0),0),0)","v":false},"OE2C",null,6,"High Engineering Channel 0 (Low Byte)",null,null,null,null,null,null,null,-1,"INT",8191,"-32,768…32,767"]
[{"$f":"OR(IFERROR(MATCH(\"OE2C\",'Conn Information'!$N$3:$N$65,0),0),0)","v":false},"OE2C",null,7,"High Engineering Channel 0 (High Byte)",null,null,null,null,null,null,null,31]
[{"$f":"OR(IFERROR(MATCH(\"OE2C\",'Conn Information'!$N$3:$N$65,0),0),0)","v":false},"OE2C",null,8,"Low Clamp Channel 0 (Low Byte)",null,null,null,null,null,null,null,0,"INT",-32768,"-32,768…32,767"]
[{"$f":"OR(IFERROR(MATCH(\"OE2C\",'Conn Information'!$N$3:$N$65,0),0),0)","v":false},"OE2C",null,9,"Low Clamp Channel 0 (High Byte)",null,null,null,null,null,null,null,-128]
[{"$f":"OR(IFERROR(MATCH(\"OE2C\",'Conn Information'!$N$3:$N$65,0),0),0)","v":false},"OE2C",null,10,"High Clamp Channel 0 (Low Byte)",null,null,null,null,null,null,null,-1,"INT",32767,"-32,768…32,767"]
[{"$f":"OR(IFERROR(MATCH(\"OE2C\",'Conn Information'!$N$3:$N$65,0),0),0)","v":false},"OE2C",null,11,"High Clamp Channel 0 (High Byte)",null,null,null,null,null,null,null,127]
[{"$f":"OR(IFERROR(MATCH(\"OE2C\",'Conn Information'!$N$3:$N$65,0),0),0)","v":false},"OE2C",null,12,"Range Channel 0",null,null,null,null,null,null,null,0,"SINT",0,"0 = 4-20mA \n2 = 0-20mA"]
[{"$f":"OR(IFERROR(MATCH(\"OE2C\",'Conn Information'!$N$3:$N$65,0),0),0)","v":false},"OE2C",null,13,"Fault Action Channel 0",null,null,null,null,null,null,null,1,"SINT",1,"0 = Hold Last State \n1 = Go to Low Clamp \n2 = Go to High Clamp \n3 = Go to Fault Value"]
[{"$f":"OR(IFERROR(MATCH(\"OE2C\",'Conn Information'!$N$3:$N$65,0),0),0)","v":false},"OE2C",null,14,"Idle Action Channel 0",null,null,null,null,null,null,null,1,"SINT",1,"0 = Hold Last State \n1 = Go to Low Clamp \n2 = Go to High Clamp \n3 = Go to Fault Value"]
[{"$f":"OR(IFERROR(MATCH(\"OE2C\",'Conn Information'!$N$3:$N$65,0),0),0)","v":false},"OE2C",null,15,"Alarm Latch Channel 0",null,null,null,null,null,null,null,0,"SINT",0,"0 = No Latching\n1 = Alarms Latch"]
[{"$f":"OR(IFERROR(MATCH(\"OE2C\",'Conn Information'!$N$3:$N$65,0),0),0)","v":false},"OE2C",null,16,"Alarm Disable Channel 0",null,null,null,null,null,null,null,0,"SINT",0,"0 = Alarms Enabled\n1 = Alarms Disabled"]
[{"$f":"OR(IFERROR(MATCH(\"OE2C\",'Conn Information'!$N$3:$N$65,0),0),0)","v":false},"OE2C",null,17,"Alignment (reserved =0)",null,null,null,null,null,null,null,0,"SINT",0]
[{"$f":"OR(IFERROR(MATCH(\"OE2C\",'Conn Information'!$N$3:$N$65,0),0),0)","v":false},"OE2C",null,18,"Fault Data Channel 1 (Low Byte)",null,null,null,null,null,null,null,0,"INT",0,"-32,768…32,767"]
[{"$f":"OR(IFERROR(MATCH(\"OE2C\",'Conn Information'!$N$3:$N$65,0),0),0)","v":false},"OE2C",null,19,"Fault Data Channel 1 (High Byte)",null,null,null,null,null,null,null,0]
[{"$f":"OR(IFERROR(MATCH(\"OE2C\",'Conn Information'!$N$3:$N$65,0),0),0)","v":false},"OE2C",null,20,"Idle Data Channel 1 (Low Byte)",null,null,null,null,null,null,null,0,"INT",0,"-32,768…32,767"]
[{"$f":"OR(IFERROR(MATCH(\"OE2C\",'Conn Information'!$N$3:$N$65,0),0),0)","v":false},"OE2C",null,21,"Idle Data Channel 1 (High Byte)",null,null,null,null,null,null,null,0]
[{"$f":"OR(IFERROR(MATCH(\"OE2C\",'Conn Information'!$N$3:$N$65,0),0),0)","v":false},"OE2C",null,22,"Low Engineering Channel 1 (Low Byte)",null,null,null,null,null,null,null,102,"INT",1638,"-32,768…32,767"]
[{"$f":"OR(IFERROR(MATCH(\"OE2C\",'Conn Information'!$N$3:$N$65,0),0),0)","v":false},"OE2C",null,23,"Low Engineering Channel 1 (High Byte)",null,null,null,null,null,null,null,6]
[{"$f":"OR(IFERROR(MATCH(\"OE2C\",'Conn Information'!$N$3:$N$65,0),0),0)","v":false},"OE2C",null,24,"High Engineering Channel 1 (Low Byte)",null,null,null,null,null,null,null,-1,"INT",8191,"-32,768…32,767"]
[{"$f":"OR(IFERROR(MATCH(\"OE2C\",'Conn Information'!$N$3:$N$65,0),0),0)","v":false},"OE2C",null,25,"High Engineering Channel 1 (High Byte)",null,null,null,null,null,null,null,31]
[{"$f":"OR(IFERROR(MATCH(\"OE2C\",'Conn Information'!$N$3:$N$65,0),0),0)","v":false},"OE2C",null,26,"Low Clamp Channel 1 (Low Byte)",null,null,null,null,null,null,null,0,"INT",-32768,"-32,768…32,767"]
[{"$f":"OR(IFERROR(MATCH(\"OE2C\",'Conn Information'!$N$3:$N$65,0),0),0)","v":false},"OE2C",null,27,"Low Clamp Channel 1 (High Byte)",null,null,null,null,null,null,null,-128]
[{"$f":"OR(IFERROR(MATCH(\"OE2C\",'Conn Information'!$N$3:$N$65,0),0),0)","v":false},"OE2C",null,28,"High Clamp Channel 1 (Low Byte)",null,null,null,null,null,null,null,-1,"INT",32767,"-32,768…32,767"]
[{"$f":"OR(IFERROR(MATCH(\"OE2C\",'Conn Information'!$N$3:$N$65,0),0),0)","v":false},"OE2C",null,29,"High Clamp Channel 1 (High Byte)",null,null,null,null,null,null,null,127]
[{"$f":"OR(IFERROR(MATCH(\"OE2C\",'Conn Information'!$N$3:$N$65,0),0),0)","v":false},"OE2C",null,30,"Range Channel 1",null,null,null,null,null,null,null,0,"SINT",0,"0 = 4-20mA \n2 = 0-20mA"]
[{"$f":"OR(IFERROR(MATCH(\"OE2C\",'Conn Information'!$N$3:$N$65,0),0),0)","v":false},"OE2C",null,31,"Fault Action Channel 1",null,null,null,null,null,null,null,1,"SINT",1,"0 = Hold Last State \n1 = Go to Low Clamp \n2 = Go to High Clamp \n3 = Go to Fault Value"]
[{"$f":"OR(IFERROR(MATCH(\"OE2C\",'Conn Information'!$N$3:$N$65,0),0),0)","v":false},"OE2C",null,32,"Idle Action Channel 1",null,null,null,null,null,null,null,1,"SINT",1,"0 = Hold Last State \n1 = Go to Low Clamp \n2 = Go to High Clamp \n3 = Go to Fault Value"]
[{"$f":"OR(IFERROR(MATCH(\"OE2C\",'Conn Information'!$N$3:$N$65,0),0),0)","v":false},"OE2C",null,33,"Alarm Latch Channel 1",null,null,null,null,null,null,null,0,"SINT",0,"0 = No Latching\n1 = Alarms Latch"]
[{"$f":"OR(IFERROR(MATCH(\"OE2C\",'Conn Information'!$N$3:$N$65,0),0),0)","v":false},"OE2C",null,34,"Alarm Disable Channel 1",null,null,null,null,null,null,null,0,"SINT",0,"0 = Alarms Enabled\n1 = Alarms Disabled"]
[{"$f":"OR(IFERROR(MATCH(\"OE2C\",'Conn Information'!$N$3:$N$65,0),0),0)","v":false},"OE2C",null,35,"Reserved (Set to 0)",null,null,null,null,null,null,null,0,"SINT",0]
[{"$f":"OR(IFERROR(MATCH(\"OE2V\",'Conn Information'!$N$3:$N$65,0),0),0)","v":false},"OE2V",123,0,"Fault Data Channel 0 (Low Byte)",null,null,null,null,null,null,null,0,"INT",0,"-32,768…32,767",null,"OE2V",0,"Channel 0 Status",null,null,null,null,null,null,null,null,"OE2V",0,"Channel 0 (Low Byte)"]
[{"$f":"OR(IFERROR(MATCH(\"OE2V\",'Conn Information'!$N$3:$N$65,0),0),0)","v":false},"OE2V",null,1,"Fault Data Channel 0 (High Byte)",null,null,null,null,null,null,null,0,null,null,null,null,"OE2V",1,"Channel 1 Status",null,null,null,null,null,null,null,null,"OE2V",1,"Channel 0 (High Byte)"]
[{"$f":"OR(IFERROR(MATCH(\"OE2V\",'Conn Information'!$N$3:$N$65,0),0),0)","v":false},"OE2V",null,2,"Idle Data Channel 0 (Low Byte)",null,null,null,null,null,null,null,0,"INT",0,"-32,768…32,767",null,null,null,null,null,null,null,null,null,null,null,null,"OE2V",2,"Channel 1 (Low Byte)"]
[{"$f":"OR(IFERROR(MATCH(\"OE2V\",'Conn Information'!$N$3:$N$65,0),0),0)","v":false},"OE2V",null,3,"Idle Data Channel 0 (High Byte)",null,null,null,null,null,null,null,0,null,null,null,null,null,null,null,null,null,null,null,null,null,null,null,"OE2V",3,"Channel 1 (High Byte)"]
[{"$f":"OR(IFERROR(MATCH(\"OE2V\",'Conn Information'!$N$3:$N$65,0),0),0)","v":false},"OE2V",null,4,"Low Engineering Channel 0 (Low Byte)",null,null,null,null,null,null,null,0,"INT",0,"-32,768…32,767"]
[{"$f":"OR(IFERROR(MATCH(\"OE2V\",'Conn Information'!$N$3:$N$65,0),0),0)","v":false},"OE2V",null,5,"Low Engineering Channel 0 (High Byte)",null,null,null,null,null,null,null,0]
[{"$f":"OR(IFERROR(MATCH(\"OE2V\",'Conn Information'!$N$3:$N$65,0),0),0)","v":false},"OE2V",null,6,"High Engineering Channel 0 (Low Byte)",null,null,null,null,null,null,null,16,"INT",10000,"-32,768…32,767"]
[{"$f":"OR(IFERROR(MATCH(\"OE2V\",'Conn Information'!$N$3:$N$65,0),0),0)","v":false},"OE2V",null,7,"High Engineering Channel 0 (High Byte)",null,null,null,null,null,null,null,39]
[{"$f":"OR(IFERROR(MATCH(\"OE2V\",'Conn Information'!$N$3:$N$65,0),0),0)","v":false},"OE2V",null,8,"Low Clamp Channel 0 (Low Byte)",null,null,null,null,null,null,null,0,"INT",-32768,"-32,768…32,767"]
[{"$f":"OR(IFERROR(MATCH(\"OE2V\",'Conn Information'!$N$3:$N$65,0),0),0)","v":false},"OE2V",null,9,"Low Clamp Channel 0 (High Byte)",null,null,null,null,null,null,null,-128]
[{"$f":"OR(IFERROR(MATCH(\"OE2V\",'Conn Information'!$N$3:$N$65,0),0),0)","v":false},"OE2V",null,10,"High Clamp Channel 0 (Low Byte)",null,null,null,null,null,null,null,-1,"INT",32767,"-32,768…32,767"]
[{"$f":"OR(IFERROR(MATCH(\"OE2V\",'Conn Information'!$N$3:$N$65,0),0),0)","v":false},"OE2V",null,11,"High Clamp Channel 0 (High Byte)",null,null,null,null,null,null,null,127]
[{"$f":"OR(IFERROR(MATCH(\"OE2V\",'Conn Information'!$N$3:$N$65,0),0),0)","v":false},"OE2V",null,12,"Range Channel 0",null,null,null,null,null,null,null,1,"SINT",1,"1 = 0 - 10V \n3 = -10 - +10V"]
[{"$f":"OR(IFERROR(MATCH(\"OE2V\",'Conn Information'!$N$3:$N$65,0),0),0)","v":false},"OE2V",null,13,"Fault Action Channel 0",null,null,null,null,null,null,null,1,"SINT",1,"0 = Hold Last State \n1 = Go to Low Clamp \n2 = Go to High Clamp \n3 = Go to Fault Value"]
[{"$f":"OR(IFERROR(MATCH(\"OE2V\",'Conn Information'!$N$3:$N$65,0),0),0)","v":false},"OE2V",null,14,"Idle Action Channel 0",null,null,null,null,null,null,null,1,"SINT",1,"0 = Hold Last State \n1 = Go to Low Clamp \n2 = Go to High Clamp \n3 = Go to Fault Value"]
[{"$f":"OR(IFERROR(MATCH(\"OE2V\",'Conn Information'!$N$3:$N$65,0),0),0)","v":false},"OE2V",null,15,"Alarm Latch Channel 0",null,null,null,null,null,null,null,0,"SINT",0,"0 = No Latching\n1 = Alarms Latch"]
[{"$f":"OR(IFERROR(MATCH(\"OE2V\",'Conn Information'!$N$3:$N$65,0),0),0)","v":false},"OE2V",null,16,"Alarm Disable Channel 0",null,null,null,null,null,null,null,0,"SINT",0,"0 = Alarms Enabled\n1 = Alarms Disabled"]
[{"$f":"OR(IFERROR(MATCH(\"OE2V\",'Conn Information'!$N$3:$N$65,0),0),0)","v":false},"OE2V",null,17,"Alignment (reserved =0)",null,null,null,null,null,null,null,0,"SINT",0]
[{"$f":"OR(IFERROR(MATCH(\"OE2V\",'Conn Information'!$N$3:$N$65,0),0),0)","v":false},"OE2V",null,18,"Fault Data Channel 1 (Low Byte)",null,null,null,null,null,null,null,0,"INT",0,"-32,768…32,767"]
[{"$f":"OR(IFERROR(MATCH(\"OE2V\",'Conn Information'!$N$3:$N$65,0),0),0)","v":false},"OE2V",null,19,"Fault Data Channel 1 (High Byte)",null,null,null,null,null,null,null,0]
[{"$f":"OR(IFERROR(MATCH(\"OE2V\",'Conn Information'!$N$3:$N$65,0),0),0)","v":false},"OE2V",null,20,"Idle Data Channel 1 (Low Byte)",null,null,null,null,null,null,null,0,"INT",0,"-32,768…32,767"]
[{"$f":"OR(IFERROR(MATCH(\"OE2V\",'Conn Information'!$N$3:$N$65,0),0),0)","v":false},"OE2V",null,21,"Idle Data Channel 1 (High Byte)",null,null,null,null,null,null,null,0]
[{"$f":"OR(IFERROR(MATCH(\"OE2V\",'Conn Information'!$N$3:$N$65,0),0),0)","v":false},"OE2V",null,22,"Low Engineering Channel 1 (Low Byte)",null,null,null,null,null,null,null,0,"INT",0,"-32,768…32,767"]
[{"$f":"OR(IFERROR(MATCH(\"OE2V\",'Conn Information'!$N$3:$N$65,0),0),0)","v":false},"OE2V",null,23,"Low Engineering Channel 1 (High Byte)",null,null,null,null,null,null,null,0]
[{"$f":"OR(IFERROR(MATCH(\"OE2V\",'Conn Information'!$N$3:$N$65,0),0),0)","v":false},"OE2V",null,24,"High Engineering Channel 1 (Low Byte)",null,null,null,null,null,null,null,16,"INT",10000,"-32,768…32,767"]
[{"$f":"OR(IFERROR(MATCH(\"OE2V\",'Conn Information'!$N$3:$N$65,0),0),0)","v":false},"OE2V",null,25,"High Engineering Channel 1 (High Byte)",null,null,null,null,null,null,null,39]
[{"$f":"OR(IFERROR(MATCH(\"OE2V\",'Conn Information'!$N$3:$N$65,0),0),0)","v":false},"OE2V",null,26,"Low Clamp Channel 1 (Low Byte)",null,null,null,null,null,null,null,0,"INT",-32768,"-32,768…32,767"]
[{"$f":"OR(IFERROR(MATCH(\"OE2V\",'Conn Information'!$N$3:$N$65,0),0),0)","v":false},"OE2V",null,27,"Low Clamp Channel 1 (High Byte)",null,null,null,null,null,null,null,-128]
[{"$f":"OR(IFERROR(MATCH(\"OE2V\",'Conn Information'!$N$3:$N$65,0),0),0)","v":false},"OE2V",null,28,"High Clamp Channel 1 (Low Byte)",null,null,null,null,null,null,null,-1,"INT",32767,"-32,768…32,767"]
[{"$f":"OR(IFERROR(MATCH(\"OE2V\",'Conn Information'!$N$3:$N$65,0),0),0)","v":false},"OE2V",null,29,"High Clamp Channel 1 (High Byte)",null,null,null,null,null,null,null,127]
[{"$f":"OR(IFERROR(MATCH(\"OE2V\",'Conn Information'!$N$3:$N$65,0),0),0)","v":false},"OE2V",null,30,"Range Channel 1",null,null,null,null,null,null,null,1,"SINT",1,"1 = 0 - 10V \n3 = -10 - +10V"]
[{"$f":"OR(IFERROR(MATCH(\"OE2V\",'Conn Information'!$N$3:$N$65,0),0),0)","v":false},"OE2V",null,31,"Fault Action Channel 1",null,null,null,null,null,null,null,1,"SINT",1,"0 = Hold Last State \n1 = Go to Low Clamp \n2 = Go to High Clamp \n3 = Go to Fault Value"]
[{"$f":"OR(IFERROR(MATCH(\"OE2V\",'Conn Information'!$N$3:$N$65,0),0),0)","v":false},"OE2V",null,32,"Idle Action Channel 1",null,null,null,null,null,null,null,1,"SINT",1,"0 = Hold Last State \n1 = Go to Low Clamp \n2 = Go to High Clamp \n3 = Go to Fault Value"]
[{"$f":"OR(IFERROR(MATCH(\"OE2V\",'Conn Information'!$N$3:$N$65,0),0),0)","v":false},"OE2V",null,33,"Alarm Latch Channel 1",null,null,null,null,null,null,null,0,"SINT",0,"0 = No Latching\n1 = Alarms Latch"]
[{"$f":"OR(IFERROR(MATCH(\"OE2V\",'Conn Information'!$N$3:$N$65,0),0),0)","v":false},"OE2V",null,34,"Alarm Disable Channel 1",null,null,null,null,null,null,null,0,"SINT",0,"0 = Alarms Enabled\n1 = Alarms Disabled"]
[{"$f":"OR(IFERROR(MATCH(\"OE2V\",'Conn Information'!$N$3:$N$65,0),0),0)","v":false},"OE2V",null,35,"Reserved (Set to 0)",null,null,null,null,null,null,null,0,"SINT",0]
[{"$f":"OR(IFERROR(MATCH(\"OE4C\",'Conn Information'!$N$3:$N$65,0),0),0)","v":false},"OE4C",123,0,"Fault Data Channel 0 (Low Byte)",null,null,null,null,null,null,null,0,"INT",0,"-32,768…32,767",null,"OE4C",0,"Channel 0 Status",null,null,null,null,null,null,null,null,"OE4C",0,"Channel 0 (Low Byte)"]
[{"$f":"OR(IFERROR(MATCH(\"OE4C\",'Conn Information'!$N$3:$N$65,0),0),0)","v":false},"OE4C",null,1,"Fault Data Channel 0 (High Byte)",null,null,null,null,null,null,null,0,null,null,null,null,"OE4C",1,"Channel 1 Status",null,null,null,null,null,null,null,null,"OE4C",1,"Channel 0 (High Byte)"]
[{"$f":"OR(IFERROR(MATCH(\"OE4C\",'Conn Information'!$N$3:$N$65,0),0),0)","v":false},"OE4C",null,2,"Idle Data Channel 0 (Low Byte)",null,null,null,null,null,null,null,0,"INT",0,"-32,768…32,767",null,"OE4C",2,"Channel 2 Status",null,null,null,null,null,null,null,null,"OE4C",2,"Channel 1 (Low Byte)"]
[{"$f":"OR(IFERROR(MATCH(\"OE4C\",'Conn Information'!$N$3:$N$65,0),0),0)","v":false},"OE4C",null,3,"Idle Data Channel 0 (High Byte)",null,null,null,null,null,null,null,0,null,null,null,null,"OE4C",3,"Channel 3 Status",null,null,null,null,null,null,null,null,"OE4C",3,"Channel 1 (High Byte)"]
[{"$f":"OR(IFERROR(MATCH(\"OE4C\",'Conn Information'!$N$3:$N$65,0),0),0)","v":false},"OE4C",null,4,"Low Engineering Channel 0 (Low Byte)",null,null,null,null,null,null,null,102,"INT",1638,"-32,768…32,767",null,null,null,null,null,null,null,null,null,null,null,null,"OE4C",4,"Channel 2 (Low Byte)"]
[{"$f":"OR(IFERROR(MATCH(\"OE4C\",'Conn Information'!$N$3:$N$65,0),0),0)","v":false},"OE4C",null,5,"Low Engineering Channel 0 (High Byte)",null,null,null,null,null,null,null,6,null,null,null,null,null,null,null,null,null,null,null,null,null,null,null,"OE4C",5,"Channel 2 (High Byte)"]
[{"$f":"OR(IFERROR(MATCH(\"OE4C\",'Conn Information'!$N$3:$N$65,0),0),0)","v":false},"OE4C",null,6,"High Engineering Channel 0 (Low Byte)",null,null,null,null,null,null,null,-1,"INT",8191,"-32,768…32,767",null,null,null,null,null,null,null,null,null,null,null,null,"OE4C",6,"Channel 3 (Low Byte)"]
[{"$f":"OR(IFERROR(MATCH(\"OE4C\",'Conn Information'!$N$3:$N$65,0),0),0)","v":false},"OE4C",null,7,"High Engineering Channel 0 (High Byte)",null,null,null,null,null,null,null,31,null,null,null,null,null,null,null,null,null,null,null,null,null,null,null,"OE4C",7,"Channel 3 (High Byte)"]
[{"$f":"OR(IFERROR(MATCH(\"OE4C\",'Conn Information'!$N$3:$N$65,0),0),0)","v":false},"OE4C",null,8,"Low Clamp Channel 0 (Low Byte)",null,null,null,null,null,null,null,0,"INT",-32768,"-32,768…32,767"]
[{"$f":"OR(IFERROR(MATCH(\"OE4C\",'Conn Information'!$N$3:$N$65,0),0),0)","v":false},"OE4C",null,9,"Low Clamp Channel 0 (High Byte)",null,null,null,null,null,null,null,-128]
[{"$f":"OR(IFERROR(MATCH(\"OE4C\",'Conn Information'!$N$3:$N$65,0),0),0)","v":false},"OE4C",null,10,"High Clamp Channel 0 (Low Byte)",null,null,null,null,null,null,null,-1,"INT",32767,"-32,768…32,767"]
[{"$f":"OR(IFERROR(MATCH(\"OE4C\",'Conn Information'!$N$3:$N$65,0),0),0)","v":false},"OE4C",null,11,"High Clamp Channel 0 (High Byte)",null,null,null,null,null,null,null,127]
[{"$f":"OR(IFERROR(MATCH(\"OE4C\",'Conn Information'!$N$3:$N$65,0),0),0)","v":false},"OE4C",null,12,"Range Channel 0",null,null,null,null,null,null,null,0,"SINT",0,"0 = 4-20mA \n2 = 0-20mA"]
[{"$f":"OR(IFERROR(MATCH(\"OE4C\",'Conn Information'!$N$3:$N$65,0),0),0)","v":false},"OE4C",null,13,"Fault Action Channel 0",null,null,null,null,null,null,null,1,"SINT",1,"0 = Hold Last State \n1 = Go to Low Clamp \n2 = Go to High Clamp \n3 = Go to Fault Value"]
[{"$f":"OR(IFERROR(MATCH(\"OE4C\",'Conn Information'!$N$3:$N$65,0),0),0)","v":false},"OE4C",null,14,"Idle Action Channel 0",null,null,null,null,null,null,null,1,"SINT",1,"0 = Hold Last State \n1 = Go to Low Clamp \n2 = Go to High Clamp \n3 = Go to Fault Value"]
[{"$f":"OR(IFERROR(MATCH(\"OE4C\",'Conn Information'!$N$3:$N$65,0),0),0)","v":false},"OE4C",null,15,"Alarm Latch Channel 0",null,null,null,null,null,null,null,0,"SINT",0,"0 = No Latching\n1 = Alarms Latch"]
[{"$f":"OR(IFERROR(MATCH(\"OE4C\",'Conn Information'!$N$3:$N$65,0),0),0)","v":false},"OE4C",null,16,"Alarm Disable Channel 0",null,null,null,null,null,null,null,0,"SINT",0,"0 = Alarms Enabled\n1 = Alarms Disabled"]
[{"$f":"OR(IFERROR(MATCH(\"OE4C\",'Conn Information'!$N$3:$N$65,0),0),0)","v":false},"OE4C",null,17,"Alignment (reserved =0)",null,null,null,null,null,null,null,0,"SINT",0]
[{"$f":"OR(IFERROR(MATCH(\"OE4C\",'Conn Information'!$N$3:$N$65,0),0),0)","v":false},"OE4C",null,18,"Fault Data Channel 1 (Low Byte)",null,null,null,null,null,null,null,0,"INT",0,"-32,768…32,767"]
[{"$f":"OR(IFERROR(MATCH(\"OE4C\",'Conn Information'!$N$3:$N$65,0),0),0)","v":false},"OE4C",null,19,"Fault Data Channel 1 (High Byte)",null,null,null,null,null,null,null,0]
[{"$f":"OR(IFERROR(MATCH(\"OE4C\",'Conn Information'!$N$3:$N$65,0),0),0)","v":false},"OE4C",null,20,"Idle Data Channel 1 (Low Byte)",null,null,null,null,null,null,null,0,"INT",0,"-32,768…32,767"]
[{"$f":"OR(IFERROR(MATCH(\"OE4C\",'Conn Information'!$N$3:$N$65,0),0),0)","v":false},"OE4C",null,21,"Idle Data Channel 1 (High Byte)",null,null,null,null,null,null,null,0]
[{"$f":"OR(IFERROR(MATCH(\"OE4C\",'Conn Information'!$N$3:$N$65,0),0),0)","v":false},"OE4C",null,22,"Low Engineering Channel 1 (Low Byte)",null,null,null,null,null,null,null,102,"INT",1638,"-32,768…32,767"]
[{"$f":"OR(IFERROR(MATCH(\"OE4C\",'Conn Information'!$N$3:$N$65,0),0),0)","v":false},"OE4C",null,23,"Low Engineering Channel 1 (High Byte)",null,null,null,null,null,null,null,6]
[{"$f":"OR(IFERROR(MATCH(\"OE4C\",'Conn Information'!$N$3:$N$65,0),0),0)","v":false},"OE4C",null,24,"High Engineering Channel 1 (Low Byte)",null,null,null,null,null,null,null,-1,"INT",8191,"-32,768…32,767"]
[{"$f":"OR(IFERROR(MATCH(\"OE4C\",'Conn Information'!$N$3:$N$65,0),0),0)","v":false},"OE4C",null,25,"High Engineering Channel 1 (High Byte)",null,null,null,null,null,null,null,31]
[{"$f":"OR(IFERROR(MATCH(\"OE4C\",'Conn Information'!$N$3:$N$65,0),0),0)","v":false},"OE4C",null,26,"Low Clamp Channel 1 (Low Byte)",null,null,null,null,null,null,null,0,"INT",-32768,"-32,768…32,767"]
[{"$f":"OR(IFERROR(MATCH(\"OE4C\",'Conn Information'!$N$3:$N$65,0),0),0)","v":false},"OE4C",null,27,"Low Clamp Channel 1 (High Byte)",null,null,null,null,null,null,null,-128]
[{"$f":"OR(IFERROR(MATCH(\"OE4C\",'Conn Information'!$N$3:$N$65,0),0),0)","v":false},"OE4C",null,28,"High Clamp Channel 1 (Low Byte)",null,null,null,null,null,null,null,-1,"INT",32767,"-32,768…32,767"]
[{"$f":"OR(IFERROR(MATCH(\"OE4C\",'Conn Information'!$N$3:$N$65,0),0),0)","v":false},"OE4C",null,29,"High Clamp Channel 1 (High Byte)",null,null,null,null,null,null,null,127]
[{"$f":"OR(IFERROR(MATCH(\"OE4C\",'Conn Information'!$N$3:$N$65,0),0),0)","v":false},"OE4C",null,30,"Range Channel 1",null,null,null,null,null,null,null,0,"SINT",0,"0 = 4-20mA \n2 = 0-20mA"]
[{"$f":"OR(IFERROR(MATCH(\"OE4C\",'Conn Information'!$N$3:$N$65,0),0),0)","v":false},"OE4C",null,31,"Fault Action Channel 1",null,null,null,null,null,null,null,1,"SINT",1,"0 = Hold Last State \n1 = Go to Low Clamp \n2 = Go to High Clamp \n3 = Go to Fault Value"]
[{"$f":"OR(IFERROR(MATCH(\"OE4C\",'Conn Information'!$N$3:$N$65,0),0),0)","v":false},"OE4C",null,32,"Idle Action Channel 1",null,null,null,null,null,null,null,1,"SINT",1,"0 = Hold Last State \n1 = Go to Low Clamp \n2 = Go to High Clamp \n3 = Go to Fault Value"]
[{"$f":"OR(IFERROR(MATCH(\"OE4C\",'Conn Information'!$N$3:$N$65,0),0),0)","v":false},"OE4C",null,33,"Alarm Latch Channel 1",null,null,null,null,null,null,null,0,"SINT",0,"0 = No Latching\n1 = Alarms Latch"]
[{"$f":"OR(IFERROR(MATCH(\"OE4C\",'Conn Information'!$N$3:$N$65,0),0),0)","v":false},"OE4C",null,34,"Alarm Disable Channel 1",null,null,null,null,null,null,null,0,"SINT",0,"0 = Alarms Enabled\n1 = Alarms Disabled"]
[{"$f":"OR(IFERROR(MATCH(\"OE4C\",'Conn Information'!$N$3:$N$65,0),0),0)","v":false},"OE4C",null,35,"Alignment (reserved =0)",null,null,null,null,null,null,null,0,"SINT",0]
[{"$f":"OR(IFERROR(MATCH(\"OE4C\",'Conn Information'!$N$3:$N$65,0),0),0)","v":false},"OE4C",null,36,"Fault Data Channel 2 (Low Byte)",null,null,null,null,null,null,null,0,"INT",0,"-32,768…32,767"]
[{"$f":"OR(IFERROR(MATCH(\"OE4C\",'Conn Information'!$N$3:$N$65,0),0),0)","v":false},"OE4C",null,37,"Fault Data Channel 2 (High Byte)",null,null,null,null,null,null,null,0]
[{"$f":"OR(IFERROR(MATCH(\"OE4C\",'Conn Information'!$N$3:$N$65,0),0),0)","v":false},"OE4C",null,38,"Idle Data Channel 2 (Low Byte)",null,null,null,null,null,null,null,0,"INT",0,"-32,768…32,767"]
[{"$f":"OR(IFERROR(MATCH(\"OE4C\",'Conn Information'!$N$3:$N$65,0),0),0)","v":false},"OE4C",null,39,"Idle Data Channel 2 (High Byte)",null,null,null,null,null,null,null,0]
[{"$f":"OR(IFERROR(MATCH(\"OE4C\",'Conn Information'!$N$3:$N$65,0),0),0)","v":false},"OE4C",null,40,"Low Engineering Channel 2 (Low Byte)",null,null,null,null,null,null,null,102,"INT",1638,"-32,768…32,767"]
[{"$f":"OR(IFERROR(MATCH(\"OE4C\",'Conn Information'!$N$3:$N$65,0),0),0)","v":false},"OE4C",null,41,"Low Engineering Channel 2 (High Byte)",null,null,null,null,null,null,null,6]
[{"$f":"OR(IFERROR(MATCH(\"OE4C\",'Conn Information'!$N$3:$N$65,0),0),0)","v":false},"OE4C",null,42,"High Engineering Channel 2 (Low Byte)",null,null,null,null,null,null,null,-1,"INT",8191,"-32,768…32,767"]
[{"$f":"OR(IFERROR(MATCH(\"OE4C\",'Conn Information'!$N$3:$N$65,0),0),0)","v":false},"OE4C",null,43,"High Engineering Channel 2 (High Byte)",null,null,null,null,null,null,null,31]
[{"$f":"OR(IFERROR(MATCH(\"OE4C\",'Conn Information'!$N$3:$N$65,0),0),0)","v":false},"OE4C",null,44,"Low Clamp Channel 2 (Low Byte)",null,null,null,null,null,null,null,0,"INT",-32768,"-32,768…32,767"]
[{"$f":"OR(IFERROR(MATCH(\"OE4C\",'Conn Information'!$N$3:$N$65,0),0),0)","v":false},"OE4C",null,45,"Low Clamp Channel 2 (High Byte)",null,null,null,null,null,null,null,-128]
[{"$f":"OR(IFERROR(MATCH(\"OE4C\",'Conn Information'!$N$3:$N$65,0),0),0)","v":false},"OE4C",null,46,"High Clamp Channel 2 (Low Byte)",null,null,null,null,null,null,null,-1,"INT",32767,"-32,768…32,767"]
[{"$f":"OR(IFERROR(MATCH(\"OE4C\",'Conn Information'!$N$3:$N$65,0),0),0)","v":false},"OE4C",null,47,"High Clamp Channel 2 (High Byte)",null,null,null,null,null,null,null,127]
[{"$f":"OR(IFERROR(MATCH(\"OE4C\",'Conn Information'!$N$3:$N$65,0),0),0)","v":false},"OE4C",null,48,"Range Channel 2",null,null,null,null,null,null,null,0,"SINT",0,"0 = 4-20mA \n2 = 0-20mA"]
[{"$f":"OR(IFERROR(MATCH(\"OE4C\",'Conn Information'!$N$3:$N$65,0),0),0)","v":false},"OE4C",null,49,"Fault Action Channel 2",null,null,null,null,null,null,null,1,"SINT",1,"0 = Hold Last State \n1 = Go to Low Clamp \n2 = Go to High Clamp \n3 = Go to Fault Value"]
[{"$f":"OR(IFERROR(MATCH(\"OE4C\",'Conn Information'!$N$3:$N$65,0),0),0)","v":false},"OE4C",null,50,"Idle Action Channel 2",null,null,null,null,null,null,null,1,"SINT",1,"0 = Hold Last State \n1 = Go to Low Clamp \n2 = Go to High Clamp \n3 = Go to Fault Value"]
[{"$f":"OR(IFERROR(MATCH(\"OE4C\",'Conn Information'!$N$3:$N$65,0),0),0)","v":false},"OE4C",null,51,"Alarm Latch Channel 2",null,null,null,null,null,null,null,0,"SINT",0,"0 = No Latching\n1 = Alarms Latch"]
[{"$f":"OR(IFERROR(MATCH(\"OE4C\",'Conn Information'!$N$3:$N$65,0),0),0)","v":false},"OE4C",null,52,"Alarm Disable Channel 2",null,null,null,null,null,null,null,0,"SINT",0,"0 = Alarms Enabled\n1 = Alarms Disabled"]
[{"$f":"OR(IFERROR(MATCH(\"OE4C\",'Conn Information'!$N$3:$N$65,0),0),0)","v":false},"OE4C",null,53,"Alignment (reserved =0)",null,null,null,null,null,null,null,0,"SINT",0]
[{"$f":"OR(IFERROR(MATCH(\"OE4C\",'Conn Information'!$N$3:$N$65,0),0),0)","v":false},"OE4C",null,54,"Fault Data Channel 3 (Low Byte)",null,null,null,null,null,null,null,0,"INT",0,"-32,768…32,767"]
[{"$f":"OR(IFERROR(MATCH(\"OE4C\",'Conn Information'!$N$3:$N$65,0),0),0)","v":false},"OE4C",null,55,"Fault Data Channel 3 (High Byte)",null,null,null,null,null,null,null,0]
[{"$f":"OR(IFERROR(MATCH(\"OE4C\",'Conn Information'!$N$3:$N$65,0),0),0)","v":false},"OE4C",null,56,"Idle Data Channel 3 (Low Byte)",null,null,null,null,null,null,null,0,"INT",0,"-32,768…32,767"]
[{"$f":"OR(IFERROR(MATCH(\"OE4C\",'Conn Information'!$N$3:$N$65,0),0),0)","v":false},"OE4C",null,57,"Idle Data Channel 3 (High Byte)",null,null,null,null,null,null,null,0]
[{"$f":"OR(IFERROR(MATCH(\"OE4C\",'Conn Information'!$N$3:$N$65,0),0),0)","v":false},"OE4C",null,58,"Low Engineering Channel 3 (Low Byte)",null,null,null,null,null,null,null,102,"INT",1638,"-32,768…32,767"]
[{"$f":"OR(IFERROR(MATCH(\"OE4C\",'Conn Information'!$N$3:$N$65,0),0),0)","v":false},"OE4C",null,59,"Low Engineering Channel 3 (High Byte)",null,null,null,null,null,null,null,6]
[{"$f":"OR(IFERROR(MATCH(\"OE4C\",'Conn Information'!$N$3:$N$65,0),0),0)","v":false},"OE4C",null,60,"High Engineering Channel 3 (Low Byte)",null,null,null,null,null,null,null,-1,"INT",8191,"-32,768…32,767"]
[{"$f":"OR(IFERROR(MATCH(\"OE4C\",'Conn Information'!$N$3:$N$65,0),0),0)","v":false},"OE4C",null,61,"High Engineering Channel 3 (High Byte)",null,null,null,null,null,null,null,31]
[{"$f":"OR(IFERROR(MATCH(\"OE4C\",'Conn Information'!$N$3:$N$65,0),0),0)","v":false},"OE4C",null,62,"Low Clamp Channel 3 (Low Byte)",null,null,null,null,null,null,null,0,"INT",-32768,"-32,768…32,767"]
[{"$f":"OR(IFERROR(MATCH(\"OE4C\",'Conn Information'!$N$3:$N$65,0),0),0)","v":false},"OE4C",null,63,"Low Clamp Channel 3 (High Byte)",null,null,null,null,null,null,null,-128]
[{"$f":"OR(IFERROR(MATCH(\"OE4C\",'Conn Information'!$N$3:$N$65,0),0),0)","v":false},"OE4C",null,64,"High Clamp Channel 3 (Low Byte)",null,null,null,null,null,null,null,-1,"INT",32767,"-32,768…32,767"]
[{"$f":"OR(IFERROR(MATCH(\"OE4C\",'Conn Information'!$N$3:$N$65,0),0),0)","v":false},"OE4C",null,65,"High Clamp Channel 3 (High Byte)",null,null,null,null,null,null,null,127]
[{"$f":"OR(IFERROR(MATCH(\"OE4C\",'Conn Information'!$N$3:$N$65,0),0),0)","v":false},"OE4C",null,66,"Range Channel 3",null,null,null,null,null,null,null,0,"SINT",0,"0 = 4-20mA \n2 = 0-20mA"]
[{"$f":"OR(IFERROR(MATCH(\"OE4C\",'Conn Information'!$N$3:$N$65,0),0),0)","v":false},"OE4C",null,67,"Fault Action Channel 3",null,null,null,null,null,null,null,1,"SINT",1,"0 = Hold Last State \n1 = Go to Low Clamp \n2 = Go to High Clamp \n3 = Go to Fault Value"]
[{"$f":"OR(IFERROR(MATCH(\"OE4C\",'Conn Information'!$N$3:$N$65,0),0),0)","v":false},"OE4C",null,68,"Idle Action Channel 3",null,null,null,null,null,null,null,1,"SINT",1,"0 = Hold Last State \n1 = Go to Low Clamp \n2 = Go to High Clamp \n3 = Go to Fault Value"]
[{"$f":"OR(IFERROR(MATCH(\"OE4C\",'Conn Information'!$N$3:$N$65,0),0),0)","v":false},"OE4C",null,69,"Alarm Latch Channel 3",null,null,null,null,null,null,null,0,"SINT",0,"0 = No Latching\n1 = Alarms Latch"]
[{"$f":"OR(IFERROR(MATCH(\"OE4C\",'Conn Information'!$N$3:$N$65,0),0),0)","v":false},"OE4C",null,70,"Alarm Disable Channel 3",null,null,null,null,null,null,null,0,"SINT",0,"0 = Alarms Enabled\n1 = Alarms Disabled"]
[{"$f":"OR(IFERROR(MATCH(\"OE4C\",'Conn Information'!$N$3:$N$65,0),0),0)","v":false},"OE4C",null,71,"Alignment (reserved =0)",null,null,null,null,null,null,null,0,"SINT",0]
[{"$f":"OR(IFERROR(MATCH(\"IR2\",'Conn Information'!$N$3:$N$65,0),0),IFERROR(MATCH(\"IR2E\",'Conn Information'!$N$3:$N$65,0),0))","v":false},"IR2, IR2E",123,0,"Low Engineering Channel 0 (Low Byte)",null,null,null,null,null,null,null,-24,"INT",1000,"-32,768…32,767",null,"IR2, IR2E",0,"Channel 0 Data (Low Byte)"]
[{"$f":"OR(IFERROR(MATCH(\"IR2\",'Conn Information'!$N$3:$N$65,0),0),IFERROR(MATCH(\"IR2E\",'Conn Information'!$N$3:$N$65,0),0))","v":false},"IR2, IR2E",null,1,"Low Engineering Channel 0 (High Byte)",null,null,null,null,null,null,null,3,null,null,null,null,"IR2, IR2E",1,"Channel 0 Data (High Byte)"]
[{"$f":"OR(IFERROR(MATCH(\"IR2\",'Conn Information'!$N$3:$N$65,0),0),IFERROR(MATCH(\"IR2E\",'Conn Information'!$N$3:$N$65,0),0))","v":false},"IR2, IR2E",null,2,"High Engineering Channel 0 (Low Byte)",null,null,null,null,null,null,null,-120,"INT",5000,"-32,768…32,767",null,"IR2, IR2E",2,"Channel 1 Data (Low Byte)"]
[{"$f":"OR(IFERROR(MATCH(\"IR2\",'Conn Information'!$N$3:$N$65,0),0),IFERROR(MATCH(\"IR2E\",'Conn Information'!$N$3:$N$65,0),0))","v":false},"IR2, IR2E",null,3,"High Engineering Channel 0 (High Byte)",null,null,null,null,null,null,null,19,null,null,null,null,"IR2, IR2E",3,"Channel 1 Data (High Byte)"]
[{"$f":"OR(IFERROR(MATCH(\"IR2\",'Conn Information'!$N$3:$N$65,0),0),IFERROR(MATCH(\"IR2E\",'Conn Information'!$N$3:$N$65,0),0))","v":false},"IR2, IR2E",null,4,"Digital Filter Channel 0 (Low Byte)",null,null,null,null,null,null,null,0,"INT",0,"0….10,000ms",null,"IR2, IR2E",4,"Channel 0 Status"]
[{"$f":"OR(IFERROR(MATCH(\"IR2\",'Conn Information'!$N$3:$N$65,0),0),IFERROR(MATCH(\"IR2E\",'Conn Information'!$N$3:$N$65,0),0))","v":false},"IR2, IR2E",null,5,"Digital Filter Channel 0 (High Byte)",null,null,null,null,null,null,null,0,null,null,null,null,"IR2, IR2E",5,"Channel 1 Status"]
[{"$f":"OR(IFERROR(MATCH(\"IR2\",'Conn Information'!$N$3:$N$65,0),0),IFERROR(MATCH(\"IR2E\",'Conn Information'!$N$3:$N$65,0),0))","v":false},"IR2, IR2E",null,6,"Low Alarm Channel 0 (Low Byte)",null,null,null,null,null,null,null,0,"INT",-32768,"-32,768…32,767"]
[{"$f":"OR(IFERROR(MATCH(\"IR2\",'Conn Information'!$N$3:$N$65,0),0),IFERROR(MATCH(\"IR2E\",'Conn Information'!$N$3:$N$65,0),0))","v":false},"IR2, IR2E",null,7,"Low Alarm Channel 0 (High Byte)",null,null,null,null,null,null,null,-128]
[{"$f":"OR(IFERROR(MATCH(\"IR2\",'Conn Information'!$N$3:$N$65,0),0),IFERROR(MATCH(\"IR2E\",'Conn Information'!$N$3:$N$65,0),0))","v":false},"IR2, IR2E",null,8,"High Alarm Channel 0 (Low Byte)",null,null,null,null,null,null,null,-1,"INT",32767,"-32,768…32,767"]
[{"$f":"OR(IFERROR(MATCH(\"IR2\",'Conn Information'!$N$3:$N$65,0),0),IFERROR(MATCH(\"IR2E\",'Conn Information'!$N$3:$N$65,0),0))","v":false},"IR2, IR2E",null,9,"High Alarm Channel 0 (High Byte)",null,null,null,null,null,null,null,127]
[{"$f":"OR(IFERROR(MATCH(\"IR2\",'Conn Information'!$N$3:$N$65,0),0),IFERROR(MATCH(\"IR2E\",'Conn Information'!$N$3:$N$65,0),0))","v":false},"IR2, IR2E",null,10,"Low Low Alarm Channel 0 (Low Byte)",null,null,null,null,null,null,null,0,"INT",-32768,"-32,768…32,767"]
[{"$f":"OR(IFERROR(MATCH(\"IR2\",'Conn Information'!$N$3:$N$65,0),0),IFERROR(MATCH(\"IR2E\",'Conn Information'!$N$3:$N$65,0),0))","v":false},"IR2, IR2E",null,11,"Low Low Alarm Channel 0 (High Byte)",null,null,null,null,null,null,null,-128]
[{"$f":"OR(IFERROR(MATCH(\"IR2\",'Conn Information'!$N$3:$N$65,0),0),IFERROR(MATCH(\"IR2E\",'Conn Information'!$N$3:$N$65,0),0))","v":false},"IR2, IR2E",null,12,"High High Alarm Channel 0 (Low Byte)",null,null,null,null,null,null,null,-1,"INT",32767,"-32,768…32,767"]
[{"$f":"OR(IFERROR(MATCH(\"IR2\",'Conn Information'!$N$3:$N$65,0),0),IFERROR(MATCH(\"IR2E\",'Conn Information'!$N$3:$N$65,0),0))","v":false},"IR2, IR2E",null,13,"High High Alarm Channel 0 (High Byte)",null,null,null,null,null,null,null,127]
[{"$f":"OR(IFERROR(MATCH(\"IR2\",'Conn Information'!$N$3:$N$65,0),0),IFERROR(MATCH(\"IR2E\",'Conn Information'!$N$3:$N$65,0),0))","v":false},"IR2, IR2E",null,14,"Alarm Latch Channel 0",null,null,null,null,null,null,null,0,"SINT",0,"0 = No Latching\n1 = Alarms Latch"]
[{"$f":"OR(IFERROR(MATCH(\"IR2\",'Conn Information'!$N$3:$N$65,0),0),IFERROR(MATCH(\"IR2E\",'Conn Information'!$N$3:$N$65,0),0))","v":false},"IR2, IR2E",null,15,"Alarm Disable Channel 0",null,null,null,null,null,null,null,0,"SINT",0,"0 = Alarms Enabled\n1 = Alarms Disabled"]
[{"$f":"OR(IFERROR(MATCH(\"IR2\",'Conn Information'!$N$3:$N$65,0),0),IFERROR(MATCH(\"IR2E\",'Conn Information'!$N$3:$N$65,0),0))","v":false},"IR2, IR2E",null,16,"Sensor Typed Channel 0",null,null,null,null,null,null,null,1,"SINT",1,"0 = Ohms \n1 = 100 Ω Pt α 385 \n2 = 200 Ω Pt α 385 \n5 = 100 Ω JPt α 3916 \n6 = 200 Ω JPt α 3916 \n9 = 10 Ω Cu α 427 \n10 = 120 Ω Ni α 672 \n11 = 100 Ω Ni α 618 \n12 = 120 Ω Ni α 618"]
[{"$f":"OR(IFERROR(MATCH(\"IR2\",'Conn Information'!$N$3:$N$65,0),0),IFERROR(MATCH(\"IR2E\",'Conn Information'!$N$3:$N$65,0),0))","v":false},"IR2, IR2E",null,17,"Temperature Units Channel 0",null,null,null,null,null,null,null,1,"SINT",1,"0 = Custom Scale \n1 = °C \n2 = °F \n3 = °K \n4 = °R"]
[{"$f":"OR(IFERROR(MATCH(\"IR2\",'Conn Information'!$N$3:$N$65,0),0),IFERROR(MATCH(\"IR2E\",'Conn Information'!$N$3:$N$65,0),0))","v":false},"IR2, IR2E",null,18,"Low Engineering Channel 1 (Low Byte)",null,null,null,null,null,null,null,-24,"INT",1000,"-32,768…32,767"]
[{"$f":"OR(IFERROR(MATCH(\"IR2\",'Conn Information'!$N$3:$N$65,0),0),IFERROR(MATCH(\"IR2E\",'Conn Information'!$N$3:$N$65,0),0))","v":false},"IR2, IR2E",null,19,"Low Engineering Channel 1 (High Byte)",null,null,null,null,null,null,null,3]
[{"$f":"OR(IFERROR(MATCH(\"IR2\",'Conn Information'!$N$3:$N$65,0),0),IFERROR(MATCH(\"IR2E\",'Conn Information'!$N$3:$N$65,0),0))","v":false},"IR2, IR2E",null,20,"High Engineering Channel 1 (Low Byte)",null,null,null,null,null,null,null,-120,"INT",5000,"-32,768…32,767"]
[{"$f":"OR(IFERROR(MATCH(\"IR2\",'Conn Information'!$N$3:$N$65,0),0),IFERROR(MATCH(\"IR2E\",'Conn Information'!$N$3:$N$65,0),0))","v":false},"IR2, IR2E",null,21,"High Engineering Channel 1 (High Byte)",null,null,null,null,null,null,null,19]
[{"$f":"OR(IFERROR(MATCH(\"IR2\",'Conn Information'!$N$3:$N$65,0),0),IFERROR(MATCH(\"IR2E\",'Conn Information'!$N$3:$N$65,0),0))","v":false},"IR2, IR2E",null,22,"Digital Filter Channel 1 (Low Byte)",null,null,null,null,null,null,null,0,"INT",0,"0….10,000ms"]
[{"$f":"OR(IFERROR(MATCH(\"IR2\",'Conn Information'!$N$3:$N$65,0),0),IFERROR(MATCH(\"IR2E\",'Conn Information'!$N$3:$N$65,0),0))","v":false},"IR2, IR2E",null,23,"Digital Filter Channel 1 (High Byte)",null,null,null,null,null,null,null,0]
[{"$f":"OR(IFERROR(MATCH(\"IR2\",'Conn Information'!$N$3:$N$65,0),0),IFERROR(MATCH(\"IR2E\",'Conn Information'!$N$3:$N$65,0),0))","v":false},"IR2, IR2E",null,24,"Low Alarm Channel 1 (Low Byte)",null,null,null,null,null,null,null,0,"INT",-32768,"-32,768…32,767"]
[{"$f":"OR(IFERROR(MATCH(\"IR2\",'Conn Information'!$N$3:$N$65,0),0),IFERROR(MATCH(\"IR2E\",'Conn Information'!$N$3:$N$65,0),0))","v":false},"IR2, IR2E",null,25,"Low Alarm Channel 1 (High Byte)",null,null,null,null,null,null,null,-128]
[{"$f":"OR(IFERROR(MATCH(\"IR2\",'Conn Information'!$N$3:$N$65,0),0),IFERROR(MATCH(\"IR2E\",'Conn Information'!$N$3:$N$65,0),0))","v":false},"IR2, IR2E",null,26,"High Alarm Channel 1 (Low Byte)",null,null,null,null,null,null,null,-1,"INT",32767,"-32,768…32,767"]
[{"$f":"OR(IFERROR(MATCH(\"IR2\",'Conn Information'!$N$3:$N$65,0),0),IFERROR(MATCH(\"IR2E\",'Conn Information'!$N$3:$N$65,0),0))","v":false},"IR2, IR2E",null,27,"High Alarm Channel 1 (High Byte)",null,null,null,null,null,null,null,127]
[{"$f":"OR(IFERROR(MATCH(\"IR2\",'Conn Information'!$N$3:$N$65,0),0),IFERROR(MATCH(\"IR2E\",'Conn Information'!$N$3:$N$65,0),0))","v":false},"IR2, IR2E",null,28,"Low Low Alarm Channel 1 (Low Byte)",null,null,null,null,null,null,null,0,"INT",-32768,"-32,768…32,767"]
[{"$f":"OR(IFERROR(MATCH(\"IR2\",'Conn Information'!$N$3:$N$65,0),0),IFERROR(MATCH(\"IR2E\",'Conn Information'!$N$3:$N$65,0),0))","v":false},"IR2, IR2E",null,29,"Low Low Alarm Channel 1 (High Byte)",null,null,null,null,null,null,null,-128]
[{"$f":"OR(IFERROR(MATCH(\"IR2\",'Conn Information'!$N$3:$N$65,0),0),IFERROR(MATCH(\"IR2E\",'Conn Information'!$N$3:$N$65,0),0))","v":false},"IR2, IR2E",null,30,"High High Alarm Channel 1 (Low Byte)",null,null,null,null,null,null,null,-1,"INT",32767,"-32,768…32,767"]
[{"$f":"OR(IFERROR(MATCH(\"IR2\",'Conn Information'!$N$3:$N$65,0),0),IFERROR(MATCH(\"IR2E\",'Conn Information'!$N$3:$N$65,0),0))","v":false},"IR2, IR2E",null,31,"High High Alarm Channel 1 (High Byte)",null,null,null,null,null,null,null,127]
[{"$f":"OR(IFERROR(MATCH(\"IR2\",'Conn Information'!$N$3:$N$65,0),0),IFERROR(MATCH(\"IR2E\",'Conn Information'!$N$3:$N$65,0),0))","v":false},"IR2, IR2E",null,32,"Alarm Latch Channel 1",null,null,null,null,null,null,null,0,"SINT",0,"0 = No Latching\n1 = Alarms Latch"]
[{"$f":"OR(IFERROR(MATCH(\"IR2\",'Conn Information'!$N$3:$N$65,0),0),IFERROR(MATCH(\"IR2E\",'Conn Information'!$N$3:$N$65,0),0))","v":false},"IR2, IR2E",null,33,"Alarm Disable Channel 1",null,null,null,null,null,null,null,0,"SINT",0,"0 = Alarms Enabled\n1 = Alarms Disabled"]
[{"$f":"OR(IFERROR(MATCH(\"IR2\",'Conn Information'!$N$3:$N$65,0),0),IFERROR(MATCH(\"IR2E\",'Conn Information'!$N$3:$N$65,0),0))","v":false},"IR2, IR2E",null,34,"Sensor Typed Channel 1",null,null,null,null,null,null,null,1,"SINT",1,"0 = Ohms \n1 = 100 Ω Pt α 385 \n2 = 200 Ω Pt α 385 \n5 = 100 Ω JPt α 3916 \n6 = 200 Ω JPt α 3916 \n9 = 10 Ω Cu α 427 \n10 = 120 Ω Ni α 672 \n11 = 100 Ω Ni α 618 \n12 = 120 Ω Ni α 618"]
[{"$f":"OR(IFERROR(MATCH(\"IR2\",'Conn Information'!$N$3:$N$65,0),0),IFERROR(MATCH(\"IR2E\",'Conn Information'!$N$3:$N$65,0),0))","v":false},"IR2, IR2E",null,35,"Temperature Units Channel 1",null,null,null,null,null,null,null,1,"SINT",1,"0 = Custom Scale \n1 = °C \n2 = °F \n3 = °K \n4 = °R"]
[{"$f":"OR(IFERROR(MATCH(\"IR2\",'Conn Information'!$N$3:$N$65,0),0),IFERROR(MATCH(\"IR2E\",'Conn Information'!$N$3:$N$65,0),0))","v":false},"IR2, IR2E",null,36,"Notch Filter",null,null,null,null,null,null,null,1,"SINT",1,"0 = 50 Hz \n1 = 60 Hz \n2 = 100 Hz \n3 = 120 Hz \n4 = 200 Hz \n5 = 240 Hz \n6 = 300 Hz \n7 = 400 Hz \n8 = 480 Hz"]
[{"$f":"OR(IFERROR(MATCH(\"IR2\",'Conn Information'!$N$3:$N$65,0),0),IFERROR(MATCH(\"IR2E\",'Conn Information'!$N$3:$N$65,0),0))","v":false},"IR2, IR2E",null,37,"Alignment (reserved =0)",null,null,null,null,null,null,null,0,"SINT",0]
[{"$f":"OR(IFERROR(MATCH(\"IT2I\",'Conn Information'!$N$3:$N$65,0),0),0)","v":false},"IT2I",103,0,"Cold Junction Notch Filter",null,null,null,null,null,null,null,1,"SINT",1,"0 = 50Hz\n1 = 60Hz",null,"IT2I",0,"Channel 0 Data (Low Byte)"]
[{"$f":"OR(IFERROR(MATCH(\"IT2I\",'Conn Information'!$N$3:$N$65,0),0),0)","v":false},"IT2I",null,1,"Cold Junction Produced",null,null,null,null,null,null,null,1,"SINT",1,"0 = None \n1 = Channel 0 \n2 = Channel 1 \n3 = Average Both",null,"IT2I",1,"Channel 0 Data (High Byte)"]
[{"$f":"OR(IFERROR(MATCH(\"IT2I\",'Conn Information'!$N$3:$N$65,0),0),0)","v":false},"IT2I",null,2,"Low Engineering Channel 0 (Low Byte)",null,null,null,null,null,null,null,0,"INT",0,"-32,768…32,767",null,"IT2I",2,"Channel 1 Data (Low Byte)"]
[{"$f":"OR(IFERROR(MATCH(\"IT2I\",'Conn Information'!$N$3:$N$65,0),0),0)","v":false},"IT2I",null,3,"Low Engineering Channel 0 (High Byte)",null,null,null,null,null,null,null,0,null,null,null,null,"IT2I",3,"Channel 1 Data (High Byte)"]
[{"$f":"OR(IFERROR(MATCH(\"IT2I\",'Conn Information'!$N$3:$N$65,0),0),0)","v":false},"IT2I",null,4,"High Engineering Channel 0 (Low Byte)",null,null,null,null,null,null,null,88,"INT",7000,"-32,768…32,767",null,"IT2I",4,"Channel 0 Status"]
[{"$f":"OR(IFERROR(MATCH(\"IT2I\",'Conn Information'!$N$3:$N$65,0),0),0)","v":false},"IT2I",null,5,"High Engineering Channel 0 (High Byte)",null,null,null,null,null,null,null,27,null,null,null,null,"IT2I",5,"Channel 1 Status"]
[{"$f":"OR(IFERROR(MATCH(\"IT2I\",'Conn Information'!$N$3:$N$65,0),0),0)","v":false},"IT2I",null,6,"Alarm Disable Channel 0",null,null,null,null,null,null,null,0,"SINT",0,"0 = Alarms Enabled\n1 = Alarms Disabled",null,"IT2I",6,"CJC Data (Low Byte)"]
[{"$f":"OR(IFERROR(MATCH(\"IT2I\",'Conn Information'!$N$3:$N$65,0),0),0)","v":false},"IT2I",null,7,"Alarm Latch Channel 0",null,null,null,null,null,null,null,0,"SINT",0,"0 = No Latching\n1 = Alarms Latch",null,"IT2I",7,"CJC Data (High Byte)"]
[{"$f":"OR(IFERROR(MATCH(\"IT2I\",'Conn Information'!$N$3:$N$65,0),0),0)","v":false},"IT2I",null,8,"Notch Filter Channel 0",null,null,null,null,null,null,null,1,"SINT",1,"0 = 50 Hz \n1 = 60 Hz \n2 = 100 Hz \n3 = 120 Hz \n4 = 200 Hz \n5 = 240 Hz \n6 = 300 Hz \n7 = 400 Hz \n8 = 480 Hz"]
[{"$f":"OR(IFERROR(MATCH(\"IT2I\",'Conn Information'!$N$3:$N$65,0),0),0)","v":false},"IT2I",null,9,"Sensor Typed Channel 0",null,null,null,null,null,null,null,5,"SINT",5,"0 = mV \n1 = B \n2 = C \n3 = E \n4 = J \n5 = K \n6 = N\n7 = R \n8 = S \n9 = T"]
[{"$f":"OR(IFERROR(MATCH(\"IT2I\",'Conn Information'!$N$3:$N$65,0),0),0)","v":false},"IT2I",null,10,"Digital Filter Channel 0 (Low Byte)",null,null,null,null,null,null,null,0,"INT",0,"0….10,000ms"]
[{"$f":"OR(IFERROR(MATCH(\"IT2I\",'Conn Information'!$N$3:$N$65,0),0),0)","v":false},"IT2I",null,11,"Digital Filter Channel 0 (High Byte)",null,null,null,null,null,null,null,0]
[{"$f":"OR(IFERROR(MATCH(\"IT2I\",'Conn Information'!$N$3:$N$65,0),0),0)","v":false},"IT2I",null,12,"Low Alarm Channel 0 (Low Byte)",null,null,null,null,null,null,null,0,"INT",-32768,"-32,768…32,767"]
[{"$f":"OR(IFERROR(MATCH(\"IT2I\",'Conn Information'!$N$3:$N$65,0),0),0)","v":false},"IT2I",null,13,"Low Alarm Channel 0 (High Byte)",null,null,null,null,null,null,null,-128]
[{"$f":"OR(IFERROR(MATCH(\"IT2I\",'Conn Information'!$N$3:$N$65,0),0),0)","v":false},"IT2I",null,14,"High Alarm Channel 0 (Low Byte)",null,null,null,null,null,null,null,-1,"INT",32767,"-32,768…32,767"]
[{"$f":"OR(IFERROR(MATCH(\"IT2I\",'Conn Information'!$N$3:$N$65,0),0),0)","v":false},"IT2I",null,15,"High Alarm Channel 0 (High Byte)",null,null,null,null,null,null,null,127]
[{"$f":"OR(IFERROR(MATCH(\"IT2I\",'Conn Information'!$N$3:$N$65,0),0),0)","v":false},"IT2I",null,16,"Low Low Alarm Channel 0 (Low Byte)",null,null,null,null,null,null,null,0,"INT",-32768,"-32,768…32,767"]
[{"$f":"OR(IFERROR(MATCH(\"IT2I\",'Conn Information'!$N$3:$N$65,0),0),0)","v":false},"IT2I",null,17,"Low Low Alarm Channel 0 (High Byte)",null,null,null,null,null,null,null,-128]
[{"$f":"OR(IFERROR(MATCH(\"IT2I\",'Conn Information'!$N$3:$N$65,0),0),0)","v":false},"IT2I",null,18,"High High Alarm Channel 0 (Low Byte)",null,null,null,null,null,null,null,-1,"INT",32767,"-32,768…32,767"]
[{"$f":"OR(IFERROR(MATCH(\"IT2I\",'Conn Information'!$N$3:$N$65,0),0),0)","v":false},"IT2I",null,19,"High High Alarm Channel 0 (High Byte)",null,null,null,null,null,null,null,127]
[{"$f":"OR(IFERROR(MATCH(\"IT2I\",'Conn Information'!$N$3:$N$65,0),0),0)","v":false},"IT2I",null,20,"Temperaure Units Channel 0",null,null,null,null,null,null,null,1,"SINT",1,"0 = Custom Scale \n1 = °C \n2 = °F \n3 = °K \n4 = °R"]
[{"$f":"OR(IFERROR(MATCH(\"IT2I\",'Conn Information'!$N$3:$N$65,0),0),0)","v":false},"IT2I",null,21,"Cold Junction Enable Chan 0",null,null,null,null,null,null,null,1,"SINT",1,"0 = Disabled\n1 = Enabled"]
[{"$f":"OR(IFERROR(MATCH(\"IT2I\",'Conn Information'!$N$3:$N$65,0),0),0)","v":false},"IT2I",null,22,"Cold Junction Offset Chan 0 (Low Byte)",null,null,null,null,null,null,null,0,"INT",0,"0…7000 ( 0.00…70.00)"]
[{"$f":"OR(IFERROR(MATCH(\"IT2I\",'Conn Information'!$N$3:$N$65,0),0),0)","v":false},"IT2I",null,23,"Cold Junction Offset Chan 0 (High Byte)",null,null,null,null,null,null,null,0]
[{"$f":"OR(IFERROR(MATCH(\"IT2I\",'Conn Information'!$N$3:$N$65,0),0),0)","v":false},"IT2I",null,24,"Low Engineering Channel 1 (Low Byte)",null,null,null,null,null,null,null,0,"INT",0,"-32,768…32,767"]
[{"$f":"OR(IFERROR(MATCH(\"IT2I\",'Conn Information'!$N$3:$N$65,0),0),0)","v":false},"IT2I",null,25,"Low Engineering Channel 1 (High Byte)",null,null,null,null,null,null,null,0]
[{"$f":"OR(IFERROR(MATCH(\"IT2I\",'Conn Information'!$N$3:$N$65,0),0),0)","v":false},"IT2I",null,26,"High Engineering Channel 1 (Low Byte)",null,null,null,null,null,null,null,88,"INT",7000,"-32,768…32,767"]
[{"$f":"OR(IFERROR(MATCH(\"IT2I\",'Conn Information'!$N$3:$N$65,0),0),0)","v":false},"IT2I",null,27,"High Engineering Channel 1 (High Byte)",null,null,null,null,null,null,null,27]
[{"$f":"OR(IFERROR(MATCH(\"IT2I\",'Conn Information'!$N$3:$N$65,0),0),0)","v":false},"IT2I",null,28,"Alarm Disable Channel 1",null,null,null,null,null,null,null,0,"SINT",0,"0 = Alarms Enabled\n1 = Alarms Disabled"]
[{"$f":"OR(IFERROR(MATCH(\"IT2I\",'Conn Information'!$N$3:$N$65,0),0),0)","v":false},"IT2I",null,29,"Alarm Latch Channel 1",null,null,null,null,null,null,null,0,"SINT",0,"0 = No Latching\n1 = Alarms Latch"]
[{"$f":"OR(IFERROR(MATCH(\"IT2I\",'Conn Information'!$N$3:$N$65,0),0),0)","v":false},"IT2I",null,30,"Notch Filter Channel 1",null,null,null,null,null,null,null,1,"SINT",1,"0 = 50 Hz \n1 = 60 Hz \n2 = 100 Hz \n3 = 120 Hz \n4 = 200 Hz \n5 = 240 Hz \n6 = 300 Hz \n7 = 400 Hz \n8 = 480 Hz"]
[{"$f":"OR(IFERROR(MATCH(\"IT2I\",'Conn Information'!$N$3:$N$65,0),0),0)","v":false},"IT2I",null,31,"Sensor Typed Channel 1",null,null,null,null,null,null,null,5,"SINT",5,"0 = mV \n1 = B \n2 = C \n3 = E \n4 = J \n5 = K \n6 = N\n7 = R \n8 = S \n9 = T"]
[{"$f":"OR(IFERROR(MATCH(\"IT2I\",'Conn Information'!$N$3:$N$65,0),0),0)","v":false},"IT2I",null,32,"Digital Filter Channel 1 (Low Byte)",null,null,null,null,null,null,null,0,"INT",0,"0….10,000ms"]
[{"$f":"OR(IFERROR(MATCH(\"IT2I\",'Conn Information'!$N$3:$N$65,0),0),0)","v":false},"IT2I",null,33,"Digital Filter Channel 1 (High Byte)",null,null,null,null,null,null,null,0]
[{"$f":"OR(IFERROR(MATCH(\"IT2I\",'Conn Information'!$N$3:$N$65,0),0),0)","v":false},"IT2I",null,34,"Low Alarm Channel 1 (Low Byte)",null,null,null,null,null,null,null,0,"INT",-32768,"-32,768…32,767"]
[{"$f":"OR(IFERROR(MATCH(\"IT2I\",'Conn Information'!$N$3:$N$65,0),0),0)","v":false},"IT2I",null,35,"Low Alarm Channel 1 (High Byte)",null,null,null,null,null,null,null,-128]
[{"$f":"OR(IFERROR(MATCH(\"IT2I\",'Conn Information'!$N$3:$N$65,0),0),0)","v":false},"IT2I",null,36,"High Alarm Channel 1 (Low Byte)",null,null,null,null,null,null,null,-1,"INT",32767,"-32,768…32,767"]
[{"$f":"OR(IFERROR(MATCH(\"IT2I\",'Conn Information'!$N$3:$N$65,0),0),0)","v":false},"IT2I",null,37,"High Alarm Channel 1 (High Byte)",null,null,null,null,null,null,null,127]
[{"$f":"OR(IFERROR(MATCH(\"IT2I\",'Conn Information'!$N$3:$N$65,0),0),0)","v":false},"IT2I",null,38,"Low Low Alarm Channel 1 (Low Byte)",null,null,null,null,null,null,null,0,"INT",-32768,"-32,768…32,767"]
[{"$f":"OR(IFERROR(MATCH(\"IT2I\",'Conn Information'!$N$3:$N$65,0),0),0)","v":false},"IT2I",null,39,"Low Low Alarm Channel 1 (High Byte)",null,null,null,null,null,null,null,-128]
[{"$f":"OR(IFERROR(MATCH(\"IT2I\",'Conn Information'!$N$3:$N$65,0),0),0)","v":false},"IT2I",null,40,"High High Alarm Channel 1 (Low Byte)",null,null,null,null,null,null,null,-1,"INT",32767,"-32,768…32,767"]
[{"$f":"OR(IFERROR(MATCH(\"IT2I\",'Conn Information'!$N$3:$N$65,0),0),0)","v":false},"IT2I",null,41,"High High Alarm Channel 1 (High Byte)",null,null,null,null,null,null,null,127]
[{"$f":"OR(IFERROR(MATCH(\"IT2I\",'Conn Information'!$N$3:$N$65,0),0),0)","v":false},"IT2I",null,42,"Temperaure Units Channel 1",null,null,null,null,null,null,null,1,"SINT",1,"0 = Custom Scale \n1 = °C \n2 = °F \n3 = °K \n4 = °R"]
[{"$f":"OR(IFERROR(MATCH(\"IT2I\",'Conn Information'!$N$3:$N$65,0),0),0)","v":false},"IT2I",null,43,"Cold Junction Enable Chan 1",null,null,null,null,null,null,null,1,"SINT",1,"0 = Disabled\n1 = Enabled"]
[{"$f":"OR(IFERROR(MATCH(\"IT2I\",'Conn Information'!$N$3:$N$65,0),0),0)","v":false},"IT2I",null,44,"Cold Junction Offset Chan 1 (Low Byte)",null,null,null,null,null,null,null,0,"INT",0,"0…7000 ( 0.00…70.00)"]
[{"$f":"OR(IFERROR(MATCH(\"IT2I\",'Conn Information'!$N$3:$N$65,0),0),0)","v":false},"IT2I",null,45,"Cold Junction Offset Chan 1 (High Byte)",null,null,null,null,null,null,null,0]
[{"$f":"OR(IFERROR(MATCH(\"ARM\",'Conn Information'!$N$3:$N$65,0),0),0)","v":false},"ARM",null,"No configuration",null,null,null,null,null,null,null,null,null,null,null,null,null,"ARM",0,"Reserved = 0"]
[{"$f":"OR(IFERROR(MATCH(\"232ASC\",'Conn Information'!$N$3:$N$65,0),0),IFERROR(MATCH(\"485ASC\",'Conn Information'!$N$3:$N$65,0),0))","v":false},"232ASC, 485ASC",103,0,"ASCII Serial Character Format",null,null,null,null,null,null,null,0,"SINT",0,"0 = 7N2 \n1 = 7E1 \n2 = 7O1 \n3 = 8N1 \n4 = 8N2 \n5 = 8E1 \n6 = 8O1 \n7 = 7E2 \n8 = 7O2",null,"232ASC, 485ASC",0,"RX Transaction ID",null,null,null,null,null,null,null,null,"232ASC, 485ASC",0,"Reserved"]
[{"$f":"OR(IFERROR(MATCH(\"232ASC\",'Conn Information'!$N$3:$N$65,0),0),IFERROR(MATCH(\"485ASC\",'Conn Information'!$N$3:$N$65,0),0))","v":false},"232ASC, 485ASC",null,1,"ASCII Serial Comm Speed",null,null,null,null,null,null,null,0,"SINT",0,"0 = 9600 Kbps \n1 = 1200 Kbps \n2 = 2400 Kbps \n3 = 4800 Kbps \n4 = 19.2 KBps \n5 = 38.4 KBps",null,"232ASC, 485ASC",1,"Status",null,null,null,null,null,null,null,null,"232ASC, 485ASC",1,"TX Transaction ID"]
[{"$f":"OR(IFERROR(MATCH(\"232ASC\",'Conn Information'!$N$3:$N$65,0),0),IFERROR(MATCH(\"485ASC\",'Conn Information'!$N$3:$N$65,0),0))","v":false},"232ASC, 485ASC",null,2,"ASCII Max Number of Receive Characters",null,null,null,null,null,null,null,127,"SINT",127,"-128…+127  (0…128)",null,"232ASC, 485ASC",2,"Reserved or Length (depend on configuration)",null,null,null,null,null,null,null,null,"232ASC, 485ASC",2,"Reserved"]
[{"$f":"OR(IFERROR(MATCH(\"232ASC\",'Conn Information'!$N$3:$N$65,0),0),IFERROR(MATCH(\"485ASC\",'Conn Information'!$N$3:$N$65,0),0))","v":false},"232ASC, 485ASC",null,3,"ASCII Receive Record Start Mode",null,null,null,null,null,null,null,0,"SINT",0,"0 = No Start Delimiter \n1 = Exclude Start Delimiter \n2 = Include Start Delimiter",null,"232ASC, 485ASC",3,"Reserved or Length (depend on configuration)",null,null,null,null,null,null,null,null,"232ASC, 485ASC",3,"Length"]
[{"$f":"OR(IFERROR(MATCH(\"232ASC\",'Conn Information'!$N$3:$N$65,0),0),IFERROR(MATCH(\"485ASC\",'Conn Information'!$N$3:$N$65,0),0))","v":false},"232ASC, 485ASC",null,4,"ASCII Receive Start Delimiter",null,null,null,null,null,null,null,58,"SINT","58 (0x3A)","Any Valid ASCII Character (Default is Colon [:]) ",null,"232ASC, 485ASC",4,"ASCII Data  (from 1 to 128 bytes)",null,null,null,null,null,null,null,null,"232ASC, 485ASC",4,"ASCII Data  (from 1 to 128 bytes)"]
[{"$f":"OR(IFERROR(MATCH(\"232ASC\",'Conn Information'!$N$3:$N$65,0),0),IFERROR(MATCH(\"485ASC\",'Conn Information'!$N$3:$N$65,0),0))","v":false},"232ASC, 485ASC",null,5,"ASCII Receive Record End Mode",null,null,null,null,null,null,null,0,"SINT",0,"0 = No End Delimiter \n1 = Exclude End Delimiter \n2 = Include End Delimiter",null,"232ASC, 485ASC","N","<CR> Terminator (Value of N depends on number of ASCII Data Received)",null,null,null,null,null,null,null,null,"232ASC, 485ASC","N","<CR> Terminator (Value of N depends on number of ASCII Data transmitted)"]
[{"$f":"OR(IFERROR(MATCH(\"232ASC\",'Conn Information'!$N$3:$N$65,0),0),IFERROR(MATCH(\"485ASC\",'Conn Information'!$N$3:$N$65,0),0))","v":false},"232ASC, 485ASC",null,6,"ASCII Receive End Delimiter",null,null,null,null,null,null,null,2,"SINT",2,"Any Valid ASCII Character (Default is Carr Return) "]
[{"$f":"OR(IFERROR(MATCH(\"232ASC\",'Conn Information'!$N$3:$N$65,0),0),IFERROR(MATCH(\"485ASC\",'Conn Information'!$N$3:$N$65,0),0))","v":false},"232ASC, 485ASC",null,7,"ASCII Receive String Data Type",null,null,null,null,null,null,null,1,"SINT",1,"0 = Array \n1 = Short String \n2 = String"]
[{"$f":"OR(IFERROR(MATCH(\"232ASC\",'Conn Information'!$N$3:$N$65,0),0),IFERROR(MATCH(\"485ASC\",'Conn Information'!$N$3:$N$65,0),0))","v":false},"232ASC, 485ASC",null,8,"ASCII Pad Mode",null,null,null,null,null,null,null,1,"SINT",1,"0 = Pad Mode Disabled \n1 = Pad Mode Enabled"]
[{"$f":"OR(IFERROR(MATCH(\"232ASC\",'Conn Information'!$N$3:$N$65,0),0),IFERROR(MATCH(\"485ASC\",'Conn Information'!$N$3:$N$65,0),0))","v":false},"232ASC, 485ASC",null,9,"ASCII Pad Character",null,null,null,null,null,null,null,0,"SINT","0 (0x00)","Any Valid ASCII Character (Default is NULL) "]
[{"$f":"OR(IFERROR(MATCH(\"232ASC\",'Conn Information'!$N$3:$N$65,0),0),IFERROR(MATCH(\"485ASC\",'Conn Information'!$N$3:$N$65,0),0))","v":false},"232ASC, 485ASC",null,10,"ASCII Receive Swap Mode",null,null,null,null,null,null,null,0,"SINT",0,"0 = Disabled \n1 = 16-bit Swap Enabled \n2 = 24-bit Swap Enabled \n3 = 32-bit Swap Enabled"]
[{"$f":"OR(IFERROR(MATCH(\"232ASC\",'Conn Information'!$N$3:$N$65,0),0),IFERROR(MATCH(\"485ASC\",'Conn Information'!$N$3:$N$65,0),0))","v":false},"232ASC, 485ASC",null,11,"Handshake Mode",null,null,null,null,null,null,null,1,"SINT",1,"0 = Master/Slave handshake \n1 = Produce Immediate"]
[{"$f":"OR(IFERROR(MATCH(\"232ASC\",'Conn Information'!$N$3:$N$65,0),0),IFERROR(MATCH(\"485ASC\",'Conn Information'!$N$3:$N$65,0),0))","v":false},"232ASC, 485ASC",null,12,"ASCII Max Number of Transmit Characters ",null,null,null,null,null,null,null,127,"SINT",127,"-128…+127  (0…128)"]
[{"$f":"OR(IFERROR(MATCH(\"232ASC\",'Conn Information'!$N$3:$N$65,0),0),IFERROR(MATCH(\"485ASC\",'Conn Information'!$N$3:$N$65,0),0))","v":false},"232ASC, 485ASC",null,13,"ASCII Transmit End Delimiter Mode",null,null,null,null,null,null,null,2,"SINT",2,"0 = No End Delimiter \n1 = Exclude End Delimiter \n2 = Include End Delimiter"]
[{"$f":"OR(IFERROR(MATCH(\"232ASC\",'Conn Information'!$N$3:$N$65,0),0),IFERROR(MATCH(\"485ASC\",'Conn Information'!$N$3:$N$65,0),0))","v":false},"232ASC, 485ASC",null,14,"ASCII Transmit End Delimiter Character",null,null,null,null,null,null,null,13,"SINT","13 (0x0d)","Any Valid ASCII Character (Default is Carr Return) "]
[{"$f":"OR(IFERROR(MATCH(\"232ASC\",'Conn Information'!$N$3:$N$65,0),0),IFERROR(MATCH(\"485ASC\",'Conn Information'!$N$3:$N$65,0),0))","v":false},"232ASC, 485ASC",null,15,"ASCII Consume String Data Type",null,null,null,null,null,null,null,1,"SINT",0,"0 = Array \n1 = Short String \n2 = String"]
[{"$f":"OR(IFERROR(MATCH(\"232ASC\",'Conn Information'!$N$3:$N$65,0),0),IFERROR(MATCH(\"485ASC\",'Conn Information'!$N$3:$N$65,0),0))","v":false},"232ASC, 485ASC",null,16,"ASCII Transmit Swap Mode",null,null,null,null,null,null,null,0,"SINT",0,"0 = Disabled \n1 = 16-bit Swap Enabled \n2 = 24-bit Swap Enabled \n3 = 32-bit Swap Enabled"]
[{"$f":"OR(IFERROR(MATCH(\"232ASC\",'Conn Information'!$N$3:$N$65,0),0),IFERROR(MATCH(\"485ASC\",'Conn Information'!$N$3:$N$65,0),0))","v":false},"232ASC, 485ASC",null,17,"Transmit Handshake Mode",null,null,null,null,null,null,null,0,"SINT",0,"0 = Transmit handshake \n1 = Transmit Immediate"]
[{"$f":"OR(IFERROR(MATCH(\"SSI\",'Conn Information'!$N$3:$N$65,0),0),0)","v":false},"SSI",123,0,"Run",null,null,null,null,null,null,null,1,"SINT",1,"0 = Module Not Running \n1 = Module Is Running",null,"SSI",0,"Preset SSI Word [Low Byte]",null,null,null,null,null,null,null,null,"SSI",0,"Master Ack Byte Output Control"]
[{"$f":"OR(IFERROR(MATCH(\"SSI\",'Conn Information'!$N$3:$N$65,0),0),0)","v":false},"SSI",null,1,"Gray/Binary",null,null,null,null,null,null,null,1,"SINT",1,"0 = Binary Code \n1 = Gray Code",null,"SSI",1,"Preset SSI Word [1]",null,null,null,null,null,null,null,null,"SSI",1,"Reserved = 0"]
[{"$f":"OR(IFERROR(MATCH(\"SSI\",'Conn Information'!$N$3:$N$65,0),0),0)","v":false},"SSI",null,2,"SSI Word Length",null,null,null,null,null,null,null,13,"SINT",13,"2….31",null,"SSI",2,"Preset SSI Word [2]"]
[{"$f":"OR(IFERROR(MATCH(\"SSI\",'Conn Information'!$N$3:$N$65,0),0),0)","v":false},"SSI",null,3,"Data Rate",null,null,null,null,null,null,null,5,"SINT",5,"5 = 125 Kbps \n6 = 250 Kbps \n7 = 500 Kbps \n8 = 1 MB \n9 = 2 MB",null,"SSI",3,"Preset SSI Word [High Byte]"]
[{"$f":"OR(IFERROR(MATCH(\"SSI\",'Conn Information'!$N$3:$N$65,0),0),0)","v":false},"SSI",null,4,"Gray to Binary Conversion",null,null,null,null,null,null,null,0,"SINT",0,"0 = No Convert \n1 = Convert",null,"SSI",4,"Latched SSI Word [Low Byte]"]
[{"$f":"OR(IFERROR(MATCH(\"SSI\",'Conn Information'!$N$3:$N$65,0),0),0)","v":false},"SSI",null,5,"Standardization",null,null,null,null,null,null,null,0,"SINT",0,"0 = No Standardization \n1 = Apply Standardization",null,"SSI",5,"Latched SSI Word [1]"]
[{"$f":"OR(IFERROR(MATCH(\"SSI\",'Conn Information'!$N$3:$N$65,0),0),0)","v":false},"SSI",null,6,"SSI Word Delay Time (Low Byte)",null,null,null,null,null,null,null,64,"INT",64,"-32,768…32,767\n(16…65,535)",null,"SSI",6,"Latched SSI Word [2]"]
[{"$f":"OR(IFERROR(MATCH(\"SSI\",'Conn Information'!$N$3:$N$65,0),0),0)","v":false},"SSI",null,7,"SSI Word Delay Time (High Byte)",null,null,null,null,null,null,null,0,null,null,null,null,"SSI",7,"Latched SSI Word [High Byte]"]
[{"$f":"OR(IFERROR(MATCH(\"SSI\",'Conn Information'!$N$3:$N$65,0),0),0)","v":false},"SSI",null,8,"Trailing Bits",null,null,null,null,null,null,null,0,"SINT",0,"0….16",null,"SSI",8,"Module Status (Low Byte) "]
[{"$f":"OR(IFERROR(MATCH(\"SSI\",'Conn Information'!$N$3:$N$65,0),0),0)","v":false},"SSI",null,9,"Latch Input Control",null,null,null,null,null,null,null,0,"SINT",0,"InputLatch_0 (Bit 0), InputLatch_1 (Bit 1)\n00 = Off \n01 = Falling Edge of Input \n10 = Rising Edge of Input \n11 = Both Edges of Input",null,"SSI",9,"Module Status (High Byte)"]
[{"$f":"OR(IFERROR(MATCH(\"SSI\",'Conn Information'!$N$3:$N$65,0),0),0)","v":false},"SSI",null,10,"Sensor Resolution (Low Byte)",null,null,null,null,null,null,null,1,"INT",1,"-32,768…32,767 Counts\n(1….65,535)"]
[{"$f":"OR(IFERROR(MATCH(\"SSI\",'Conn Information'!$N$3:$N$65,0),0),0)","v":false},"SSI",null,11,"Sensor Resolution (High Byte)",null,null,null,null,null,null,null,0]
[{"$f":"OR(IFERROR(MATCH(\"SSI\",'Conn Information'!$N$3:$N$65,0),0),0)","v":false},"SSI",null,12,"Sensor Cycles (Low Byte)",null,null,null,null,null,null,null,1,"INT",1,"-32,768…32,767 Counts\n(1….65,535)"]
[{"$f":"OR(IFERROR(MATCH(\"SSI\",'Conn Information'!$N$3:$N$65,0),0),0)","v":false},"SSI",null,13,"Sensor Cycles (High Byte)",null,null,null,null,null,null,null,0]
[{"$f":"OR(IFERROR(MATCH(\"SSI\",'Conn Information'!$N$3:$N$65,0),0),0)","v":false},"SSI",null,14,"SSI Word Filter Control",null,null,null,null,null,null,null,0,"SINT",0]
[{"$f":"OR(IFERROR(MATCH(\"SSI\",'Conn Information'!$N$3:$N$65,0),0),0)","v":false},"SSI",null,15,"Alignment (reserved =0)",null,null,null,null,null,null,null,0,"SINT",0]
[{"$f":"OR(IFERROR(MATCH(\"SSI\",'Conn Information'!$N$3:$N$65,0),0),0)","v":false},"SSI",null,16,"Comparator 1 Value [Low Byte]",null,null,null,null,null,null,null,0,"DINT",0,"-2,147,483,648… 2,147,483,647 (0…4,294,967,295)"]
[{"$f":"OR(IFERROR(MATCH(\"SSI\",'Conn Information'!$N$3:$N$65,0),0),0)","v":false},"SSI",null,17,"Comparator 1 Value [1]",null,null,null,null,null,null,null,0]
[{"$f":"OR(IFERROR(MATCH(\"SSI\",'Conn Information'!$N$3:$N$65,0),0),0)","v":false},"SSI",null,18,"Comparator 1 Value [2]",null,null,null,null,null,null,null,0]
[{"$f":"OR(IFERROR(MATCH(\"SSI\",'Conn Information'!$N$3:$N$65,0),0),0)","v":false},"SSI",null,19,"Comparator 1 Value [High Byte]",null,null,null,null,null,null,null,0]
[{"$f":"OR(IFERROR(MATCH(\"SSI\",'Conn Information'!$N$3:$N$65,0),0),0)","v":false},"SSI",null,20,"Comparator 2 Value [Low Byte]",null,null,null,null,null,null,null,0,"DINT",0,"-2,147,483,648… 2,147,483,647 (0…4,294,967,295)"]
[{"$f":"OR(IFERROR(MATCH(\"SSI\",'Conn Information'!$N$3:$N$65,0),0),0)","v":false},"SSI",null,21,"Comparator 2 Value [1]",null,null,null,null,null,null,null,0]
[{"$f":"OR(IFERROR(MATCH(\"SSI\",'Conn Information'!$N$3:$N$65,0),0),0)","v":false},"SSI",null,22,"Comparator 2 Value [2]",null,null,null,null,null,null,null,0]
[{"$f":"OR(IFERROR(MATCH(\"SSI\",'Conn Information'!$N$3:$N$65,0),0),0)","v":false},"SSI",null,23,"Comparator 2 Value [High Byte]",null,null,null,null,null,null,null,0]
[{"$f":"OR(IFERROR(MATCH(\"SSI\",'Conn Information'!$N$3:$N$65,0),0),0)","v":false},"SSI",null,24,"Comparator 1 Control",null,null,null,null,null,null,null,0,"SINT",0,"Compare1_0 (Bit 0)\nCompare1_1 (Bit 1)\n00 = Off \n01 = Up Direction \n10 = Down Direction \n11 = Both Directions"]
[{"$f":"OR(IFERROR(MATCH(\"SSI\",'Conn Information'!$N$3:$N$65,0),0),0)","v":false},"SSI",null,25,"Comparator 2 Control",null,null,null,null,null,null,null,0,"SINT",0,"Compare2_0 (Bit 0)\nCompare2_1 (Bit 1)\n00 = Off \n01 = Up Direction \n10 = Down Direction \n11 = Both Directions"]

{"sheet":"Revision","index":3,"n_rows":2,"n_cols":2,"rows_kept":2,"cut":false,"hidden":false,"merged":[]}
["Revision Number","Changes"]
[1,"Generic Device Configurator creation"]

{"sheet":"Conn Information","index":4,"n_rows":65,"n_cols":24,"rows_kept":65,"cut":false,"hidden":true,"merged":[]}
["Connection Type","Configuration","Output","Input",null,null,"Catalog","Config instance","Config Size","Input size","Output size1","Output size2","Output size3",null,"Slot","Catalog","Config","Input","Output","Instance","Total Config","Total Input","Total Output"]
["Exclusive Owner",102,100,101,null,null,"1734-AENTR",102,10,8,0,null,null,null,0,"1734-AENTR",10,8,0,null,10,7,0]
["Listen only",102,191,101,null,null,"1734-IB2",103,8,1,0,null,null,{"$f":"IFERROR(MID(P3,6,LEN(P3)-5),0)","v":0},1,{"$f":"Config!B7","v":0},{"$f":"IFERROR(VLOOKUP($P3,$G$1:$M$47,3,FALSE),)","v":0},{"$f":"IFERROR(VLOOKUP($P3,$G$1:$M$47,4,FALSE),)","v":0},{"$f":"IFERROR(VLOOKUP($P3,$G$1:$M$47,5,FALSE),)","v":0},{"$f":"IFERROR(VLOOKUP($P3,$G$1:$M$47,2,FALSE),)","v":0},{"$f":"IF(P3=0,\"\",IF(P3=\"1734-ARM\",Q3+U2,Q3+U2+4))","v":""},{"$f":"R3+V2","v":7},{"$f":"IF($S3=0,$W2,IF(X3=0,$S3-1,$S3+$W2))","v":0},{"$f":"IF(S3=0,0,1)","v":0}]
["Input only",102,190,101,null,null,"1734-IB4",103,16,1,0,null,null,{"$f":"IFERROR(MID(P4,6,LEN(P4)-5),0)","v":0},2,{"$f":"Config!B8","v":0},0,0,0,{"$f":"IFERROR(VLOOKUP($P4,$G$1:$M$47,2,FALSE),)","v":0},{"$f":"IF(P4=0,\"\",IF(P4=\"1734-ARM\",Q4+U3,Q4+U3+4))","v":""},{"$f":"R4+V3","v":7},{"$f":"IF($S4=0,$W3,IF(X3=0,$S4-1,$S4+$W3))","v":0},{"$f":"IF(S4=0,X3,1)","v":0}]
[null,null,null,null,null,null,"1734-IB4D",103,18,2,0,null,null,0,3,{"$f":"Config!B9","v":0},0,0,0,0,{"$f":"IF(P5=0,\"\",IF(P5=\"1734-ARM\",Q5+U4,Q5+U4+4))","v":""},7,0,0]
[null,null,null,null,null,null,"1734-IB8",103,32,1,0,null,null,0,4,{"$f":"Config!B10","v":0},0,0,0,0,"",7,0,0]
[null,null,null,null,null,null,"1734-IV2",103,8,1,0,null,null,0,5,{"$f":"Config!B11","v":0},0,0,0,0,"",7,0,0]
[null,"Configuration","Output","Input",null,null,"1734-IV4",103,16,1,0,null,null,0,6,{"$f":"Config!B12","v":0},0,0,0,0,"",7,0,0]
["Exclusive Owner",{"$f":"SUM($Q$2:$Q$65)+COUNTA(Config!$B$7:$B$69)*4","v":10},{"$f":"SUM(S2:S65)","v":0},{"$f":"SUM(R2:R65)","v":8},null,null,"1734-IV8",103,32,1,0,null,null,0,7,{"$f":"Config!B13","v":0},0,0,0,0,"",7,0,0]
["Listen Only",0,0,{"$f":"SUM(R2:R65)","v":8},null,null,"1734-OB2E",123,8,1,1,null,null,0,8,{"$f":"Config!B14","v":0},0,0,0,0,"",7,0,0]
["Input Only",{"$f":"SUM($Q$2:$Q$65)+COUNTA(Config!$B$7:$B$69)*4","v":10},0,{"$f":"SUM(R2:R65)","v":8},null,null,"1734-OB4E",123,8,1,1,null,null,0,9,{"$f":"Config!B15","v":0},0,0,0,0,"",7,0,0]
[null,null,null,null,null,null,"1734-OB2",123,8,1,1,null,null,0,10,{"$f":"Config!B16","v":0},0,0,0,0,"",7,0,0]
[null,null,null,null,null,null,"1734-OB4",123,8,1,1,null,null,0,11,{"$f":"Config!B17","v":0},0,0,0,0,"",7,0,0]
[null,null,null,null,null,null,"1734-OB8",123,8,1,1,null,null,0,12,{"$f":"Config!B18","v":0},0,0,0,0,"",7,0,0]
["Connection Type","Comm Format",null,null,null,null,"1734-OB8E",123,8,1,1,null,null,0,13,{"$f":"Config!B19","v":0},0,0,0,0,"",7,0,0]
["Exclusive Owner","Data - SINT",null,null,null,null,"1734-OW2",103,4,0,1,null,null,0,14,{"$f":"Config!B20","v":0},0,0,0,0,"",7,0,0]
["Listen only","Input Data - SINT",null,null,null,null,"1734-OW4",103,4,0,1,null,null,0,15,{"$f":"Config!B21","v":0},0,0,0,0,"",7,0,0]
["Input only","Input Data - SINT",null,null,null,null,"1734-OV2E",123,8,1,1,null,null,0,16,{"$f":"Config!B22","v":0},0,0,0,0,"",7,0,0]
[null,null,null,null,null,null,"1734-OV4E",123,8,1,1,null,null,0,17,{"$f":"Config!B23","v":0},0,0,0,0,"",7,0,0]
[null,null,null,null,null,null,"1734-OV8E",123,8,1,1,null,null,0,18,{"$f":"Config!B24","v":0},0,0,0,0,"",7,0,0]
[null,null,null,null,null,null,"1734-OX2",103,4,0,1,null,null,0,19,{"$f":"Config!B25","v":0},0,0,0,0,"",7,0,0]
[null,null,null,null,null,null,"1734-OB2EP",123,8,1,1,null,null,0,20,{"$f":"Config!B26","v":0},0,0,0,0,"",7,0,0]
[null,null,null,null,null,null,"1734-IA2",103,8,1,0,null,null,0,21,{"$f":"Config!B27","v":0},0,0,0,0,"",7,0,0]
[null,null,null,null,null,null,"1734-IA4",103,16,1,0,null,null,0,22,{"$f":"Config!B28","v":0},0,0,0,0,"",7,0,0]
[null,null,null,null,null,null,"1734-IM2",103,8,1,0,null,null,0,23,{"$f":"Config!B29","v":0},0,0,0,0,"",7,0,0]
[null,null,null,null,null,null,"1734-IM4",103,16,1,0,null,null,0,24,{"$f":"Config!B30","v":0},0,0,0,0,"",7,0,0]
[null,null,null,null,null,null,"1734-OA2",103,4,0,1,null,null,0,25,{"$f":"Config!B31","v":0},0,0,0,0,"",7,0,0]
[null,null,null,null,null,null,"1734-OA4",103,4,0,1,null,null,0,26,{"$f":"Config!B32","v":0},0,0,0,0,"",7,0,0]
[null,null,null,null,null,null,"1734-8CFG",103,8,1,1,null,null,0,27,{"$f":"Config!B33","v":0},0,0,0,0,"",7,0,0]
[null,null,null,null,null,null,"1734-VHSC5",108,54,6,2,null,null,0,28,{"$f":"Config!B34","v":0},0,0,0,0,"",7,0,0]
[null,null,null,null,null,null,"1734-VHSC24",108,54,6,2,null,null,0,29,{"$f":"Config!B35","v":0},0,0,0,0,"",7,0,0]
[null,null,null,null,null,null,"1734-IJ",123,18,6,1,null,null,0,30,{"$f":"Config!B36","v":0},0,0,0,0,"",7,0,0]
[null,null,null,null,null,null,"1734-IK",23,18,6,1,null,null,0,31,{"$f":"Config!B37","v":0},0,0,0,0,"",7,0,0]
[null,null,null,null,null,null,"1734-IE2C",123,38,6,0,null,null,0,32,{"$f":"Config!B38","v":0},0,0,0,0,"",7,0,0]
[null,null,null,null,null,null,"1734-IE4C",123,74,12,0,null,null,0,33,{"$f":"Config!B39","v":0},{"$f":"IFERROR(VLOOKUP($P35,$G$1:$M$47,3,FALSE),)","v":0},{"$f":"IFERROR(VLOOKUP($P35,$G$1:$M$47,4,FALSE),)","v":0},{"$f":"IFERROR(VLOOKUP($P35,$G$1:$M$47,5,FALSE),)","v":0},0,"",7,0,0]
[null,null,null,null,null,null,"1734-IE8C",123,146,24,0,null,null,0,34,{"$f":"Config!B40","v":0},0,0,0,0,"",7,{"$f":"IF($S36=0,$W35,IF(X35=0,$S36-1,$S36+$W35))","v":0},{"$f":"IF(S36=0,X35,1)","v":0}]
[null,null,null,null,null,null,"1734-OE2C",123,36,2,4,null,null,0,35,{"$f":"Config!B41","v":0},0,0,0,0,"",7,0,0]
[null,null,null,null,null,null,"1734-OE4C",123,72,4,8,null,null,0,36,{"$f":"Config!B42","v":0},0,0,0,0,"",7,0,0]
[null,null,null,null,null,null,"1734-IT2I",103,46,8,0,null,null,0,37,{"$f":"Config!B43","v":0},0,0,0,0,"",7,0,0]
[null,null,null,null,null,null,"1734-IR2",123,38,6,0,null,null,0,38,{"$f":"Config!B44","v":0},0,0,0,0,"",7,0,0]
[null,null,null,null,null,null,"1734-IR2E",123,38,6,0,null,null,0,39,{"$f":"Config!B45","v":0},0,0,0,0,"",7,0,0]
[null,null,null,null,null,null,"1734-IE2V",123,38,6,0,null,null,0,40,{"$f":"Config!B46","v":0},0,0,0,0,"",7,0,0]
[null,null,null,null,null,null,"1734-OE2V",123,36,2,4,null,null,0,41,{"$f":"Config!B47","v":0},0,0,0,0,"",7,0,0]
[null,null,null,null,null,null,"1734-SSI",123,26,10,2,null,null,0,42,{"$f":"Config!B48","v":0},0,0,0,0,"",7,0,0]
[null,null,null,null,null,null,"1734-232ASC",103,18,131,131,null,null,0,43,{"$f":"Config!B49","v":0},0,0,0,0,"",7,0,0]
[null,null,null,null,null,null,"1734-485ASC",103,18,131,131,null,null,0,44,{"$f":"Config!B50","v":0},0,0,0,0,"",7,0,0]
[null,null,null,null,null,null,"1734-ARM",null,0,1,0,null,null,0,45,{"$f":"Config!B51","v":0},0,0,0,0,"",7,0,0]
[null,null,null,null,null,null,null,null,null,null,null,null,null,0,46,{"$f":"Config!B52","v":0},0,0,0,0,"",7,0,0]
[null,null,null,null,null,null,null,null,null,null,null,null,null,0,47,{"$f":"Config!B53","v":0},0,0,0,0,"",7,0,0]
[null,null,null,null,null,null,null,null,null,null,null,null,null,0,48,{"$f":"Config!B54","v":0},0,0,0,0,"",7,0,0]
[null,null,null,null,null,null,null,null,null,null,null,null,null,0,49,{"$f":"Config!B55","v":0},0,0,0,0,"",7,0,0]
[null,null,null,null,null,null,null,null,null,null,null,null,null,0,50,{"$f":"Config!B56","v":0},0,0,0,0,"",7,0,0]
[null,null,null,null,null,null,null,null,null,null,null,null,null,0,51,{"$f":"Config!B57","v":0},0,0,0,0,"",7,0,0]
[null,null,null,null,null,null,null,null,null,null,null,null,null,0,52,{"$f":"Config!B58","v":0},0,0,0,0,"",7,0,0]
[null,null,null,null,null,null,null,null,null,null,null,null,null,0,53,{"$f":"Config!B59","v":0},0,0,0,0,"",7,0,0]
[null,null,null,null,null,null,null,null,null,null,null,null,null,0,54,{"$f":"Config!B60","v":0},0,0,0,0,"",7,0,0]
[null,null,null,null,null,null,null,null,null,null,null,null,null,0,55,{"$f":"Config!B61","v":0},0,0,0,0,"",7,0,0]
[null,null,null,null,null,null,null,null,null,null,null,null,null,0,56,{"$f":"Config!B62","v":0},0,0,0,0,"",7,0,0]
[null,null,null,null,null,null,null,null,null,null,null,null,null,0,57,{"$f":"Config!B63","v":0},0,0,0,0,"",7,0,0]
[null,null,null,null,null,null,null,null,null,null,null,null,null,0,58,{"$f":"Config!B64","v":0},0,0,0,0,"",7,0,0]
[null,null,null,null,null,null,null,null,null,null,null,null,null,0,59,{"$f":"Config!B65","v":0},0,0,0,0,"",7,0,0]
[null,null,null,null,null,null,null,null,null,null,null,null,null,0,60,{"$f":"Config!B66","v":0},0,0,0,0,"",7,0,0]
[null,null,null,null,null,null,null,null,null,null,null,null,null,0,61,{"$f":"Config!B67","v":0},0,0,0,0,"",7,0,0]
[null,null,null,null,null,null,null,null,null,null,null,null,null,0,62,{"$f":"Config!B68","v":0},0,0,0,0,"",7,0,0]
[null,null,null,null,null,null,null,null,null,null,null,null,null,0,63,{"$f":"Config!B69","v":0},0,0,0,0,"",7,0,0]